Workbook

Sheet Front
A2: Spreadsheet Status | B2: Hard Coded

Sheet Main
F1: 2015-09-30 | I1: 2015-10-02 | X1: 2015-10-09 | AM1: 2015-10-16 | BB1: 2015-10-23 | BQ1: 2015-10-30 | CF1: 2015-11-06 | CU1: 2015-11-13 | DJ1: 2015-11-20 | DY1: 2015-11-27 | EN1: 2015-12-04 | FC1: 2015-12-11 | FR1: 2015-12-18 | GG1: 2015-12-25 | GV1: 2016-01-01 | HK1: 2016-01-08 | HZ1: 2016-01-15 | IO1: 2016-01-22 | JD1: 2016-01-29 | JS1: 2016-02-05 | KH1: 2016-02-12 | KW1: 2016-02-19 | LL1: 2016-02-26 | MA1: 2016-03-04 | MP1: 2016-03-11 | NE1: 2016-03-18 | NT1: 2016-03-25 | OI1: 2016-04-01
A2: Company Name | B2: Stock | C2: Sector | D2: Industry | E2: Stock Type | F2: Price | G2: Qty | H2: Value | I2: Status | J2: Opening Amount | K2: Price | L2: Qty | M2: Value | N2: Return | O2: BM | P2: BM value | Q2: Alpha | R2: Alpha C | S2: Cumulative Return | T2: Cumulative BM | U2: Cumulative BM Value | V2: Cumulative Alpha | W2: Cumulative Alpha Con. | X2: Status | Y2: Opening Amount | Z2: Price | AA2: Qty | AB2: Value | AC2: Return | AD2: BM | AE2: BM-Value | AF2: Alpha | AG2: Alpha C | AH2: Cumulative Return | AI2: Cumulative BM | AJ2: Cumulative BM Value | AK2: Cumulative Alpha | AL2: Cumulative Alpha Con. | AM2: Status | AN2: Opening Amount | AO2: Price | AP2: Qty | AQ2: Value | AR2: Return | AS2: BM | AT2: BM-Value | AU2: Alpha | AV2: Alpha C | AW2: Cumulative Return | AX2: Cumulative BM | AY2: Cumulative BM Value | AZ2: Cumulative Alpha | BA2: Cumulative Alpha Con. | BB2: Status | BC2: Opening Amount | BD2: Price | BE2: Qty | BF2: Value | BG2: Return | BH2: BM | BI2: BM-Value | BJ2: Alpha | BK2: Alpha C | BL2: Cumulative Return | BM2: Cumulative BM | BN2: Cumulative BM Value | BO2: Cumulative Alpha | BP2: Cumulative Alpha Con. | BQ2: Status | BR2: Opening Amount | BS2: Price | BT2: Qty | BU2: Value | BV2: Return | BW2: BM | BX2: BM-Value | BY2: Alpha | BZ2: Alpha C | CA2: Cumulative Return | CB2: Cumulative BM | CC2: Cumulative BM Value | CD2: Cumulative Alpha | CE2: Cumulative Alpha Con. | CF2: Status | CG2: Opening Amount | CH2: Price | CI2: Qty | CJ2: Value | CK2: Return | CL2: BM | CM2: BM-Value | CN2: Alpha | CO2: Alpha C | CP2: Cumulative Return | CQ2: Cumulative BM | CR2: Cumulative BM Value | CS2: Cumulative Alpha | CT2: Cumulative Alpha Con. | CU2: Status | CV2: Opening Amount | CW2: Price | CX2: Qty | CY2: Value | CZ2: Return | DA2: BM | DB2: BM-Value | DC2: Alpha | DD2: Alpha C | DE2: Cumulative Return | DF2: Cumulative BM | DG2: Cumulative BM Value | DH2: Cumulative Alpha | DI2: Cumulative Alpha Con. | DJ2: Status | DK2: Opening Amount | DL2: Price | DM2: Qty | DN2: Value | DO2: Return | DP2: BM | DQ2: BM-Value | DR2: Alpha | DS2: Alpha C | DT2: Cumulative Return | DU2: Cumulative BM | DV2: Cumulative BM Value | DW2: Cumulative Alpha | DX2: Cumulative Alpha Con. | DY2: Status | DZ2: Opening Amount | EA2: Price | EB2: Qty | EC2: Value | ED2: Return | EE2: BM | EF2: BM-Value | EG2: Alpha | EH2: Alpha C | EI2: Cumulative Return | EJ2: Cumulative BM | EK2: Cumulative BM Value | EL2: Cumulative Alpha | EM2: Cumulative Alpha Con. | EN2: Status | EO2: Opening Amount | EP2: Price | EQ2: Qty | ER2: Value | ES2: Return | ET2: BM | EU2: BM-Value | EV2: Alpha | EW2: Alpha C | EX2: Cumulative Return | EY2: Cumulative BM | EZ2: Cumulative BM Value | FA2: Cumulative Alpha | FB2: Cumulative Alpha Con. | FC2: Status | FD2: Opening Amount | FE2: Price | FF2: Qty | FG2: Value | FH2: Return | FI2: BM | FJ2: BM-Value | FK2: Alpha | FL2: Alpha C | FM2: Cumulative Return | FN2: Cumulative BM | FO2: Cumulative BM Value | FP2: Cumulative Alpha | FQ2: Cumulative Alpha Con. | FR2: Status | FS2: Opening Amount | FT2: Price | FU2: Qty | FV2: Value | FW2: Return | FX2: BM | FY2: BM-Value | FZ2: Alpha | GA2: Alpha C | GB2: Cumulative Return | GC2: Cumulative BM | GD2: Cumulative BM Value | GE2: Cumulative Alpha | GF2: Cumulative Alpha Con. | GG2: Status | GH2: Opening Amount | GI2: Price | GJ2: Qty | GK2: Value | GL2: Return | GM2: BM | GN2: BM-Value | GO2: Alpha | GP2: Alpha C | GQ2: Cumulative Return | GR2: Cumulative BM | GS2: Cumulative BM Value | GT2: Cumulative Alpha | GU2: Cumulative Alpha Con. | GV2: Status | GW2: Opening Amount | GX2: Price | GY2: Qty | GZ2: Value | HA2: Return | HB2: BM | HC2: BM-Value | HD2: Alpha | HE2: Alpha C | HF2: Cumulative Return | HG2: Cumulative BM | HH2: Cumulative BM Value | HI2: Cumulative Alpha | HJ2: Cumulative Alpha Con. | HK2: Status | HL2: Opening Amount | HM2: Price | HN2: Qty | HO2: Value | HP2: Return | HQ2: BM | HR2: BM-Value | HS2: Alpha | HT2: Alpha C | HU2: Cumulative Return | HV2: Cumulative BM | HW2: Cumulative BM Value | HX2: Cumulative Alpha | HY2: Cumulative Alpha Con. | HZ2: Status | IA2: Opening Amount | IB2: Price | IC2: Qty | ID2: Value | IE2: Return | IF2: BM | IG2: BM-Value | IH2: Alpha | II2: Alpha C | IJ2: Cumulative Return | IK2: Cumulative BM | IL2: Cumulative BM Value | IM2: Cumulative Alpha | IN2: Cumulative Alpha Con. | IO2: Status | IP2: Opening Amount | IQ2: Price | IR2: Qty | IS2: Value | IT2: Return | IU2: BM | IV2: BM-Value | IW2: Alpha | IX2: Alpha C | IY2: Cumulative Return | IZ2: Cumulative BM | JA2: Cumulative BM Value | JB2: Cumulative Alpha | JC2: Cumulative Alpha Con. | JD2: Status | JE2: Opening Amount | JF2: Price | JG2: Qty | JH2: Value | JI2: Return | JJ2: BM | JK2: BM-Value | JL2: Alpha | JM2: Alpha C | JN2: Cumulative Return | JO2: Cumulative BM | JP2: Cumulative BM Value | JQ2: Cumulative Alpha | JR2: Cumulative Alpha Con. | JS2: Status | JT2: Opening Amount | JU2: Price | JV2: Qty | JW2: Value | JX2: Return | JY2: BM | JZ2: BM-Value | KA2: Alpha | KB2: Alpha C | KC2: Cumulative Return | KD2: Cumulative BM | KE2: Cumulative BM Value | KF2: Cumulative Alpha | KG2: Cumulative Alpha Con. | KH2: Status | KI2: Opening Amount | KJ2: Price | KK2: Qty | KL2: Value | KM2: Return | KN2: BM | KO2: BM-Value | KP2: Alpha | KQ2: Alpha C | KR2: Cumulative Return | KS2: Cumulative BM | KT2: Cumulative BM Value | KU2: Cumulative Alpha | KV2: Cumulative Alpha Con. | KW2: Status | KX2: Opening Amount | KY2: Price | KZ2: Qty | LA2: Value | LB2: Return | LC2: BM | LD2: BM-Value | LE2: Alpha | LF2: Alpha C | LG2: Cumulative Return | LH2: Cumulative BM | LI2: Cumulative BM Value | LJ2: Cumulative Alpha | LK2: Cumulative Alpha Con. | LL2: Status | LM2: Opening Amount | LN2: Price | LO2: Qty | LP2: Value | LQ2: Return | LR2: BM | LS2: BM-Value | LT2: Alpha | LU2: Alpha C | LV2: Cumulative Return | LW2: Cumulative BM | LX2: Cumulative BM Value | LY2: Cumulative Alpha | LZ2: Cumulative Alpha Con. | MA2: Status | MB2: Opening Amount | MC2: Price | MD2: Qty | ME2: Value | MF2: Return | MG2: BM | MH2: BM-Value | MI2: Alpha | MJ2: Alpha C | MK2: Cumulative Return | ML2: Cumulative BM | MM2: Cumulative BM Value | MN2: Cumulative Alpha | MO2: Cumulative Alpha Con. | MP2: Status | MQ2: Opening Amount | MR2: Price | MS2: Qty | MT2: Value | MU2: Return | MV2: BM | MW2: BM-Value | MX2: Alpha | MY2: Alpha C | MZ2: Cumulative Return | NA2: Cumulative BM | NB2: Cumulative BM Value | NC2: Cumulative Alpha | ND2: Cumulative Alpha Con. | NE2: Status | NF2: Opening Amount | NG2: Price | NH2: Qty | NI2: Value | NJ2: Return | NK2: BM | NL2: BM-Value | NM2: Alpha | NN2: Alpha C | NO2: Cumulative Return | NP2: Cumulative BM | NQ2: Cumulative BM Value | NR2: Cumulative Alpha | NS2: Cumulative Alpha Con. | NT2: Status | NU2: Opening Amount | NV2: Price | NW2: Qty | NX2: Value | NY2: Return | NZ2: BM | OA2: BM-Value | OB2: Alpha | OC2: Alpha C | OD2: Cumulative Return | OE2: Cumulative BM | OF2: Cumulative BM Value | OG2: Cumulative Alpha | OH2: Cumulative Alpha Con. | OI2: Status | OJ2: Opening Amount | OK2: Price | OL2: Qty | OM2: Value | ON2: Return | OO2: BM | OP2: BM-Value | OQ2: Alpha | OR2: Alpha C | OS2: Cumulative Return | OT2: Cumulative BM | OU2: Cumulative BM Value | OV2: Cumulative Alpha | OW2: Cumulative Alpha Con.
A3: 3M Co | B3: MMM | C3: Industrials | D3: Industrial Conglomerates | E3: Large Core | F3: 141.77 | G3: 605 | H3: =F3*G3 -> 85770.85 | I3: Hold | J3: =H3+SUMIFS(Trades!$H:$H,Trades!$C:$C,$B3,Trades!$E:$E,"Purchase",Trades!$B:$B,I$1)-SUMIFS(Trades!$H:$H,Trades!$C:$C,$B3,Trades!$E:$E,"Sale",Trades!$B:$B,I$1) -> 85770.85 | K3: 143.2 | L3: =G3+SUMIFS(Trades!$F:$F,Trades!$C:$C,$B3,Trades!$B:$B,I$1,Trades!$E:$E,"Purchase")-SUMIFS(Trades!$F:$F,Trades!$C:$C,$B3,Trades!$B:$B,I$1,Trades!$E:$E,"Sale") -> 605 | M3: =K3*L3 -> 86636 | N3: =IF(I3="Hold",(M3)/(H3+SUMIFS(Trades!$H:$H,Trades!$B:$B,I$1,Trades!$E:$E,"Purchase",Trades!$C:$C,$B3))-1, IF(I3="Purchase",M3/SUMIFS(Trades!$H:$H,Trades!$B:$B,I$1,Trades!$E:$E,"Purchase",Trades!$C:$C,$B3)-1, IF(I3="Sale",SUMIFS(Trades!$H:$H,Trades!$B:$B,I$1,Trades!$E:$E,"Sale",Trades!$C:$C,$B3)/H3-1))) -> 0.01008676025 | O3: =IF(I3="Hold",IFERROR((((H3-SUMIFS(Trades!$H:$H,Trades!$B:$B,I$1,Trades!$C:$C,$B3,Trades!$E:$E,"Sale"))/(H3+SUMIFS(Trades!$H:$H,Trades!$B:$B,I$1,Trades!$C:$C,$B3,Trades!$E:$E,"Purchase")))*VLOOKUP(I$1,Benchmark!$H$6:$M$200,4,FALSE)),0) +IFERROR(((SUMIFS(Trades!$H:$H,Trades!$B:$B,I$1,Trades!$C:$C,$B3,Trades!$E:$E,"Purchase")/(H3+SUMIFS(Trades!$H:$H,Trades!$B:$B,I$1,Trades!$C:$C,$B3,Trades!$E:$E,"Purchase")))*VLOOKUP(SUMIFS(Trades!$A:$A,Trades!$B:$B,I$1,Trades!$C:$C,$B3,Trades!$E:$E,"Purchase"),Benchmark!$H$6:$M$200,6,FALSE)),0) +IFERROR(((SUMIFS(Trades!$H:$H,Trades!$B:$B,I$1,Trades!$C:$C,$B3,Trades!$E:$E,"Sale")/(H3+SUMIFS(Trades!$H:$H,Trades!$B:$B,I$1,Trades!$C:$C,$B3,Trades!$E:$E,"Purchase")))*VLOOKUP(SUMIFS(Trades!$A:$A,Trades!$B:$B,I$1,Trades!$C:$C,$B3,Trades!$E:$E,"Sale"),Benchmark!$H$6:$M$200,4,FALSE)),0), IF(I3="Purchase",VLOOKUP(SUMIFS(Trades!$A:$A,Trades!$B:$B,I$1,Trades!$C:$C,$B3,Trades!$E:$E,I3,Trades!$E:$E,"Purchase"),Benchmark!$H$6:$M$200,6,FALSE), IF(I3="Sale",VLOOKUP(SUMIFS(Trades!$A:$A,Trades!$B:$B,I$1,Trades!$C:$C,$B3,Trades!$E:$E,I3,Trades!$E:$E,"Sale"),Benchmark!$H$6:$M$200,4,FALSE)))) -> 0.007390339874 | P3: =IF(I3="Hold",((H3-SUMIFS(Trades!$H:$H,Trades!$B:$B,I$1,Trades!$C:$C,$B3,Trades!$E:$E,"Sale"))*(1+VLOOKUP(I$1,Benchmark!$H$6:$M$200,4,FALSE))) +IFERROR((SUMIFS(Trades!$H:$H,Trades!$B:$B,I$1,Trades!$C:$C,$B3,Trades!$E:$E,"Purchase")*(1+VLOOKUP(SUMIFS(Trades!$A:$A,Trades!$B:$B,I$1,Trades!$C:$C,$B3,Trades!$E:$E,"Purchase"),Benchmark!$H$6:$M$200,4,FALSE))),0), IF(I3="Purchase",SUMIFS(Trades!$H:$H,Trades!$B:$B,I$1,Trades!$C:$C,$B3,Trades!$E:$E,"Purchase")*(1+O3), IF(I3="Sale",0))) -> 86404.72573 | Q3: =N3-O3 -> 0.002696420371 | R3: =((M3-P3)/(M$47-P$47))*Q$47 -> 9.125765573e-05 | S3: =N3 -> 0.01008676025 | T3: =O3 -> 0.007390339874 | U3: =P3 -> 86404.72573 | V3: =Q3 -> 0.002696420371 | W3: =R3 -> 9.125765573e-05 | X3: Hold | Y3: =J3+SUMIFS(Trades!$H:$H,Trades!$C:$C,$B3,Trades!$E:$E,"Purchase",Trades!$B:$B,X$1)-SUMIFS(Trades!$H:$H,Trades!$C:$C,$B3,Trades!$E:$E,"Sale",Trades!$B:$B,X$1) -> 85770.85 | Z3: 149.9 | AA3: =L3+SUMIFS(Trades!$F:$F,Trades!$C:$C,$B3,Trades!$B:$B,X$1,Trades!$E:$E,"Purchase")-SUMIFS(Trades!$F:$F,Trades!$C:$C,$B3,Trades!$B:$B,X$1,Trades!$E:$E,"Sale") -> 605 | AB3: =Z3*AA3 -> 90689.5 | AC3: =IF(X3="Hold",(AB3)/(M3+SUMIFS(Trades!$H:$H,Trades!$B:$B,X$1,Trades!$E:$E,"Purchase",Trades!$C:$C,$B3))-1, IF(X3="Purchase",AB3/SUMIFS(Trades!$H:$H,Trades!$B:$B,X$1,Trades!$E:$E,"Purchase",Trades!$C:$C,$B3)-1, IF(X3="Sale",SUMIFS(Trades!$H:$H,Trades!$B:$B,X$1,Trades!$E:$E,"Sale",Trades!$C:$C,$B3)/M3-1))) -> 0.0467877095 | AD3: =IF(X3="Hold",IFERROR((((M3-SUMIFS(Trades!$H:$H,Trades!$B:$B,X$1,Trades!$C:$C,$B3,Trades!$E:$E,"Sale"))/(M3+SUMIFS(Trades!$H:$H,Trades!$B:$B,X$1,Trades!$C:$C,$B3,Trades!$E:$E,"Purchase")))*VLOOKUP(X$1,Benchmark!$H$6:$M$200,4,FALSE)),0) +IFERROR(((SUMIFS(Trades!$H:$H,Trades!$B:$B,X$1,Trades!$C:$C,$B3,Trades!$E:$E,"Purchase")/(M3+SUMIFS(Trades!$H:$H,Trades!$B:$B,X$1,Trades!$C:$C,$B3,Trades!$E:$E,"Purchase")))*VLOOKUP(SUMIFS(Trades!$A:$A,Trades!$B:$B,X$1,Trades!$C:$C,$B3,Trades!$E:$E,"Purchase"),Benchmark!$H$6:$M$200,6,FALSE)),0) +IFERROR(((SUMIFS(Trades!$H:$H,Trades!$B:$B,X$1,Trades!$C:$C,$B3,Trades!$E:$E,"Sale")/(M3+SUMIFS(Trades!$H:$H,Trades!$B:$B,X$1,Trades!$C:$C,$B3,Trades!$E:$E,"Purchase")))*VLOOKUP(SUMIFS(Trades!$A:$A,Trades!$B:$B,X$1,Trades!$C:$C,$B3,Trades!$E:$E,"Sale"),Benchmark!$H$6:$M$200,4,FALSE)),0), IF(X3="Purchase",VLOOKUP(SUMIFS(Trades!$A:$A,Trades!$B:$B,X$1,Trades!$C:$C,$B3,Trades!$E:$E,X3,Trades!$E:$E,"Purchase"),Benchmark!$H$6:$M$200,6,FALSE), IF(X3="Sale",VLOOKUP(SUMIFS(Trades!$A:$A,Trades!$B:$B,X$1,Trades!$C:$C,$B3,Trades!$E:$E,X3,Trades!$E:$E,"Sale"),Benchmark!$H$6:$M$200,4,FALSE)))) -> 0.03565906893 | AE3: =IF(X3="Hold",((M3-SUMIFS(Trades!$H:$H,Trades!$B:$B,X$1,Trades!$C:$C,$B3,Trades!$E:$E,"Sale"))*(1+VLOOKUP(X$1,Benchmark!$H$6:$M$200,4,FALSE))) +IFERROR((SUMIFS(Trades!$H:$H,Trades!$B:$B,X$1,Trades!$C:$C,$B3,Trades!$E:$E,"Purchase")*(1+VLOOKUP(SUMIFS(Trades!$A:$A,Trades!$B:$B,X$1,Trades!$C:$C,$B3,Trades!$E:$E,"Purchase"),Benchmark!$H$6:$M$200,4,FALSE))),0), IF(X3="Purchase",SUMIFS(Trades!$H:$H,Trades!$B:$B,X$1,Trades!$C:$C,$B3,Trades!$E:$E,"Purchase")*(1+AD3), IF(X3="Sale",0))) -> 89725.3591 | AF3: =AC3-AD3 -> 0.01112864057 | AG3: =((AB3-AE3)/(AB$47-AE$47))*AF$47 -> 0.0003643766066 | AH3: =((1+N3)*(1+AC3))-1 -> 0.05734640615 | AI3: =((1+O3)*(1+AD3))-1 -> 0.04331294144 | AJ3: =Y3*(1+AI3) -> 89485.8378 | AK3: =AH3-AI3 -> 0.01403346471 | AL3: =((AB3-AJ3)/(AB$47-AJ$47))*AK$47 -> 0.0004234616882 | AM3: Hold | AN3: =Y3+SUMIFS(Trades!$H:$H,Trades!$C:$C,$B3,Trades!$E:$E,"Purchase",Trades!$B:$B,AM$1)-SUMIFS(Trades!$H:$H,Trades!$C:$C,$B3,Trades!$E:$E,"Sale",Trades!$B:$B,AM$1) -> 85770.85 | AO3: 148.7 | AP3: =AA3+SUMIFS(Trades!$F:$F,Trades!$C:$C,$B3,Trades!$B:$B,AM$1,Trades!$E:$E,"Purchase")-SUMIFS(Trades!$F:$F,Trades!$C:$C,$B3,Trades!$B:$B,AM$1,Trades!$E:$E,"Sale") -> 605 | AQ3: =AO3*AP3 -> 89963.5 | AR3: =IF(AM3="Hold",(AQ3)/(AB3+SUMIFS(Trades!$H:$H,Trades!$B:$B,AM$1,Trades!$E:$E,"Purchase",Trades!$C:$C,$B3))-1, IF(AM3="Purchase",AQ3/SUMIFS(Trades!$H:$H,Trades!$B:$B,AM$1,Trades!$E:$E,"Purchase",Trades!$C:$C,$B3)-1, IF(AM3="Sale",SUMIFS(Trades!$H:$H,Trades!$B:$B,AM$1,Trades!$E:$E,"Sale",Trades!$C:$C,$B3)/AB3-1))) -> -0.008005336891 | AS3: =IF(AM3="Hold",IFERROR((((AB3-SUMIFS(Trades!$H:$H,Trades!$B:$B,AM$1,Trades!$C:$C,$B3,Trades!$E:$E,"Sale"))/(AB3+SUMIFS(Trades!$H:$H,Trades!$B:$B,AM$1,Trades!$C:$C,$B3,Trades!$E:$E,"Purchase")))*VLOOKUP(AM$1,Benchmark!$H$6:$M$200,4,FALSE)),0) +IFERROR(((SUMIFS(Trades!$H:$H,Trades!$B:$B,AM$1,Trades!$C:$C,$B3,Trades!$E:$E,"Purchase")/(AB3+SUMIFS(Trades!$H:$H,Trades!$B:$B,AM$1,Trades!$C:$C,$B3,Trades!$E:$E,"Purchase")))*VLOOKUP(SUMIFS(Trades!$A:$A,Trades!$B:$B,AM$1,Trades!$C:$C,$B3,Trades!$E:$E,"Purchase"),Benchmark!$H$6:$M$200,6,FALSE)),0) +IFERROR(((SUMIFS(Trades!$H:$H,Trades!$B:$B,AM$1,Trades!$C:$C,$B3,Trades!$E:$E,"Sale")/(AB3+SUMIFS(Trades!$H:$H,Trades!$B:$B,AM$1,Trades!$C:$C,$B3,Trades!$E:$E,"Purchase")))*VLOOKUP(SUMIFS(Trades!$A:$A,Trades!$B:$B,AM$1,Trades!$C:$C,$B3,Trades!$E:$E,"Sale"),Benchmark!$H$6:$M$200,4,FALSE)),0), IF(AM3="Purchase",VLOOKUP(SUMIFS(Trades!$A:$A,Trades!$B:$B,AM$1,Trades!$C:$C,$B3,Trades!$E:$E,AM3,Trades!$E:$E,"Purchase"),Benchmark!$H$6:$M$200,6,FALSE), IF(AM3="Sale",VLOOKUP(SUMIFS(Trades!$A:$A,Trades!$B:$B,AM$1,Trades!$C:$C,$B3,Trades!$E:$E,AM3,Trades!$E:$E,"Sale"),Benchmark!$H$6:$M$200,4,FALSE)))) -> 0.006911842293 | AT3: =IF(AM3="Hold",((AB3-SUMIFS(Trades!$H:$H,Trades!$B:$B,AM$1,Trades!$C:$C,$B3,Trades!$E:$E,"Sale"))*(1+VLOOKUP(AM$1,Benchmark!$H$6:$M$200,4,FALSE))) +IFERROR((SUMIFS(Trades!$H:$H,Trades!$B:$B,AM$1,Trades!$C:$C,$B3,Trades!$E:$E,"Purchase")*(1+VLOOKUP(SUMIFS(Trades!$A:$A,Trades!$B:$B,AM$1,Trades!$C:$C,$B3,Trades!$E:$E,"Purchase"),Benchmark!$H$6:$M$200,4,FALSE))),0), IF(AM3="Purchase",SUMIFS(Trades!$H:$H,Trades!$B:$B,AM$1,Trades!$C:$C,$B3,Trades!$E:$E,"Purchase")*(1+AS3), IF(AM3="Sale",0))) -> 91316.33152 | AU3: =AR3-AS3 -> -0.01491717918 | AV3: =((AQ3-AT3)/(AQ$47-AT$47))*AU$47 -> -0.0005078521437 | AW3: =((1+AH3)*(1+AR3))-1 -> 0.04888199196 | AX3: 0.05052415595 | AY3: =AN3*(1+AX3) -> 90104.3498 | AZ3: =AW3-AX3 -> -0.001642163994 | BA3: =((AQ3-AY3)/(AQ$47-AY$47))*AZ$47 -> -4.803923272e-05 | BB3: Hold | BC3: =AN3+SUMIFS(Trades!$H:$H,Trades!$C:$C,$B3,Trades!$E:$E,"Purchase",Trades!$B:$B,BB$1)-SUMIFS(Trades!$H:$H,Trades!$C:$C,$B3,Trades!$E:$E,"Sale",Trades!$B:$B,BB$1) -> 85770.85 | BD3: 155.79 | BE3: =AP3+SUMIFS(Trades!$F:$F,Trades!$C:$C,$B3,Trades!$B:$B,BB$1,Trades!$E:$E,"Purchase")-SUMIFS(Trades!$F:$F,Trades!$C:$C,$B3,Trades!$B:$B,BB$1,Trades!$E:$E,"Sale") -> 605 | BF3: =BD3*BE3 -> 94252.95 | BG3: =IF(BB3="Hold",(BF3)/(AQ3+SUMIFS(Trades!$H:$H,Trades!$B:$B,BB$1,Trades!$E:$E,"Purchase",Trades!$C:$C,$B3))-1, IF(BB3="Purchase",BF3/SUMIFS(Trades!$H:$H,Trades!$B:$B,BB$1,Trades!$E:$E,"Purchase",Trades!$C:$C,$B3)-1, IF(BB3="Sale",SUMIFS(Trades!$H:$H,Trades!$B:$B,BB$1,Trades!$E:$E,"Sale",Trades!$C:$C,$B3)/AQ3-1))) -> 0.0476798924 | BH3: =IF(BB3="Hold",IFERROR((((AQ3-SUMIFS(Trades!$H:$H,Trades!$B:$B,BB$1,Trades!$C:$C,$B3,Trades!$E:$E,"Sale"))/(AQ3+SUMIFS(Trades!$H:$H,Trades!$B:$B,BB$1,Trades!$C:$C,$B3,Trades!$E:$E,"Purchase")))*VLOOKUP(BB$1,Benchmark!$H$6:$M$200,4,FALSE)),0) +IFERROR(((SUMIFS(Trades!$H:$H,Trades!$B:$B,BB$1,Trades!$C:$C,$B3,Trades!$E:$E,"Purchase")/(AQ3+SUMIFS(Trades!$H:$H,Trades!$B:$B,BB$1,Trades!$C:$C,$B3,Trades!$E:$E,"Purchase")))*VLOOKUP(SUMIFS(Trades!$A:$A,Trades!$B:$B,BB$1,Trades!$C:$C,$B3,Trades!$E:$E,"Purchase"),Benchmark!$H$6:$M$200,6,FALSE)),0) +IFERROR(((SUMIFS(Trades!$H:$H,Trades!$B:$B,BB$1,Trades!$C:$C,$B3,Trades!$E:$E,"Sale")/(AQ3+SUMIFS(Trades!$H:$H,Trades!$B:$B,BB$1,Trades!$C:$C,$B3,Trades!$E:$E,"Purchase")))*VLOOKUP(SUMIFS(Trades!$A:$A,Trades!$B:$B,BB$1,Trades!$C:$C,$B3,Trades!$E:$E,"Sale"),Benchmark!$H$6:$M$200,4,FALSE)),0), IF(BB3="Purchase",VLOOKUP(SUMIFS(Trades!$A:$A,Trades!$B:$B,BB$1,Trades!$C:$C,$B3,Trades!$E:$E,BB3,Trades!$E:$E,"Purchase"),Benchmark!$H$6:$M$200,6,FALSE), IF(BB3="Sale",VLOOKUP(SUMIFS(Trades!$A:$A,Trades!$B:$B,BB$1,Trades!$C:$C,$B3,Trades!$E:$E,BB3,Trades!$E:$E,"Sale"),Benchmark!$H$6:$M$200,4,FALSE)))) -> 0.01737368608 | BI3: =IF(BB3="Hold",((AQ3-SUMIFS(Trades!$H:$H,Trades!$B:$B,BB$1,Trades!$C:$C,$B3,Trades!$E:$E,"Sale"))*(1+VLOOKUP(BB$1,Benchmark!$H$6:$M$200,4,FALSE))) +IFERROR((SUMIFS(Trades!$H:$H,Trades!$B:$B,BB$1,Trades!$C:$C,$B3,Trades!$E:$E,"Purchase")*(1+VLOOKUP(SUMIFS(Trades!$A:$A,Trades!$B:$B,BB$1,Trades!$C:$C,$B3,Trades!$E:$E,"Purchase"),Benchmark!$H$6:$M$200,4,FALSE))),0), IF(BB3="Purchase",SUMIFS(Trades!$H:$H,Trades!$B:$B,BB$1,Trades!$C:$C,$B3,Trades!$E:$E,"Purchase")*(1+BH3), IF(BB3="Sale",0))) -> 91526.49761 | BJ3: =BG3-BH3 -> 0.03030620632 | BK3: =((BF3-BI3)/(BF$47-BI$47))*BJ$47 -> 0.001003505127 | BL3: =((1+AW3)*(1+BG3))-1 -> 0.09889257248 | BM3: 0.06877563286 | BN3: =BC3*(1+BM3) -> 91669.79449 | BO3: =BL3-BM3 -> 0.03011693962 | BP3: =((BF3-BN3)/(BF$47-BN$47))*BO$47 -> 0.0009691486555 | BQ3: Hold | BR3: =BC3+SUMIFS(Trades!$H:$H,Trades!$C:$C,$B3,Trades!$E:$E,"Purchase",Trades!$B:$B,BQ$1)-SUMIFS(Trades!$H:$H,Trades!$C:$C,$B3,Trades!$E:$E,"Sale",Trades!$B:$B,BQ$1) -> 85770.85 | BS3: 157.21 | BT3: =BE3+SUMIFS(Trades!$F:$F,Trades!$C:$C,$B3,Trades!$B:$B,BQ$1,Trades!$E:$E,"Purchase")-SUMIFS(Trades!$F:$F,Trades!$C:$C,$B3,Trades!$B:$B,BQ$1,Trades!$E:$E,"Sale") -> 605 | BU3: =BS3*BT3 -> 95112.05 | BV3: =IF(BQ3="Hold",(BU3)/(BF3+SUMIFS(Trades!$H:$H,Trades!$B:$B,BQ$1,Trades!$E:$E,"Purchase",Trades!$C:$C,$B3))-1, IF(BQ3="Purchase",BU3/SUMIFS(Trades!$H:$H,Trades!$B:$B,BQ$1,Trades!$E:$E,"Purchase",Trades!$C:$C,$B3)-1, IF(BQ3="Sale",SUMIFS(Trades!$H:$H,Trades!$B:$B,BQ$1,Trades!$E:$E,"Sale",Trades!$C:$C,$B3)/BF3-1))) -> 0.009114834072 | BW3: =IF(BQ3="Hold",IFERROR((((BF3-SUMIFS(Trades!$H:$H,Trades!$B:$B,BQ$1,Trades!$C:$C,$B3,Trades!$E:$E,"Sale"))/(BF3+SUMIFS(Trades!$H:$H,Trades!$B:$B,BQ$1,Trades!$C:$C,$B3,Trades!$E:$E,"Purchase")))*VLOOKUP(BQ$1,Benchmark!$H$6:$M$200,4,FALSE)),0) +IFERROR(((SUMIFS(Trades!$H:$H,Trades!$B:$B,BQ$1,Trades!$C:$C,$B3,Trades!$E:$E,"Purchase")/(BF3+SUMIFS(Trades!$H:$H,Trades!$B:$B,BQ$1,Trades!$C:$C,$B3,Trades!$E:$E,"Purchase")))*VLOOKUP(SUMIFS(Trades!$A:$A,Trades!$B:$B,BQ$1,Trades!$C:$C,$B3,Trades!$E:$E,"Purchase"),Benchmark!$H$6:$M$200,6,FALSE)),0) +IFERROR(((SUMIFS(Trades!$H:$H,Trades!$B:$B,BQ$1,Trades!$C:$C,$B3,Trades!$E:$E,"Sale")/(BF3+SUMIFS(Trades!$H:$H,Trades!$B:$B,BQ$1,Trades!$C:$C,$B3,Trades!$E:$E,"Purchase")))*VLOOKUP(SUMIFS(Trades!$A:$A,Trades!$B:$B,BQ$1,Trades!$C:$C,$B3,Trades!$E:$E,"Sale"),Benchmark!$H$6:$M$200,4,FALSE)),0), IF(BQ3="Purchase",VLOOKUP(SUMIFS(Trades!$A:$A,Trades!$B:$B,BQ$1,Trades!$C:$C,$B3,Trades!$E:$E,BQ3,Trades!$E:$E,"Purchase"),Benchmark!$H$6:$M$200,6,FALSE), IF(BQ3="Sale",VLOOKUP(SUMIFS(Trades!$A:$A,Trades!$B:$B,BQ$1,Trades!$C:$C,$B3,Trades!$E:$E,BQ3,Trades!$E:$E,"Sale"),Benchmark!$H$6:$M$200,4,FALSE)))) -> 0.001113382869 | BX3: =IF(BQ3="Hold",((BF3-SUMIFS(Trades!$H:$H,Trades!$B:$B,BQ$1,Trades!$C:$C,$B3,Trades!$E:$E,"Sale"))*(1+VLOOKUP(BQ$1,Benchmark!$H$6:$M$200,4,FALSE))) +IFERROR((SUMIFS(Trades!$H:$H,Trades!$B:$B,BQ$1,Trades!$C:$C,$B3,Trades!$E:$E,"Purchase")*(1+VLOOKUP(SUMIFS(Trades!$A:$A,Trades!$B:$B,BQ$1,Trades!$C:$C,$B3,Trades!$E:$E,"Purchase"),Benchmark!$H$6:$M$200,4,FALSE))),0), IF(BQ3="Purchase",SUMIFS(Trades!$H:$H,Trades!$B:$B,BQ$1,Trades!$C:$C,$B3,Trades!$E:$E,"Purchase")*(1+BW3), IF(BQ3="Sale",0))) -> 94357.88962 | BY3: =BV3-BW3 -> 0.008001451202 | BZ3: =((BU3-BX3)/(BU$47-BX$47))*BY$47 -> 0.0002812031163 | CA3: =((1+BL3)*(1+BV3))-1 -> 0.1089087959 | CB3: 0.06996558934 | CC3: =BR3*(1+CB3) -> 91771.85807 | CD3: =CA3-CB3 -> 0.0389432066 | CE3: =((BU3-CC3)/(BU$47-CC$47))*CD$47 -> 0.001092089283 | CF3: Hold | CG3: =BR3+SUMIFS(Trades!$H:$H,Trades!$C:$C,$B3,Trades!$E:$E,"Purchase",Trades!$B:$B,CF$1)-SUMIFS(Trades!$H:$H,Trades!$C:$C,$B3,Trades!$E:$E,"Sale",Trades!$B:$B,CF$1) -> 85770.85 | CH3: 159.26 | CI3: =BT3+SUMIFS(Trades!$F:$F,Trades!$C:$C,$B3,Trades!$B:$B,CF$1,Trades!$E:$E,"Purchase")-SUMIFS(Trades!$F:$F,Trades!$C:$C,$B3,Trades!$B:$B,CF$1,Trades!$E:$E,"Sale") -> 605 | CJ3: =CH3*CI3 -> 96352.3 | CK3: =IF(CF3="Hold",(CJ3)/(BU3+SUMIFS(Trades!$H:$H,Trades!$B:$B,CF$1,Trades!$E:$E,"Purchase",Trades!$C:$C,$B3))-1, IF(CF3="Purchase",CJ3/SUMIFS(Trades!$H:$H,Trades!$B:$B,CF$1,Trades!$E:$E,"Purchase",Trades!$C:$C,$B3)-1, IF(CF3="Sale",SUMIFS(Trades!$H:$H,Trades!$B:$B,CF$1,Trades!$E:$E,"Sale",Trades!$C:$C,$B3)/BU3-1))) -> 0.01303988296 | CL3: =IF(CF3="Hold",IFERROR((((BU3-SUMIFS(Trades!$H:$H,Trades!$B:$B,CF$1,Trades!$C:$C,$B3,Trades!$E:$E,"Sale"))/(BU3+SUMIFS(Trades!$H:$H,Trades!$B:$B,CF$1,Trades!$C:$C,$B3,Trades!$E:$E,"Purchase")))*VLOOKUP(CF$1,Benchmark!$H$6:$M$200,4,FALSE)),0) +IFERROR(((SUMIFS(Trades!$H:$H,Trades!$B:$B,CF$1,Trades!$C:$C,$B3,Trades!$E:$E,"Purchase")/(BU3+SUMIFS(Trades!$H:$H,Trades!$B:$B,CF$1,Trades!$C:$C,$B3,Trades!$E:$E,"Purchase")))*VLOOKUP(SUMIFS(Trades!$A:$A,Trades!$B:$B,CF$1,Trades!$C:$C,$B3,Trades!$E:$E,"Purchase"),Benchmark!$H$6:$M$200,6,FALSE)),0) +IFERROR(((SUMIFS(Trades!$H:$H,Trades!$B:$B,CF$1,Trades!$C:$C,$B3,Trades!$E:$E,"Sale")/(BU3+SUMIFS(Trades!$H:$H,Trades!$B:$B,CF$1,Trades!$C:$C,$B3,Trades!$E:$E,"Purchase")))*VLOOKUP(SUMIFS(Trades!$A:$A,Trades!$B:$B,CF$1,Trades!$C:$C,$B3,Trades!$E:$E,"Sale"),Benchmark!$H$6:$M$200,4,FALSE)),0), IF(CF3="Purchase",VLOOKUP(SUMIFS(Trades!$A:$A,Trades!$B:$B,CF$1,Trades!$C:$C,$B3,Trades!$E:$E,CF3,Trades!$E:$E,"Purchase"),Benchmark!$H$6:$M$200,6,FALSE), IF(CF3="Sale",VLOOKUP(SUMIFS(Trades!$A:$A,Trades!$B:$B,CF$1,Trades!$C:$C,$B3,Trades!$E:$E,CF3,Trades!$E:$E,"Sale"),Benchmark!$H$6:$M$200,4,FALSE)))) -> 0.01477988346 | CM3: =IF(CF3="Hold",((BU3-SUMIFS(Trades!$H:$H,Trades!$B:$B,CF$1,Trades!$C:$C,$B3,Trades!$E:$E,"Sale"))*(1+VLOOKUP(CF$1,Benchmark!$H$6:$M$200,4,FALSE))) +IFERROR((SUMIFS(Trades!$H:$H,Trades!$B:$B,CF$1,Trades!$C:$C,$B3,Trades!$E:$E,"Purchase")*(1+VLOOKUP(SUMIFS(Trades!$A:$A,Trades!$B:$B,CF$1,Trades!$C:$C,$B3,Trades!$E:$E,"Purchase"),Benchmark!$H$6:$M$200,4,FALSE))),0), IF(CF3="Purchase",SUMIFS(Trades!$H:$H,Trades!$B:$B,CF$1,Trades!$C:$C,$B3,Trades!$E:$E,"Purchase")*(1+CL3), IF(CF3="Sale",0))) -> 96517.79501 | CN3: =CK3-CL3 -> -0.001740000499 | CO3: =((CJ3-CM3)/(CJ$47-CM$47))*CN$47 -> -6.191729006e-05 | CP3: =((1+CA3)*(1+CK3))-1 -> 0.1233688368 | CQ3: 0.08577955605 | CR3: =CG3*(1+CQ3) -> 93128.23544 | CS3: =CP3-CQ3 -> 0.0375892808 | CT3: =((CJ3-CR3)/(CJ$47-CR$47))*CS$47 -> 0.003351790723 | CU3: =IF(OR(CF3="Hold",CF3="Purchase"),"Hold","") -> Hold | CV3: =CG3+SUMIFS(Trades!$H:$H,Trades!$C:$C,$B3,Trades!$E:$E,"Purchase",Trades!$B:$B,CU$1)-SUMIFS(Trades!$H:$H,Trades!$C:$C,$B3,Trades!$E:$E,"Sale",Trades!$B:$B,CU$1) -> 85770.85 | CW3: 155.65 | CX3: =CI3+SUMIFS(Trades!$F:$F,Trades!$C:$C,$B3,Trades!$B:$B,CU$1,Trades!$E:$E,"Purchase")-SUMIFS(Trades!$F:$F,Trades!$C:$C,$B3,Trades!$B:$B,CU$1,Trades!$E:$E,"Sale") -> 605 | CY3: =CW3*CX3 -> 94168.25 | CZ3: =IF(CU3="Hold",(CY3)/(CJ3+SUMIFS(Trades!$H:$H,Trades!$B:$B,CU$1,Trades!$E:$E,"Purchase",Trades!$C:$C,$B3))-1, IF(CU3="Purchase",CY3/SUMIFS(Trades!$H:$H,Trades!$B:$B,CU$1,Trades!$E:$E,"Purchase",Trades!$C:$C,$B3)-1, IF(CU3="Sale",SUMIFS(Trades!$H:$H,Trades!$B:$B,CU$1,Trades!$E:$E,"Sale",Trades!$C:$C,$B3)/CJ3-1))) -> -0.02266733643 | DA3: =IF(CU3="Hold",IFERROR((((CJ3-SUMIFS(Trades!$H:$H,Trades!$B:$B,CU$1,Trades!$C:$C,$B3,Trades!$E:$E,"Sale"))/(CJ3+SUMIFS(Trades!$H:$H,Trades!$B:$B,CU$1,Trades!$C:$C,$B3,Trades!$E:$E,"Purchase")))*VLOOKUP(CU$1,Benchmark!$H$6:$M$200,4,FALSE)),0) +IFERROR(((SUMIFS(Trades!$H:$H,Trades!$B:$B,CU$1,Trades!$C:$C,$B3,Trades!$E:$E,"Purchase")/(CJ3+SUMIFS(Trades!$H:$H,Trades!$B:$B,CU$1,Trades!$C:$C,$B3,Trades!$E:$E,"Purchase")))*VLOOKUP(SUMIFS(Trades!$A:$A,Trades!$B:$B,CU$1,Trades!$C:$C,$B3,Trades!$E:$E,"Purchase"),Benchmark!$H$6:$M$200,6,FALSE)),0) +IFERROR(((SUMIFS(Trades!$H:$H,Trades!$B:$B,CU$1,Trades!$C:$C,$B3,Trades!$E:$E,"Sale")/(CJ3+SUMIFS(Trades!$H:$H,Trades!$B:$B,CU$1,Trades!$C:$C,$B3,Trades!$E:$E,"Purchase")))*VLOOKUP(SUMIFS(Trades!$A:$A,Trades!$B:$B,CU$1,Trades!$C:$C,$B3,Trades!$E:$E,"Sale"),Benchmark!$H$6:$M$200,4,FALSE)),0), IF(CU3="Purchase",VLOOKUP(SUMIFS(Trades!$A:$A,Trades!$B:$B,CU$1,Trades!$C:$C,$B3,Trades!$E:$E,CU3,Trades!$E:$E,"Purchase"),Benchmark!$H$6:$M$200,6,FALSE), IF(CU3="Sale",VLOOKUP(SUMIFS(Trades!$A:$A,Trades!$B:$B,CU$1,Trades!$C:$C,$B3,Trades!$E:$E,CU3,Trades!$E:$E,"Sale"),Benchmark!$H$6:$M$200,4,FALSE)))) -> -0.03731280818 | DB3: =IF(CU3="Hold",((CJ3-SUMIFS(Trades!$H:$H,Trades!$B:$B,CU$1,Trades!$C:$C,$B3,Trades!$E:$E,"Sale"))*(1+VLOOKUP(CU$1,Benchmark!$H$6:$M$200,4,FALSE))) +IFERROR((SUMIFS(Trades!$H:$H,Trades!$B:$B,CU$1,Trades!$C:$C,$B3,Trades!$E:$E,"Purchase")*(1+VLOOKUP(SUMIFS(Trades!$A:$A,Trades!$B:$B,CU$1,Trades!$C:$C,$B3,Trades!$E:$E,"Purchase"),Benchmark!$H$6:$M$200,4,FALSE))),0), IF(CU3="Purchase",SUMIFS(Trades!$H:$H,Trades!$B:$B,CU$1,Trades!$C:$C,$B3,Trades!$E:$E,"Purchase")*(1+DA3), IF(CU3="Sale",0))) -> 92757.12511 | DC3: =CZ3-DA3 -> 0.01464547175 | DD3: =((CY3-DB3)/(CY$47-DB$47))*DC$47 -> 0.0005546138344 | DE3: =((1+CP3)*(1+CZ3))-1 -> 0.09790505749 | DF3: 0.04526607175 | DG3: =CV3*(1+DF3) -> 89653.35945 | DH3: =DE3-DF3 -> 0.05263898574 | DI3: =((CY3-DG3)/(CY$47-DG$47))*DH$47 -> 0.00455576077 | DJ3: =IF(OR(CU3="Hold",CU3="Purchase"),"Hold","") -> Hold | DK3: =CV3+SUMIFS(Trades!$H:$H,Trades!$C:$C,$B3,Trades!$E:$E,"Purchase",Trades!$B:$B,DJ$1)-SUMIFS(Trades!$H:$H,Trades!$C:$C,$B3,Trades!$E:$E,"Sale",Trades!$B:$B,DJ$1) -> 85770.85 | DL3: 158.95 | DM3: =CX3+SUMIFS(Trades!$F:$F,Trades!$C:$C,$B3,Trades!$B:$B,DJ$1,Trades!$E:$E,"Purchase")-SUMIFS(Trades!$F:$F,Trades!$C:$C,$B3,Trades!$B:$B,DJ$1,Trades!$E:$E,"Sale") -> 605 | DN3: =DL3*DM3 -> 96164.75 | DO3: =IF(DJ3="Hold",(DN3)/(CY3+SUMIFS(Trades!$H:$H,Trades!$B:$B,DJ$1,Trades!$E:$E,"Purchase",Trades!$C:$C,$B3))-1, IF(DJ3="Purchase",DN3/SUMIFS(Trades!$H:$H,Trades!$B:$B,DJ$1,Trades!$E:$E,"Purchase",Trades!$C:$C,$B3)-1, IF(DJ3="Sale",SUMIFS(Trades!$H:$H,Trades!$B:$B,DJ$1,Trades!$E:$E,"Sale",Trades!$C:$C,$B3)/CY3-1))) -> 0.02120141343 | DP3: =IF(DJ3="Hold",IFERROR((((CY3-SUMIFS(Trades!$H:$H,Trades!$B:$B,DJ$1,Trades!$C:$C,$B3,Trades!$E:$E,"Sale"))/(CY3+SUMIFS(Trades!$H:$H,Trades!$B:$B,DJ$1,Trades!$C:$C,$B3,Trades!$E:$E,"Purchase")))*VLOOKUP(DJ$1,Benchmark!$H$6:$M$200,4,FALSE)),0) +IFERROR(((SUMIFS(Trades!$H:$H,Trades!$B:$B,DJ$1,Trades!$C:$C,$B3,Trades!$E:$E,"Purchase")/(CY3+SUMIFS(Trades!$H:$H,Trades!$B:$B,DJ$1,Trades!$C:$C,$B3,Trades!$E:$E,"Purchase")))*VLOOKUP(SUMIFS(Trades!$A:$A,Trades!$B:$B,DJ$1,Trades!$C:$C,$B3,Trades!$E:$E,"Purchase"),Benchmark!$H$6:$M$200,6,FALSE)),0) +IFERROR(((SUMIFS(Trades!$H:$H,Trades!$B:$B,DJ$1,Trades!$C:$C,$B3,Trades!$E:$E,"Sale")/(CY3+SUMIFS(Trades!$H:$H,Trades!$B:$B,DJ$1,Trades!$C:$C,$B3,Trades!$E:$E,"Purchase")))*VLOOKUP(SUMIFS(Trades!$A:$A,Trades!$B:$B,DJ$1,Trades!$C:$C,$B3,Trades!$E:$E,"Sale"),Benchmark!$H$6:$M$200,4,FALSE)),0), IF(DJ3="Purchase",VLOOKUP(SUMIFS(Trades!$A:$A,Trades!$B:$B,DJ$1,Trades!$C:$C,$B3,Trades!$E:$E,DJ3,Trades!$E:$E,"Purchase"),Benchmark!$H$6:$M$200,6,FALSE), IF(DJ3="Sale",VLOOKUP(SUMIFS(Trades!$A:$A,Trades!$B:$B,DJ$1,Trades!$C:$C,$B3,Trades!$E:$E,DJ3,Trades!$E:$E,"Sale"),Benchmark!$H$6:$M$200,4,FALSE)))) -> 0.03173627907 | DQ3: =IF(DJ3="Hold",((CY3-SUMIFS(Trades!$H:$H,Trades!$B:$B,DJ$1,Trades!$C:$C,$B3,Trades!$E:$E,"Sale"))*(1+VLOOKUP(DJ$1,Benchmark!$H$6:$M$200,4,FALSE))) +IFERROR((SUMIFS(Trades!$H:$H,Trades!$B:$B,DJ$1,Trades!$C:$C,$B3,Trades!$E:$E,"Purchase")*(1+VLOOKUP(SUMIFS(Trades!$A:$A,Trades!$B:$B,DJ$1,Trades!$C:$C,$B3,Trades!$E:$E,"Purchase"),Benchmark!$H$6:$M$200,4,FALSE))),0), IF(DJ3="Purchase",SUMIFS(Trades!$H:$H,Trades!$B:$B,DJ$1,Trades!$C:$C,$B3,Trades!$E:$E,"Purchase")*(1+DP3), IF(DJ3="Sale",0))) -> 97156.79986 | DR3: =DO3-DP3 -> -0.01053486564 | DS3: =((DN3-DQ3)/(DN$47-DQ$47))*DR$47 -> -0.000377906434 | DT3: =((1+DE3)*(1+DO3))-1 -> 0.1211821965 | DU3: 0.07843892751 | DV3: =DK3*(1+DU3) -> 92498.62349 | DW3: =DT3-DU3 -> 0.04274326901 | DX3: =((DN3-DV3)/(DN$47-DV$47))*DW$47 -> -0.05125510642 | DY3: =IF(OR(DJ3="Hold",DJ3="Purchase"),"Hold","") -> Hold | DZ3: =DK3+SUMIFS(Trades!$H:$H,Trades!$C:$C,$B3,Trades!$E:$E,"Purchase",Trades!$B:$B,DY$1)-SUMIFS(Trades!$H:$H,Trades!$C:$C,$B3,Trades!$E:$E,"Sale",Trades!$B:$B,DY$1) -> 85770.85 | EA3: 157.99 | EB3: =DM3+SUMIFS(Trades!$F:$F,Trades!$C:$C,$B3,Trades!$B:$B,DY$1,Trades!$E:$E,"Purchase")-SUMIFS(Trades!$F:$F,Trades!$C:$C,$B3,Trades!$B:$B,DY$1,Trades!$E:$E,"Sale") -> 605 | EC3: =EA3*EB3 -> 95583.95 | ED3: =IF(DY3="Hold",(EC3)/(DN3+SUMIFS(Trades!$H:$H,Trades!$B:$B,DY$1,Trades!$E:$E,"Purchase",Trades!$C:$C,$B3))-1, IF(DY3="Purchase",EC3/SUMIFS(Trades!$H:$H,Trades!$B:$B,DY$1,Trades!$E:$E,"Purchase",Trades!$C:$C,$B3)-1, IF(DY3="Sale",SUMIFS(Trades!$H:$H,Trades!$B:$B,DY$1,Trades!$E:$E,"Sale",Trades!$C:$C,$B3)/DN3-1))) -> -0.006039635105 | EE3: =IF(DY3="Hold",IFERROR((((DN3-SUMIFS(Trades!$H:$H,Trades!$B:$B,DY$1,Trades!$C:$C,$B3,Trades!$E:$E,"Sale"))/(DN3+SUMIFS(Trades!$H:$H,Trades!$B:$B,DY$1,Trades!$C:$C,$B3,Trades!$E:$E,"Purchase")))*VLOOKUP(DY$1,Benchmark!$H$6:$M$200,4,FALSE)),0) +IFERROR(((SUMIFS(Trades!$H:$H,Trades!$B:$B,DY$1,Trades!$C:$C,$B3,Trades!$E:$E,"Purchase")/(DN3+SUMIFS(Trades!$H:$H,Trades!$B:$B,DY$1,Trades!$C:$C,$B3,Trades!$E:$E,"Purchase")))*VLOOKUP(SUMIFS(Trades!$A:$A,Trades!$B:$B,DY$1,Trades!$C:$C,$B3,Trades!$E:$E,"Purchase"),Benchmark!$H$6:$M$200,6,FALSE)),0) +IFERROR(((SUMIFS(Trades!$H:$H,Trades!$B:$B,DY$1,Trades!$C:$C,$B3,Trades!$E:$E,"Sale")/(DN3+SUMIFS(Trades!$H:$H,Trades!$B:$B,DY$1,Trades!$C:$C,$B3,Trades!$E:$E,"Purchase")))*VLOOKUP(SUMIFS(Trades!$A:$A,Trades!$B:$B,DY$1,Trades!$C:$C,$B3,Trades!$E:$E,"Sale"),Benchmark!$H$6:$M$200,4,FALSE)),0), IF(DY3="Purchase",VLOOKUP(SUMIFS(Trades!$A:$A,Trades!$B:$B,DY$1,Trades!$C:$C,$B3,Trades!$E:$E,DY3,Trades!$E:$E,"Purchase"),Benchmark!$H$6:$M$200,6,FALSE), IF(DY3="Sale",VLOOKUP(SUMIFS(Trades!$A:$A,Trades!$B:$B,DY$1,Trades!$C:$C,$B3,Trades!$E:$E,DY3,Trades!$E:$E,"Sale"),Benchmark!$H$6:$M$200,4,FALSE)))) -> 0.005375612055 | EF3: =IF(DY3="Hold",((DN3-SUMIFS(Trades!$H:$H,Trades!$B:$B,DY$1,Trades!$C:$C,$B3,Trades!$E:$E,"Sale"))*(1+VLOOKUP(DY$1,Benchmark!$H$6:$M$200,4,FALSE))) +IFERROR((SUMIFS(Trades!$H:$H,Trades!$B:$B,DY$1,Trades!$C:$C,$B3,Trades!$E:$E,"Purchase")*(1+VLOOKUP(SUMIFS(Trades!$A:$A,Trades!$B:$B,DY$1,Trades!$C:$C,$B3,Trades!$E:$E,"Purchase"),Benchmark!$H$6:$M$200,4,FALSE))),0), IF(DY3="Purchase",SUMIFS(Trades!$H:$H,Trades!$B:$B,DY$1,Trades!$C:$C,$B3,Trades!$E:$E,"Purchase")*(1+EE3), IF(DY3="Sale",0))) -> 96681.69439 | EG3: =ED3-EE3 -> -0.01141524716 | EH3: =((EC3-EF3)/(EC$47-EF$47))*EG$47 -> -0.0004142558015 | EI3: =((1+DT3)*(1+ED3))-1 -> 0.1144106652 | EJ3: 0.0842361968 | EK3: =DZ3*(1+EJ3) -> 92995.8602 | EL3: =EI3-EJ3 -> 0.03017446836 | EM3: =((EC3-EK3)/(EC$47-EK$47))*EL$47 -> 0.008726264555 | EN3: =IF(OR(DY3="Hold",DY3="Purchase"),"Hold","") -> Hold | EO3: =DZ3+SUMIFS(Trades!$H:$H,Trades!$C:$C,$B3,Trades!$E:$E,"Purchase",Trades!$B:$B,EN$1)-SUMIFS(Trades!$H:$H,Trades!$C:$C,$B3,Trades!$E:$E,"Sale",Trades!$B:$B,EN$1) -> 85770.85 | EP3: #N/A N/A | EQ3: =EB3+SUMIFS(Trades!$F:$F,Trades!$C:$C,$B3,Trades!$B:$B,EN$1,Trades!$E:$E,"Purchase")-SUMIFS(Trades!$F:$F,Trades!$C:$C,$B3,Trades!$B:$B,EN$1,Trades!$E:$E,"Sale") -> 605 | ER3: =EP3*EQ3 ->  | ES3: =IF(EN3="Hold",(ER3)/(EC3+SUMIFS(Trades!$H:$H,Trades!$B:$B,EN$1,Trades!$E:$E,"Purchase",Trades!$C:$C,$B3))-1, IF(EN3="Purchase",ER3/SUMIFS(Trades!$H:$H,Trades!$B:$B,EN$1,Trades!$E:$E,"Purchase",Trades!$C:$C,$B3)-1, IF(EN3="Sale",SUMIFS(Trades!$H:$H,Trades!$B:$B,EN$1,Trades!$E:$E,"Sale",Trades!$C:$C,$B3)/EC3-1))) ->  | ET3: =IF(EN3="Hold",IFERROR((((EC3-SUMIFS(Trades!$H:$H,Trades!$B:$B,EN$1,Trades!$C:$C,$B3,Trades!$E:$E,"Sale"))/(EC3+SUMIFS(Trades!$H:$H,Trades!$B:$B,EN$1,Trades!$C:$C,$B3,Trades!$E:$E,"Purchase")))*VLOOKUP(EN$1,Benchmark!$H$6:$M$200,4,FALSE)),0) +IFERROR(((SUMIFS(Trades!$H:$H,Trades!$B:$B,EN$1,Trades!$C:$C,$B3,Trades!$E:$E,"Purchase")/(EC3+SUMIFS(Trades!$H:$H,Trades!$B:$B,EN$1,Trades!$C:$C,$B3,Trades!$E:$E,"Purchase")))*VLOOKUP(SUMIFS(Trades!$A:$A,Trades!$B:$B,EN$1,Trades!$C:$C,$B3,Trades!$E:$E,"Purchase"),Benchmark!$H$6:$M$200,6,FALSE)),0) +IFERROR(((SUMIFS(Trades!$H:$H,Trades!$B:$B,EN$1,Trades!$C:$C,$B3,Trades!$E:$E,"Sale")/(EC3+SUMIFS(Trades!$H:$H,Trades!$B:$B,EN$1,Trades!$C:$C,$B3,Trades!$E:$E,"Purchase")))*VLOOKUP(SUMIFS(Trades!$A:$A,Trades!$B:$B,EN$1,Trades!$C:$C,$B3,Trades!$E:$E,"Sale"),Benchmark!$H$6:$M$200,4,FALSE)),0), IF(EN3="Purchase",VLOOKUP(SUMIFS(Trades!$A:$A,Trades!$B:$B,EN$1,Trades!$C:$C,$B3,Trades!$E:$E,EN3,Trades!$E:$E,"Purchase"),Benchmark!$H$6:$M$200,6,FALSE), IF(EN3="Sale",VLOOKUP(SUMIFS(Trades!$A:$A,Trades!$B:$B,EN$1,Trades!$C:$C,$B3,Trades!$E:$E,EN3,Trades!$E:$E,"Sale"),Benchmark!$H$6:$M$200,4,FALSE)))) -> 0 | EU3: =IF(EN3="Hold",((EC3-SUMIFS(Trades!$H:$H,Trades!$B:$B,EN$1,Trades!$C:$C,$B3,Trades!$E:$E,"Sale"))*(1+VLOOKUP(EN$1,Benchmark!$H$6:$M$200,4,FALSE))) +IFERROR((SUMIFS(Trades!$H:$H,Trades!$B:$B,EN$1,Trades!$C:$C,$B3,Trades!$E:$E,"Purchase")*(1+VLOOKUP(SUMIFS(Trades!$A:$A,Trades!$B:$B,EN$1,Trades!$C:$C,$B3,Trades!$E:$E,"Purchase"),Benchmark!$H$6:$M$200,4,FALSE))),0), IF(EN3="Purchase",SUMIFS(Trades!$H:$H,Trades!$B:$B,EN$1,Trades!$C:$C,$B3,Trades!$E:$E,"Purchase")*(1+ET3), IF(EN3="Sale",0))) ->  | EV3: =ES3-ET3 ->  | EW3: =((ER3-EU3)/(ER$47-EU$47))*EV$47 ->  | EX3: =((1+EI3)*(1+ES3))-1 ->  | EY3: 0.0842361968 | EZ3: =EO3*(1+EY3) -> 92995.8602 | FA3: =EX3-EY3 ->  | FB3: =((ER3-EZ3)/(ER$47-EZ$47))*FA$47 ->  | FC3: =IF(OR(EN3="Hold",EN3="Purchase"),"Hold","") -> Hold | FD3: =EO3+SUMIFS(Trades!$H:$H,Trades!$C:$C,$B3,Trades!$E:$E,"Purchase",Trades!$B:$B,FC$1)-SUMIFS(Trades!$H:$H,Trades!$C:$C,$B3,Trades!$E:$E,"Sale",Trades!$B:$B,FC$1) -> 85770.85 | FE3: #N/A N/A | FF3: =EQ3+SUMIFS(Trades!$F:$F,Trades!$C:$C,$B3,Trades!$B:$B,FC$1,Trades!$E:$E,"Purchase")-SUMIFS(Trades!$F:$F,Trades!$C:$C,$B3,Trades!$B:$B,FC$1,Trades!$E:$E,"Sale") -> 605 | FG3: =FE3*FF3 ->  | FH3: =IF(FC3="Hold",(FG3)/(ER3+SUMIFS(Trades!$H:$H,Trades!$B:$B,FC$1,Trades!$E:$E,"Purchase",Trades!$C:$C,$B3))-1, IF(FC3="Purchase",FG3/SUMIFS(Trades!$H:$H,Trades!$B:$B,FC$1,Trades!$E:$E,"Purchase",Trades!$C:$C,$B3)-1, IF(FC3="Sale",SUMIFS(Trades!$H:$H,Trades!$B:$B,FC$1,Trades!$E:$E,"Sale",Trades!$C:$C,$B3)/ER3-1))) ->  | FI3: =IF(FC3="Hold",IFERROR((((ER3-SUMIFS(Trades!$H:$H,Trades!$B:$B,FC$1,Trades!$C:$C,$B3,Trades!$E:$E,"Sale"))/(ER3+SUMIFS(Trades!$H:$H,Trades!$B:$B,FC$1,Trades!$C:$C,$B3,Trades!$E:$E,"Purchase")))*VLOOKUP(FC$1,Benchmark!$H$6:$M$200,4,FALSE)),0) +IFERROR(((SUMIFS(Trades!$H:$H,Trades!$B:$B,FC$1,Trades!$C:$C,$B3,Trades!$E:$E,"Purchase")/(ER3+SUMIFS(Trades!$H:$H,Trades!$B:$B,FC$1,Trades!$C:$C,$B3,Trades!$E:$E,"Purchase")))*VLOOKUP(SUMIFS(Trades!$A:$A,Trades!$B:$B,FC$1,Trades!$C:$C,$B3,Trades!$E:$E,"Purchase"),Benchmark!$H$6:$M$200,6,FALSE)),0) +IFERROR(((SUMIFS(Trades!$H:$H,Trades!$B:$B,FC$1,Trades!$C:$C,$B3,Trades!$E:$E,"Sale")/(ER3+SUMIFS(Trades!$H:$H,Trades!$B:$B,FC$1,Trades!$C:$C,$B3,Trades!$E:$E,"Purchase")))*VLOOKUP(SUMIFS(Trades!$A:$A,Trades!$B:$B,FC$1,Trades!$C:$C,$B3,Trades!$E:$E,"Sale"),Benchmark!$H$6:$M$200,4,FALSE)),0), IF(FC3="Purchase",VLOOKUP(SUMIFS(Trades!$A:$A,Trades!$B:$B,FC$1,Trades!$C:$C,$B3,Trades!$E:$E,FC3,Trades!$E:$E,"Purchase"),Benchmark!$H$6:$M$200,6,FALSE), IF(FC3="Sale",VLOOKUP(SUMIFS(Trades!$A:$A,Trades!$B:$B,FC$1,Trades!$C:$C,$B3,Trades!$E:$E,FC3,Trades!$E:$E,"Sale"),Benchmark!$H$6:$M$200,4,FALSE)))) -> 0 | FJ3: =IF(FC3="Hold",((ER3-SUMIFS(Trades!$H:$H,Trades!$B:$B,FC$1,Trades!$C:$C,$B3,Trades!$E:$E,"Sale"))*(1+VLOOKUP(FC$1,Benchmark!$H$6:$M$200,4,FALSE))) +IFERROR((SUMIFS(Trades!$H:$H,Trades!$B:$B,FC$1,Trades!$C:$C,$B3,Trades!$E:$E,"Purchase")*(1+VLOOKUP(SUMIFS(Trades!$A:$A,Trades!$B:$B,FC$1,Trades!$C:$C,$B3,Trades!$E:$E,"Purchase"),Benchmark!$H$6:$M$200,4,FALSE))),0), IF(FC3="Purchase",SUMIFS(Trades!$H:$H,Trades!$B:$B,FC$1,Trades!$C:$C,$B3,Trades!$E:$E,"Purchase")*(1+FI3), IF(FC3="Sale",0))) ->  | FK3: =FH3-FI3 ->  | FL3: =((FG3-FJ3)/(FG$47-FJ$47))*FK$47 ->  | FM3: =((1+EX3)*(1+FH3))-1 ->  | FN3: 0.0842361968 | FO3: =FD3*(1+FN3) -> 92995.8602 | FP3: =FM3-FN3 ->  | FQ3: =((FG3-FO3)/(FG$47-FO$47))*FP$47 ->  | FR3: =IF(OR(FC3="Hold",FC3="Purchase"),"Hold","") -> Hold | FS3: =FD3+SUMIFS(Trades!$H:$H,Trades!$C:$C,$B3,Trades!$E:$E,"Purchase",Trades!$B:$B,FR$1)-SUMIFS(Trades!$H:$H,Trades!$C:$C,$B3,Trades!$E:$E,"Sale",Trades!$B:$B,FR$1) -> 85770.85 | FT3: #N/A N/A | FU3: =FF3+SUMIFS(Trades!$F:$F,Trades!$C:$C,$B3,Trades!$B:$B,FR$1,Trades!$E:$E,"Purchase")-SUMIFS(Trades!$F:$F,Trades!$C:$C,$B3,Trades!$B:$B,FR$1,Trades!$E:$E,"Sale") -> 605 | FV3: =FT3*FU3 ->  | FW3: =IF(FR3="Hold",(FV3)/(FG3+SUMIFS(Trades!$H:$H,Trades!$B:$B,FR$1,Trades!$E:$E,"Purchase",Trades!$C:$C,$B3))-1, IF(FR3="Purchase",FV3/SUMIFS(Trades!$H:$H,Trades!$B:$B,FR$1,Trades!$E:$E,"Purchase",Trades!$C:$C,$B3)-1, IF(FR3="Sale",SUMIFS(Trades!$H:$H,Trades!$B:$B,FR$1,Trades!$E:$E,"Sale",Trades!$C:$C,$B3)/FG3-1))) ->  | FX3: =IF(FR3="Hold",IFERROR((((FG3-SUMIFS(Trades!$H:$H,Trades!$B:$B,FR$1,Trades!$C:$C,$B3,Trades!$E:$E,"Sale"))/(FG3+SUMIFS(Trades!$H:$H,Trades!$B:$B,FR$1,Trades!$C:$C,$B3,Trades!$E:$E,"Purchase")))*VLOOKUP(FR$1,Benchmark!$H$6:$M$200,4,FALSE)),0) +IFERROR(((SUMIFS(Trades!$H:$H,Trades!$B:$B,FR$1,Trades!$C:$C,$B3,Trades!$E:$E,"Purchase")/(FG3+SUMIFS(Trades!$H:$H,Trades!$B:$B,FR$1,Trades!$C:$C,$B3,Trades!$E:$E,"Purchase")))*VLOOKUP(SUMIFS(Trades!$A:$A,Trades!$B:$B,FR$1,Trades!$C:$C,$B3,Trades!$E:$E,"Purchase"),Benchmark!$H$6:$M$200,6,FALSE)),0) +IFERROR(((SUMIFS(Trades!$H:$H,Trades!$B:$B,FR$1,Trades!$C:$C,$B3,Trades!$E:$E,"Sale")/(FG3+SUMIFS(Trades!$H:$H,Trades!$B:$B,FR$1,Trades!$C:$C,$B3,Trades!$E:$E,"Purchase")))*VLOOKUP(SUMIFS(Trades!$A:$A,Trades!$B:$B,FR$1,Trades!$C:$C,$B3,Trades!$E:$E,"Sale"),Benchmark!$H$6:$M$200,4,FALSE)),0), IF(FR3="Purchase",VLOOKUP(SUMIFS(Trades!$A:$A,Trades!$B:$B,FR$1,Trades!$C:$C,$B3,Trades!$E:$E,FR3,Trades!$E:$E,"Purchase"),Benchmark!$H$6:$M$200,6,FALSE), IF(FR3="Sale",VLOOKUP(SUMIFS(Trades!$A:$A,Trades!$B:$B,FR$1,Trades!$C:$C,$B3,Trades!$E:$E,FR3,Trades!$E:$E,"Sale"),Benchmark!$H$6:$M$200,4,FALSE)))) -> 0 | FY3: =IF(FR3="Hold",((FG3-SUMIFS(Trades!$H:$H,Trades!$B:$B,FR$1,Trades!$C:$C,$B3,Trades!$E:$E,"Sale"))*(1+VLOOKUP(FR$1,Benchmark!$H$6:$M$200,4,FALSE))) +IFERROR((SUMIFS(Trades!$H:$H,Trades!$B:$B,FR$1,Trades!$C:$C,$B3,Trades!$E:$E,"Purchase")*(1+VLOOKUP(SUMIFS(Trades!$A:$A,Trades!$B:$B,FR$1,Trades!$C:$C,$B3,Trades!$E:$E,"Purchase"),Benchmark!$H$6:$M$200,4,FALSE))),0), IF(FR3="Purchase",SUMIFS(Trades!$H:$H,Trades!$B:$B,FR$1,Trades!$C:$C,$B3,Trades!$E:$E,"Purchase")*(1+FX3), IF(FR3="Sale",0))) ->  | FZ3: =FW3-FX3 ->  | GA3: =((FV3-FY3)/(FV$47-FY$47))*FZ$47 ->  | GB3: =((1+FM3)*(1+FW3))-1 ->  | GC3: 0.0842361968 | GD3: =FS3*(1+GC3) -> 92995.8602 | GE3: =GB3-GC3 ->  | GF3: =((FV3-GD3)/(FV$47-GD$47))*GE$47 ->  | GG3: =IF(OR(FR3="Hold",FR3="Purchase"),"Hold","") -> Hold | GH3: =FS3+SUMIFS(Trades!$H:$H,Trades!$C:$C,$B3,Trades!$E:$E,"Purchase",Trades!$B:$B,GG$1)-SUMIFS(Trades!$H:$H,Trades!$C:$C,$B3,Trades!$E:$E,"Sale",Trades!$B:$B,GG$1) -> 85770.85 | GI3: #N/A N/A | GJ3: =FU3+SUMIFS(Trades!$F:$F,Trades!$C:$C,$B3,Trades!$B:$B,GG$1,Trades!$E:$E,"Purchase")-SUMIFS(Trades!$F:$F,Trades!$C:$C,$B3,Trades!$B:$B,GG$1,Trades!$E:$E,"Sale") -> 605 | GK3: =GI3*GJ3 ->  | GL3: =IF(GG3="Hold",(GK3)/(FV3+SUMIFS(Trades!$H:$H,Trades!$B:$B,GG$1,Trades!$E:$E,"Purchase",Trades!$C:$C,$B3))-1, IF(GG3="Purchase",GK3/SUMIFS(Trades!$H:$H,Trades!$B:$B,GG$1,Trades!$E:$E,"Purchase",Trades!$C:$C,$B3)-1, IF(GG3="Sale",SUMIFS(Trades!$H:$H,Trades!$B:$B,GG$1,Trades!$E:$E,"Sale",Trades!$C:$C,$B3)/FV3-1))) ->  | GM3: =IF(GG3="Hold",IFERROR((((FV3-SUMIFS(Trades!$H:$H,Trades!$B:$B,GG$1,Trades!$C:$C,$B3,Trades!$E:$E,"Sale"))/(FV3+SUMIFS(Trades!$H:$H,Trades!$B:$B,GG$1,Trades!$C:$C,$B3,Trades!$E:$E,"Purchase")))*VLOOKUP(GG$1,Benchmark!$H$6:$M$200,4,FALSE)),0) +IFERROR(((SUMIFS(Trades!$H:$H,Trades!$B:$B,GG$1,Trades!$C:$C,$B3,Trades!$E:$E,"Purchase")/(FV3+SUMIFS(Trades!$H:$H,Trades!$B:$B,GG$1,Trades!$C:$C,$B3,Trades!$E:$E,"Purchase")))*VLOOKUP(SUMIFS(Trades!$A:$A,Trades!$B:$B,GG$1,Trades!$C:$C,$B3,Trades!$E:$E,"Purchase"),Benchmark!$H$6:$M$200,6,FALSE)),0) +IFERROR(((SUMIFS(Trades!$H:$H,Trades!$B:$B,GG$1,Trades!$C:$C,$B3,Trades!$E:$E,"Sale")/(FV3+SUMIFS(Trades!$H:$H,Trades!$B:$B,GG$1,Trades!$C:$C,$B3,Trades!$E:$E,"Purchase")))*VLOOKUP(SUMIFS(Trades!$A:$A,Trades!$B:$B,GG$1,Trades!$C:$C,$B3,Trades!$E:$E,"Sale"),Benchmark!$H$6:$M$200,4,FALSE)),0), IF(GG3="Purchase",VLOOKUP(SUMIFS(Trades!$A:$A,Trades!$B:$B,GG$1,Trades!$C:$C,$B3,Trades!$E:$E,GG3,Trades!$E:$E,"Purchase"),Benchmark!$H$6:$M$200,6,FALSE), IF(GG3="Sale",VLOOKUP(SUMIFS(Trades!$A:$A,Trades!$B:$B,GG$1,Trades!$C:$C,$B3,Trades!$E:$E,GG3,Trades!$E:$E,"Sale"),Benchmark!$H$6:$M$200,4,FALSE)))) -> 0 | GN3: =IF(GG3="Hold",((FV3-SUMIFS(Trades!$H:$H,Trades!$B:$B,GG$1,Trades!$C:$C,$B3,Trades!$E:$E,"Sale"))*(1+VLOOKUP(GG$1,Benchmark!$H$6:$M$200,4,FALSE))) +IFERROR((SUMIFS(Trades!$H:$H,Trades!$B:$B,GG$1,Trades!$C:$C,$B3,Trades!$E:$E,"Purchase")*(1+VLOOKUP(SUMIFS(Trades!$A:$A,Trades!$B:$B,GG$1,Trades!$C:$C,$B3,Trades!$E:$E,"Purchase"),Benchmark!$H$6:$M$200,4,FALSE))),0), IF(GG3="Purchase",SUMIFS(Trades!$H:$H,Trades!$B:$B,GG$1,Trades!$C:$C,$B3,Trades!$E:$E,"Purchase")*(1+GM3), IF(GG3="Sale",0))) ->  | GO3: =GL3-GM3 ->  | GP3: =((GK3-GN3)/(GK$47-GN$47))*GO$47 ->  | GQ3: =((1+GB3)*(1+GL3))-1 ->  | GR3: 0.0842361968 | GS3: =GH3*(1+GR3) -> 92995.8602 | GT3: =GQ3-GR3 ->  | GU3: =((GK3-GS3)/(GK$47-GS$47))*GT$47 ->  | GV3: =IF(OR(GG3="Hold",GG3="Purchase"),"Hold","") -> Hold | GW3: =GH3+SUMIFS(Trades!$H:$H,Trades!$C:$C,$B3,Trades!$E:$E,"Purchase",Trades!$B:$B,GV$1)-SUMIFS(Trades!$H:$H,Trades!$C:$C,$B3,Trades!$E:$E,"Sale",Trades!$B:$B,GV$1) -> 85770.85 | GX3: #N/A N/A | GY3: =GJ3+SUMIFS(Trades!$F:$F,Trades!$C:$C,$B3,Trades!$B:$B,GV$1,Trades!$E:$E,"Purchase")-SUMIFS(Trades!$F:$F,Trades!$C:$C,$B3,Trades!$B:$B,GV$1,Trades!$E:$E,"Sale") -> 605 | GZ3: =GX3*GY3 ->  | HA3: =IF(GV3="Hold",(GZ3)/(GK3+SUMIFS(Trades!$H:$H,Trades!$B:$B,GV$1,Trades!$E:$E,"Purchase",Trades!$C:$C,$B3))-1, IF(GV3="Purchase",GZ3/SUMIFS(Trades!$H:$H,Trades!$B:$B,GV$1,Trades!$E:$E,"Purchase",Trades!$C:$C,$B3)-1, IF(GV3="Sale",SUMIFS(Trades!$H:$H,Trades!$B:$B,GV$1,Trades!$E:$E,"Sale",Trades!$C:$C,$B3)/GK3-1))) ->  | HB3: =IF(GV3="Hold",IFERROR((((GK3-SUMIFS(Trades!$H:$H,Trades!$B:$B,GV$1,Trades!$C:$C,$B3,Trades!$E:$E,"Sale"))/(GK3+SUMIFS(Trades!$H:$H,Trades!$B:$B,GV$1,Trades!$C:$C,$B3,Trades!$E:$E,"Purchase")))*VLOOKUP(GV$1,Benchmark!$H$6:$M$200,4,FALSE)),0) +IFERROR(((SUMIFS(Trades!$H:$H,Trades!$B:$B,GV$1,Trades!$C:$C,$B3,Trades!$E:$E,"Purchase")/(GK3+SUMIFS(Trades!$H:$H,Trades!$B:$B,GV$1,Trades!$C:$C,$B3,Trades!$E:$E,"Purchase")))*VLOOKUP(SUMIFS(Trades!$A:$A,Trades!$B:$B,GV$1,Trades!$C:$C,$B3,Trades!$E:$E,"Purchase"),Benchmark!$H$6:$M$200,6,FALSE)),0) +IFERROR(((SUMIFS(Trades!$H:$H,Trades!$B:$B,GV$1,Trades!$C:$C,$B3,Trades!$E:$E,"Sale")/(GK3+SUMIFS(Trades!$H:$H,Trades!$B:$B,GV$1,Trades!$C:$C,$B3,Trades!$E:$E,"Purchase")))*VLOOKUP(SUMIFS(Trades!$A:$A,Trades!$B:$B,GV$1,Trades!$C:$C,$B3,Trades!$E:$E,"Sale"),Benchmark!$H$6:$M$200,4,FALSE)),0), IF(GV3="Purchase",VLOOKUP(SUMIFS(Trades!$A:$A,Trades!$B:$B,GV$1,Trades!$C:$C,$B3,Trades!$E:$E,GV3,Trades!$E:$E,"Purchase"),Benchmark!$H$6:$M$200,6,FALSE), IF(GV3="Sale",VLOOKUP(SUMIFS(Trades!$A:$A,Trades!$B:$B,GV$1,Trades!$C:$C,$B3,Trades!$E:$E,GV3,Trades!$E:$E,"Sale"),Benchmark!$H$6:$M$200,4,FALSE)))) -> 0 | HC3: =IF(GV3="Hold",((GK3-SUMIFS(Trades!$H:$H,Trades!$B:$B,GV$1,Trades!$C:$C,$B3,Trades!$E:$E,"Sale"))*(1+VLOOKUP(GV$1,Benchmark!$H$6:$M$200,4,FALSE))) +IFERROR((SUMIFS(Trades!$H:$H,Trades!$B:$B,GV$1,Trades!$C:$C,$B3,Trades!$E:$E,"Purchase")*(1+VLOOKUP(SUMIFS(Trades!$A:$A,Trades!$B:$B,GV$1,Trades!$C:$C,$B3,Trades!$E:$E,"Purchase"),Benchmark!$H$6:$M$200,4,FALSE))),0), IF(GV3="Purchase",SUMIFS(Trades!$H:$H,Trades!$B:$B,GV$1,Trades!$C:$C,$B3,Trades!$E:$E,"Purchase")*(1+HB3), IF(GV3="Sale",0))) ->  | HD3: =HA3-HB3 ->  | HE3: =((GZ3-HC3)/(GZ$47-HC$47))*HD$47 ->  | HF3: =((1+GQ3)*(1+HA3))-1 ->  | HG3: 0.0842361968 | HH3: =GW3*(1+HG3) -> 92995.8602 | HI3: =HF3-HG3 ->  | HJ3: =((GZ3-HH3)/(GZ$47-HH$47))*HI$47 ->  | HK3: =IF(OR(GV3="Hold",GV3="Purchase"),"Hold","") -> Hold | HL3: =GW3+SUMIFS(Trades!$H:$H,Trades!$C:$C,$B3,Trades!$E:$E,"Purchase",Trades!$B:$B,HK$1)-SUMIFS(Trades!$H:$H,Trades!$C:$C,$B3,Trades!$E:$E,"Sale",Trades!$B:$B,HK$1) -> 85770.85 | HM3: #N/A N/A | HN3: =GY3+SUMIFS(Trades!$F:$F,Trades!$C:$C,$B3,Trades!$B:$B,HK$1,Trades!$E:$E,"Purchase")-SUMIFS(Trades!$F:$F,Trades!$C:$C,$B3,Trades!$B:$B,HK$1,Trades!$E:$E,"Sale") -> 605 | HO3: =HM3*HN3 ->  | HP3: =IF(HK3="Hold",(HO3)/(GZ3+SUMIFS(Trades!$H:$H,Trades!$B:$B,HK$1,Trades!$E:$E,"Purchase",Trades!$C:$C,$B3))-1, IF(HK3="Purchase",HO3/SUMIFS(Trades!$H:$H,Trades!$B:$B,HK$1,Trades!$E:$E,"Purchase",Trades!$C:$C,$B3)-1, IF(HK3="Sale",SUMIFS(Trades!$H:$H,Trades!$B:$B,HK$1,Trades!$E:$E,"Sale",Trades!$C:$C,$B3)/GZ3-1))) ->  | HQ3: =IF(HK3="Hold",IFERROR((((GZ3-SUMIFS(Trades!$H:$H,Trades!$B:$B,HK$1,Trades!$C:$C,$B3,Trades!$E:$E,"Sale"))/(GZ3+SUMIFS(Trades!$H:$H,Trades!$B:$B,HK$1,Trades!$C:$C,$B3,Trades!$E:$E,"Purchase")))*VLOOKUP(HK$1,Benchmark!$H$6:$M$200,4,FALSE)),0) +IFERROR(((SUMIFS(Trades!$H:$H,Trades!$B:$B,HK$1,Trades!$C:$C,$B3,Trades!$E:$E,"Purchase")/(GZ3+SUMIFS(Trades!$H:$H,Trades!$B:$B,HK$1,Trades!$C:$C,$B3,Trades!$E:$E,"Purchase")))*VLOOKUP(SUMIFS(Trades!$A:$A,Trades!$B:$B,HK$1,Trades!$C:$C,$B3,Trades!$E:$E,"Purchase"),Benchmark!$H$6:$M$200,6,FALSE)),0) +IFERROR(((SUMIFS(Trades!$H:$H,Trades!$B:$B,HK$1,Trades!$C:$C,$B3,Trades!$E:$E,"Sale")/(GZ3+SUMIFS(Trades!$H:$H,Trades!$B:$B,HK$1,Trades!$C:$C,$B3,Trades!$E:$E,"Purchase")))*VLOOKUP(SUMIFS(Trades!$A:$A,Trades!$B:$B,HK$1,Trades!$C:$C,$B3,Trades!$E:$E,"Sale"),Benchmark!$H$6:$M$200,4,FALSE)),0), IF(HK3="Purchase",VLOOKUP(SUMIFS(Trades!$A:$A,Trades!$B:$B,HK$1,Trades!$C:$C,$B3,Trades!$E:$E,HK3,Trades!$E:$E,"Purchase"),Benchmark!$H$6:$M$200,6,FALSE), IF(HK3="Sale",VLOOKUP(SUMIFS(Trades!$A:$A,Trades!$B:$B,HK$1,Trades!$C:$C,$B3,Trades!$E:$E,HK3,Trades!$E:$E,"Sale"),Benchmark!$H$6:$M$200,4,FALSE)))) -> 0 | HR3: =IF(HK3="Hold",((GZ3-SUMIFS(Trades!$H:$H,Trades!$B:$B,HK$1,Trades!$C:$C,$B3,Trades!$E:$E,"Sale"))*(1+VLOOKUP(HK$1,Benchmark!$H$6:$M$200,4,FALSE))) +IFERROR((SUMIFS(Trades!$H:$H,Trades!$B:$B,HK$1,Trades!$C:$C,$B3,Trades!$E:$E,"Purchase")*(1+VLOOKUP(SUMIFS(Trades!$A:$A,Trades!$B:$B,HK$1,Trades!$C:$C,$B3,Trades!$E:$E,"Purchase"),Benchmark!$H$6:$M$200,4,FALSE))),0), IF(HK3="Purchase",SUMIFS(Trades!$H:$H,Trades!$B:$B,HK$1,Trades!$C:$C,$B3,Trades!$E:$E,"Purchase")*(1+HQ3), IF(HK3="Sale",0))) ->  | HS3: =HP3-HQ3 ->  | HT3: =((HO3-HR3)/(HO$47-HR$47))*HS$47 ->  | HU3: =((1+HF3)*(1+HP3))-1 ->  | HV3: 0.0842361968 | HW3: =HL3*(1+HV3) -> 92995.8602 | HX3: =HU3-HV3 ->  | HY3: =((HO3-HW3)/(HO$47-HW$47))*HX$47 ->  | HZ3: =IF(OR(HK3="Hold",HK3="Purchase"),"Hold","") -> Hold | IA3: =HL3+SUMIFS(Trades!$H:$H,Trades!$C:$C,$B3,Trades!$E:$E,"Purchase",Trades!$B:$B,HZ$1)-SUMIFS(Trades!$H:$H,Trades!$C:$C,$B3,Trades!$E:$E,"Sale",Trades!$B:$B,HZ$1) -> 85770.85 | IB3: #N/A N/A | IC3: =HN3+SUMIFS(Trades!$F:$F,Trades!$C:$C,$B3,Trades!$B:$B,HZ$1,Trades!$E:$E,"Purchase")-SUMIFS(Trades!$F:$F,Trades!$C:$C,$B3,Trades!$B:$B,HZ$1,Trades!$E:$E,"Sale") -> 605 | ID3: =IB3*IC3 ->  | IE3: =IF(HZ3="Hold",(ID3)/(HO3+SUMIFS(Trades!$H:$H,Trades!$B:$B,HZ$1,Trades!$E:$E,"Purchase",Trades!$C:$C,$B3))-1, IF(HZ3="Purchase",ID3/SUMIFS(Trades!$H:$H,Trades!$B:$B,HZ$1,Trades!$E:$E,"Purchase",Trades!$C:$C,$B3)-1, IF(HZ3="Sale",SUMIFS(Trades!$H:$H,Trades!$B:$B,HZ$1,Trades!$E:$E,"Sale",Trades!$C:$C,$B3)/HO3-1))) ->  | IF3: =IF(HZ3="Hold",IFERROR((((HO3-SUMIFS(Trades!$H:$H,Trades!$B:$B,HZ$1,Trades!$C:$C,$B3,Trades!$E:$E,"Sale"))/(HO3+SUMIFS(Trades!$H:$H,Trades!$B:$B,HZ$1,Trades!$C:$C,$B3,Trades!$E:$E,"Purchase")))*VLOOKUP(HZ$1,Benchmark!$H$6:$M$200,4,FALSE)),0) +IFERROR(((SUMIFS(Trades!$H:$H,Trades!$B:$B,HZ$1,Trades!$C:$C,$B3,Trades!$E:$E,"Purchase")/(HO3+SUMIFS(Trades!$H:$H,Trades!$B:$B,HZ$1,Trades!$C:$C,$B3,Trades!$E:$E,"Purchase")))*VLOOKUP(SUMIFS(Trades!$A:$A,Trades!$B:$B,HZ$1,Trades!$C:$C,$B3,Trades!$E:$E,"Purchase"),Benchmark!$H$6:$M$200,6,FALSE)),0) +IFERROR(((SUMIFS(Trades!$H:$H,Trades!$B:$B,HZ$1,Trades!$C:$C,$B3,Trades!$E:$E,"Sale")/(HO3+SUMIFS(Trades!$H:$H,Trades!$B:$B,HZ$1,Trades!$C:$C,$B3,Trades!$E:$E,"Purchase")))*VLOOKUP(SUMIFS(Trades!$A:$A,Trades!$B:$B,HZ$1,Trades!$C:$C,$B3,Trades!$E:$E,"Sale"),Benchmark!$H$6:$M$200,4,FALSE)),0), IF(HZ3="Purchase",VLOOKUP(SUMIFS(Trades!$A:$A,Trades!$B:$B,HZ$1,Trades!$C:$C,$B3,Trades!$E:$E,HZ3,Trades!$E:$E,"Purchase"),Benchmark!$H$6:$M$200,6,FALSE), IF(HZ3="Sale",VLOOKUP(SUMIFS(Trades!$A:$A,Trades!$B:$B,HZ$1,Trades!$C:$C,$B3,Trades!$E:$E,HZ3,Trades!$E:$E,"Sale"),Benchmark!$H$6:$M$200,4,FALSE)))) -> 0 | IG3: =IF(HZ3="Hold",((HO3-SUMIFS(Trades!$H:$H,Trades!$B:$B,HZ$1,Trades!$C:$C,$B3,Trades!$E:$E,"Sale"))*(1+VLOOKUP(HZ$1,Benchmark!$H$6:$M$200,4,FALSE))) +IFERROR((SUMIFS(Trades!$H:$H,Trades!$B:$B,HZ$1,Trades!$C:$C,$B3,Trades!$E:$E,"Purchase")*(1+VLOOKUP(SUMIFS(Trades!$A:$A,Trades!$B:$B,HZ$1,Trades!$C:$C,$B3,Trades!$E:$E,"Purchase"),Benchmark!$H$6:$M$200,4,FALSE))),0), IF(HZ3="Purchase",SUMIFS(Trades!$H:$H,Trades!$B:$B,HZ$1,Trades!$C:$C,$B3,Trades!$E:$E,"Purchase")*(1+IF3), IF(HZ3="Sale",0))) ->  | IH3: =IE3-IF3 ->  | II3: =((ID3-IG3)/(ID$47-IG$47))*IH$47 ->  | IJ3: =((1+HU3)*(1+IE3))-1 ->  | IK3: 0.0842361968 | IL3: =IA3*(1+IK3) -> 92995.8602 | IM3: =IJ3-IK3 ->  | IN3: =((ID3-IL3)/(ID$47-IL$47))*IM$47 ->  | IO3: =IF(OR(HZ3="Hold",HZ3="Purchase"),"Hold","") -> Hold | IP3: =IA3+SUMIFS(Trades!$H:$H,Trades!$C:$C,$B3,Trades!$E:$E,"Purchase",Trades!$B:$B,IO$1)-SUMIFS(Trades!$H:$H,Trades!$C:$C,$B3,Trades!$E:$E,"Sale",Trades!$B:$B,IO$1) -> 85770.85 | IQ3: #N/A N/A | IR3: =IC3+SUMIFS(Trades!$F:$F,Trades!$C:$C,$B3,Trades!$B:$B,IO$1,Trades!$E:$E,"Purchase")-SUMIFS(Trades!$F:$F,Trades!$C:$C,$B3,Trades!$B:$B,IO$1,Trades!$E:$E,"Sale") -> 605 | IS3: =IQ3*IR3 ->  | IT3: =IF(IO3="Hold",(IS3)/(ID3+SUMIFS(Trades!$H:$H,Trades!$B:$B,IO$1,Trades!$E:$E,"Purchase",Trades!$C:$C,$B3))-1, IF(IO3="Purchase",IS3/SUMIFS(Trades!$H:$H,Trades!$B:$B,IO$1,Trades!$E:$E,"Purchase",Trades!$C:$C,$B3)-1, IF(IO3="Sale",SUMIFS(Trades!$H:$H,Trades!$B:$B,IO$1,Trades!$E:$E,"Sale",Trades!$C:$C,$B3)/ID3-1))) ->  | IU3: =IF(IO3="Hold",IFERROR((((ID3-SUMIFS(Trades!$H:$H,Trades!$B:$B,IO$1,Trades!$C:$C,$B3,Trades!$E:$E,"Sale"))/(ID3+SUMIFS(Trades!$H:$H,Trades!$B:$B,IO$1,Trades!$C:$C,$B3,Trades!$E:$E,"Purchase")))*VLOOKUP(IO$1,Benchmark!$H$6:$M$200,4,FALSE)),0) +IFERROR(((SUMIFS(Trades!$H:$H,Trades!$B:$B,IO$1,Trades!$C:$C,$B3,Trades!$E:$E,"Purchase")/(ID3+SUMIFS(Trades!$H:$H,Trades!$B:$B,IO$1,Trades!$C:$C,$B3,Trades!$E:$E,"Purchase")))*VLOOKUP(SUMIFS(Trades!$A:$A,Trades!$B:$B,IO$1,Trades!$C:$C,$B3,Trades!$E:$E,"Purchase"),Benchmark!$H$6:$M$200,6,FALSE)),0) +IFERROR(((SUMIFS(Trades!$H:$H,Trades!$B:$B,IO$1,Trades!$C:$C,$B3,Trades!$E:$E,"Sale")/(ID3+SUMIFS(Trades!$H:$H,Trades!$B:$B,IO$1,Trades!$C:$C,$B3,Trades!$E:$E,"Purchase")))*VLOOKUP(SUMIFS(Trades!$A:$A,Trades!$B:$B,IO$1,Trades!$C:$C,$B3,Trades!$E:$E,"Sale"),Benchmark!$H$6:$M$200,4,FALSE)),0), IF(IO3="Purchase",VLOOKUP(SUMIFS(Trades!$A:$A,Trades!$B:$B,IO$1,Trades!$C:$C,$B3,Trades!$E:$E,IO3,Trades!$E:$E,"Purchase"),Benchmark!$H$6:$M$200,6,FALSE), IF(IO3="Sale",VLOOKUP(SUMIFS(Trades!$A:$A,Trades!$B:$B,IO$1,Trades!$C:$C,$B3,Trades!$E:$E,IO3,Trades!$E:$E,"Sale"),Benchmark!$H$6:$M$200,4,FALSE)))) -> 0 | IV3: =IF(IO3="Hold",((ID3-SUMIFS(Trades!$H:$H,Trades!$B:$B,IO$1,Trades!$C:$C,$B3,Trades!$E:$E,"Sale"))*(1+VLOOKUP(IO$1,Benchmark!$H$6:$M$200,4,FALSE))) +IFERROR((SUMIFS(Trades!$H:$H,Trades!$B:$B,IO$1,Trades!$C:$C,$B3,Trades!$E:$E,"Purchase")*(1+VLOOKUP(SUMIFS(Trades!$A:$A,Trades!$B:$B,IO$1,Trades!$C:$C,$B3,Trades!$E:$E,"Purchase"),Benchmark!$H$6:$M$200,4,FALSE))),0), IF(IO3="Purchase",SUMIFS(Trades!$H:$H,Trades!$B:$B,IO$1,Trades!$C:$C,$B3,Trades!$E:$E,"Purchase")*(1+IU3), IF(IO3="Sale",0))) ->  | IW3: =IT3-IU3 ->  | IX3: =((IS3-IV3)/(IS$47-IV$47))*IW$47 ->  | IY3: =((1+IJ3)*(1+IT3))-1 ->  | IZ3: 0.0842361968 | JA3: =IP3*(1+IZ3) -> 92995.8602 | JB3: =IY3-IZ3 ->  | JC3: =((IS3-JA3)/(IS$47-JA$47))*JB$47 ->  | JD3: =IF(OR(IO3="Hold",IO3="Purchase"),"Hold","") -> Hold | JE3: =IP3+SUMIFS(Trades!$H:$H,Trades!$C:$C,$B3,Trades!$E:$E,"Purchase",Trades!$B:$B,JD$1)-SUMIFS(Trades!$H:$H,Trades!$C:$C,$B3,Trades!$E:$E,"Sale",Trades!$B:$B,JD$1) -> 85770.85 | JF3: #N/A N/A | JG3: =IR3+SUMIFS(Trades!$F:$F,Trades!$C:$C,$B3,Trades!$B:$B,JD$1,Trades!$E:$E,"Purchase")-SUMIFS(Trades!$F:$F,Trades!$C:$C,$B3,Trades!$B:$B,JD$1,Trades!$E:$E,"Sale") -> 605 | JH3: =JF3*JG3 ->  | JI3: =IF(JD3="Hold",(JH3)/(IS3+SUMIFS(Trades!$H:$H,Trades!$B:$B,JD$1,Trades!$E:$E,"Purchase",Trades!$C:$C,$B3))-1, IF(JD3="Purchase",JH3/SUMIFS(Trades!$H:$H,Trades!$B:$B,JD$1,Trades!$E:$E,"Purchase",Trades!$C:$C,$B3)-1, IF(JD3="Sale",SUMIFS(Trades!$H:$H,Trades!$B:$B,JD$1,Trades!$E:$E,"Sale",Trades!$C:$C,$B3)/IS3-1))) ->  | JJ3: =IF(JD3="Hold",IFERROR((((IS3-SUMIFS(Trades!$H:$H,Trades!$B:$B,JD$1,Trades!$C:$C,$B3,Trades!$E:$E,"Sale"))/(IS3+SUMIFS(Trades!$H:$H,Trades!$B:$B,JD$1,Trades!$C:$C,$B3,Trades!$E:$E,"Purchase")))*VLOOKUP(JD$1,Benchmark!$H$6:$M$200,4,FALSE)),0) +IFERROR(((SUMIFS(Trades!$H:$H,Trades!$B:$B,JD$1,Trades!$C:$C,$B3,Trades!$E:$E,"Purchase")/(IS3+SUMIFS(Trades!$H:$H,Trades!$B:$B,JD$1,Trades!$C:$C,$B3,Trades!$E:$E,"Purchase")))*VLOOKUP(SUMIFS(Trades!$A:$A,Trades!$B:$B,JD$1,Trades!$C:$C,$B3,Trades!$E:$E,"Purchase"),Benchmark!$H$6:$M$200,6,FALSE)),0) +IFERROR(((SUMIFS(Trades!$H:$H,Trades!$B:$B,JD$1,Trades!$C:$C,$B3,Trades!$E:$E,"Sale")/(IS3+SUMIFS(Trades!$H:$H,Trades!$B:$B,JD$1,Trades!$C:$C,$B3,Trades!$E:$E,"Purchase")))*VLOOKUP(SUMIFS(Trades!$A:$A,Trades!$B:$B,JD$1,Trades!$C:$C,$B3,Trades!$E:$E,"Sale"),Benchmark!$H$6:$M$200,4,FALSE)),0), IF(JD3="Purchase",VLOOKUP(SUMIFS(Trades!$A:$A,Trades!$B:$B,JD$1,Trades!$C:$C,$B3,Trades!$E:$E,JD3,Trades!$E:$E,"Purchase"),Benchmark!$H$6:$M$200,6,FALSE), IF(JD3="Sale",VLOOKUP(SUMIFS(Trades!$A:$A,Trades!$B:$B,JD$1,Trades!$C:$C,$B3,Trades!$E:$E,JD3,Trades!$E:$E,"Sale"),Benchmark!$H$6:$M$200,4,FALSE)))) -> 0 | JK3: =IF(JD3="Hold",((IS3-SUMIFS(Trades!$H:$H,Trades!$B:$B,JD$1,Trades!$C:$C,$B3,Trades!$E:$E,"Sale"))*(1+VLOOKUP(JD$1,Benchmark!$H$6:$M$200,4,FALSE))) +IFERROR((SUMIFS(Trades!$H:$H,Trades!$B:$B,JD$1,Trades!$C:$C,$B3,Trades!$E:$E,"Purchase")*(1+VLOOKUP(SUMIFS(Trades!$A:$A,Trades!$B:$B,JD$1,Trades!$C:$C,$B3,Trades!$E:$E,"Purchase"),Benchmark!$H$6:$M$200,4,FALSE))),0), IF(JD3="Purchase",SUMIFS(Trades!$H:$H,Trades!$B:$B,JD$1,Trades!$C:$C,$B3,Trades!$E:$E,"Purchase")*(1+JJ3), IF(JD3="Sale",0))) ->  | JL3: =JI3-JJ3 ->  | JM3: =((JH3-JK3)/(JH$47-JK$47))*JL$47 ->  | JN3: =((1+IY3)*(1+JI3))-1 ->  | JO3: 0.0842361968 | JP3: =JE3*(1+JO3) -> 92995.8602 | JQ3: =JN3-JO3 ->  | JR3: =((JH3-JP3)/(JH$47-JP$47))*JQ$47 ->  | JS3: =IF(OR(JD3="Hold",JD3="Purchase"),"Hold","") -> Hold | JT3: =JE3+SUMIFS(Trades!$H:$H,Trades!$C:$C,$B3,Trades!$E:$E,"Purchase",Trades!$B:$B,JS$1)-SUMIFS(Trades!$H:$H,Trades!$C:$C,$B3,Trades!$E:$E,"Sale",Trades!$B:$B,JS$1) -> 85770.85 | JU3: #N/A N/A | JV3: =JG3+SUMIFS(Trades!$F:$F,Trades!$C:$C,$B3,Trades!$B:$B,JS$1,Trades!$E:$E,"Purchase")-SUMIFS(Trades!$F:$F,Trades!$C:$C,$B3,Trades!$B:$B,JS$1,Trades!$E:$E,"Sale") -> 605 | JW3: =JU3*JV3 ->  | JX3: =IF(JS3="Hold",(JW3)/(JH3+SUMIFS(Trades!$H:$H,Trades!$B:$B,JS$1,Trades!$E:$E,"Purchase",Trades!$C:$C,$B3))-1, IF(JS3="Purchase",JW3/SUMIFS(Trades!$H:$H,Trades!$B:$B,JS$1,Trades!$E:$E,"Purchase",Trades!$C:$C,$B3)-1, IF(JS3="Sale",SUMIFS(Trades!$H:$H,Trades!$B:$B,JS$1,Trades!$E:$E,"Sale",Trades!$C:$C,$B3)/JH3-1))) ->  | JY3: =IF(JS3="Hold",IFERROR((((JH3-SUMIFS(Trades!$H:$H,Trades!$B:$B,JS$1,Trades!$C:$C,$B3,Trades!$E:$E,"Sale"))/(JH3+SUMIFS(Trades!$H:$H,Trades!$B:$B,JS$1,Trades!$C:$C,$B3,Trades!$E:$E,"Purchase")))*VLOOKUP(JS$1,Benchmark!$H$6:$M$200,4,FALSE)),0) +IFERROR(((SUMIFS(Trades!$H:$H,Trades!$B:$B,JS$1,Trades!$C:$C,$B3,Trades!$E:$E,"Purchase")/(JH3+SUMIFS(Trades!$H:$H,Trades!$B:$B,JS$1,Trades!$C:$C,$B3,Trades!$E:$E,"Purchase")))*VLOOKUP(SUMIFS(Trades!$A:$A,Trades!$B:$B,JS$1,Trades!$C:$C,$B3,Trades!$E:$E,"Purchase"),Benchmark!$H$6:$M$200,6,FALSE)),0) +IFERROR(((SUMIFS(Trades!$H:$H,Trades!$B:$B,JS$1,Trades!$C:$C,$B3,Trades!$E:$E,"Sale")/(JH3+SUMIFS(Trades!$H:$H,Trades!$B:$B,JS$1,Trades!$C:$C,$B3,Trades!$E:$E,"Purchase")))*VLOOKUP(SUMIFS(Trades!$A:$A,Trades!$B:$B,JS$1,Trades!$C:$C,$B3,Trades!$E:$E,"Sale"),Benchmark!$H$6:$M$200,4,FALSE)),0), IF(JS3="Purchase",VLOOKUP(SUMIFS(Trades!$A:$A,Trades!$B:$B,JS$1,Trades!$C:$C,$B3,Trades!$E:$E,JS3,Trades!$E:$E,"Purchase"),Benchmark!$H$6:$M$200,6,FALSE), IF(JS3="Sale",VLOOKUP(SUMIFS(Trades!$A:$A,Trades!$B:$B,JS$1,Trades!$C:$C,$B3,Trades!$E:$E,JS3,Trades!$E:$E,"Sale"),Benchmark!$H$6:$M$200,4,FALSE)))) -> 0 | JZ3: =IF(JS3="Hold",((JH3-SUMIFS(Trades!$H:$H,Trades!$B:$B,JS$1,Trades!$C:$C,$B3,Trades!$E:$E,"Sale"))*(1+VLOOKUP(JS$1,Benchmark!$H$6:$M$200,4,FALSE))) +IFERROR((SUMIFS(Trades!$H:$H,Trades!$B:$B,JS$1,Trades!$C:$C,$B3,Trades!$E:$E,"Purchase")*(1+VLOOKUP(SUMIFS(Trades!$A:$A,Trades!$B:$B,JS$1,Trades!$C:$C,$B3,Trades!$E:$E,"Purchase"),Benchmark!$H$6:$M$200,4,FALSE))),0), IF(JS3="Purchase",SUMIFS(Trades!$H:$H,Trades!$B:$B,JS$1,Trades!$C:$C,$B3,Trades!$E:$E,"Purchase")*(1+JY3), IF(JS3="Sale",0))) ->  | KA3: =JX3-JY3 ->  | KB3: =((JW3-JZ3)/(JW$47-JZ$47))*KA$47 ->  | KC3: =((1+JN3)*(1+JX3))-1 ->  | KD3: 0.0842361968 | KE3: =JT3*(1+KD3) -> 92995.8602 | KF3: =KC3-KD3 ->  | KG3: =((JW3-KE3)/(JW$47-KE$47))*KF$47 ->  | KH3: =IF(OR(JS3="Hold",JS3="Purchase"),"Hold","") -> Hold | KI3: =JT3+SUMIFS(Trades!$H:$H,Trades!$C:$C,$B3,Trades!$E:$E,"Purchase",Trades!$B:$B,KH$1)-SUMIFS(Trades!$H:$H,Trades!$C:$C,$B3,Trades!$E:$E,"Sale",Trades!$B:$B,KH$1) -> 85770.85 | KJ3: #N/A N/A | KK3: =JV3+SUMIFS(Trades!$F:$F,Trades!$C:$C,$B3,Trades!$B:$B,KH$1,Trades!$E:$E,"Purchase")-SUMIFS(Trades!$F:$F,Trades!$C:$C,$B3,Trades!$B:$B,KH$1,Trades!$E:$E,"Sale") -> 605 | KL3: =KJ3*KK3 ->  | KM3: =IF(KH3="Hold",(KL3)/(JW3+SUMIFS(Trades!$H:$H,Trades!$B:$B,KH$1,Trades!$E:$E,"Purchase",Trades!$C:$C,$B3))-1, IF(KH3="Purchase",KL3/SUMIFS(Trades!$H:$H,Trades!$B:$B,KH$1,Trades!$E:$E,"Purchase",Trades!$C:$C,$B3)-1, IF(KH3="Sale",SUMIFS(Trades!$H:$H,Trades!$B:$B,KH$1,Trades!$E:$E,"Sale",Trades!$C:$C,$B3)/JW3-1))) ->  | KN3: =IF(KH3="Hold",IFERROR((((JW3-SUMIFS(Trades!$H:$H,Trades!$B:$B,KH$1,Trades!$C:$C,$B3,Trades!$E:$E,"Sale"))/(JW3+SUMIFS(Trades!$H:$H,Trades!$B:$B,KH$1,Trades!$C:$C,$B3,Trades!$E:$E,"Purchase")))*VLOOKUP(KH$1,Benchmark!$H$6:$M$200,4,FALSE)),0) +IFERROR(((SUMIFS(Trades!$H:$H,Trades!$B:$B,KH$1,Trades!$C:$C,$B3,Trades!$E:$E,"Purchase")/(JW3+SUMIFS(Trades!$H:$H,Trades!$B:$B,KH$1,Trades!$C:$C,$B3,Trades!$E:$E,"Purchase")))*VLOOKUP(SUMIFS(Trades!$A:$A,Trades!$B:$B,KH$1,Trades!$C:$C,$B3,Trades!$E:$E,"Purchase"),Benchmark!$H$6:$M$200,6,FALSE)),0) +IFERROR(((SUMIFS(Trades!$H:$H,Trades!$B:$B,KH$1,Trades!$C:$C,$B3,Trades!$E:$E,"Sale")/(JW3+SUMIFS(Trades!$H:$H,Trades!$B:$B,KH$1,Trades!$C:$C,$B3,Trades!$E:$E,"Purchase")))*VLOOKUP(SUMIFS(Trades!$A:$A,Trades!$B:$B,KH$1,Trades!$C:$C,$B3,Trades!$E:$E,"Sale"),Benchmark!$H$6:$M$200,4,FALSE)),0), IF(KH3="Purchase",VLOOKUP(SUMIFS(Trades!$A:$A,Trades!$B:$B,KH$1,Trades!$C:$C,$B3,Trades!$E:$E,KH3,Trades!$E:$E,"Purchase"),Benchmark!$H$6:$M$200,6,FALSE), IF(KH3="Sale",VLOOKUP(SUMIFS(Trades!$A:$A,Trades!$B:$B,KH$1,Trades!$C:$C,$B3,Trades!$E:$E,KH3,Trades!$E:$E,"Sale"),Benchmark!$H$6:$M$200,4,FALSE)))) -> 0 | KO3: =IF(KH3="Hold",((JW3-SUMIFS(Trades!$H:$H,Trades!$B:$B,KH$1,Trades!$C:$C,$B3,Trades!$E:$E,"Sale"))*(1+VLOOKUP(KH$1,Benchmark!$H$6:$M$200,4,FALSE))) +IFERROR((SUMIFS(Trades!$H:$H,Trades!$B:$B,KH$1,Trades!$C:$C,$B3,Trades!$E:$E,"Purchase")*(1+VLOOKUP(SUMIFS(Trades!$A:$A,Trades!$B:$B,KH$1,Trades!$C:$C,$B3,Trades!$E:$E,"Purchase"),Benchmark!$H$6:$M$200,4,FALSE))),0), IF(KH3="Purchase",SUMIFS(Trades!$H:$H,Trades!$B:$B,KH$1,Trades!$C:$C,$B3,Trades!$E:$E,"Purchase")*(1+KN3), IF(KH3="Sale",0))) ->  | KP3: =KM3-KN3 ->  | KQ3: =((KL3-KO3)/(KL$47-KO$47))*KP$47 ->  | KR3: =((1+KC3)*(1+KM3))-1 ->  | KS3: 0.0842361968 | KT3: =KI3*(1+KS3) -> 92995.8602 | KU3: =KR3-KS3 ->  | KV3: =((KL3-KT3)/(KL$47-KT$47))*KU$47 ->  | KW3: =IF(OR(KH3="Hold",KH3="Purchase"),"Hold","") -> Hold | KX3: =KI3+SUMIFS(Trades!$H:$H,Trades!$C:$C,$B3,Trades!$E:$E,"Purchase",Trades!$B:$B,KW$1)-SUMIFS(Trades!$H:$H,Trades!$C:$C,$B3,Trades!$E:$E,"Sale",Trades!$B:$B,KW$1) -> 85770.85 | KY3: #N/A N/A | KZ3: =KK3+SUMIFS(Trades!$F:$F,Trades!$C:$C,$B3,Trades!$B:$B,KW$1,Trades!$E:$E,"Purchase")-SUMIFS(Trades!$F:$F,Trades!$C:$C,$B3,Trades!$B:$B,KW$1,Trades!$E:$E,"Sale") -> 605 | LA3: =KY3*KZ3 ->  | LB3: =IF(KW3="Hold",(LA3)/(KL3+SUMIFS(Trades!$H:$H,Trades!$B:$B,KW$1,Trades!$E:$E,"Purchase",Trades!$C:$C,$B3))-1, IF(KW3="Purchase",LA3/SUMIFS(Trades!$H:$H,Trades!$B:$B,KW$1,Trades!$E:$E,"Purchase",Trades!$C:$C,$B3)-1, IF(KW3="Sale",SUMIFS(Trades!$H:$H,Trades!$B:$B,KW$1,Trades!$E:$E,"Sale",Trades!$C:$C,$B3)/KL3-1))) ->  | LC3: =IF(KW3="Hold",IFERROR((((KL3-SUMIFS(Trades!$H:$H,Trades!$B:$B,KW$1,Trades!$C:$C,$B3,Trades!$E:$E,"Sale"))/(KL3+SUMIFS(Trades!$H:$H,Trades!$B:$B,KW$1,Trades!$C:$C,$B3,Trades!$E:$E,"Purchase")))*VLOOKUP(KW$1,Benchmark!$H$6:$M$200,4,FALSE)),0) +IFERROR(((SUMIFS(Trades!$H:$H,Trades!$B:$B,KW$1,Trades!$C:$C,$B3,Trades!$E:$E,"Purchase")/(KL3+SUMIFS(Trades!$H:$H,Trades!$B:$B,KW$1,Trades!$C:$C,$B3,Trades!$E:$E,"Purchase")))*VLOOKUP(SUMIFS(Trades!$A:$A,Trades!$B:$B,KW$1,Trades!$C:$C,$B3,Trades!$E:$E,"Purchase"),Benchmark!$H$6:$M$200,6,FALSE)),0) +IFERROR(((SUMIFS(Trades!$H:$H,Trades!$B:$B,KW$1,Trades!$C:$C,$B3,Trades!$E:$E,"Sale")/(KL3+SUMIFS(Trades!$H:$H,Trades!$B:$B,KW$1,Trades!$C:$C,$B3,Trades!$E:$E,"Purchase")))*VLOOKUP(SUMIFS(Trades!$A:$A,Trades!$B:$B,KW$1,Trades!$C:$C,$B3,Trades!$E:$E,"Sale"),Benchmark!$H$6:$M$200,4,FALSE)),0), IF(KW3="Purchase",VLOOKUP(SUMIFS(Trades!$A:$A,Trades!$B:$B,KW$1,Trades!$C:$C,$B3,Trades!$E:$E,KW3,Trades!$E:$E,"Purchase"),Benchmark!$H$6:$M$200,6,FALSE), IF(KW3="Sale",VLOOKUP(SUMIFS(Trades!$A:$A,Trades!$B:$B,KW$1,Trades!$C:$C,$B3,Trades!$E:$E,KW3,Trades!$E:$E,"Sale"),Benchmark!$H$6:$M$200,4,FALSE)))) -> 0 | LD3: =IF(KW3="Hold",((KL3-SUMIFS(Trades!$H:$H,Trades!$B:$B,KW$1,Trades!$C:$C,$B3,Trades!$E:$E,"Sale"))*(1+VLOOKUP(KW$1,Benchmark!$H$6:$M$200,4,FALSE))) +IFERROR((SUMIFS(Trades!$H:$H,Trades!$B:$B,KW$1,Trades!$C:$C,$B3,Trades!$E:$E,"Purchase")*(1+VLOOKUP(SUMIFS(Trades!$A:$A,Trades!$B:$B,KW$1,Trades!$C:$C,$B3,Trades!$E:$E,"Purchase"),Benchmark!$H$6:$M$200,4,FALSE))),0), IF(KW3="Purchase",SUMIFS(Trades!$H:$H,Trades!$B:$B,KW$1,Trades!$C:$C,$B3,Trades!$E:$E,"Purchase")*(1+LC3), IF(KW3="Sale",0))) ->  | LE3: =LB3-LC3 ->  | LF3: =((LA3-LD3)/(LA$47-LD$47))*LE$47 ->  | LG3: =((1+KR3)*(1+LB3))-1 ->  | LH3: 0.0842361968 | LI3: =KX3*(1+LH3) -> 92995.8602 | LJ3: =LG3-LH3 ->  | LK3: =((LA3-LI3)/(LA$47-LI$47))*LJ$47 ->  | LL3: =IF(OR(KW3="Hold",KW3="Purchase"),"Hold","") -> Hold | LM3: =KX3+SUMIFS(Trades!$H:$H,Trades!$C:$C,$B3,Trades!$E:$E,"Purchase",Trades!$B:$B,LL$1)-SUMIFS(Trades!$H:$H,Trades!$C:$C,$B3,Trades!$E:$E,"Sale",Trades!$B:$B,LL$1) -> 85770.85 | LN3: #N/A N/A | LO3: =KZ3+SUMIFS(Trades!$F:$F,Trades!$C:$C,$B3,Trades!$B:$B,LL$1,Trades!$E:$E,"Purchase")-SUMIFS(Trades!$F:$F,Trades!$C:$C,$B3,Trades!$B:$B,LL$1,Trades!$E:$E,"Sale") -> 605 | LP3: =LN3*LO3 ->  | LQ3: =IF(LL3="Hold",(LP3)/(LA3+SUMIFS(Trades!$H:$H,Trades!$B:$B,LL$1,Trades!$E:$E,"Purchase",Trades!$C:$C,$B3))-1, IF(LL3="Purchase",LP3/SUMIFS(Trades!$H:$H,Trades!$B:$B,LL$1,Trades!$E:$E,"Purchase",Trades!$C:$C,$B3)-1, IF(LL3="Sale",SUMIFS(Trades!$H:$H,Trades!$B:$B,LL$1,Trades!$E:$E,"Sale",Trades!$C:$C,$B3)/LA3-1))) ->  | LR3: =IF(LL3="Hold",IFERROR((((LA3-SUMIFS(Trades!$H:$H,Trades!$B:$B,LL$1,Trades!$C:$C,$B3,Trades!$E:$E,"Sale"))/(LA3+SUMIFS(Trades!$H:$H,Trades!$B:$B,LL$1,Trades!$C:$C,$B3,Trades!$E:$E,"Purchase")))*VLOOKUP(LL$1,Benchmark!$H$6:$M$200,4,FALSE)),0) +IFERROR(((SUMIFS(Trades!$H:$H,Trades!$B:$B,LL$1,Trades!$C:$C,$B3,Trades!$E:$E,"Purchase")/(LA3+SUMIFS(Trades!$H:$H,Trades!$B:$B,LL$1,Trades!$C:$C,$B3,Trades!$E:$E,"Purchase")))*VLOOKUP(SUMIFS(Trades!$A:$A,Trades!$B:$B,LL$1,Trades!$C:$C,$B3,Trades!$E:$E,"Purchase"),Benchmark!$H$6:$M$200,6,FALSE)),0) +IFERROR(((SUMIFS(Trades!$H:$H,Trades!$B:$B,LL$1,Trades!$C:$C,$B3,Trades!$E:$E,"Sale")/(LA3+SUMIFS(Trades!$H:$H,Trades!$B:$B,LL$1,Trades!$C:$C,$B3,Trades!$E:$E,"Purchase")))*VLOOKUP(SUMIFS(Trades!$A:$A,Trades!$B:$B,LL$1,Trades!$C:$C,$B3,Trades!$E:$E,"Sale"),Benchmark!$H$6:$M$200,4,FALSE)),0), IF(LL3="Purchase",VLOOKUP(SUMIFS(Trades!$A:$A,Trades!$B:$B,LL$1,Trades!$C:$C,$B3,Trades!$E:$E,LL3,Trades!$E:$E,"Purchase"),Benchmark!$H$6:$M$200,6,FALSE), IF(LL3="Sale",VLOOKUP(SUMIFS(Trades!$A:$A,Trades!$B:$B,LL$1,Trades!$C:$C,$B3,Trades!$E:$E,LL3,Trades!$E:$E,"Sale"),Benchmark!$H$6:$M$200,4,FALSE)))) -> 0 | LS3: =IF(LL3="Hold",((LA3-SUMIFS(Trades!$H:$H,Trades!$B:$B,LL$1,Trades!$C:$C,$B3,Trades!$E:$E,"Sale"))*(1+VLOOKUP(LL$1,Benchmark!$H$6:$M$200,4,FALSE))) +IFERROR((SUMIFS(Trades!$H:$H,Trades!$B:$B,LL$1,Trades!$C:$C,$B3,Trades!$E:$E,"Purchase")*(1+VLOOKUP(SUMIFS(Trades!$A:$A,Trades!$B:$B,LL$1,Trades!$C:$C,$B3,Trades!$E:$E,"Purchase"),Benchmark!$H$6:$M$200,4,FALSE))),0), IF(LL3="Purchase",SUMIFS(Trades!$H:$H,Trades!$B:$B,LL$1,Trades!$C:$C,$B3,Trades!$E:$E,"Purchase")*(1+LR3), IF(LL3="Sale",0))) ->  | LT3: =LQ3-LR3 ->  | LU3: =((LP3-LS3)/(LP$47-LS$47))*LT$47 ->  | LV3: =((1+LG3)*(1+LQ3))-1 ->  | LW3: =((1+LH3)*(1+LR3))-1 -> 0.0842361968 | LX3: =LM3*(1+LW3) -> 92995.8602 | LY3: =LV3-LW3 ->  | LZ3: =((LP3-LX3)/(LP$47-LX$47))*LY$47 ->  | MA3: =IF(OR(LL3="Hold",LL3="Purchase"),"Hold","") -> Hold | MB3: =LM3+SUMIFS(Trades!$H:$H,Trades!$C:$C,$B3,Trades!$E:$E,"Purchase",Trades!$B:$B,MA$1)-SUMIFS(Trades!$H:$H,Trades!$C:$C,$B3,Trades!$E:$E,"Sale",Trades!$B:$B,MA$1) -> 85770.85 | MC3: #N/A N/A | MD3: =LO3+SUMIFS(Trades!$F:$F,Trades!$C:$C,$B3,Trades!$B:$B,MA$1,Trades!$E:$E,"Purchase")-SUMIFS(Trades!$F:$F,Trades!$C:$C,$B3,Trades!$B:$B,MA$1,Trades!$E:$E,"Sale") -> 605 | ME3: =MC3*MD3 ->  | MF3: =IF(MA3="Hold",(ME3)/(LP3+SUMIFS(Trades!$H:$H,Trades!$B:$B,MA$1,Trades!$E:$E,"Purchase",Trades!$C:$C,$B3))-1, IF(MA3="Purchase",ME3/SUMIFS(Trades!$H:$H,Trades!$B:$B,MA$1,Trades!$E:$E,"Purchase",Trades!$C:$C,$B3)-1, IF(MA3="Sale",SUMIFS(Trades!$H:$H,Trades!$B:$B,MA$1,Trades!$E:$E,"Sale",Trades!$C:$C,$B3)/LP3-1))) ->  | MG3: =IF(MA3="Hold",IFERROR((((LP3-SUMIFS(Trades!$H:$H,Trades!$B:$B,MA$1,Trades!$C:$C,$B3,Trades!$E:$E,"Sale"))/(LP3+SUMIFS(Trades!$H:$H,Trades!$B:$B,MA$1,Trades!$C:$C,$B3,Trades!$E:$E,"Purchase")))*VLOOKUP(MA$1,Benchmark!$H$6:$M$200,4,FALSE)),0) +IFERROR(((SUMIFS(Trades!$H:$H,Trades!$B:$B,MA$1,Trades!$C:$C,$B3,Trades!$E:$E,"Purchase")/(LP3+SUMIFS(Trades!$H:$H,Trades!$B:$B,MA$1,Trades!$C:$C,$B3,Trades!$E:$E,"Purchase")))*VLOOKUP(SUMIFS(Trades!$A:$A,Trades!$B:$B,MA$1,Trades!$C:$C,$B3,Trades!$E:$E,"Purchase"),Benchmark!$H$6:$M$200,6,FALSE)),0) +IFERROR(((SUMIFS(Trades!$H:$H,Trades!$B:$B,MA$1,Trades!$C:$C,$B3,Trades!$E:$E,"Sale")/(LP3+SUMIFS(Trades!$H:$H,Trades!$B:$B,MA$1,Trades!$C:$C,$B3,Trades!$E:$E,"Purchase")))*VLOOKUP(SUMIFS(Trades!$A:$A,Trades!$B:$B,MA$1,Trades!$C:$C,$B3,Trades!$E:$E,"Sale"),Benchmark!$H$6:$M$200,4,FALSE)),0), IF(MA3="Purchase",VLOOKUP(SUMIFS(Trades!$A:$A,Trades!$B:$B,MA$1,Trades!$C:$C,$B3,Trades!$E:$E,MA3,Trades!$E:$E,"Purchase"),Benchmark!$H$6:$M$200,6,FALSE), IF(MA3="Sale",VLOOKUP(SUMIFS(Trades!$A:$A,Trades!$B:$B,MA$1,Trades!$C:$C,$B3,Trades!$E:$E,MA3,Trades!$E:$E,"Sale"),Benchmark!$H$6:$M$200,4,FALSE)))) -> 0 | MH3: =IF(MA3="Hold",((LP3-SUMIFS(Trades!$H:$H,Trades!$B:$B,MA$1,Trades!$C:$C,$B3,Trades!$E:$E,"Sale"))*(1+VLOOKUP(MA$1,Benchmark!$H$6:$M$200,4,FALSE))) +IFERROR((SUMIFS(Trades!$H:$H,Trades!$B:$B,MA$1,Trades!$C:$C,$B3,Trades!$E:$E,"Purchase")*(1+VLOOKUP(SUMIFS(Trades!$A:$A,Trades!$B:$B,MA$1,Trades!$C:$C,$B3,Trades!$E:$E,"Purchase"),Benchmark!$H$6:$M$200,4,FALSE))),0), IF(MA3="Purchase",SUMIFS(Trades!$H:$H,Trades!$B:$B,MA$1,Trades!$C:$C,$B3,Trades!$E:$E,"Purchase")*(1+MG3), IF(MA3="Sale",0))) ->  | MI3: =MF3-MG3 ->  | MJ3: =((ME3-MH3)/(ME$47-MH$47))*MI$47 ->  | MK3: =((1+LV3)*(1+MF3))-1 ->  | ML3: =((1+LW3)*(1+MG3))-1 -> 0.0842361968 | MM3: =MB3*(1+ML3) -> 92995.8602 | MN3: =MK3-ML3 ->  | MO3: =((ME3-MM3)/(ME$47-MM$47))*MN$47 ->  | MP3: =IF(OR(MA3="Hold",MA3="Purchase"),"Hold","") -> Hold | MQ3: =MB3+SUMIFS(Trades!$H:$H,Trades!$C:$C,$B3,Trades!$E:$E,"Purchase",Trades!$B:$B,MP$1)-SUMIFS(Trades!$H:$H,Trades!$C:$C,$B3,Trades!$E:$E,"Sale",Trades!$B:$B,MP$1) -> 85770.85 | MR3: #N/A N/A | MS3: =MD3+SUMIFS(Trades!$F:$F,Trades!$C:$C,$B3,Trades!$B:$B,MP$1,Trades!$E:$E,"Purchase")-SUMIFS(Trades!$F:$F,Trades!$C:$C,$B3,Trades!$B:$B,MP$1,Trades!$E:$E,"Sale") -> 605 | MT3: =MR3*MS3 ->  | MU3: =IF(MP3="Hold",(MT3)/(ME3+SUMIFS(Trades!$H:$H,Trades!$B:$B,MP$1,Trades!$E:$E,"Purchase",Trades!$C:$C,$B3))-1, IF(MP3="Purchase",MT3/SUMIFS(Trades!$H:$H,Trades!$B:$B,MP$1,Trades!$E:$E,"Purchase",Trades!$C:$C,$B3)-1, IF(MP3="Sale",SUMIFS(Trades!$H:$H,Trades!$B:$B,MP$1,Trades!$E:$E,"Sale",Trades!$C:$C,$B3)/ME3-1))) ->  | MV3: =IF(MP3="Hold",IFERROR((((ME3-SUMIFS(Trades!$H:$H,Trades!$B:$B,MP$1,Trades!$C:$C,$B3,Trades!$E:$E,"Sale"))/(ME3+SUMIFS(Trades!$H:$H,Trades!$B:$B,MP$1,Trades!$C:$C,$B3,Trades!$E:$E,"Purchase")))*VLOOKUP(MP$1,Benchmark!$H$6:$M$200,4,FALSE)),0) +IFERROR(((SUMIFS(Trades!$H:$H,Trades!$B:$B,MP$1,Trades!$C:$C,$B3,Trades!$E:$E,"Purchase")/(ME3+SUMIFS(Trades!$H:$H,Trades!$B:$B,MP$1,Trades!$C:$C,$B3,Trades!$E:$E,"Purchase")))*VLOOKUP(SUMIFS(Trades!$A:$A,Trades!$B:$B,MP$1,Trades!$C:$C,$B3,Trades!$E:$E,"Purchase"),Benchmark!$H$6:$M$200,6,FALSE)),0) +IFERROR(((SUMIFS(Trades!$H:$H,Trades!$B:$B,MP$1,Trades!$C:$C,$B3,Trades!$E:$E,"Sale")/(ME3+SUMIFS(Trades!$H:$H,Trades!$B:$B,MP$1,Trades!$C:$C,$B3,Trades!$E:$E,"Purchase")))*VLOOKUP(SUMIFS(Trades!$A:$A,Trades!$B:$B,MP$1,Trades!$C:$C,$B3,Trades!$E:$E,"Sale"),Benchmark!$H$6:$M$200,4,FALSE)),0), IF(MP3="Purchase",VLOOKUP(SUMIFS(Trades!$A:$A,Trades!$B:$B,MP$1,Trades!$C:$C,$B3,Trades!$E:$E,MP3,Trades!$E:$E,"Purchase"),Benchmark!$H$6:$M$200,6,FALSE), IF(MP3="Sale",VLOOKUP(SUMIFS(Trades!$A:$A,Trades!$B:$B,MP$1,Trades!$C:$C,$B3,Trades!$E:$E,MP3,Trades!$E:$E,"Sale"),Benchmark!$H$6:$M$200,4,FALSE)))) -> 0 | MW3: =IF(MP3="Hold",((ME3-SUMIFS(Trades!$H:$H,Trades!$B:$B,MP$1,Trades!$C:$C,$B3,Trades!$E:$E,"Sale"))*(1+VLOOKUP(MP$1,Benchmark!$H$6:$M$200,4,FALSE))) +IFERROR((SUMIFS(Trades!$H:$H,Trades!$B:$B,MP$1,Trades!$C:$C,$B3,Trades!$E:$E,"Purchase")*(1+VLOOKUP(SUMIFS(Trades!$A:$A,Trades!$B:$B,MP$1,Trades!$C:$C,$B3,Trades!$E:$E,"Purchase"),Benchmark!$H$6:$M$200,4,FALSE))),0), IF(MP3="Purchase",SUMIFS(Trades!$H:$H,Trades!$B:$B,MP$1,Trades!$C:$C,$B3,Trades!$E:$E,"Purchase")*(1+MV3), IF(MP3="Sale",0))) ->  | MX3: =MU3-MV3 ->  | MY3: =((MT3-MW3)/(MT$47-MW$47))*MX$47 ->  | MZ3: =((1+MK3)*(1+MU3))-1 ->  | NA3: =((1+ML3)*(1+MV3))-1 -> 0.0842361968 | NB3: =MQ3*(1+NA3) -> 92995.8602 | NC3: =MZ3-NA3 ->  | ND3: =((MT3-NB3)/(MT$47-NB$47))*NC$47 ->  | NE3: =IF(OR(MP3="Hold",MP3="Purchase"),"Hold","") -> Hold | NF3: =MQ3+SUMIFS(Trades!$H:$H,Trades!$C:$C,$B3,Trades!$E:$E,"Purchase",Trades!$B:$B,NE$1)-SUMIFS(Trades!$H:$H,Trades!$C:$C,$B3,Trades!$E:$E,"Sale",Trades!$B:$B,NE$1) -> 85770.85 | NG3: #N/A N/A | NH3: =MS3+SUMIFS(Trades!$F:$F,Trades!$C:$C,$B3,Trades!$B:$B,NE$1,Trades!$E:$E,"Purchase")-SUMIFS(Trades!$F:$F,Trades!$C:$C,$B3,Trades!$B:$B,NE$1,Trades!$E:$E,"Sale") -> 605 | NI3: =NG3*NH3 ->  | NJ3: =IF(NE3="Hold",(NI3)/(MT3+SUMIFS(Trades!$H:$H,Trades!$B:$B,NE$1,Trades!$E:$E,"Purchase",Trades!$C:$C,$B3))-1, IF(NE3="Purchase",NI3/SUMIFS(Trades!$H:$H,Trades!$B:$B,NE$1,Trades!$E:$E,"Purchase",Trades!$C:$C,$B3)-1, IF(NE3="Sale",SUMIFS(Trades!$H:$H,Trades!$B:$B,NE$1,Trades!$E:$E,"Sale",Trades!$C:$C,$B3)/MT3-1))) ->  | NK3: =IF(NE3="Hold",IFERROR((((MT3-SUMIFS(Trades!$H:$H,Trades!$B:$B,NE$1,Trades!$C:$C,$B3,Trades!$E:$E,"Sale"))/(MT3+SUMIFS(Trades!$H:$H,Trades!$B:$B,NE$1,Trades!$C:$C,$B3,Trades!$E:$E,"Purchase")))*VLOOKUP(NE$1,Benchmark!$H$6:$M$200,4,FALSE)),0) +IFERROR(((SUMIFS(Trades!$H:$H,Trades!$B:$B,NE$1,Trades!$C:$C,$B3,Trades!$E:$E,"Purchase")/(MT3+SUMIFS(Trades!$H:$H,Trades!$B:$B,NE$1,Trades!$C:$C,$B3,Trades!$E:$E,"Purchase")))*VLOOKUP(SUMIFS(Trades!$A:$A,Trades!$B:$B,NE$1,Trades!$C:$C,$B3,Trades!$E:$E,"Purchase"),Benchmark!$H$6:$M$200,6,FALSE)),0) +IFERROR(((SUMIFS(Trades!$H:$H,Trades!$B:$B,NE$1,Trades!$C:$C,$B3,Trades!$E:$E,"Sale")/(MT3+SUMIFS(Trades!$H:$H,Trades!$B:$B,NE$1,Trades!$C:$C,$B3,Trades!$E:$E,"Purchase")))*VLOOKUP(SUMIFS(Trades!$A:$A,Trades!$B:$B,NE$1,Trades!$C:$C,$B3,Trades!$E:$E,"Sale"),Benchmark!$H$6:$M$200,4,FALSE)),0), IF(NE3="Purchase",VLOOKUP(SUMIFS(Trades!$A:$A,Trades!$B:$B,NE$1,Trades!$C:$C,$B3,Trades!$E:$E,NE3,Trades!$E:$E,"Purchase"),Benchmark!$H$6:$M$200,6,FALSE), IF(NE3="Sale",VLOOKUP(SUMIFS(Trades!$A:$A,Trades!$B:$B,NE$1,Trades!$C:$C,$B3,Trades!$E:$E,NE3,Trades!$E:$E,"Sale"),Benchmark!$H$6:$M$200,4,FALSE)))) -> 0 | NL3: =IF(NE3="Hold",((MT3-SUMIFS(Trades!$H:$H,Trades!$B:$B,NE$1,Trades!$C:$C,$B3,Trades!$E:$E,"Sale"))*(1+VLOOKUP(NE$1,Benchmark!$H$6:$M$200,4,FALSE))) +IFERROR((SUMIFS(Trades!$H:$H,Trades!$B:$B,NE$1,Trades!$C:$C,$B3,Trades!$E:$E,"Purchase")*(1+VLOOKUP(SUMIFS(Trades!$A:$A,Trades!$B:$B,NE$1,Trades!$C:$C,$B3,Trades!$E:$E,"Purchase"),Benchmark!$H$6:$M$200,4,FALSE))),0), IF(NE3="Purchase",SUMIFS(Trades!$H:$H,Trades!$B:$B,NE$1,Trades!$C:$C,$B3,Trades!$E:$E,"Purchase")*(1+NK3), IF(NE3="Sale",0))) ->  | NM3: =NJ3-NK3 ->  | NN3: =((NI3-NL3)/(NI$47-NL$47))*NM$47 ->  | NO3: =((1+MZ3)*(1+NJ3))-1 ->  | NP3: =((1+NA3)*(1+NK3))-1 -> 0.0842361968 | NQ3: =NF3*(1+NP3) -> 92995.8602 | NR3: =NO3-NP3 ->  | NS3: =((NI3-NQ3)/(NI$47-NQ$47))*NR$47 ->  | NT3: =IF(OR(NE3="Hold",NE3="Purchase"),"Hold","") -> Hold | NU3: =NF3+SUMIFS(Trades!$H:$H,Trades!$C:$C,$B3,Trades!$E:$E,"Purchase",Trades!$B:$B,NT$1)-SUMIFS(Trades!$H:$H,Trades!$C:$C,$B3,Trades!$E:$E,"Sale",Trades!$B:$B,NT$1) -> 85770.85 | NV3: #N/A N/A | NW3: =NH3+SUMIFS(Trades!$F:$F,Trades!$C:$C,$B3,Trades!$B:$B,NT$1,Trades!$E:$E,"Purchase")-SUMIFS(Trades!$F:$F,Trades!$C:$C,$B3,Trades!$B:$B,NT$1,Trades!$E:$E,"Sale") -> 605 | NX3: =NV3*NW3 ->  | NY3: =IF(NT3="Hold",(NX3)/(NI3+SUMIFS(Trades!$H:$H,Trades!$B:$B,NT$1,Trades!$E:$E,"Purchase",Trades!$C:$C,$B3))-1, IF(NT3="Purchase",NX3/SUMIFS(Trades!$H:$H,Trades!$B:$B,NT$1,Trades!$E:$E,"Purchase",Trades!$C:$C,$B3)-1, IF(NT3="Sale",SUMIFS(Trades!$H:$H,Trades!$B:$B,NT$1,Trades!$E:$E,"Sale",Trades!$C:$C,$B3)/NI3-1))) ->  | NZ3: =IF(NT3="Hold",IFERROR((((NI3-SUMIFS(Trades!$H:$H,Trades!$B:$B,NT$1,Trades!$C:$C,$B3,Trades!$E:$E,"Sale"))/(NI3+SUMIFS(Trades!$H:$H,Trades!$B:$B,NT$1,Trades!$C:$C,$B3,Trades!$E:$E,"Purchase")))*VLOOKUP(NT$1,Benchmark!$H$6:$M$200,4,FALSE)),0) +IFERROR(((SUMIFS(Trades!$H:$H,Trades!$B:$B,NT$1,Trades!$C:$C,$B3,Trades!$E:$E,"Purchase")/(NI3+SUMIFS(Trades!$H:$H,Trades!$B:$B,NT$1,Trades!$C:$C,$B3,Trades!$E:$E,"Purchase")))*VLOOKUP(SUMIFS(Trades!$A:$A,Trades!$B:$B,NT$1,Trades!$C:$C,$B3,Trades!$E:$E,"Purchase"),Benchmark!$H$6:$M$200,6,FALSE)),0) +IFERROR(((SUMIFS(Trades!$H:$H,Trades!$B:$B,NT$1,Trades!$C:$C,$B3,Trades!$E:$E,"Sale")/(NI3+SUMIFS(Trades!$H:$H,Trades!$B:$B,NT$1,Trades!$C:$C,$B3,Trades!$E:$E,"Purchase")))*VLOOKUP(SUMIFS(Trades!$A:$A,Trades!$B:$B,NT$1,Trades!$C:$C,$B3,Trades!$E:$E,"Sale"),Benchmark!$H$6:$M$200,4,FALSE)),0), IF(NT3="Purchase",VLOOKUP(SUMIFS(Trades!$A:$A,Trades!$B:$B,NT$1,Trades!$C:$C,$B3,Trades!$E:$E,NT3,Trades!$E:$E,"Purchase"),Benchmark!$H$6:$M$200,6,FALSE), IF(NT3="Sale",VLOOKUP(SUMIFS(Trades!$A:$A,Trades!$B:$B,NT$1,Trades!$C:$C,$B3,Trades!$E:$E,NT3,Trades!$E:$E,"Sale"),Benchmark!$H$6:$M$200,4,FALSE)))) -> 0 | OA3: =IF(NT3="Hold",((NI3-SUMIFS(Trades!$H:$H,Trades!$B:$B,NT$1,Trades!$C:$C,$B3,Trades!$E:$E,"Sale"))*(1+VLOOKUP(NT$1,Benchmark!$H$6:$M$200,4,FALSE))) +IFERROR((SUMIFS(Trades!$H:$H,Trades!$B:$B,NT$1,Trades!$C:$C,$B3,Trades!$E:$E,"Purchase")*(1+VLOOKUP(SUMIFS(Trades!$A:$A,Trades!$B:$B,NT$1,Trades!$C:$C,$B3,Trades!$E:$E,"Purchase"),Benchmark!$H$6:$M$200,4,FALSE))),0), IF(NT3="Purchase",SUMIFS(Trades!$H:$H,Trades!$B:$B,NT$1,Trades!$C:$C,$B3,Trades!$E:$E,"Purchase")*(1+NZ3), IF(NT3="Sale",0))) ->  | OB3: =NY3-NZ3 ->  | OC3: =((NX3-OA3)/(NX$47-OA$47))*OB$47 ->  | OD3: =((1+NO3)*(1+NY3))-1 ->  | OE3: =((1+NP3)*(1+NZ3))-1 -> 0.0842361968 | OF3: =NU3*(1+OE3) -> 92995.8602 | OG3: =OD3-OE3 ->  | OH3: =((NX3-OF3)/(NX$47-OF$47))*OG$47 ->  | OI3: =IF(OR(NT3="Hold",NT3="Purchase"),"Hold","") -> Hold | OJ3: =NU3+SUMIFS(Trades!$H:$H,Trades!$C:$C,$B3,Trades!$E:$E,"Purchase",Trades!$B:$B,OI$1)-SUMIFS(Trades!$H:$H,Trades!$C:$C,$B3,Trades!$E:$E,"Sale",Trades!$B:$B,OI$1) -> 85770.85 | OK3: #N/A N/A | OL3: =NW3+SUMIFS(Trades!$F:$F,Trades!$C:$C,$B3,Trades!$B:$B,OI$1,Trades!$E:$E,"Purchase")-SUMIFS(Trades!$F:$F,Trades!$C:$C,$B3,Trades!$B:$B,OI$1,Trades!$E:$E,"Sale") -> 605 | OM3: =OK3*OL3 ->  | ON3: =IF(OI3="Hold",(OM3)/(NX3+SUMIFS(Trades!$H:$H,Trades!$B:$B,OI$1,Trades!$E:$E,"Purchase",Trades!$C:$C,$B3))-1, IF(OI3="Purchase",OM3/SUMIFS(Trades!$H:$H,Trades!$B:$B,OI$1,Trades!$E:$E,"Purchase",Trades!$C:$C,$B3)-1, IF(OI3="Sale",SUMIFS(Trades!$H:$H,Trades!$B:$B,OI$1,Trades!$E:$E,"Sale",Trades!$C:$C,$B3)/NX3-1))) ->  | OO3: =IF(OI3="Hold",IFERROR((((NX3-SUMIFS(Trades!$H:$H,Trades!$B:$B,OI$1,Trades!$C:$C,$B3,Trades!$E:$E,"Sale"))/(NX3+SUMIFS(Trades!$H:$H,Trades!$B:$B,OI$1,Trades!$C:$C,$B3,Trades!$E:$E,"Purchase")))*VLOOKUP(OI$1,Benchmark!$H$6:$M$200,4,FALSE)),0) +IFERROR(((SUMIFS(Trades!$H:$H,Trades!$B:$B,OI$1,Trades!$C:$C,$B3,Trades!$E:$E,"Purchase")/(NX3+SUMIFS(Trades!$H:$H,Trades!$B:$B,OI$1,Trades!$C:$C,$B3,Trades!$E:$E,"Purchase")))*VLOOKUP(SUMIFS(Trades!$A:$A,Trades!$B:$B,OI$1,Trades!$C:$C,$B3,Trades!$E:$E,"Purchase"),Benchmark!$H$6:$M$200,6,FALSE)),0) +IFERROR(((SUMIFS(Trades!$H:$H,Trades!$B:$B,OI$1,Trades!$C:$C,$B3,Trades!$E:$E,"Sale")/(NX3+SUMIFS(Trades!$H:$H,Trades!$B:$B,OI$1,Trades!$C:$C,$B3,Trades!$E:$E,"Purchase")))*VLOOKUP(SUMIFS(Trades!$A:$A,Trades!$B:$B,OI$1,Trades!$C:$C,$B3,Trades!$E:$E,"Sale"),Benchmark!$H$6:$M$200,4,FALSE)),0), IF(OI3="Purchase",VLOOKUP(SUMIFS(Trades!$A:$A,Trades!$B:$B,OI$1,Trades!$C:$C,$B3,Trades!$E:$E,OI3,Trades!$E:$E,"Purchase"),Benchmark!$H$6:$M$200,6,FALSE), IF(OI3="Sale",VLOOKUP(SUMIFS(Trades!$A:$A,Trades!$B:$B,OI$1,Trades!$C:$C,$B3,Trades!$E:$E,OI3,Trades!$E:$E,"Sale"),Benchmark!$H$6:$M$200,4,FALSE)))) -> 0 | OP3: =IF(OI3="Hold",((NX3-SUMIFS(Trades!$H:$H,Trades!$B:$B,OI$1,Trades!$C:$C,$B3,Trades!$E:$E,"Sale"))*(1+VLOOKUP(OI$1,Benchmark!$H$6:$M$200,4,FALSE))) +IFERROR((SUMIFS(Trades!$H:$H,Trades!$B:$B,OI$1,Trades!$C:$C,$B3,Trades!$E:$E,"Purchase")*(1+VLOOKUP(SUMIFS(Trades!$A:$A,Trades!$B:$B,OI$1,Trades!$C:$C,$B3,Trades!$E:$E,"Purchase"),Benchmark!$H$6:$M$200,4,FALSE))),0), IF(OI3="Purchase",SUMIFS(Trades!$H:$H,Trades!$B:$B,OI$1,Trades!$C:$C,$B3,Trades!$E:$E,"Purchase")*(1+OO3), IF(OI3="Sale",0))) ->  | OQ3: =ON3-OO3 ->  | OR3: =((OM3-OP3)/(OM$47-OP$47))*OQ$47 ->  | OS3: =((1+OD3)*(1+ON3))-1 ->  | OT3: =((1+OE3)*(1+OO3))-1 -> 0.0842361968 | OU3: =OJ3*(1+OT3) -> 92995.8602 | OV3: =OS3-OT3 ->  | OW3: =((OM3-OU3)/(OM$47-OU$47))*OV$47 -> 
A4: Activision Blizzard Inc | B4: ATVI | C4: Information Technology | D4: Software | E4: Large Growth | AM4: Purchase | AN4: =Y4+SUMIFS(Trades!$H:$H,Trades!$C:$C,$B4,Trades!$E:$E,"Purchase",Trades!$B:$B,AM$1)-SUMIFS(Trades!$H:$H,Trades!$C:$C,$B4,Trades!$E:$E,"Sale",Trades!$B:$B,AM$1) -> 65666.445 | AO4: 34.17 | AP4: =AA4+SUMIFS(Trades!$F:$F,Trades!$C:$C,$B4,Trades!$B:$B,AM$1,Trades!$E:$E,"Purchase")-SUMIFS(Trades!$F:$F,Trades!$C:$C,$B4,Trades!$B:$B,AM$1,Trades!$E:$E,"Sale") -> 1950 | AQ4: =AO4*AP4 -> 66631.5 | AR4: =IF(AM4="Hold",(AQ4)/(AB4+SUMIFS(Trades!$H:$H,Trades!$B:$B,AM$1,Trades!$E:$E,"Purchase",Trades!$C:$C,$B4))-1, IF(AM4="Purchase",AQ4/SUMIFS(Trades!$H:$H,Trades!$B:$B,AM$1,Trades!$E:$E,"Purchase",Trades!$C:$C,$B4)-1, IF(AM4="Sale",SUMIFS(Trades!$H:$H,Trades!$B:$B,AM$1,Trades!$E:$E,"Sale",Trades!$C:$C,$B4)/AB4-1))) -> 0.01469631864 | AS4: =IF(AM4="Hold",IFERROR((((AB4-SUMIFS(Trades!$H:$H,Trades!$B:$B,AM$1,Trades!$C:$C,$B4,Trades!$E:$E,"Sale"))/(AB4+SUMIFS(Trades!$H:$H,Trades!$B:$B,AM$1,Trades!$C:$C,$B4,Trades!$E:$E,"Purchase")))*VLOOKUP(AM$1,Benchmark!$H$6:$M$200,4,FALSE)),0) +IFERROR(((SUMIFS(Trades!$H:$H,Trades!$B:$B,AM$1,Trades!$C:$C,$B4,Trades!$E:$E,"Purchase")/(AB4+SUMIFS(Trades!$H:$H,Trades!$B:$B,AM$1,Trades!$C:$C,$B4,Trades!$E:$E,"Purchase")))*VLOOKUP(SUMIFS(Trades!$A:$A,Trades!$B:$B,AM$1,Trades!$C:$C,$B4,Trades!$E:$E,"Purchase"),Benchmark!$H$6:$M$200,6,FALSE)),0) +IFERROR(((SUMIFS(Trades!$H:$H,Trades!$B:$B,AM$1,Trades!$C:$C,$B4,Trades!$E:$E,"Sale")/(AB4+SUMIFS(Trades!$H:$H,Trades!$B:$B,AM$1,Trades!$C:$C,$B4,Trades!$E:$E,"Purchase")))*VLOOKUP(SUMIFS(Trades!$A:$A,Trades!$B:$B,AM$1,Trades!$C:$C,$B4,Trades!$E:$E,"Sale"),Benchmark!$H$6:$M$200,4,FALSE)),0), IF(AM4="Purchase",VLOOKUP(SUMIFS(Trades!$A:$A,Trades!$B:$B,AM$1,Trades!$C:$C,$B4,Trades!$E:$E,AM4,Trades!$E:$E,"Purchase"),Benchmark!$H$6:$M$200,6,FALSE), IF(AM4="Sale",VLOOKUP(SUMIFS(Trades!$A:$A,Trades!$B:$B,AM$1,Trades!$C:$C,$B4,Trades!$E:$E,AM4,Trades!$E:$E,"Sale"),Benchmark!$H$6:$M$200,4,FALSE)))) -> 0.003577310887 | AT4: =IF(AM4="Hold",((AB4-SUMIFS(Trades!$H:$H,Trades!$B:$B,AM$1,Trades!$C:$C,$B4,Trades!$E:$E,"Sale"))*(1+VLOOKUP(AM$1,Benchmark!$H$6:$M$200,4,FALSE))) +IFERROR((SUMIFS(Trades!$H:$H,Trades!$B:$B,AM$1,Trades!$C:$C,$B4,Trades!$E:$E,"Purchase")*(1+VLOOKUP(SUMIFS(Trades!$A:$A,Trades!$B:$B,AM$1,Trades!$C:$C,$B4,Trades!$E:$E,"Purchase"),Benchmark!$H$6:$M$200,4,FALSE))),0), IF(AM4="Purchase",SUMIFS(Trades!$H:$H,Trades!$B:$B,AM$1,Trades!$C:$C,$B4,Trades!$E:$E,"Purchase")*(1+AS4), IF(AM4="Sale",0))) -> 65901.35429 | AU4: =AR4-AS4 -> 0.01111900776 | AV4: =((AQ4-AT4)/(AQ$47-AT$47))*AU$47 -> 0.0002740962632 | AW4: 0.01469631864 | AX4: 0.003577310887 | AY4: =AN4*(1+AX4) -> 65901.35429 | AZ4: =AW4-AX4 -> 0.01111900776 | BA4: =((AQ4-AY4)/(AQ$47-AY$47))*AZ$47 -> 0.000249028677 | BB4: Hold | BC4: =AN4+SUMIFS(Trades!$H:$H,Trades!$C:$C,$B4,Trades!$E:$E,"Purchase",Trades!$B:$B,BB$1)-SUMIFS(Trades!$H:$H,Trades!$C:$C,$B4,Trades!$E:$E,"Sale",Trades!$B:$B,BB$1) -> 65666.445 | BD4: 34.9 | BE4: =AP4+SUMIFS(Trades!$F:$F,Trades!$C:$C,$B4,Trades!$B:$B,BB$1,Trades!$E:$E,"Purchase")-SUMIFS(Trades!$F:$F,Trades!$C:$C,$B4,Trades!$B:$B,BB$1,Trades!$E:$E,"Sale") -> 1950 | BF4: =BD4*BE4 -> 68055 | BG4: =IF(BB4="Hold",(BF4)/(AQ4+SUMIFS(Trades!$H:$H,Trades!$B:$B,BB$1,Trades!$E:$E,"Purchase",Trades!$C:$C,$B4))-1, IF(BB4="Purchase",BF4/SUMIFS(Trades!$H:$H,Trades!$B:$B,BB$1,Trades!$E:$E,"Purchase",Trades!$C:$C,$B4)-1, IF(BB4="Sale",SUMIFS(Trades!$H:$H,Trades!$B:$B,BB$1,Trades!$E:$E,"Sale",Trades!$C:$C,$B4)/AQ4-1))) -> 0.02136376939 | BH4: =IF(BB4="Hold",IFERROR((((AQ4-SUMIFS(Trades!$H:$H,Trades!$B:$B,BB$1,Trades!$C:$C,$B4,Trades!$E:$E,"Sale"))/(AQ4+SUMIFS(Trades!$H:$H,Trades!$B:$B,BB$1,Trades!$C:$C,$B4,Trades!$E:$E,"Purchase")))*VLOOKUP(BB$1,Benchmark!$H$6:$M$200,4,FALSE)),0) +IFERROR(((SUMIFS(Trades!$H:$H,Trades!$B:$B,BB$1,Trades!$C:$C,$B4,Trades!$E:$E,"Purchase")/(AQ4+SUMIFS(Trades!$H:$H,Trades!$B:$B,BB$1,Trades!$C:$C,$B4,Trades!$E:$E,"Purchase")))*VLOOKUP(SUMIFS(Trades!$A:$A,Trades!$B:$B,BB$1,Trades!$C:$C,$B4,Trades!$E:$E,"Purchase"),Benchmark!$H$6:$M$200,6,FALSE)),0) +IFERROR(((SUMIFS(Trades!$H:$H,Trades!$B:$B,BB$1,Trades!$C:$C,$B4,Trades!$E:$E,"Sale")/(AQ4+SUMIFS(Trades!$H:$H,Trades!$B:$B,BB$1,Trades!$C:$C,$B4,Trades!$E:$E,"Purchase")))*VLOOKUP(SUMIFS(Trades!$A:$A,Trades!$B:$B,BB$1,Trades!$C:$C,$B4,Trades!$E:$E,"Sale"),Benchmark!$H$6:$M$200,4,FALSE)),0), IF(BB4="Purchase",VLOOKUP(SUMIFS(Trades!$A:$A,Trades!$B:$B,BB$1,Trades!$C:$C,$B4,Trades!$E:$E,BB4,Trades!$E:$E,"Purchase"),Benchmark!$H$6:$M$200,6,FALSE), IF(BB4="Sale",VLOOKUP(SUMIFS(Trades!$A:$A,Trades!$B:$B,BB$1,Trades!$C:$C,$B4,Trades!$E:$E,BB4,Trades!$E:$E,"Sale"),Benchmark!$H$6:$M$200,4,FALSE)))) -> 0.01737368608 | BI4: =IF(BB4="Hold",((AQ4-SUMIFS(Trades!$H:$H,Trades!$B:$B,BB$1,Trades!$C:$C,$B4,Trades!$E:$E,"Sale"))*(1+VLOOKUP(BB$1,Benchmark!$H$6:$M$200,4,FALSE))) +IFERROR((SUMIFS(Trades!$H:$H,Trades!$B:$B,BB$1,Trades!$C:$C,$B4,Trades!$E:$E,"Purchase")*(1+VLOOKUP(SUMIFS(Trades!$A:$A,Trades!$B:$B,BB$1,Trades!$C:$C,$B4,Trades!$E:$E,"Purchase"),Benchmark!$H$6:$M$200,4,FALSE))),0), IF(BB4="Purchase",SUMIFS(Trades!$H:$H,Trades!$B:$B,BB$1,Trades!$C:$C,$B4,Trades!$E:$E,"Purchase")*(1+BH4), IF(BB4="Sale",0))) -> 67789.13476 | BJ4: =BG4-BH4 -> 0.00399008331 | BK4: =((BF4-BI4)/(BF$47-BI$47))*BJ$47 -> 9.785504716e-05 | BL4: 0.0363740568 | BM4: 0.02101314804 | BN4: =BC4*(1+BM4) -> 67046.30373 | BO4: =BL4-BM4 -> 0.01536090875 | BP4: =((BF4-BN4)/(BF$47-BN$47))*BO$47 -> 0.0003784428114 | BQ4: Hold | BR4: =BC4+SUMIFS(Trades!$H:$H,Trades!$C:$C,$B4,Trades!$E:$E,"Purchase",Trades!$B:$B,BQ$1)-SUMIFS(Trades!$H:$H,Trades!$C:$C,$B4,Trades!$E:$E,"Sale",Trades!$B:$B,BQ$1) -> 65666.445 | BS4: 34.76 | BT4: =BE4+SUMIFS(Trades!$F:$F,Trades!$C:$C,$B4,Trades!$B:$B,BQ$1,Trades!$E:$E,"Purchase")-SUMIFS(Trades!$F:$F,Trades!$C:$C,$B4,Trades!$B:$B,BQ$1,Trades!$E:$E,"Sale") -> 1950 | BU4: =BS4*BT4 -> 67782 | BV4: =IF(BQ4="Hold",(BU4)/(BF4+SUMIFS(Trades!$H:$H,Trades!$B:$B,BQ$1,Trades!$E:$E,"Purchase",Trades!$C:$C,$B4))-1, IF(BQ4="Purchase",BU4/SUMIFS(Trades!$H:$H,Trades!$B:$B,BQ$1,Trades!$E:$E,"Purchase",Trades!$C:$C,$B4)-1, IF(BQ4="Sale",SUMIFS(Trades!$H:$H,Trades!$B:$B,BQ$1,Trades!$E:$E,"Sale",Trades!$C:$C,$B4)/BF4-1))) -> -0.004011461318 | BW4: =IF(BQ4="Hold",IFERROR((((BF4-SUMIFS(Trades!$H:$H,Trades!$B:$B,BQ$1,Trades!$C:$C,$B4,Trades!$E:$E,"Sale"))/(BF4+SUMIFS(Trades!$H:$H,Trades!$B:$B,BQ$1,Trades!$C:$C,$B4,Trades!$E:$E,"Purchase")))*VLOOKUP(BQ$1,Benchmark!$H$6:$M$200,4,FALSE)),0) +IFERROR(((SUMIFS(Trades!$H:$H,Trades!$B:$B,BQ$1,Trades!$C:$C,$B4,Trades!$E:$E,"Purchase")/(BF4+SUMIFS(Trades!$H:$H,Trades!$B:$B,BQ$1,Trades!$C:$C,$B4,Trades!$E:$E,"Purchase")))*VLOOKUP(SUMIFS(Trades!$A:$A,Trades!$B:$B,BQ$1,Trades!$C:$C,$B4,Trades!$E:$E,"Purchase"),Benchmark!$H$6:$M$200,6,FALSE)),0) +IFERROR(((SUMIFS(Trades!$H:$H,Trades!$B:$B,BQ$1,Trades!$C:$C,$B4,Trades!$E:$E,"Sale")/(BF4+SUMIFS(Trades!$H:$H,Trades!$B:$B,BQ$1,Trades!$C:$C,$B4,Trades!$E:$E,"Purchase")))*VLOOKUP(SUMIFS(Trades!$A:$A,Trades!$B:$B,BQ$1,Trades!$C:$C,$B4,Trades!$E:$E,"Sale"),Benchmark!$H$6:$M$200,4,FALSE)),0), IF(BQ4="Purchase",VLOOKUP(SUMIFS(Trades!$A:$A,Trades!$B:$B,BQ$1,Trades!$C:$C,$B4,Trades!$E:$E,BQ4,Trades!$E:$E,"Purchase"),Benchmark!$H$6:$M$200,6,FALSE), IF(BQ4="Sale",VLOOKUP(SUMIFS(Trades!$A:$A,Trades!$B:$B,BQ$1,Trades!$C:$C,$B4,Trades!$E:$E,BQ4,Trades!$E:$E,"Sale"),Benchmark!$H$6:$M$200,4,FALSE)))) -> 0.001113382869 | BX4: =IF(BQ4="Hold",((BF4-SUMIFS(Trades!$H:$H,Trades!$B:$B,BQ$1,Trades!$C:$C,$B4,Trades!$E:$E,"Sale"))*(1+VLOOKUP(BQ$1,Benchmark!$H$6:$M$200,4,FALSE))) +IFERROR((SUMIFS(Trades!$H:$H,Trades!$B:$B,BQ$1,Trades!$C:$C,$B4,Trades!$E:$E,"Purchase")*(1+VLOOKUP(SUMIFS(Trades!$A:$A,Trades!$B:$B,BQ$1,Trades!$C:$C,$B4,Trades!$E:$E,"Purchase"),Benchmark!$H$6:$M$200,4,FALSE))),0), IF(BQ4="Purchase",SUMIFS(Trades!$H:$H,Trades!$B:$B,BQ$1,Trades!$C:$C,$B4,Trades!$E:$E,"Purchase")*(1+BW4), IF(BQ4="Sale",0))) -> 68130.77127 | BY4: =BV4-BW4 -> -0.005124844187 | BZ4: =((BU4-BX4)/(BU$47-BX$47))*BY$47 -> -0.0001300460365 | CA4: 0.03221668236 | CB4: 0.02214992659 | CC4: =BR4*(1+CB4) -> 67120.95194 | CD4: =CA4-CB4 -> 0.01006675577 | CE4: =((BU4-CC4)/(BU$47-CC$47))*CD$47 -> 0.0002161323423 | CF4: Hold | CG4: =BR4+SUMIFS(Trades!$H:$H,Trades!$C:$C,$B4,Trades!$E:$E,"Purchase",Trades!$B:$B,CF$1)-SUMIFS(Trades!$H:$H,Trades!$C:$C,$B4,Trades!$E:$E,"Sale",Trades!$B:$B,CF$1) -> 65666.445 | CH4: 35 | CI4: =BT4+SUMIFS(Trades!$F:$F,Trades!$C:$C,$B4,Trades!$B:$B,CF$1,Trades!$E:$E,"Purchase")-SUMIFS(Trades!$F:$F,Trades!$C:$C,$B4,Trades!$B:$B,CF$1,Trades!$E:$E,"Sale") -> 1950 | CJ4: 68250 | CK4: =IF(CF4="Hold",(CJ4)/(BU4+SUMIFS(Trades!$H:$H,Trades!$B:$B,CF$1,Trades!$E:$E,"Purchase",Trades!$C:$C,$B4))-1, IF(CF4="Purchase",CJ4/SUMIFS(Trades!$H:$H,Trades!$B:$B,CF$1,Trades!$E:$E,"Purchase",Trades!$C:$C,$B4)-1, IF(CF4="Sale",SUMIFS(Trades!$H:$H,Trades!$B:$B,CF$1,Trades!$E:$E,"Sale",Trades!$C:$C,$B4)/BU4-1))) -> 0.006904487917 | CL4: =IF(CF4="Hold",IFERROR((((BU4-SUMIFS(Trades!$H:$H,Trades!$B:$B,CF$1,Trades!$C:$C,$B4,Trades!$E:$E,"Sale"))/(BU4+SUMIFS(Trades!$H:$H,Trades!$B:$B,CF$1,Trades!$C:$C,$B4,Trades!$E:$E,"Purchase")))*VLOOKUP(CF$1,Benchmark!$H$6:$M$200,4,FALSE)),0) +IFERROR(((SUMIFS(Trades!$H:$H,Trades!$B:$B,CF$1,Trades!$C:$C,$B4,Trades!$E:$E,"Purchase")/(BU4+SUMIFS(Trades!$H:$H,Trades!$B:$B,CF$1,Trades!$C:$C,$B4,Trades!$E:$E,"Purchase")))*VLOOKUP(SUMIFS(Trades!$A:$A,Trades!$B:$B,CF$1,Trades!$C:$C,$B4,Trades!$E:$E,"Purchase"),Benchmark!$H$6:$M$200,6,FALSE)),0) +IFERROR(((SUMIFS(Trades!$H:$H,Trades!$B:$B,CF$1,Trades!$C:$C,$B4,Trades!$E:$E,"Sale")/(BU4+SUMIFS(Trades!$H:$H,Trades!$B:$B,CF$1,Trades!$C:$C,$B4,Trades!$E:$E,"Purchase")))*VLOOKUP(SUMIFS(Trades!$A:$A,Trades!$B:$B,CF$1,Trades!$C:$C,$B4,Trades!$E:$E,"Sale"),Benchmark!$H$6:$M$200,4,FALSE)),0), IF(CF4="Purchase",VLOOKUP(SUMIFS(Trades!$A:$A,Trades!$B:$B,CF$1,Trades!$C:$C,$B4,Trades!$E:$E,CF4,Trades!$E:$E,"Purchase"),Benchmark!$H$6:$M$200,6,FALSE), IF(CF4="Sale",VLOOKUP(SUMIFS(Trades!$A:$A,Trades!$B:$B,CF$1,Trades!$C:$C,$B4,Trades!$E:$E,CF4,Trades!$E:$E,"Sale"),Benchmark!$H$6:$M$200,4,FALSE)))) -> 0.01477988346 | CM4: =IF(CF4="Hold",((BU4-SUMIFS(Trades!$H:$H,Trades!$B:$B,CF$1,Trades!$C:$C,$B4,Trades!$E:$E,"Sale"))*(1+VLOOKUP(CF$1,Benchmark!$H$6:$M$200,4,FALSE))) +IFERROR((SUMIFS(Trades!$H:$H,Trades!$B:$B,CF$1,Trades!$C:$C,$B4,Trades!$E:$E,"Purchase")*(1+VLOOKUP(SUMIFS(Trades!$A:$A,Trades!$B:$B,CF$1,Trades!$C:$C,$B4,Trades!$E:$E,"Purchase"),Benchmark!$H$6:$M$200,4,FALSE))),0), IF(CF4="Purchase",SUMIFS(Trades!$H:$H,Trades!$B:$B,CF$1,Trades!$C:$C,$B4,Trades!$E:$E,"Purchase")*(1+CL4), IF(CF4="Sale",0))) -> 68783.81006 | CN4: -0.007875395541 | CO4: -0.0001997164233 | CP4: 0.03934360997 | CQ4: 0.03725718338 | CR4: 68112.99178 | CS4: 0.002086426585 | CT4: 0.0001424360028 | CU4: Hold | CV4: =CG4+SUMIFS(Trades!$H:$H,Trades!$C:$C,$B4,Trades!$E:$E,"Purchase",Trades!$B:$B,CU$1)-SUMIFS(Trades!$H:$H,Trades!$C:$C,$B4,Trades!$E:$E,"Sale",Trades!$B:$B,CU$1) -> 65666.445 | CW4: 34.59 | CX4: =CI4+SUMIFS(Trades!$F:$F,Trades!$C:$C,$B4,Trades!$B:$B,CU$1,Trades!$E:$E,"Purchase")-SUMIFS(Trades!$F:$F,Trades!$C:$C,$B4,Trades!$B:$B,CU$1,Trades!$E:$E,"Sale") -> 1950 | CY4: 67450.5 | CZ4: =IF(CU4="Hold",(CY4)/(CJ4+SUMIFS(Trades!$H:$H,Trades!$B:$B,CU$1,Trades!$E:$E,"Purchase",Trades!$C:$C,$B4))-1, IF(CU4="Purchase",CY4/SUMIFS(Trades!$H:$H,Trades!$B:$B,CU$1,Trades!$E:$E,"Purchase",Trades!$C:$C,$B4)-1, IF(CU4="Sale",SUMIFS(Trades!$H:$H,Trades!$B:$B,CU$1,Trades!$E:$E,"Sale",Trades!$C:$C,$B4)/CJ4-1))) -> -0.01171428571 | DA4: =IF(CU4="Hold",IFERROR((((CJ4-SUMIFS(Trades!$H:$H,Trades!$B:$B,CU$1,Trades!$C:$C,$B4,Trades!$E:$E,"Sale"))/(CJ4+SUMIFS(Trades!$H:$H,Trades!$B:$B,CU$1,Trades!$C:$C,$B4,Trades!$E:$E,"Purchase")))*VLOOKUP(CU$1,Benchmark!$H$6:$M$200,4,FALSE)),0) +IFERROR(((SUMIFS(Trades!$H:$H,Trades!$B:$B,CU$1,Trades!$C:$C,$B4,Trades!$E:$E,"Purchase")/(CJ4+SUMIFS(Trades!$H:$H,Trades!$B:$B,CU$1,Trades!$C:$C,$B4,Trades!$E:$E,"Purchase")))*VLOOKUP(SUMIFS(Trades!$A:$A,Trades!$B:$B,CU$1,Trades!$C:$C,$B4,Trades!$E:$E,"Purchase"),Benchmark!$H$6:$M$200,6,FALSE)),0) +IFERROR(((SUMIFS(Trades!$H:$H,Trades!$B:$B,CU$1,Trades!$C:$C,$B4,Trades!$E:$E,"Sale")/(CJ4+SUMIFS(Trades!$H:$H,Trades!$B:$B,CU$1,Trades!$C:$C,$B4,Trades!$E:$E,"Purchase")))*VLOOKUP(SUMIFS(Trades!$A:$A,Trades!$B:$B,CU$1,Trades!$C:$C,$B4,Trades!$E:$E,"Sale"),Benchmark!$H$6:$M$200,4,FALSE)),0), IF(CU4="Purchase",VLOOKUP(SUMIFS(Trades!$A:$A,Trades!$B:$B,CU$1,Trades!$C:$C,$B4,Trades!$E:$E,CU4,Trades!$E:$E,"Purchase"),Benchmark!$H$6:$M$200,6,FALSE), IF(CU4="Sale",VLOOKUP(SUMIFS(Trades!$A:$A,Trades!$B:$B,CU$1,Trades!$C:$C,$B4,Trades!$E:$E,CU4,Trades!$E:$E,"Sale"),Benchmark!$H$6:$M$200,4,FALSE)))) -> -0.03731280818 | DB4: =IF(CU4="Hold",((CJ4-SUMIFS(Trades!$H:$H,Trades!$B:$B,CU$1,Trades!$C:$C,$B4,Trades!$E:$E,"Sale"))*(1+VLOOKUP(CU$1,Benchmark!$H$6:$M$200,4,FALSE))) +IFERROR((SUMIFS(Trades!$H:$H,Trades!$B:$B,CU$1,Trades!$C:$C,$B4,Trades!$E:$E,"Purchase")*(1+VLOOKUP(SUMIFS(Trades!$A:$A,Trades!$B:$B,CU$1,Trades!$C:$C,$B4,Trades!$E:$E,"Purchase"),Benchmark!$H$6:$M$200,4,FALSE))),0), IF(CU4="Purchase",SUMIFS(Trades!$H:$H,Trades!$B:$B,CU$1,Trades!$C:$C,$B4,Trades!$E:$E,"Purchase")*(1+DA4), IF(CU4="Sale",0))) -> 65703.40084 | DC4: 0.02559852246 | DD4: 0.0006866616639 | DE4: 0.02716844196 | DF4: -0.001445794934 | DG4: 65571.50479 | DH4: 0.0286142369 | DI4: 0.001896004474 | DJ4: Hold | DK4: =CV4+SUMIFS(Trades!$H:$H,Trades!$C:$C,$B4,Trades!$E:$E,"Purchase",Trades!$B:$B,DJ$1)-SUMIFS(Trades!$H:$H,Trades!$C:$C,$B4,Trades!$E:$E,"Sale",Trades!$B:$B,DJ$1) -> 65666.445 | DL4: 37.51 | DM4: =CX4+SUMIFS(Trades!$F:$F,Trades!$C:$C,$B4,Trades!$B:$B,DJ$1,Trades!$E:$E,"Purchase")-SUMIFS(Trades!$F:$F,Trades!$C:$C,$B4,Trades!$B:$B,DJ$1,Trades!$E:$E,"Sale") -> 1950 | DN4: 73144.5 | DO4: =IF(DJ4="Hold",(DN4)/(CY4+SUMIFS(Trades!$H:$H,Trades!$B:$B,DJ$1,Trades!$E:$E,"Purchase",Trades!$C:$C,$B4))-1, IF(DJ4="Purchase",DN4/SUMIFS(Trades!$H:$H,Trades!$B:$B,DJ$1,Trades!$E:$E,"Purchase",Trades!$C:$C,$B4)-1, IF(DJ4="Sale",SUMIFS(Trades!$H:$H,Trades!$B:$B,DJ$1,Trades!$E:$E,"Sale",Trades!$C:$C,$B4)/CY4-1))) -> 0.08441746169 | DP4: =IF(DJ4="Hold",IFERROR((((CY4-SUMIFS(Trades!$H:$H,Trades!$B:$B,DJ$1,Trades!$C:$C,$B4,Trades!$E:$E,"Sale"))/(CY4+SUMIFS(Trades!$H:$H,Trades!$B:$B,DJ$1,Trades!$C:$C,$B4,Trades!$E:$E,"Purchase")))*VLOOKUP(DJ$1,Benchmark!$H$6:$M$200,4,FALSE)),0) +IFERROR(((SUMIFS(Trades!$H:$H,Trades!$B:$B,DJ$1,Trades!$C:$C,$B4,Trades!$E:$E,"Purchase")/(CY4+SUMIFS(Trades!$H:$H,Trades!$B:$B,DJ$1,Trades!$C:$C,$B4,Trades!$E:$E,"Purchase")))*VLOOKUP(SUMIFS(Trades!$A:$A,Trades!$B:$B,DJ$1,Trades!$C:$C,$B4,Trades!$E:$E,"Purchase"),Benchmark!$H$6:$M$200,6,FALSE)),0) +IFERROR(((SUMIFS(Trades!$H:$H,Trades!$B:$B,DJ$1,Trades!$C:$C,$B4,Trades!$E:$E,"Sale")/(CY4+SUMIFS(Trades!$H:$H,Trades!$B:$B,DJ$1,Trades!$C:$C,$B4,Trades!$E:$E,"Purchase")))*VLOOKUP(SUMIFS(Trades!$A:$A,Trades!$B:$B,DJ$1,Trades!$C:$C,$B4,Trades!$E:$E,"Sale"),Benchmark!$H$6:$M$200,4,FALSE)),0), IF(DJ4="Purchase",VLOOKUP(SUMIFS(Trades!$A:$A,Trades!$B:$B,DJ$1,Trades!$C:$C,$B4,Trades!$E:$E,DJ4,Trades!$E:$E,"Purchase"),Benchmark!$H$6:$M$200,6,FALSE), IF(DJ4="Sale",VLOOKUP(SUMIFS(Trades!$A:$A,Trades!$B:$B,DJ$1,Trades!$C:$C,$B4,Trades!$E:$E,DJ4,Trades!$E:$E,"Sale"),Benchmark!$H$6:$M$200,4,FALSE)))) -> 0.03173627907 | DQ4: =IF(DJ4="Hold",((CY4-SUMIFS(Trades!$H:$H,Trades!$B:$B,DJ$1,Trades!$C:$C,$B4,Trades!$E:$E,"Sale"))*(1+VLOOKUP(DJ$1,Benchmark!$H$6:$M$200,4,FALSE))) +IFERROR((SUMIFS(Trades!$H:$H,Trades!$B:$B,DJ$1,Trades!$C:$C,$B4,Trades!$E:$E,"Purchase")*(1+VLOOKUP(SUMIFS(Trades!$A:$A,Trades!$B:$B,DJ$1,Trades!$C:$C,$B4,Trades!$E:$E,"Purchase"),Benchmark!$H$6:$M$200,4,FALSE))),0), IF(DJ4="Purchase",SUMIFS(Trades!$H:$H,Trades!$B:$B,DJ$1,Trades!$C:$C,$B4,Trades!$E:$E,"Purchase")*(1+DP4), IF(DJ4="Sale",0))) -> 69591.12789 | DR4: 0.05268118263 | DS4: 0.001353603518 | DT4: 0.1138793946 | DU4: 0.03024459998 | DV4: 67652.50036 | DW4: 0.08363479458 | DX4: -0.07678213635 | DY4: Hold | DZ4: =DK4+SUMIFS(Trades!$H:$H,Trades!$C:$C,$B4,Trades!$E:$E,"Purchase",Trades!$B:$B,DY$1)-SUMIFS(Trades!$H:$H,Trades!$C:$C,$B4,Trades!$E:$E,"Sale",Trades!$B:$B,DY$1) -> 65666.445 | EA4: 37.24 | EB4: =DM4+SUMIFS(Trades!$F:$F,Trades!$C:$C,$B4,Trades!$B:$B,DY$1,Trades!$E:$E,"Purchase")-SUMIFS(Trades!$F:$F,Trades!$C:$C,$B4,Trades!$B:$B,DY$1,Trades!$E:$E,"Sale") -> 1950 | EC4: 72618 | ED4: =IF(DY4="Hold",(EC4)/(DN4+SUMIFS(Trades!$H:$H,Trades!$B:$B,DY$1,Trades!$E:$E,"Purchase",Trades!$C:$C,$B4))-1, IF(DY4="Purchase",EC4/SUMIFS(Trades!$H:$H,Trades!$B:$B,DY$1,Trades!$E:$E,"Purchase",Trades!$C:$C,$B4)-1, IF(DY4="Sale",SUMIFS(Trades!$H:$H,Trades!$B:$B,DY$1,Trades!$E:$E,"Sale",Trades!$C:$C,$B4)/DN4-1))) -> -0.007198080512 | EE4: =IF(DY4="Hold",IFERROR((((DN4-SUMIFS(Trades!$H:$H,Trades!$B:$B,DY$1,Trades!$C:$C,$B4,Trades!$E:$E,"Sale"))/(DN4+SUMIFS(Trades!$H:$H,Trades!$B:$B,DY$1,Trades!$C:$C,$B4,Trades!$E:$E,"Purchase")))*VLOOKUP(DY$1,Benchmark!$H$6:$M$200,4,FALSE)),0) +IFERROR(((SUMIFS(Trades!$H:$H,Trades!$B:$B,DY$1,Trades!$C:$C,$B4,Trades!$E:$E,"Purchase")/(DN4+SUMIFS(Trades!$H:$H,Trades!$B:$B,DY$1,Trades!$C:$C,$B4,Trades!$E:$E,"Purchase")))*VLOOKUP(SUMIFS(Trades!$A:$A,Trades!$B:$B,DY$1,Trades!$C:$C,$B4,Trades!$E:$E,"Purchase"),Benchmark!$H$6:$M$200,6,FALSE)),0) +IFERROR(((SUMIFS(Trades!$H:$H,Trades!$B:$B,DY$1,Trades!$C:$C,$B4,Trades!$E:$E,"Sale")/(DN4+SUMIFS(Trades!$H:$H,Trades!$B:$B,DY$1,Trades!$C:$C,$B4,Trades!$E:$E,"Purchase")))*VLOOKUP(SUMIFS(Trades!$A:$A,Trades!$B:$B,DY$1,Trades!$C:$C,$B4,Trades!$E:$E,"Sale"),Benchmark!$H$6:$M$200,4,FALSE)),0), IF(DY4="Purchase",VLOOKUP(SUMIFS(Trades!$A:$A,Trades!$B:$B,DY$1,Trades!$C:$C,$B4,Trades!$E:$E,DY4,Trades!$E:$E,"Purchase"),Benchmark!$H$6:$M$200,6,FALSE), IF(DY4="Sale",VLOOKUP(SUMIFS(Trades!$A:$A,Trades!$B:$B,DY$1,Trades!$C:$C,$B4,Trades!$E:$E,DY4,Trades!$E:$E,"Sale"),Benchmark!$H$6:$M$200,4,FALSE)))) -> 0.005375612055 | EF4: =IF(DY4="Hold",((DN4-SUMIFS(Trades!$H:$H,Trades!$B:$B,DY$1,Trades!$C:$C,$B4,Trades!$E:$E,"Sale"))*(1+VLOOKUP(DY$1,Benchmark!$H$6:$M$200,4,FALSE))) +IFERROR((SUMIFS(Trades!$H:$H,Trades!$B:$B,DY$1,Trades!$C:$C,$B4,Trades!$E:$E,"Purchase")*(1+VLOOKUP(SUMIFS(Trades!$A:$A,Trades!$B:$B,DY$1,Trades!$C:$C,$B4,Trades!$E:$E,"Purchase"),Benchmark!$H$6:$M$200,4,FALSE))),0), IF(DY4="Purchase",SUMIFS(Trades!$H:$H,Trades!$B:$B,DY$1,Trades!$C:$C,$B4,Trades!$E:$E,"Purchase")*(1+EE4), IF(DY4="Sale",0))) -> 73537.69646 | EG4: -0.01257369257 | EH4: -0.0003470658527 | EI4: 0.105861601 | EJ4: 0.03578279527 | EK4: 68016.17396 | EL4: 0.07007880573 | EM4: 0.01551598074 | EN4: Hold | EO4: =DZ4+SUMIFS(Trades!$H:$H,Trades!$C:$C,$B4,Trades!$E:$E,"Purchase",Trades!$B:$B,EN$1)-SUMIFS(Trades!$H:$H,Trades!$C:$C,$B4,Trades!$E:$E,"Sale",Trades!$B:$B,EN$1) -> 65666.445 | EP4: #N/A N/A | EQ4: =EB4+SUMIFS(Trades!$F:$F,Trades!$C:$C,$B4,Trades!$B:$B,EN$1,Trades!$E:$E,"Purchase")-SUMIFS(Trades!$F:$F,Trades!$C:$C,$B4,Trades!$B:$B,EN$1,Trades!$E:$E,"Sale") -> 1950 | ES4: =IF(EN4="Hold",(ER4)/(EC4+SUMIFS(Trades!$H:$H,Trades!$B:$B,EN$1,Trades!$E:$E,"Purchase",Trades!$C:$C,$B4))-1, IF(EN4="Purchase",ER4/SUMIFS(Trades!$H:$H,Trades!$B:$B,EN$1,Trades!$E:$E,"Purchase",Trades!$C:$C,$B4)-1, IF(EN4="Sale",SUMIFS(Trades!$H:$H,Trades!$B:$B,EN$1,Trades!$E:$E,"Sale",Trades!$C:$C,$B4)/EC4-1))) ->  | ET4: =IF(EN4="Hold",IFERROR((((EC4-SUMIFS(Trades!$H:$H,Trades!$B:$B,EN$1,Trades!$C:$C,$B4,Trades!$E:$E,"Sale"))/(EC4+SUMIFS(Trades!$H:$H,Trades!$B:$B,EN$1,Trades!$C:$C,$B4,Trades!$E:$E,"Purchase")))*VLOOKUP(EN$1,Benchmark!$H$6:$M$200,4,FALSE)),0) +IFERROR(((SUMIFS(Trades!$H:$H,Trades!$B:$B,EN$1,Trades!$C:$C,$B4,Trades!$E:$E,"Purchase")/(EC4+SUMIFS(Trades!$H:$H,Trades!$B:$B,EN$1,Trades!$C:$C,$B4,Trades!$E:$E,"Purchase")))*VLOOKUP(SUMIFS(Trades!$A:$A,Trades!$B:$B,EN$1,Trades!$C:$C,$B4,Trades!$E:$E,"Purchase"),Benchmark!$H$6:$M$200,6,FALSE)),0) +IFERROR(((SUMIFS(Trades!$H:$H,Trades!$B:$B,EN$1,Trades!$C:$C,$B4,Trades!$E:$E,"Sale")/(EC4+SUMIFS(Trades!$H:$H,Trades!$B:$B,EN$1,Trades!$C:$C,$B4,Trades!$E:$E,"Purchase")))*VLOOKUP(SUMIFS(Trades!$A:$A,Trades!$B:$B,EN$1,Trades!$C:$C,$B4,Trades!$E:$E,"Sale"),Benchmark!$H$6:$M$200,4,FALSE)),0), IF(EN4="Purchase",VLOOKUP(SUMIFS(Trades!$A:$A,Trades!$B:$B,EN$1,Trades!$C:$C,$B4,Trades!$E:$E,EN4,Trades!$E:$E,"Purchase"),Benchmark!$H$6:$M$200,6,FALSE), IF(EN4="Sale",VLOOKUP(SUMIFS(Trades!$A:$A,Trades!$B:$B,EN$1,Trades!$C:$C,$B4,Trades!$E:$E,EN4,Trades!$E:$E,"Sale"),Benchmark!$H$6:$M$200,4,FALSE)))) -> 0 | EU4: =IF(EN4="Hold",((EC4-SUMIFS(Trades!$H:$H,Trades!$B:$B,EN$1,Trades!$C:$C,$B4,Trades!$E:$E,"Sale"))*(1+VLOOKUP(EN$1,Benchmark!$H$6:$M$200,4,FALSE))) +IFERROR((SUMIFS(Trades!$H:$H,Trades!$B:$B,EN$1,Trades!$C:$C,$B4,Trades!$E:$E,"Purchase")*(1+VLOOKUP(SUMIFS(Trades!$A:$A,Trades!$B:$B,EN$1,Trades!$C:$C,$B4,Trades!$E:$E,"Purchase"),Benchmark!$H$6:$M$200,4,FALSE))),0), IF(EN4="Purchase",SUMIFS(Trades!$H:$H,Trades!$B:$B,EN$1,Trades!$C:$C,$B4,Trades!$E:$E,"Purchase")*(1+ET4), IF(EN4="Sale",0))) ->  | EY4: 0.03578279527 | EZ4: 68016.17396 | FC4: Hold | FD4: =EO4+SUMIFS(Trades!$H:$H,Trades!$C:$C,$B4,Trades!$E:$E,"Purchase",Trades!$B:$B,FC$1)-SUMIFS(Trades!$H:$H,Trades!$C:$C,$B4,Trades!$E:$E,"Sale",Trades!$B:$B,FC$1) -> 65666.445 | FE4: #N/A N/A | FF4: =EQ4+SUMIFS(Trades!$F:$F,Trades!$C:$C,$B4,Trades!$B:$B,FC$1,Trades!$E:$E,"Purchase")-SUMIFS(Trades!$F:$F,Trades!$C:$C,$B4,Trades!$B:$B,FC$1,Trades!$E:$E,"Sale") -> 1950 | FH4: =IF(FC4="Hold",(FG4)/(ER4+SUMIFS(Trades!$H:$H,Trades!$B:$B,FC$1,Trades!$E:$E,"Purchase",Trades!$C:$C,$B4))-1, IF(FC4="Purchase",FG4/SUMIFS(Trades!$H:$H,Trades!$B:$B,FC$1,Trades!$E:$E,"Purchase",Trades!$C:$C,$B4)-1, IF(FC4="Sale",SUMIFS(Trades!$H:$H,Trades!$B:$B,FC$1,Trades!$E:$E,"Sale",Trades!$C:$C,$B4)/ER4-1))) ->  | FI4: =IF(FC4="Hold",IFERROR((((ER4-SUMIFS(Trades!$H:$H,Trades!$B:$B,FC$1,Trades!$C:$C,$B4,Trades!$E:$E,"Sale"))/(ER4+SUMIFS(Trades!$H:$H,Trades!$B:$B,FC$1,Trades!$C:$C,$B4,Trades!$E:$E,"Purchase")))*VLOOKUP(FC$1,Benchmark!$H$6:$M$200,4,FALSE)),0) +IFERROR(((SUMIFS(Trades!$H:$H,Trades!$B:$B,FC$1,Trades!$C:$C,$B4,Trades!$E:$E,"Purchase")/(ER4+SUMIFS(Trades!$H:$H,Trades!$B:$B,FC$1,Trades!$C:$C,$B4,Trades!$E:$E,"Purchase")))*VLOOKUP(SUMIFS(Trades!$A:$A,Trades!$B:$B,FC$1,Trades!$C:$C,$B4,Trades!$E:$E,"Purchase"),Benchmark!$H$6:$M$200,6,FALSE)),0) +IFERROR(((SUMIFS(Trades!$H:$H,Trades!$B:$B,FC$1,Trades!$C:$C,$B4,Trades!$E:$E,"Sale")/(ER4+SUMIFS(Trades!$H:$H,Trades!$B:$B,FC$1,Trades!$C:$C,$B4,Trades!$E:$E,"Purchase")))*VLOOKUP(SUMIFS(Trades!$A:$A,Trades!$B:$B,FC$1,Trades!$C:$C,$B4,Trades!$E:$E,"Sale"),Benchmark!$H$6:$M$200,4,FALSE)),0), IF(FC4="Purchase",VLOOKUP(SUMIFS(Trades!$A:$A,Trades!$B:$B,FC$1,Trades!$C:$C,$B4,Trades!$E:$E,FC4,Trades!$E:$E,"Purchase"),Benchmark!$H$6:$M$200,6,FALSE), IF(FC4="Sale",VLOOKUP(SUMIFS(Trades!$A:$A,Trades!$B:$B,FC$1,Trades!$C:$C,$B4,Trades!$E:$E,FC4,Trades!$E:$E,"Sale"),Benchmark!$H$6:$M$200,4,FALSE)))) -> 0 | FJ4: =IF(FC4="Hold",((ER4-SUMIFS(Trades!$H:$H,Trades!$B:$B,FC$1,Trades!$C:$C,$B4,Trades!$E:$E,"Sale"))*(1+VLOOKUP(FC$1,Benchmark!$H$6:$M$200,4,FALSE))) +IFERROR((SUMIFS(Trades!$H:$H,Trades!$B:$B,FC$1,Trades!$C:$C,$B4,Trades!$E:$E,"Purchase")*(1+VLOOKUP(SUMIFS(Trades!$A:$A,Trades!$B:$B,FC$1,Trades!$C:$C,$B4,Trades!$E:$E,"Purchase"),Benchmark!$H$6:$M$200,4,FALSE))),0), IF(FC4="Purchase",SUMIFS(Trades!$H:$H,Trades!$B:$B,FC$1,Trades!$C:$C,$B4,Trades!$E:$E,"Purchase")*(1+FI4), IF(FC4="Sale",0))) ->  | FN4: 0.03578279527 | FO4: 68016.17396 | FR4: Hold | FS4: =FD4+SUMIFS(Trades!$H:$H,Trades!$C:$C,$B4,Trades!$E:$E,"Purchase",Trades!$B:$B,FR$1)-SUMIFS(Trades!$H:$H,Trades!$C:$C,$B4,Trades!$E:$E,"Sale",Trades!$B:$B,FR$1) -> 65666.445 | FT4: #N/A N/A | FU4: =FF4+SUMIFS(Trades!$F:$F,Trades!$C:$C,$B4,Trades!$B:$B,FR$1,Trades!$E:$E,"Purchase")-SUMIFS(Trades!$F:$F,Trades!$C:$C,$B4,Trades!$B:$B,FR$1,Trades!$E:$E,"Sale") -> 1950 | FW4: =IF(FR4="Hold",(FV4)/(FG4+SUMIFS(Trades!$H:$H,Trades!$B:$B,FR$1,Trades!$E:$E,"Purchase",Trades!$C:$C,$B4))-1, IF(FR4="Purchase",FV4/SUMIFS(Trades!$H:$H,Trades!$B:$B,FR$1,Trades!$E:$E,"Purchase",Trades!$C:$C,$B4)-1, IF(FR4="Sale",SUMIFS(Trades!$H:$H,Trades!$B:$B,FR$1,Trades!$E:$E,"Sale",Trades!$C:$C,$B4)/FG4-1))) ->  | FX4: =IF(FR4="Hold",IFERROR((((FG4-SUMIFS(Trades!$H:$H,Trades!$B:$B,FR$1,Trades!$C:$C,$B4,Trades!$E:$E,"Sale"))/(FG4+SUMIFS(Trades!$H:$H,Trades!$B:$B,FR$1,Trades!$C:$C,$B4,Trades!$E:$E,"Purchase")))*VLOOKUP(FR$1,Benchmark!$H$6:$M$200,4,FALSE)),0) +IFERROR(((SUMIFS(Trades!$H:$H,Trades!$B:$B,FR$1,Trades!$C:$C,$B4,Trades!$E:$E,"Purchase")/(FG4+SUMIFS(Trades!$H:$H,Trades!$B:$B,FR$1,Trades!$C:$C,$B4,Trades!$E:$E,"Purchase")))*VLOOKUP(SUMIFS(Trades!$A:$A,Trades!$B:$B,FR$1,Trades!$C:$C,$B4,Trades!$E:$E,"Purchase"),Benchmark!$H$6:$M$200,6,FALSE)),0) +IFERROR(((SUMIFS(Trades!$H:$H,Trades!$B:$B,FR$1,Trades!$C:$C,$B4,Trades!$E:$E,"Sale")/(FG4+SUMIFS(Trades!$H:$H,Trades!$B:$B,FR$1,Trades!$C:$C,$B4,Trades!$E:$E,"Purchase")))*VLOOKUP(SUMIFS(Trades!$A:$A,Trades!$B:$B,FR$1,Trades!$C:$C,$B4,Trades!$E:$E,"Sale"),Benchmark!$H$6:$M$200,4,FALSE)),0), IF(FR4="Purchase",VLOOKUP(SUMIFS(Trades!$A:$A,Trades!$B:$B,FR$1,Trades!$C:$C,$B4,Trades!$E:$E,FR4,Trades!$E:$E,"Purchase"),Benchmark!$H$6:$M$200,6,FALSE), IF(FR4="Sale",VLOOKUP(SUMIFS(Trades!$A:$A,Trades!$B:$B,FR$1,Trades!$C:$C,$B4,Trades!$E:$E,FR4,Trades!$E:$E,"Sale"),Benchmark!$H$6:$M$200,4,FALSE)))) -> 0 | FY4: =IF(FR4="Hold",((FG4-SUMIFS(Trades!$H:$H,Trades!$B:$B,FR$1,Trades!$C:$C,$B4,Trades!$E:$E,"Sale"))*(1+VLOOKUP(FR$1,Benchmark!$H$6:$M$200,4,FALSE))) +IFERROR((SUMIFS(Trades!$H:$H,Trades!$B:$B,FR$1,Trades!$C:$C,$B4,Trades!$E:$E,"Purchase")*(1+VLOOKUP(SUMIFS(Trades!$A:$A,Trades!$B:$B,FR$1,Trades!$C:$C,$B4,Trades!$E:$E,"Purchase"),Benchmark!$H$6:$M$200,4,FALSE))),0), IF(FR4="Purchase",SUMIFS(Trades!$H:$H,Trades!$B:$B,FR$1,Trades!$C:$C,$B4,Trades!$E:$E,"Purchase")*(1+FX4), IF(FR4="Sale",0))) ->  | GC4: 0.03578279527 | GD4: 68016.17396 | GG4: Hold | GH4: =FS4+SUMIFS(Trades!$H:$H,Trades!$C:$C,$B4,Trades!$E:$E,"Purchase",Trades!$B:$B,GG$1)-SUMIFS(Trades!$H:$H,Trades!$C:$C,$B4,Trades!$E:$E,"Sale",Trades!$B:$B,GG$1) -> 65666.445 | GI4: #N/A N/A | GJ4: =FU4+SUMIFS(Trades!$F:$F,Trades!$C:$C,$B4,Trades!$B:$B,GG$1,Trades!$E:$E,"Purchase")-SUMIFS(Trades!$F:$F,Trades!$C:$C,$B4,Trades!$B:$B,GG$1,Trades!$E:$E,"Sale") -> 1950 | GL4: =IF(GG4="Hold",(GK4)/(FV4+SUMIFS(Trades!$H:$H,Trades!$B:$B,GG$1,Trades!$E:$E,"Purchase",Trades!$C:$C,$B4))-1, IF(GG4="Purchase",GK4/SUMIFS(Trades!$H:$H,Trades!$B:$B,GG$1,Trades!$E:$E,"Purchase",Trades!$C:$C,$B4)-1, IF(GG4="Sale",SUMIFS(Trades!$H:$H,Trades!$B:$B,GG$1,Trades!$E:$E,"Sale",Trades!$C:$C,$B4)/FV4-1))) ->  | GM4: =IF(GG4="Hold",IFERROR((((FV4-SUMIFS(Trades!$H:$H,Trades!$B:$B,GG$1,Trades!$C:$C,$B4,Trades!$E:$E,"Sale"))/(FV4+SUMIFS(Trades!$H:$H,Trades!$B:$B,GG$1,Trades!$C:$C,$B4,Trades!$E:$E,"Purchase")))*VLOOKUP(GG$1,Benchmark!$H$6:$M$200,4,FALSE)),0) +IFERROR(((SUMIFS(Trades!$H:$H,Trades!$B:$B,GG$1,Trades!$C:$C,$B4,Trades!$E:$E,"Purchase")/(FV4+SUMIFS(Trades!$H:$H,Trades!$B:$B,GG$1,Trades!$C:$C,$B4,Trades!$E:$E,"Purchase")))*VLOOKUP(SUMIFS(Trades!$A:$A,Trades!$B:$B,GG$1,Trades!$C:$C,$B4,Trades!$E:$E,"Purchase"),Benchmark!$H$6:$M$200,6,FALSE)),0) +IFERROR(((SUMIFS(Trades!$H:$H,Trades!$B:$B,GG$1,Trades!$C:$C,$B4,Trades!$E:$E,"Sale")/(FV4+SUMIFS(Trades!$H:$H,Trades!$B:$B,GG$1,Trades!$C:$C,$B4,Trades!$E:$E,"Purchase")))*VLOOKUP(SUMIFS(Trades!$A:$A,Trades!$B:$B,GG$1,Trades!$C:$C,$B4,Trades!$E:$E,"Sale"),Benchmark!$H$6:$M$200,4,FALSE)),0), IF(GG4="Purchase",VLOOKUP(SUMIFS(Trades!$A:$A,Trades!$B:$B,GG$1,Trades!$C:$C,$B4,Trades!$E:$E,GG4,Trades!$E:$E,"Purchase"),Benchmark!$H$6:$M$200,6,FALSE), IF(GG4="Sale",VLOOKUP(SUMIFS(Trades!$A:$A,Trades!$B:$B,GG$1,Trades!$C:$C,$B4,Trades!$E:$E,GG4,Trades!$E:$E,"Sale"),Benchmark!$H$6:$M$200,4,FALSE)))) -> 0 | GN4: =IF(GG4="Hold",((FV4-SUMIFS(Trades!$H:$H,Trades!$B:$B,GG$1,Trades!$C:$C,$B4,Trades!$E:$E,"Sale"))*(1+VLOOKUP(GG$1,Benchmark!$H$6:$M$200,4,FALSE))) +IFERROR((SUMIFS(Trades!$H:$H,Trades!$B:$B,GG$1,Trades!$C:$C,$B4,Trades!$E:$E,"Purchase")*(1+VLOOKUP(SUMIFS(Trades!$A:$A,Trades!$B:$B,GG$1,Trades!$C:$C,$B4,Trades!$E:$E,"Purchase"),Benchmark!$H$6:$M$200,4,FALSE))),0), IF(GG4="Purchase",SUMIFS(Trades!$H:$H,Trades!$B:$B,GG$1,Trades!$C:$C,$B4,Trades!$E:$E,"Purchase")*(1+GM4), IF(GG4="Sale",0))) ->  | GR4: 0.03578279527 | GS4: 68016.17396 | GV4: Hold | GW4: =GH4+SUMIFS(Trades!$H:$H,Trades!$C:$C,$B4,Trades!$E:$E,"Purchase",Trades!$B:$B,GV$1)-SUMIFS(Trades!$H:$H,Trades!$C:$C,$B4,Trades!$E:$E,"Sale",Trades!$B:$B,GV$1) -> 65666.445 | GX4: #N/A N/A | GY4: =GJ4+SUMIFS(Trades!$F:$F,Trades!$C:$C,$B4,Trades!$B:$B,GV$1,Trades!$E:$E,"Purchase")-SUMIFS(Trades!$F:$F,Trades!$C:$C,$B4,Trades!$B:$B,GV$1,Trades!$E:$E,"Sale") -> 1950 | HA4: =IF(GV4="Hold",(GZ4)/(GK4+SUMIFS(Trades!$H:$H,Trades!$B:$B,GV$1,Trades!$E:$E,"Purchase",Trades!$C:$C,$B4))-1, IF(GV4="Purchase",GZ4/SUMIFS(Trades!$H:$H,Trades!$B:$B,GV$1,Trades!$E:$E,"Purchase",Trades!$C:$C,$B4)-1, IF(GV4="Sale",SUMIFS(Trades!$H:$H,Trades!$B:$B,GV$1,Trades!$E:$E,"Sale",Trades!$C:$C,$B4)/GK4-1))) ->  | HB4: =IF(GV4="Hold",IFERROR((((GK4-SUMIFS(Trades!$H:$H,Trades!$B:$B,GV$1,Trades!$C:$C,$B4,Trades!$E:$E,"Sale"))/(GK4+SUMIFS(Trades!$H:$H,Trades!$B:$B,GV$1,Trades!$C:$C,$B4,Trades!$E:$E,"Purchase")))*VLOOKUP(GV$1,Benchmark!$H$6:$M$200,4,FALSE)),0) +IFERROR(((SUMIFS(Trades!$H:$H,Trades!$B:$B,GV$1,Trades!$C:$C,$B4,Trades!$E:$E,"Purchase")/(GK4+SUMIFS(Trades!$H:$H,Trades!$B:$B,GV$1,Trades!$C:$C,$B4,Trades!$E:$E,"Purchase")))*VLOOKUP(SUMIFS(Trades!$A:$A,Trades!$B:$B,GV$1,Trades!$C:$C,$B4,Trades!$E:$E,"Purchase"),Benchmark!$H$6:$M$200,6,FALSE)),0) +IFERROR(((SUMIFS(Trades!$H:$H,Trades!$B:$B,GV$1,Trades!$C:$C,$B4,Trades!$E:$E,"Sale")/(GK4+SUMIFS(Trades!$H:$H,Trades!$B:$B,GV$1,Trades!$C:$C,$B4,Trades!$E:$E,"Purchase")))*VLOOKUP(SUMIFS(Trades!$A:$A,Trades!$B:$B,GV$1,Trades!$C:$C,$B4,Trades!$E:$E,"Sale"),Benchmark!$H$6:$M$200,4,FALSE)),0), IF(GV4="Purchase",VLOOKUP(SUMIFS(Trades!$A:$A,Trades!$B:$B,GV$1,Trades!$C:$C,$B4,Trades!$E:$E,GV4,Trades!$E:$E,"Purchase"),Benchmark!$H$6:$M$200,6,FALSE), IF(GV4="Sale",VLOOKUP(SUMIFS(Trades!$A:$A,Trades!$B:$B,GV$1,Trades!$C:$C,$B4,Trades!$E:$E,GV4,Trades!$E:$E,"Sale"),Benchmark!$H$6:$M$200,4,FALSE)))) -> 0 | HC4: =IF(GV4="Hold",((GK4-SUMIFS(Trades!$H:$H,Trades!$B:$B,GV$1,Trades!$C:$C,$B4,Trades!$E:$E,"Sale"))*(1+VLOOKUP(GV$1,Benchmark!$H$6:$M$200,4,FALSE))) +IFERROR((SUMIFS(Trades!$H:$H,Trades!$B:$B,GV$1,Trades!$C:$C,$B4,Trades!$E:$E,"Purchase")*(1+VLOOKUP(SUMIFS(Trades!$A:$A,Trades!$B:$B,GV$1,Trades!$C:$C,$B4,Trades!$E:$E,"Purchase"),Benchmark!$H$6:$M$200,4,FALSE))),0), IF(GV4="Purchase",SUMIFS(Trades!$H:$H,Trades!$B:$B,GV$1,Trades!$C:$C,$B4,Trades!$E:$E,"Purchase")*(1+HB4), IF(GV4="Sale",0))) ->  | HG4: 0.03578279527 | HH4: 68016.17396 | HK4: Hold | HL4: =GW4+SUMIFS(Trades!$H:$H,Trades!$C:$C,$B4,Trades!$E:$E,"Purchase",Trades!$B:$B,HK$1)-SUMIFS(Trades!$H:$H,Trades!$C:$C,$B4,Trades!$E:$E,"Sale",Trades!$B:$B,HK$1) -> 65666.445 | HM4: #N/A N/A | HN4: =GY4+SUMIFS(Trades!$F:$F,Trades!$C:$C,$B4,Trades!$B:$B,HK$1,Trades!$E:$E,"Purchase")-SUMIFS(Trades!$F:$F,Trades!$C:$C,$B4,Trades!$B:$B,HK$1,Trades!$E:$E,"Sale") -> 1950 | HP4: =IF(HK4="Hold",(HO4)/(GZ4+SUMIFS(Trades!$H:$H,Trades!$B:$B,HK$1,Trades!$E:$E,"Purchase",Trades!$C:$C,$B4))-1, IF(HK4="Purchase",HO4/SUMIFS(Trades!$H:$H,Trades!$B:$B,HK$1,Trades!$E:$E,"Purchase",Trades!$C:$C,$B4)-1, IF(HK4="Sale",SUMIFS(Trades!$H:$H,Trades!$B:$B,HK$1,Trades!$E:$E,"Sale",Trades!$C:$C,$B4)/GZ4-1))) ->  | HQ4: =IF(HK4="Hold",IFERROR((((GZ4-SUMIFS(Trades!$H:$H,Trades!$B:$B,HK$1,Trades!$C:$C,$B4,Trades!$E:$E,"Sale"))/(GZ4+SUMIFS(Trades!$H:$H,Trades!$B:$B,HK$1,Trades!$C:$C,$B4,Trades!$E:$E,"Purchase")))*VLOOKUP(HK$1,Benchmark!$H$6:$M$200,4,FALSE)),0) +IFERROR(((SUMIFS(Trades!$H:$H,Trades!$B:$B,HK$1,Trades!$C:$C,$B4,Trades!$E:$E,"Purchase")/(GZ4+SUMIFS(Trades!$H:$H,Trades!$B:$B,HK$1,Trades!$C:$C,$B4,Trades!$E:$E,"Purchase")))*VLOOKUP(SUMIFS(Trades!$A:$A,Trades!$B:$B,HK$1,Trades!$C:$C,$B4,Trades!$E:$E,"Purchase"),Benchmark!$H$6:$M$200,6,FALSE)),0) +IFERROR(((SUMIFS(Trades!$H:$H,Trades!$B:$B,HK$1,Trades!$C:$C,$B4,Trades!$E:$E,"Sale")/(GZ4+SUMIFS(Trades!$H:$H,Trades!$B:$B,HK$1,Trades!$C:$C,$B4,Trades!$E:$E,"Purchase")))*VLOOKUP(SUMIFS(Trades!$A:$A,Trades!$B:$B,HK$1,Trades!$C:$C,$B4,Trades!$E:$E,"Sale"),Benchmark!$H$6:$M$200,4,FALSE)),0), IF(HK4="Purchase",VLOOKUP(SUMIFS(Trades!$A:$A,Trades!$B:$B,HK$1,Trades!$C:$C,$B4,Trades!$E:$E,HK4,Trades!$E:$E,"Purchase"),Benchmark!$H$6:$M$200,6,FALSE), IF(HK4="Sale",VLOOKUP(SUMIFS(Trades!$A:$A,Trades!$B:$B,HK$1,Trades!$C:$C,$B4,Trades!$E:$E,HK4,Trades!$E:$E,"Sale"),Benchmark!$H$6:$M$200,4,FALSE)))) -> 0 | HR4: =IF(HK4="Hold",((GZ4-SUMIFS(Trades!$H:$H,Trades!$B:$B,HK$1,Trades!$C:$C,$B4,Trades!$E:$E,"Sale"))*(1+VLOOKUP(HK$1,Benchmark!$H$6:$M$200,4,FALSE))) +IFERROR((SUMIFS(Trades!$H:$H,Trades!$B:$B,HK$1,Trades!$C:$C,$B4,Trades!$E:$E,"Purchase")*(1+VLOOKUP(SUMIFS(Trades!$A:$A,Trades!$B:$B,HK$1,Trades!$C:$C,$B4,Trades!$E:$E,"Purchase"),Benchmark!$H$6:$M$200,4,FALSE))),0), IF(HK4="Purchase",SUMIFS(Trades!$H:$H,Trades!$B:$B,HK$1,Trades!$C:$C,$B4,Trades!$E:$E,"Purchase")*(1+HQ4), IF(HK4="Sale",0))) ->  | HV4: 0.03578279527 | HW4: 68016.17396 | HZ4: Hold | IA4: =HL4+SUMIFS(Trades!$H:$H,Trades!$C:$C,$B4,Trades!$E:$E,"Purchase",Trades!$B:$B,HZ$1)-SUMIFS(Trades!$H:$H,Trades!$C:$C,$B4,Trades!$E:$E,"Sale",Trades!$B:$B,HZ$1) -> 65666.445 | IB4: #N/A N/A | IC4: =HN4+SUMIFS(Trades!$F:$F,Trades!$C:$C,$B4,Trades!$B:$B,HZ$1,Trades!$E:$E,"Purchase")-SUMIFS(Trades!$F:$F,Trades!$C:$C,$B4,Trades!$B:$B,HZ$1,Trades!$E:$E,"Sale") -> 1950 | IE4: =IF(HZ4="Hold",(ID4)/(HO4+SUMIFS(Trades!$H:$H,Trades!$B:$B,HZ$1,Trades!$E:$E,"Purchase",Trades!$C:$C,$B4))-1, IF(HZ4="Purchase",ID4/SUMIFS(Trades!$H:$H,Trades!$B:$B,HZ$1,Trades!$E:$E,"Purchase",Trades!$C:$C,$B4)-1, IF(HZ4="Sale",SUMIFS(Trades!$H:$H,Trades!$B:$B,HZ$1,Trades!$E:$E,"Sale",Trades!$C:$C,$B4)/HO4-1))) ->  | IF4: =IF(HZ4="Hold",IFERROR((((HO4-SUMIFS(Trades!$H:$H,Trades!$B:$B,HZ$1,Trades!$C:$C,$B4,Trades!$E:$E,"Sale"))/(HO4+SUMIFS(Trades!$H:$H,Trades!$B:$B,HZ$1,Trades!$C:$C,$B4,Trades!$E:$E,"Purchase")))*VLOOKUP(HZ$1,Benchmark!$H$6:$M$200,4,FALSE)),0) +IFERROR(((SUMIFS(Trades!$H:$H,Trades!$B:$B,HZ$1,Trades!$C:$C,$B4,Trades!$E:$E,"Purchase")/(HO4+SUMIFS(Trades!$H:$H,Trades!$B:$B,HZ$1,Trades!$C:$C,$B4,Trades!$E:$E,"Purchase")))*VLOOKUP(SUMIFS(Trades!$A:$A,Trades!$B:$B,HZ$1,Trades!$C:$C,$B4,Trades!$E:$E,"Purchase"),Benchmark!$H$6:$M$200,6,FALSE)),0) +IFERROR(((SUMIFS(Trades!$H:$H,Trades!$B:$B,HZ$1,Trades!$C:$C,$B4,Trades!$E:$E,"Sale")/(HO4+SUMIFS(Trades!$H:$H,Trades!$B:$B,HZ$1,Trades!$C:$C,$B4,Trades!$E:$E,"Purchase")))*VLOOKUP(SUMIFS(Trades!$A:$A,Trades!$B:$B,HZ$1,Trades!$C:$C,$B4,Trades!$E:$E,"Sale"),Benchmark!$H$6:$M$200,4,FALSE)),0), IF(HZ4="Purchase",VLOOKUP(SUMIFS(Trades!$A:$A,Trades!$B:$B,HZ$1,Trades!$C:$C,$B4,Trades!$E:$E,HZ4,Trades!$E:$E,"Purchase"),Benchmark!$H$6:$M$200,6,FALSE), IF(HZ4="Sale",VLOOKUP(SUMIFS(Trades!$A:$A,Trades!$B:$B,HZ$1,Trades!$C:$C,$B4,Trades!$E:$E,HZ4,Trades!$E:$E,"Sale"),Benchmark!$H$6:$M$200,4,FALSE)))) -> 0 | IG4: =IF(HZ4="Hold",((HO4-SUMIFS(Trades!$H:$H,Trades!$B:$B,HZ$1,Trades!$C:$C,$B4,Trades!$E:$E,"Sale"))*(1+VLOOKUP(HZ$1,Benchmark!$H$6:$M$200,4,FALSE))) +IFERROR((SUMIFS(Trades!$H:$H,Trades!$B:$B,HZ$1,Trades!$C:$C,$B4,Trades!$E:$E,"Purchase")*(1+VLOOKUP(SUMIFS(Trades!$A:$A,Trades!$B:$B,HZ$1,Trades!$C:$C,$B4,Trades!$E:$E,"Purchase"),Benchmark!$H$6:$M$200,4,FALSE))),0), IF(HZ4="Purchase",SUMIFS(Trades!$H:$H,Trades!$B:$B,HZ$1,Trades!$C:$C,$B4,Trades!$E:$E,"Purchase")*(1+IF4), IF(HZ4="Sale",0))) ->  | IK4: 0.03578279527 | IL4: 68016.17396 | IO4: Hold | IP4: =IA4+SUMIFS(Trades!$H:$H,Trades!$C:$C,$B4,Trades!$E:$E,"Purchase",Trades!$B:$B,IO$1)-SUMIFS(Trades!$H:$H,Trades!$C:$C,$B4,Trades!$E:$E,"Sale",Trades!$B:$B,IO$1) -> 65666.445 | IQ4: #N/A N/A | IR4: =IC4+SUMIFS(Trades!$F:$F,Trades!$C:$C,$B4,Trades!$B:$B,IO$1,Trades!$E:$E,"Purchase")-SUMIFS(Trades!$F:$F,Trades!$C:$C,$B4,Trades!$B:$B,IO$1,Trades!$E:$E,"Sale") -> 1950 | IT4: =IF(IO4="Hold",(IS4)/(ID4+SUMIFS(Trades!$H:$H,Trades!$B:$B,IO$1,Trades!$E:$E,"Purchase",Trades!$C:$C,$B4))-1, IF(IO4="Purchase",IS4/SUMIFS(Trades!$H:$H,Trades!$B:$B,IO$1,Trades!$E:$E,"Purchase",Trades!$C:$C,$B4)-1, IF(IO4="Sale",SUMIFS(Trades!$H:$H,Trades!$B:$B,IO$1,Trades!$E:$E,"Sale",Trades!$C:$C,$B4)/ID4-1))) ->  | IU4: =IF(IO4="Hold",IFERROR((((ID4-SUMIFS(Trades!$H:$H,Trades!$B:$B,IO$1,Trades!$C:$C,$B4,Trades!$E:$E,"Sale"))/(ID4+SUMIFS(Trades!$H:$H,Trades!$B:$B,IO$1,Trades!$C:$C,$B4,Trades!$E:$E,"Purchase")))*VLOOKUP(IO$1,Benchmark!$H$6:$M$200,4,FALSE)),0) +IFERROR(((SUMIFS(Trades!$H:$H,Trades!$B:$B,IO$1,Trades!$C:$C,$B4,Trades!$E:$E,"Purchase")/(ID4+SUMIFS(Trades!$H:$H,Trades!$B:$B,IO$1,Trades!$C:$C,$B4,Trades!$E:$E,"Purchase")))*VLOOKUP(SUMIFS(Trades!$A:$A,Trades!$B:$B,IO$1,Trades!$C:$C,$B4,Trades!$E:$E,"Purchase"),Benchmark!$H$6:$M$200,6,FALSE)),0) +IFERROR(((SUMIFS(Trades!$H:$H,Trades!$B:$B,IO$1,Trades!$C:$C,$B4,Trades!$E:$E,"Sale")/(ID4+SUMIFS(Trades!$H:$H,Trades!$B:$B,IO$1,Trades!$C:$C,$B4,Trades!$E:$E,"Purchase")))*VLOOKUP(SUMIFS(Trades!$A:$A,Trades!$B:$B,IO$1,Trades!$C:$C,$B4,Trades!$E:$E,"Sale"),Benchmark!$H$6:$M$200,4,FALSE)),0), IF(IO4="Purchase",VLOOKUP(SUMIFS(Trades!$A:$A,Trades!$B:$B,IO$1,Trades!$C:$C,$B4,Trades!$E:$E,IO4,Trades!$E:$E,"Purchase"),Benchmark!$H$6:$M$200,6,FALSE), IF(IO4="Sale",VLOOKUP(SUMIFS(Trades!$A:$A,Trades!$B:$B,IO$1,Trades!$C:$C,$B4,Trades!$E:$E,IO4,Trades!$E:$E,"Sale"),Benchmark!$H$6:$M$200,4,FALSE)))) -> 0 | IV4: =IF(IO4="Hold",((ID4-SUMIFS(Trades!$H:$H,Trades!$B:$B,IO$1,Trades!$C:$C,$B4,Trades!$E:$E,"Sale"))*(1+VLOOKUP(IO$1,Benchmark!$H$6:$M$200,4,FALSE))) +IFERROR((SUMIFS(Trades!$H:$H,Trades!$B:$B,IO$1,Trades!$C:$C,$B4,Trades!$E:$E,"Purchase")*(1+VLOOKUP(SUMIFS(Trades!$A:$A,Trades!$B:$B,IO$1,Trades!$C:$C,$B4,Trades!$E:$E,"Purchase"),Benchmark!$H$6:$M$200,4,FALSE))),0), IF(IO4="Purchase",SUMIFS(Trades!$H:$H,Trades!$B:$B,IO$1,Trades!$C:$C,$B4,Trades!$E:$E,"Purchase")*(1+IU4), IF(IO4="Sale",0))) ->  | IZ4: 0.03578279527 | JA4: 68016.17396 | JD4: Hold | JE4: =IP4+SUMIFS(Trades!$H:$H,Trades!$C:$C,$B4,Trades!$E:$E,"Purchase",Trades!$B:$B,JD$1)-SUMIFS(Trades!$H:$H,Trades!$C:$C,$B4,Trades!$E:$E,"Sale",Trades!$B:$B,JD$1) -> 65666.445 | JF4: #N/A N/A | JG4: =IR4+SUMIFS(Trades!$F:$F,Trades!$C:$C,$B4,Trades!$B:$B,JD$1,Trades!$E:$E,"Purchase")-SUMIFS(Trades!$F:$F,Trades!$C:$C,$B4,Trades!$B:$B,JD$1,Trades!$E:$E,"Sale") -> 1950 | JI4: =IF(JD4="Hold",(JH4)/(IS4+SUMIFS(Trades!$H:$H,Trades!$B:$B,JD$1,Trades!$E:$E,"Purchase",Trades!$C:$C,$B4))-1, IF(JD4="Purchase",JH4/SUMIFS(Trades!$H:$H,Trades!$B:$B,JD$1,Trades!$E:$E,"Purchase",Trades!$C:$C,$B4)-1, IF(JD4="Sale",SUMIFS(Trades!$H:$H,Trades!$B:$B,JD$1,Trades!$E:$E,"Sale",Trades!$C:$C,$B4)/IS4-1))) ->  | JJ4: =IF(JD4="Hold",IFERROR((((IS4-SUMIFS(Trades!$H:$H,Trades!$B:$B,JD$1,Trades!$C:$C,$B4,Trades!$E:$E,"Sale"))/(IS4+SUMIFS(Trades!$H:$H,Trades!$B:$B,JD$1,Trades!$C:$C,$B4,Trades!$E:$E,"Purchase")))*VLOOKUP(JD$1,Benchmark!$H$6:$M$200,4,FALSE)),0) +IFERROR(((SUMIFS(Trades!$H:$H,Trades!$B:$B,JD$1,Trades!$C:$C,$B4,Trades!$E:$E,"Purchase")/(IS4+SUMIFS(Trades!$H:$H,Trades!$B:$B,JD$1,Trades!$C:$C,$B4,Trades!$E:$E,"Purchase")))*VLOOKUP(SUMIFS(Trades!$A:$A,Trades!$B:$B,JD$1,Trades!$C:$C,$B4,Trades!$E:$E,"Purchase"),Benchmark!$H$6:$M$200,6,FALSE)),0) +IFERROR(((SUMIFS(Trades!$H:$H,Trades!$B:$B,JD$1,Trades!$C:$C,$B4,Trades!$E:$E,"Sale")/(IS4+SUMIFS(Trades!$H:$H,Trades!$B:$B,JD$1,Trades!$C:$C,$B4,Trades!$E:$E,"Purchase")))*VLOOKUP(SUMIFS(Trades!$A:$A,Trades!$B:$B,JD$1,Trades!$C:$C,$B4,Trades!$E:$E,"Sale"),Benchmark!$H$6:$M$200,4,FALSE)),0), IF(JD4="Purchase",VLOOKUP(SUMIFS(Trades!$A:$A,Trades!$B:$B,JD$1,Trades!$C:$C,$B4,Trades!$E:$E,JD4,Trades!$E:$E,"Purchase"),Benchmark!$H$6:$M$200,6,FALSE), IF(JD4="Sale",VLOOKUP(SUMIFS(Trades!$A:$A,Trades!$B:$B,JD$1,Trades!$C:$C,$B4,Trades!$E:$E,JD4,Trades!$E:$E,"Sale"),Benchmark!$H$6:$M$200,4,FALSE)))) -> 0 | JK4: =IF(JD4="Hold",((IS4-SUMIFS(Trades!$H:$H,Trades!$B:$B,JD$1,Trades!$C:$C,$B4,Trades!$E:$E,"Sale"))*(1+VLOOKUP(JD$1,Benchmark!$H$6:$M$200,4,FALSE))) +IFERROR((SUMIFS(Trades!$H:$H,Trades!$B:$B,JD$1,Trades!$C:$C,$B4,Trades!$E:$E,"Purchase")*(1+VLOOKUP(SUMIFS(Trades!$A:$A,Trades!$B:$B,JD$1,Trades!$C:$C,$B4,Trades!$E:$E,"Purchase"),Benchmark!$H$6:$M$200,4,FALSE))),0), IF(JD4="Purchase",SUMIFS(Trades!$H:$H,Trades!$B:$B,JD$1,Trades!$C:$C,$B4,Trades!$E:$E,"Purchase")*(1+JJ4), IF(JD4="Sale",0))) ->  | JO4: 0.03578279527 | JP4: 68016.17396 | JS4: Hold | JT4: =JE4+SUMIFS(Trades!$H:$H,Trades!$C:$C,$B4,Trades!$E:$E,"Purchase",Trades!$B:$B,JS$1)-SUMIFS(Trades!$H:$H,Trades!$C:$C,$B4,Trades!$E:$E,"Sale",Trades!$B:$B,JS$1) -> 65666.445 | JU4: #N/A N/A | JV4: =JG4+SUMIFS(Trades!$F:$F,Trades!$C:$C,$B4,Trades!$B:$B,JS$1,Trades!$E:$E,"Purchase")-SUMIFS(Trades!$F:$F,Trades!$C:$C,$B4,Trades!$B:$B,JS$1,Trades!$E:$E,"Sale") -> 1950 | JX4: =IF(JS4="Hold",(JW4)/(JH4+SUMIFS(Trades!$H:$H,Trades!$B:$B,JS$1,Trades!$E:$E,"Purchase",Trades!$C:$C,$B4))-1, IF(JS4="Purchase",JW4/SUMIFS(Trades!$H:$H,Trades!$B:$B,JS$1,Trades!$E:$E,"Purchase",Trades!$C:$C,$B4)-1, IF(JS4="Sale",SUMIFS(Trades!$H:$H,Trades!$B:$B,JS$1,Trades!$E:$E,"Sale",Trades!$C:$C,$B4)/JH4-1))) ->  | JY4: =IF(JS4="Hold",IFERROR((((JH4-SUMIFS(Trades!$H:$H,Trades!$B:$B,JS$1,Trades!$C:$C,$B4,Trades!$E:$E,"Sale"))/(JH4+SUMIFS(Trades!$H:$H,Trades!$B:$B,JS$1,Trades!$C:$C,$B4,Trades!$E:$E,"Purchase")))*VLOOKUP(JS$1,Benchmark!$H$6:$M$200,4,FALSE)),0) +IFERROR(((SUMIFS(Trades!$H:$H,Trades!$B:$B,JS$1,Trades!$C:$C,$B4,Trades!$E:$E,"Purchase")/(JH4+SUMIFS(Trades!$H:$H,Trades!$B:$B,JS$1,Trades!$C:$C,$B4,Trades!$E:$E,"Purchase")))*VLOOKUP(SUMIFS(Trades!$A:$A,Trades!$B:$B,JS$1,Trades!$C:$C,$B4,Trades!$E:$E,"Purchase"),Benchmark!$H$6:$M$200,6,FALSE)),0) +IFERROR(((SUMIFS(Trades!$H:$H,Trades!$B:$B,JS$1,Trades!$C:$C,$B4,Trades!$E:$E,"Sale")/(JH4+SUMIFS(Trades!$H:$H,Trades!$B:$B,JS$1,Trades!$C:$C,$B4,Trades!$E:$E,"Purchase")))*VLOOKUP(SUMIFS(Trades!$A:$A,Trades!$B:$B,JS$1,Trades!$C:$C,$B4,Trades!$E:$E,"Sale"),Benchmark!$H$6:$M$200,4,FALSE)),0), IF(JS4="Purchase",VLOOKUP(SUMIFS(Trades!$A:$A,Trades!$B:$B,JS$1,Trades!$C:$C,$B4,Trades!$E:$E,JS4,Trades!$E:$E,"Purchase"),Benchmark!$H$6:$M$200,6,FALSE), IF(JS4="Sale",VLOOKUP(SUMIFS(Trades!$A:$A,Trades!$B:$B,JS$1,Trades!$C:$C,$B4,Trades!$E:$E,JS4,Trades!$E:$E,"Sale"),Benchmark!$H$6:$M$200,4,FALSE)))) -> 0 | JZ4: =IF(JS4="Hold",((JH4-SUMIFS(Trades!$H:$H,Trades!$B:$B,JS$1,Trades!$C:$C,$B4,Trades!$E:$E,"Sale"))*(1+VLOOKUP(JS$1,Benchmark!$H$6:$M$200,4,FALSE))) +IFERROR((SUMIFS(Trades!$H:$H,Trades!$B:$B,JS$1,Trades!$C:$C,$B4,Trades!$E:$E,"Purchase")*(1+VLOOKUP(SUMIFS(Trades!$A:$A,Trades!$B:$B,JS$1,Trades!$C:$C,$B4,Trades!$E:$E,"Purchase"),Benchmark!$H$6:$M$200,4,FALSE))),0), IF(JS4="Purchase",SUMIFS(Trades!$H:$H,Trades!$B:$B,JS$1,Trades!$C:$C,$B4,Trades!$E:$E,"Purchase")*(1+JY4), IF(JS4="Sale",0))) ->  | KD4: 0.03578279527 | KE4: 68016.17396 | KH4: Hold | KI4: =JT4+SUMIFS(Trades!$H:$H,Trades!$C:$C,$B4,Trades!$E:$E,"Purchase",Trades!$B:$B,KH$1)-SUMIFS(Trades!$H:$H,Trades!$C:$C,$B4,Trades!$E:$E,"Sale",Trades!$B:$B,KH$1) -> 65666.445 | KJ4: #N/A N/A | KK4: =JV4+SUMIFS(Trades!$F:$F,Trades!$C:$C,$B4,Trades!$B:$B,KH$1,Trades!$E:$E,"Purchase")-SUMIFS(Trades!$F:$F,Trades!$C:$C,$B4,Trades!$B:$B,KH$1,Trades!$E:$E,"Sale") -> 1950 | KM4: =IF(KH4="Hold",(KL4)/(JW4+SUMIFS(Trades!$H:$H,Trades!$B:$B,KH$1,Trades!$E:$E,"Purchase",Trades!$C:$C,$B4))-1, IF(KH4="Purchase",KL4/SUMIFS(Trades!$H:$H,Trades!$B:$B,KH$1,Trades!$E:$E,"Purchase",Trades!$C:$C,$B4)-1, IF(KH4="Sale",SUMIFS(Trades!$H:$H,Trades!$B:$B,KH$1,Trades!$E:$E,"Sale",Trades!$C:$C,$B4)/JW4-1))) ->  | KN4: =IF(KH4="Hold",IFERROR((((JW4-SUMIFS(Trades!$H:$H,Trades!$B:$B,KH$1,Trades!$C:$C,$B4,Trades!$E:$E,"Sale"))/(JW4+SUMIFS(Trades!$H:$H,Trades!$B:$B,KH$1,Trades!$C:$C,$B4,Trades!$E:$E,"Purchase")))*VLOOKUP(KH$1,Benchmark!$H$6:$M$200,4,FALSE)),0) +IFERROR(((SUMIFS(Trades!$H:$H,Trades!$B:$B,KH$1,Trades!$C:$C,$B4,Trades!$E:$E,"Purchase")/(JW4+SUMIFS(Trades!$H:$H,Trades!$B:$B,KH$1,Trades!$C:$C,$B4,Trades!$E:$E,"Purchase")))*VLOOKUP(SUMIFS(Trades!$A:$A,Trades!$B:$B,KH$1,Trades!$C:$C,$B4,Trades!$E:$E,"Purchase"),Benchmark!$H$6:$M$200,6,FALSE)),0) +IFERROR(((SUMIFS(Trades!$H:$H,Trades!$B:$B,KH$1,Trades!$C:$C,$B4,Trades!$E:$E,"Sale")/(JW4+SUMIFS(Trades!$H:$H,Trades!$B:$B,KH$1,Trades!$C:$C,$B4,Trades!$E:$E,"Purchase")))*VLOOKUP(SUMIFS(Trades!$A:$A,Trades!$B:$B,KH$1,Trades!$C:$C,$B4,Trades!$E:$E,"Sale"),Benchmark!$H$6:$M$200,4,FALSE)),0), IF(KH4="Purchase",VLOOKUP(SUMIFS(Trades!$A:$A,Trades!$B:$B,KH$1,Trades!$C:$C,$B4,Trades!$E:$E,KH4,Trades!$E:$E,"Purchase"),Benchmark!$H$6:$M$200,6,FALSE), IF(KH4="Sale",VLOOKUP(SUMIFS(Trades!$A:$A,Trades!$B:$B,KH$1,Trades!$C:$C,$B4,Trades!$E:$E,KH4,Trades!$E:$E,"Sale"),Benchmark!$H$6:$M$200,4,FALSE)))) -> 0 | KO4: =IF(KH4="Hold",((JW4-SUMIFS(Trades!$H:$H,Trades!$B:$B,KH$1,Trades!$C:$C,$B4,Trades!$E:$E,"Sale"))*(1+VLOOKUP(KH$1,Benchmark!$H$6:$M$200,4,FALSE))) +IFERROR((SUMIFS(Trades!$H:$H,Trades!$B:$B,KH$1,Trades!$C:$C,$B4,Trades!$E:$E,"Purchase")*(1+VLOOKUP(SUMIFS(Trades!$A:$A,Trades!$B:$B,KH$1,Trades!$C:$C,$B4,Trades!$E:$E,"Purchase"),Benchmark!$H$6:$M$200,4,FALSE))),0), IF(KH4="Purchase",SUMIFS(Trades!$H:$H,Trades!$B:$B,KH$1,Trades!$C:$C,$B4,Trades!$E:$E,"Purchase")*(1+KN4), IF(KH4="Sale",0))) ->  | KS4: 0.03578279527 | KT4: 68016.17396 | KW4: Hold | KX4: =KI4+SUMIFS(Trades!$H:$H,Trades!$C:$C,$B4,Trades!$E:$E,"Purchase",Trades!$B:$B,KW$1)-SUMIFS(Trades!$H:$H,Trades!$C:$C,$B4,Trades!$E:$E,"Sale",Trades!$B:$B,KW$1) -> 65666.445 | KY4: #N/A N/A | KZ4: =KK4+SUMIFS(Trades!$F:$F,Trades!$C:$C,$B4,Trades!$B:$B,KW$1,Trades!$E:$E,"Purchase")-SUMIFS(Trades!$F:$F,Trades!$C:$C,$B4,Trades!$B:$B,KW$1,Trades!$E:$E,"Sale") -> 1950 | LB4: =IF(KW4="Hold",(LA4)/(KL4+SUMIFS(Trades!$H:$H,Trades!$B:$B,KW$1,Trades!$E:$E,"Purchase",Trades!$C:$C,$B4))-1, IF(KW4="Purchase",LA4/SUMIFS(Trades!$H:$H,Trades!$B:$B,KW$1,Trades!$E:$E,"Purchase",Trades!$C:$C,$B4)-1, IF(KW4="Sale",SUMIFS(Trades!$H:$H,Trades!$B:$B,KW$1,Trades!$E:$E,"Sale",Trades!$C:$C,$B4)/KL4-1))) ->  | LC4: =IF(KW4="Hold",IFERROR((((KL4-SUMIFS(Trades!$H:$H,Trades!$B:$B,KW$1,Trades!$C:$C,$B4,Trades!$E:$E,"Sale"))/(KL4+SUMIFS(Trades!$H:$H,Trades!$B:$B,KW$1,Trades!$C:$C,$B4,Trades!$E:$E,"Purchase")))*VLOOKUP(KW$1,Benchmark!$H$6:$M$200,4,FALSE)),0) +IFERROR(((SUMIFS(Trades!$H:$H,Trades!$B:$B,KW$1,Trades!$C:$C,$B4,Trades!$E:$E,"Purchase")/(KL4+SUMIFS(Trades!$H:$H,Trades!$B:$B,KW$1,Trades!$C:$C,$B4,Trades!$E:$E,"Purchase")))*VLOOKUP(SUMIFS(Trades!$A:$A,Trades!$B:$B,KW$1,Trades!$C:$C,$B4,Trades!$E:$E,"Purchase"),Benchmark!$H$6:$M$200,6,FALSE)),0) +IFERROR(((SUMIFS(Trades!$H:$H,Trades!$B:$B,KW$1,Trades!$C:$C,$B4,Trades!$E:$E,"Sale")/(KL4+SUMIFS(Trades!$H:$H,Trades!$B:$B,KW$1,Trades!$C:$C,$B4,Trades!$E:$E,"Purchase")))*VLOOKUP(SUMIFS(Trades!$A:$A,Trades!$B:$B,KW$1,Trades!$C:$C,$B4,Trades!$E:$E,"Sale"),Benchmark!$H$6:$M$200,4,FALSE)),0), IF(KW4="Purchase",VLOOKUP(SUMIFS(Trades!$A:$A,Trades!$B:$B,KW$1,Trades!$C:$C,$B4,Trades!$E:$E,KW4,Trades!$E:$E,"Purchase"),Benchmark!$H$6:$M$200,6,FALSE), IF(KW4="Sale",VLOOKUP(SUMIFS(Trades!$A:$A,Trades!$B:$B,KW$1,Trades!$C:$C,$B4,Trades!$E:$E,KW4,Trades!$E:$E,"Sale"),Benchmark!$H$6:$M$200,4,FALSE)))) -> 0 | LD4: =IF(KW4="Hold",((KL4-SUMIFS(Trades!$H:$H,Trades!$B:$B,KW$1,Trades!$C:$C,$B4,Trades!$E:$E,"Sale"))*(1+VLOOKUP(KW$1,Benchmark!$H$6:$M$200,4,FALSE))) +IFERROR((SUMIFS(Trades!$H:$H,Trades!$B:$B,KW$1,Trades!$C:$C,$B4,Trades!$E:$E,"Purchase")*(1+VLOOKUP(SUMIFS(Trades!$A:$A,Trades!$B:$B,KW$1,Trades!$C:$C,$B4,Trades!$E:$E,"Purchase"),Benchmark!$H$6:$M$200,4,FALSE))),0), IF(KW4="Purchase",SUMIFS(Trades!$H:$H,Trades!$B:$B,KW$1,Trades!$C:$C,$B4,Trades!$E:$E,"Purchase")*(1+LC4), IF(KW4="Sale",0))) ->  | LH4: 0.03578279527 | LI4: 68016.17396 | LL4: Hold | LM4: =KX4+SUMIFS(Trades!$H:$H,Trades!$C:$C,$B4,Trades!$E:$E,"Purchase",Trades!$B:$B,LL$1)-SUMIFS(Trades!$H:$H,Trades!$C:$C,$B4,Trades!$E:$E,"Sale",Trades!$B:$B,LL$1) -> 65666.445 | LN4: #N/A N/A | LO4: =KZ4+SUMIFS(Trades!$F:$F,Trades!$C:$C,$B4,Trades!$B:$B,LL$1,Trades!$E:$E,"Purchase")-SUMIFS(Trades!$F:$F,Trades!$C:$C,$B4,Trades!$B:$B,LL$1,Trades!$E:$E,"Sale") -> 1950 | LQ4: =IF(LL4="Hold",(LP4)/(LA4+SUMIFS(Trades!$H:$H,Trades!$B:$B,LL$1,Trades!$E:$E,"Purchase",Trades!$C:$C,$B4))-1, IF(LL4="Purchase",LP4/SUMIFS(Trades!$H:$H,Trades!$B:$B,LL$1,Trades!$E:$E,"Purchase",Trades!$C:$C,$B4)-1, IF(LL4="Sale",SUMIFS(Trades!$H:$H,Trades!$B:$B,LL$1,Trades!$E:$E,"Sale",Trades!$C:$C,$B4)/LA4-1))) ->  | LR4: =IF(LL4="Hold",IFERROR((((LA4-SUMIFS(Trades!$H:$H,Trades!$B:$B,LL$1,Trades!$C:$C,$B4,Trades!$E:$E,"Sale"))/(LA4+SUMIFS(Trades!$H:$H,Trades!$B:$B,LL$1,Trades!$C:$C,$B4,Trades!$E:$E,"Purchase")))*VLOOKUP(LL$1,Benchmark!$H$6:$M$200,4,FALSE)),0) +IFERROR(((SUMIFS(Trades!$H:$H,Trades!$B:$B,LL$1,Trades!$C:$C,$B4,Trades!$E:$E,"Purchase")/(LA4+SUMIFS(Trades!$H:$H,Trades!$B:$B,LL$1,Trades!$C:$C,$B4,Trades!$E:$E,"Purchase")))*VLOOKUP(SUMIFS(Trades!$A:$A,Trades!$B:$B,LL$1,Trades!$C:$C,$B4,Trades!$E:$E,"Purchase"),Benchmark!$H$6:$M$200,6,FALSE)),0) +IFERROR(((SUMIFS(Trades!$H:$H,Trades!$B:$B,LL$1,Trades!$C:$C,$B4,Trades!$E:$E,"Sale")/(LA4+SUMIFS(Trades!$H:$H,Trades!$B:$B,LL$1,Trades!$C:$C,$B4,Trades!$E:$E,"Purchase")))*VLOOKUP(SUMIFS(Trades!$A:$A,Trades!$B:$B,LL$1,Trades!$C:$C,$B4,Trades!$E:$E,"Sale"),Benchmark!$H$6:$M$200,4,FALSE)),0), IF(LL4="Purchase",VLOOKUP(SUMIFS(Trades!$A:$A,Trades!$B:$B,LL$1,Trades!$C:$C,$B4,Trades!$E:$E,LL4,Trades!$E:$E,"Purchase"),Benchmark!$H$6:$M$200,6,FALSE), IF(LL4="Sale",VLOOKUP(SUMIFS(Trades!$A:$A,Trades!$B:$B,LL$1,Trades!$C:$C,$B4,Trades!$E:$E,LL4,Trades!$E:$E,"Sale"),Benchmark!$H$6:$M$200,4,FALSE)))) -> 0 | LS4: =IF(LL4="Hold",((LA4-SUMIFS(Trades!$H:$H,Trades!$B:$B,LL$1,Trades!$C:$C,$B4,Trades!$E:$E,"Sale"))*(1+VLOOKUP(LL$1,Benchmark!$H$6:$M$200,4,FALSE))) +IFERROR((SUMIFS(Trades!$H:$H,Trades!$B:$B,LL$1,Trades!$C:$C,$B4,Trades!$E:$E,"Purchase")*(1+VLOOKUP(SUMIFS(Trades!$A:$A,Trades!$B:$B,LL$1,Trades!$C:$C,$B4,Trades!$E:$E,"Purchase"),Benchmark!$H$6:$M$200,4,FALSE))),0), IF(LL4="Purchase",SUMIFS(Trades!$H:$H,Trades!$B:$B,LL$1,Trades!$C:$C,$B4,Trades!$E:$E,"Purchase")*(1+LR4), IF(LL4="Sale",0))) ->  | LW4: 0.03578279527 | LX4: 68016.17396 | MA4: Hold | MB4: =LM4+SUMIFS(Trades!$H:$H,Trades!$C:$C,$B4,Trades!$E:$E,"Purchase",Trades!$B:$B,MA$1)-SUMIFS(Trades!$H:$H,Trades!$C:$C,$B4,Trades!$E:$E,"Sale",Trades!$B:$B,MA$1) -> 65666.445 | MC4: #N/A N/A | MD4: =LO4+SUMIFS(Trades!$F:$F,Trades!$C:$C,$B4,Trades!$B:$B,MA$1,Trades!$E:$E,"Purchase")-SUMIFS(Trades!$F:$F,Trades!$C:$C,$B4,Trades!$B:$B,MA$1,Trades!$E:$E,"Sale") -> 1950 | MF4: =IF(MA4="Hold",(ME4)/(LP4+SUMIFS(Trades!$H:$H,Trades!$B:$B,MA$1,Trades!$E:$E,"Purchase",Trades!$C:$C,$B4))-1, IF(MA4="Purchase",ME4/SUMIFS(Trades!$H:$H,Trades!$B:$B,MA$1,Trades!$E:$E,"Purchase",Trades!$C:$C,$B4)-1, IF(MA4="Sale",SUMIFS(Trades!$H:$H,Trades!$B:$B,MA$1,Trades!$E:$E,"Sale",Trades!$C:$C,$B4)/LP4-1))) ->  | MG4: =IF(MA4="Hold",IFERROR((((LP4-SUMIFS(Trades!$H:$H,Trades!$B:$B,MA$1,Trades!$C:$C,$B4,Trades!$E:$E,"Sale"))/(LP4+SUMIFS(Trades!$H:$H,Trades!$B:$B,MA$1,Trades!$C:$C,$B4,Trades!$E:$E,"Purchase")))*VLOOKUP(MA$1,Benchmark!$H$6:$M$200,4,FALSE)),0) +IFERROR(((SUMIFS(Trades!$H:$H,Trades!$B:$B,MA$1,Trades!$C:$C,$B4,Trades!$E:$E,"Purchase")/(LP4+SUMIFS(Trades!$H:$H,Trades!$B:$B,MA$1,Trades!$C:$C,$B4,Trades!$E:$E,"Purchase")))*VLOOKUP(SUMIFS(Trades!$A:$A,Trades!$B:$B,MA$1,Trades!$C:$C,$B4,Trades!$E:$E,"Purchase"),Benchmark!$H$6:$M$200,6,FALSE)),0) +IFERROR(((SUMIFS(Trades!$H:$H,Trades!$B:$B,MA$1,Trades!$C:$C,$B4,Trades!$E:$E,"Sale")/(LP4+SUMIFS(Trades!$H:$H,Trades!$B:$B,MA$1,Trades!$C:$C,$B4,Trades!$E:$E,"Purchase")))*VLOOKUP(SUMIFS(Trades!$A:$A,Trades!$B:$B,MA$1,Trades!$C:$C,$B4,Trades!$E:$E,"Sale"),Benchmark!$H$6:$M$200,4,FALSE)),0), IF(MA4="Purchase",VLOOKUP(SUMIFS(Trades!$A:$A,Trades!$B:$B,MA$1,Trades!$C:$C,$B4,Trades!$E:$E,MA4,Trades!$E:$E,"Purchase"),Benchmark!$H$6:$M$200,6,FALSE), IF(MA4="Sale",VLOOKUP(SUMIFS(Trades!$A:$A,Trades!$B:$B,MA$1,Trades!$C:$C,$B4,Trades!$E:$E,MA4,Trades!$E:$E,"Sale"),Benchmark!$H$6:$M$200,4,FALSE)))) -> 0 | MH4: =IF(MA4="Hold",((LP4-SUMIFS(Trades!$H:$H,Trades!$B:$B,MA$1,Trades!$C:$C,$B4,Trades!$E:$E,"Sale"))*(1+VLOOKUP(MA$1,Benchmark!$H$6:$M$200,4,FALSE))) +IFERROR((SUMIFS(Trades!$H:$H,Trades!$B:$B,MA$1,Trades!$C:$C,$B4,Trades!$E:$E,"Purchase")*(1+VLOOKUP(SUMIFS(Trades!$A:$A,Trades!$B:$B,MA$1,Trades!$C:$C,$B4,Trades!$E:$E,"Purchase"),Benchmark!$H$6:$M$200,4,FALSE))),0), IF(MA4="Purchase",SUMIFS(Trades!$H:$H,Trades!$B:$B,MA$1,Trades!$C:$C,$B4,Trades!$E:$E,"Purchase")*(1+MG4), IF(MA4="Sale",0))) ->  | ML4: 0.03578279527 | MM4: 68016.17396 | MP4: Hold | MQ4: =MB4+SUMIFS(Trades!$H:$H,Trades!$C:$C,$B4,Trades!$E:$E,"Purchase",Trades!$B:$B,MP$1)-SUMIFS(Trades!$H:$H,Trades!$C:$C,$B4,Trades!$E:$E,"Sale",Trades!$B:$B,MP$1) -> 65666.445 | MR4: #N/A N/A | MS4: =MD4+SUMIFS(Trades!$F:$F,Trades!$C:$C,$B4,Trades!$B:$B,MP$1,Trades!$E:$E,"Purchase")-SUMIFS(Trades!$F:$F,Trades!$C:$C,$B4,Trades!$B:$B,MP$1,Trades!$E:$E,"Sale") -> 1950 | MU4: =IF(MP4="Hold",(MT4)/(ME4+SUMIFS(Trades!$H:$H,Trades!$B:$B,MP$1,Trades!$E:$E,"Purchase",Trades!$C:$C,$B4))-1, IF(MP4="Purchase",MT4/SUMIFS(Trades!$H:$H,Trades!$B:$B,MP$1,Trades!$E:$E,"Purchase",Trades!$C:$C,$B4)-1, IF(MP4="Sale",SUMIFS(Trades!$H:$H,Trades!$B:$B,MP$1,Trades!$E:$E,"Sale",Trades!$C:$C,$B4)/ME4-1))) ->  | MV4: =IF(MP4="Hold",IFERROR((((ME4-SUMIFS(Trades!$H:$H,Trades!$B:$B,MP$1,Trades!$C:$C,$B4,Trades!$E:$E,"Sale"))/(ME4+SUMIFS(Trades!$H:$H,Trades!$B:$B,MP$1,Trades!$C:$C,$B4,Trades!$E:$E,"Purchase")))*VLOOKUP(MP$1,Benchmark!$H$6:$M$200,4,FALSE)),0) +IFERROR(((SUMIFS(Trades!$H:$H,Trades!$B:$B,MP$1,Trades!$C:$C,$B4,Trades!$E:$E,"Purchase")/(ME4+SUMIFS(Trades!$H:$H,Trades!$B:$B,MP$1,Trades!$C:$C,$B4,Trades!$E:$E,"Purchase")))*VLOOKUP(SUMIFS(Trades!$A:$A,Trades!$B:$B,MP$1,Trades!$C:$C,$B4,Trades!$E:$E,"Purchase"),Benchmark!$H$6:$M$200,6,FALSE)),0) +IFERROR(((SUMIFS(Trades!$H:$H,Trades!$B:$B,MP$1,Trades!$C:$C,$B4,Trades!$E:$E,"Sale")/(ME4+SUMIFS(Trades!$H:$H,Trades!$B:$B,MP$1,Trades!$C:$C,$B4,Trades!$E:$E,"Purchase")))*VLOOKUP(SUMIFS(Trades!$A:$A,Trades!$B:$B,MP$1,Trades!$C:$C,$B4,Trades!$E:$E,"Sale"),Benchmark!$H$6:$M$200,4,FALSE)),0), IF(MP4="Purchase",VLOOKUP(SUMIFS(Trades!$A:$A,Trades!$B:$B,MP$1,Trades!$C:$C,$B4,Trades!$E:$E,MP4,Trades!$E:$E,"Purchase"),Benchmark!$H$6:$M$200,6,FALSE), IF(MP4="Sale",VLOOKUP(SUMIFS(Trades!$A:$A,Trades!$B:$B,MP$1,Trades!$C:$C,$B4,Trades!$E:$E,MP4,Trades!$E:$E,"Sale"),Benchmark!$H$6:$M$200,4,FALSE)))) -> 0 | MW4: =IF(MP4="Hold",((ME4-SUMIFS(Trades!$H:$H,Trades!$B:$B,MP$1,Trades!$C:$C,$B4,Trades!$E:$E,"Sale"))*(1+VLOOKUP(MP$1,Benchmark!$H$6:$M$200,4,FALSE))) +IFERROR((SUMIFS(Trades!$H:$H,Trades!$B:$B,MP$1,Trades!$C:$C,$B4,Trades!$E:$E,"Purchase")*(1+VLOOKUP(SUMIFS(Trades!$A:$A,Trades!$B:$B,MP$1,Trades!$C:$C,$B4,Trades!$E:$E,"Purchase"),Benchmark!$H$6:$M$200,4,FALSE))),0), IF(MP4="Purchase",SUMIFS(Trades!$H:$H,Trades!$B:$B,MP$1,Trades!$C:$C,$B4,Trades!$E:$E,"Purchase")*(1+MV4), IF(MP4="Sale",0))) ->  | NA4: 0.03578279527 | NB4: 68016.17396 | NE4: Hold | NF4: =MQ4+SUMIFS(Trades!$H:$H,Trades!$C:$C,$B4,Trades!$E:$E,"Purchase",Trades!$B:$B,NE$1)-SUMIFS(Trades!$H:$H,Trades!$C:$C,$B4,Trades!$E:$E,"Sale",Trades!$B:$B,NE$1) -> 65666.445 | NG4: #N/A N/A | NH4: =MS4+SUMIFS(Trades!$F:$F,Trades!$C:$C,$B4,Trades!$B:$B,NE$1,Trades!$E:$E,"Purchase")-SUMIFS(Trades!$F:$F,Trades!$C:$C,$B4,Trades!$B:$B,NE$1,Trades!$E:$E,"Sale") -> 1950 | NJ4: =IF(NE4="Hold",(NI4)/(MT4+SUMIFS(Trades!$H:$H,Trades!$B:$B,NE$1,Trades!$E:$E,"Purchase",Trades!$C:$C,$B4))-1, IF(NE4="Purchase",NI4/SUMIFS(Trades!$H:$H,Trades!$B:$B,NE$1,Trades!$E:$E,"Purchase",Trades!$C:$C,$B4)-1, IF(NE4="Sale",SUMIFS(Trades!$H:$H,Trades!$B:$B,NE$1,Trades!$E:$E,"Sale",Trades!$C:$C,$B4)/MT4-1))) ->  | NK4: =IF(NE4="Hold",IFERROR((((MT4-SUMIFS(Trades!$H:$H,Trades!$B:$B,NE$1,Trades!$C:$C,$B4,Trades!$E:$E,"Sale"))/(MT4+SUMIFS(Trades!$H:$H,Trades!$B:$B,NE$1,Trades!$C:$C,$B4,Trades!$E:$E,"Purchase")))*VLOOKUP(NE$1,Benchmark!$H$6:$M$200,4,FALSE)),0) +IFERROR(((SUMIFS(Trades!$H:$H,Trades!$B:$B,NE$1,Trades!$C:$C,$B4,Trades!$E:$E,"Purchase")/(MT4+SUMIFS(Trades!$H:$H,Trades!$B:$B,NE$1,Trades!$C:$C,$B4,Trades!$E:$E,"Purchase")))*VLOOKUP(SUMIFS(Trades!$A:$A,Trades!$B:$B,NE$1,Trades!$C:$C,$B4,Trades!$E:$E,"Purchase"),Benchmark!$H$6:$M$200,6,FALSE)),0) +IFERROR(((SUMIFS(Trades!$H:$H,Trades!$B:$B,NE$1,Trades!$C:$C,$B4,Trades!$E:$E,"Sale")/(MT4+SUMIFS(Trades!$H:$H,Trades!$B:$B,NE$1,Trades!$C:$C,$B4,Trades!$E:$E,"Purchase")))*VLOOKUP(SUMIFS(Trades!$A:$A,Trades!$B:$B,NE$1,Trades!$C:$C,$B4,Trades!$E:$E,"Sale"),Benchmark!$H$6:$M$200,4,FALSE)),0), IF(NE4="Purchase",VLOOKUP(SUMIFS(Trades!$A:$A,Trades!$B:$B,NE$1,Trades!$C:$C,$B4,Trades!$E:$E,NE4,Trades!$E:$E,"Purchase"),Benchmark!$H$6:$M$200,6,FALSE), IF(NE4="Sale",VLOOKUP(SUMIFS(Trades!$A:$A,Trades!$B:$B,NE$1,Trades!$C:$C,$B4,Trades!$E:$E,NE4,Trades!$E:$E,"Sale"),Benchmark!$H$6:$M$200,4,FALSE)))) -> 0 | NL4: =IF(NE4="Hold",((MT4-SUMIFS(Trades!$H:$H,Trades!$B:$B,NE$1,Trades!$C:$C,$B4,Trades!$E:$E,"Sale"))*(1+VLOOKUP(NE$1,Benchmark!$H$6:$M$200,4,FALSE))) +IFERROR((SUMIFS(Trades!$H:$H,Trades!$B:$B,NE$1,Trades!$C:$C,$B4,Trades!$E:$E,"Purchase")*(1+VLOOKUP(SUMIFS(Trades!$A:$A,Trades!$B:$B,NE$1,Trades!$C:$C,$B4,Trades!$E:$E,"Purchase"),Benchmark!$H$6:$M$200,4,FALSE))),0), IF(NE4="Purchase",SUMIFS(Trades!$H:$H,Trades!$B:$B,NE$1,Trades!$C:$C,$B4,Trades!$E:$E,"Purchase")*(1+NK4), IF(NE4="Sale",0))) ->  | NP4: 0.03578279527 | NQ4: 68016.17396 | NT4: Hold | NU4: =NF4+SUMIFS(Trades!$H:$H,Trades!$C:$C,$B4,Trades!$E:$E,"Purchase",Trades!$B:$B,NT$1)-SUMIFS(Trades!$H:$H,Trades!$C:$C,$B4,Trades!$E:$E,"Sale",Trades!$B:$B,NT$1) -> 65666.445 | NV4: #N/A N/A | NW4: =NH4+SUMIFS(Trades!$F:$F,Trades!$C:$C,$B4,Trades!$B:$B,NT$1,Trades!$E:$E,"Purchase")-SUMIFS(Trades!$F:$F,Trades!$C:$C,$B4,Trades!$B:$B,NT$1,Trades!$E:$E,"Sale") -> 1950 | NY4: =IF(NT4="Hold",(NX4)/(NI4+SUMIFS(Trades!$H:$H,Trades!$B:$B,NT$1,Trades!$E:$E,"Purchase",Trades!$C:$C,$B4))-1, IF(NT4="Purchase",NX4/SUMIFS(Trades!$H:$H,Trades!$B:$B,NT$1,Trades!$E:$E,"Purchase",Trades!$C:$C,$B4)-1, IF(NT4="Sale",SUMIFS(Trades!$H:$H,Trades!$B:$B,NT$1,Trades!$E:$E,"Sale",Trades!$C:$C,$B4)/NI4-1))) ->  | NZ4: =IF(NT4="Hold",IFERROR((((NI4-SUMIFS(Trades!$H:$H,Trades!$B:$B,NT$1,Trades!$C:$C,$B4,Trades!$E:$E,"Sale"))/(NI4+SUMIFS(Trades!$H:$H,Trades!$B:$B,NT$1,Trades!$C:$C,$B4,Trades!$E:$E,"Purchase")))*VLOOKUP(NT$1,Benchmark!$H$6:$M$200,4,FALSE)),0) +IFERROR(((SUMIFS(Trades!$H:$H,Trades!$B:$B,NT$1,Trades!$C:$C,$B4,Trades!$E:$E,"Purchase")/(NI4+SUMIFS(Trades!$H:$H,Trades!$B:$B,NT$1,Trades!$C:$C,$B4,Trades!$E:$E,"Purchase")))*VLOOKUP(SUMIFS(Trades!$A:$A,Trades!$B:$B,NT$1,Trades!$C:$C,$B4,Trades!$E:$E,"Purchase"),Benchmark!$H$6:$M$200,6,FALSE)),0) +IFERROR(((SUMIFS(Trades!$H:$H,Trades!$B:$B,NT$1,Trades!$C:$C,$B4,Trades!$E:$E,"Sale")/(NI4+SUMIFS(Trades!$H:$H,Trades!$B:$B,NT$1,Trades!$C:$C,$B4,Trades!$E:$E,"Purchase")))*VLOOKUP(SUMIFS(Trades!$A:$A,Trades!$B:$B,NT$1,Trades!$C:$C,$B4,Trades!$E:$E,"Sale"),Benchmark!$H$6:$M$200,4,FALSE)),0), IF(NT4="Purchase",VLOOKUP(SUMIFS(Trades!$A:$A,Trades!$B:$B,NT$1,Trades!$C:$C,$B4,Trades!$E:$E,NT4,Trades!$E:$E,"Purchase"),Benchmark!$H$6:$M$200,6,FALSE), IF(NT4="Sale",VLOOKUP(SUMIFS(Trades!$A:$A,Trades!$B:$B,NT$1,Trades!$C:$C,$B4,Trades!$E:$E,NT4,Trades!$E:$E,"Sale"),Benchmark!$H$6:$M$200,4,FALSE)))) -> 0 | OA4: =IF(NT4="Hold",((NI4-SUMIFS(Trades!$H:$H,Trades!$B:$B,NT$1,Trades!$C:$C,$B4,Trades!$E:$E,"Sale"))*(1+VLOOKUP(NT$1,Benchmark!$H$6:$M$200,4,FALSE))) +IFERROR((SUMIFS(Trades!$H:$H,Trades!$B:$B,NT$1,Trades!$C:$C,$B4,Trades!$E:$E,"Purchase")*(1+VLOOKUP(SUMIFS(Trades!$A:$A,Trades!$B:$B,NT$1,Trades!$C:$C,$B4,Trades!$E:$E,"Purchase"),Benchmark!$H$6:$M$200,4,FALSE))),0), IF(NT4="Purchase",SUMIFS(Trades!$H:$H,Trades!$B:$B,NT$1,Trades!$C:$C,$B4,Trades!$E:$E,"Purchase")*(1+NZ4), IF(NT4="Sale",0))) ->  | OE4: 0.03578279527 | OF4: 68016.17396 | OI4: Hold | OJ4: =NU4+SUMIFS(Trades!$H:$H,Trades!$C:$C,$B4,Trades!$E:$E,"Purchase",Trades!$B:$B,OI$1)-SUMIFS(Trades!$H:$H,Trades!$C:$C,$B4,Trades!$E:$E,"Sale",Trades!$B:$B,OI$1) -> 65666.445 | OK4: #N/A N/A | OL4: =NW4+SUMIFS(Trades!$F:$F,Trades!$C:$C,$B4,Trades!$B:$B,OI$1,Trades!$E:$E,"Purchase")-SUMIFS(Trades!$F:$F,Trades!$C:$C,$B4,Trades!$B:$B,OI$1,Trades!$E:$E,"Sale") -> 1950 | ON4: =IF(OI4="Hold",(OM4)/(NX4+SUMIFS(Trades!$H:$H,Trades!$B:$B,OI$1,Trades!$E:$E,"Purchase",Trades!$C:$C,$B4))-1, IF(OI4="Purchase",OM4/SUMIFS(Trades!$H:$H,Trades!$B:$B,OI$1,Trades!$E:$E,"Purchase",Trades!$C:$C,$B4)-1, IF(OI4="Sale",SUMIFS(Trades!$H:$H,Trades!$B:$B,OI$1,Trades!$E:$E,"Sale",Trades!$C:$C,$B4)/NX4-1))) ->  | OO4: =IF(OI4="Hold",IFERROR((((NX4-SUMIFS(Trades!$H:$H,Trades!$B:$B,OI$1,Trades!$C:$C,$B4,Trades!$E:$E,"Sale"))/(NX4+SUMIFS(Trades!$H:$H,Trades!$B:$B,OI$1,Trades!$C:$C,$B4,Trades!$E:$E,"Purchase")))*VLOOKUP(OI$1,Benchmark!$H$6:$M$200,4,FALSE)),0) +IFERROR(((SUMIFS(Trades!$H:$H,Trades!$B:$B,OI$1,Trades!$C:$C,$B4,Trades!$E:$E,"Purchase")/(NX4+SUMIFS(Trades!$H:$H,Trades!$B:$B,OI$1,Trades!$C:$C,$B4,Trades!$E:$E,"Purchase")))*VLOOKUP(SUMIFS(Trades!$A:$A,Trades!$B:$B,OI$1,Trades!$C:$C,$B4,Trades!$E:$E,"Purchase"),Benchmark!$H$6:$M$200,6,FALSE)),0) +IFERROR(((SUMIFS(Trades!$H:$H,Trades!$B:$B,OI$1,Trades!$C:$C,$B4,Trades!$E:$E,"Sale")/(NX4+SUMIFS(Trades!$H:$H,Trades!$B:$B,OI$1,Trades!$C:$C,$B4,Trades!$E:$E,"Purchase")))*VLOOKUP(SUMIFS(Trades!$A:$A,Trades!$B:$B,OI$1,Trades!$C:$C,$B4,Trades!$E:$E,"Sale"),Benchmark!$H$6:$M$200,4,FALSE)),0), IF(OI4="Purchase",VLOOKUP(SUMIFS(Trades!$A:$A,Trades!$B:$B,OI$1,Trades!$C:$C,$B4,Trades!$E:$E,OI4,Trades!$E:$E,"Purchase"),Benchmark!$H$6:$M$200,6,FALSE), IF(OI4="Sale",VLOOKUP(SUMIFS(Trades!$A:$A,Trades!$B:$B,OI$1,Trades!$C:$C,$B4,Trades!$E:$E,OI4,Trades!$E:$E,"Sale"),Benchmark!$H$6:$M$200,4,FALSE)))) -> 0 | OP4: =IF(OI4="Hold",((NX4-SUMIFS(Trades!$H:$H,Trades!$B:$B,OI$1,Trades!$C:$C,$B4,Trades!$E:$E,"Sale"))*(1+VLOOKUP(OI$1,Benchmark!$H$6:$M$200,4,FALSE))) +IFERROR((SUMIFS(Trades!$H:$H,Trades!$B:$B,OI$1,Trades!$C:$C,$B4,Trades!$E:$E,"Purchase")*(1+VLOOKUP(SUMIFS(Trades!$A:$A,Trades!$B:$B,OI$1,Trades!$C:$C,$B4,Trades!$E:$E,"Purchase"),Benchmark!$H$6:$M$200,4,FALSE))),0), IF(OI4="Purchase",SUMIFS(Trades!$H:$H,Trades!$B:$B,OI$1,Trades!$C:$C,$B4,Trades!$E:$E,"Purchase")*(1+OO4), IF(OI4="Sale",0))) ->  | OT4: 0.03578279527 | OU4: 68016.17396
A5: Agrium Inc | B5: AGU | C5: Materials | D5: Chemicals | E5: Large Core | F5: 89.5 | G5: 685 | H5: =F5*G5 -> 61307.5 | I5: Hold | J5: =H5+SUMIFS(Trades!$H:$H,Trades!$C:$C,$B5,Trades!$E:$E,"Purchase",Trades!$B:$B,I$1)-SUMIFS(Trades!$H:$H,Trades!$C:$C,$B5,Trades!$E:$E,"Sale",Trades!$B:$B,I$1) -> 61307.5 | K5: 89.93 | L5: =G5+SUMIFS(Trades!$F:$F,Trades!$C:$C,$B5,Trades!$B:$B,I$1,Trades!$E:$E,"Purchase")-SUMIFS(Trades!$F:$F,Trades!$C:$C,$B5,Trades!$B:$B,I$1,Trades!$E:$E,"Sale") -> 685 | M5: =K5*L5 -> 61602.05 | N5: =IF(I5="Hold",(M5)/(H5+SUMIFS(Trades!$H:$H,Trades!$B:$B,I$1,Trades!$E:$E,"Purchase",Trades!$C:$C,$B5))-1, IF(I5="Purchase",M5/SUMIFS(Trades!$H:$H,Trades!$B:$B,I$1,Trades!$E:$E,"Purchase",Trades!$C:$C,$B5)-1, IF(I5="Sale",SUMIFS(Trades!$H:$H,Trades!$B:$B,I$1,Trades!$E:$E,"Sale",Trades!$C:$C,$B5)/H5-1))) -> 0.004804469274 | O5: =IF(I5="Hold",IFERROR((((H5-SUMIFS(Trades!$H:$H,Trades!$B:$B,I$1,Trades!$C:$C,$B5,Trades!$E:$E,"Sale"))/(H5+SUMIFS(Trades!$H:$H,Trades!$B:$B,I$1,Trades!$C:$C,$B5,Trades!$E:$E,"Purchase")))*VLOOKUP(I$1,Benchmark!$H$6:$M$200,4,FALSE)),0) +IFERROR(((SUMIFS(Trades!$H:$H,Trades!$B:$B,I$1,Trades!$C:$C,$B5,Trades!$E:$E,"Purchase")/(H5+SUMIFS(Trades!$H:$H,Trades!$B:$B,I$1,Trades!$C:$C,$B5,Trades!$E:$E,"Purchase")))*VLOOKUP(SUMIFS(Trades!$A:$A,Trades!$B:$B,I$1,Trades!$C:$C,$B5,Trades!$E:$E,"Purchase"),Benchmark!$H$6:$M$200,6,FALSE)),0) +IFERROR(((SUMIFS(Trades!$H:$H,Trades!$B:$B,I$1,Trades!$C:$C,$B5,Trades!$E:$E,"Sale")/(H5+SUMIFS(Trades!$H:$H,Trades!$B:$B,I$1,Trades!$C:$C,$B5,Trades!$E:$E,"Purchase")))*VLOOKUP(SUMIFS(Trades!$A:$A,Trades!$B:$B,I$1,Trades!$C:$C,$B5,Trades!$E:$E,"Sale"),Benchmark!$H$6:$M$200,4,FALSE)),0), IF(I5="Purchase",VLOOKUP(SUMIFS(Trades!$A:$A,Trades!$B:$B,I$1,Trades!$C:$C,$B5,Trades!$E:$E,I5,Trades!$E:$E,"Purchase"),Benchmark!$H$6:$M$200,6,FALSE), IF(I5="Sale",VLOOKUP(SUMIFS(Trades!$A:$A,Trades!$B:$B,I$1,Trades!$C:$C,$B5,Trades!$E:$E,I5,Trades!$E:$E,"Sale"),Benchmark!$H$6:$M$200,4,FALSE)))) -> 0.007390339874 | P5: =IF(I5="Hold",((H5-SUMIFS(Trades!$H:$H,Trades!$B:$B,I$1,Trades!$C:$C,$B5,Trades!$E:$E,"Sale"))*(1+VLOOKUP(I$1,Benchmark!$H$6:$M$200,4,FALSE))) +IFERROR((SUMIFS(Trades!$H:$H,Trades!$B:$B,I$1,Trades!$C:$C,$B5,Trades!$E:$E,"Purchase")*(1+VLOOKUP(SUMIFS(Trades!$A:$A,Trades!$B:$B,I$1,Trades!$C:$C,$B5,Trades!$E:$E,"Purchase"),Benchmark!$H$6:$M$200,4,FALSE))),0), IF(I5="Purchase",SUMIFS(Trades!$H:$H,Trades!$B:$B,I$1,Trades!$C:$C,$B5,Trades!$E:$E,"Purchase")*(1+O5), IF(I5="Sale",0))) -> 61760.58326 | Q5: =N5-O5 -> -0.002585870601 | R5: =((M5-P5)/(M$47-P$47))*Q$47 -> -6.255505209e-05 | S5: =N5 -> 0.004804469274 | T5: =O5 -> 0.007390339874 | U5: =P5 -> 61760.58326 | V5: =Q5 -> -0.002585870601 | W5: =R5 -> -6.255505209e-05 | X5: Hold | Y5: =J5+SUMIFS(Trades!$H:$H,Trades!$C:$C,$B5,Trades!$E:$E,"Purchase",Trades!$B:$B,X$1)-SUMIFS(Trades!$H:$H,Trades!$C:$C,$B5,Trades!$E:$E,"Sale",Trades!$B:$B,X$1) -> 61307.5 | Z5: 95.7 | AA5: =L5+SUMIFS(Trades!$F:$F,Trades!$C:$C,$B5,Trades!$B:$B,X$1,Trades!$E:$E,"Purchase")-SUMIFS(Trades!$F:$F,Trades!$C:$C,$B5,Trades!$B:$B,X$1,Trades!$E:$E,"Sale") -> 685 | AB5: =Z5*AA5 -> 65554.5 | AC5: =IF(X5="Hold",(AB5)/(M5+SUMIFS(Trades!$H:$H,Trades!$B:$B,X$1,Trades!$E:$E,"Purchase",Trades!$C:$C,$B5))-1, IF(X5="Purchase",AB5/SUMIFS(Trades!$H:$H,Trades!$B:$B,X$1,Trades!$E:$E,"Purchase",Trades!$C:$C,$B5)-1, IF(X5="Sale",SUMIFS(Trades!$H:$H,Trades!$B:$B,X$1,Trades!$E:$E,"Sale",Trades!$C:$C,$B5)/M5-1))) -> 0.06416101412 | AD5: =IF(X5="Hold",IFERROR((((M5-SUMIFS(Trades!$H:$H,Trades!$B:$B,X$1,Trades!$C:$C,$B5,Trades!$E:$E,"Sale"))/(M5+SUMIFS(Trades!$H:$H,Trades!$B:$B,X$1,Trades!$C:$C,$B5,Trades!$E:$E,"Purchase")))*VLOOKUP(X$1,Benchmark!$H$6:$M$200,4,FALSE)),0) +IFERROR(((SUMIFS(Trades!$H:$H,Trades!$B:$B,X$1,Trades!$C:$C,$B5,Trades!$E:$E,"Purchase")/(M5+SUMIFS(Trades!$H:$H,Trades!$B:$B,X$1,Trades!$C:$C,$B5,Trades!$E:$E,"Purchase")))*VLOOKUP(SUMIFS(Trades!$A:$A,Trades!$B:$B,X$1,Trades!$C:$C,$B5,Trades!$E:$E,"Purchase"),Benchmark!$H$6:$M$200,6,FALSE)),0) +IFERROR(((SUMIFS(Trades!$H:$H,Trades!$B:$B,X$1,Trades!$C:$C,$B5,Trades!$E:$E,"Sale")/(M5+SUMIFS(Trades!$H:$H,Trades!$B:$B,X$1,Trades!$C:$C,$B5,Trades!$E:$E,"Purchase")))*VLOOKUP(SUMIFS(Trades!$A:$A,Trades!$B:$B,X$1,Trades!$C:$C,$B5,Trades!$E:$E,"Sale"),Benchmark!$H$6:$M$200,4,FALSE)),0), IF(X5="Purchase",VLOOKUP(SUMIFS(Trades!$A:$A,Trades!$B:$B,X$1,Trades!$C:$C,$B5,Trades!$E:$E,X5,Trades!$E:$E,"Purchase"),Benchmark!$H$6:$M$200,6,FALSE), IF(X5="Sale",VLOOKUP(SUMIFS(Trades!$A:$A,Trades!$B:$B,X$1,Trades!$C:$C,$B5,Trades!$E:$E,X5,Trades!$E:$E,"Sale"),Benchmark!$H$6:$M$200,4,FALSE)))) -> 0.03565906893 | AE5: =IF(X5="Hold",((M5-SUMIFS(Trades!$H:$H,Trades!$B:$B,X$1,Trades!$C:$C,$B5,Trades!$E:$E,"Sale"))*(1+VLOOKUP(X$1,Benchmark!$H$6:$M$200,4,FALSE))) +IFERROR((SUMIFS(Trades!$H:$H,Trades!$B:$B,X$1,Trades!$C:$C,$B5,Trades!$E:$E,"Purchase")*(1+VLOOKUP(SUMIFS(Trades!$A:$A,Trades!$B:$B,X$1,Trades!$C:$C,$B5,Trades!$E:$E,"Purchase"),Benchmark!$H$6:$M$200,4,FALSE))),0), IF(X5="Purchase",SUMIFS(Trades!$H:$H,Trades!$B:$B,X$1,Trades!$C:$C,$B5,Trades!$E:$E,"Purchase")*(1+AD5), IF(X5="Sale",0))) -> 63798.72175 | AF5: =AC5-AD5 -> 0.0285019452 | AG5: =((AB5-AE5)/(AB$47-AE$47))*AF$47 -> 0.0006635591529 | AH5: =((1+N5)*(1+AC5))-1 -> 0.06927374302 | AI5: =((1+O5)*(1+AD5))-1 -> 0.04331294144 | AJ5: =Y5*(1+AI5) -> 63962.90816 | AK5: =AH5-AI5 -> 0.02596080158 | AL5: =((AB5-AJ5)/(AB$47-AJ$47))*AK$47 -> 0.0005599396329 | AM5: Hold | AN5: =Y5+SUMIFS(Trades!$H:$H,Trades!$C:$C,$B5,Trades!$E:$E,"Purchase",Trades!$B:$B,AM$1)-SUMIFS(Trades!$H:$H,Trades!$C:$C,$B5,Trades!$E:$E,"Sale",Trades!$B:$B,AM$1) -> 61307.5 | AO5: 95.22 | AP5: =AA5+SUMIFS(Trades!$F:$F,Trades!$C:$C,$B5,Trades!$B:$B,AM$1,Trades!$E:$E,"Purchase")-SUMIFS(Trades!$F:$F,Trades!$C:$C,$B5,Trades!$B:$B,AM$1,Trades!$E:$E,"Sale") -> 685 | AQ5: =AO5*AP5 -> 65225.7 | AR5: =IF(AM5="Hold",(AQ5)/(AB5+SUMIFS(Trades!$H:$H,Trades!$B:$B,AM$1,Trades!$E:$E,"Purchase",Trades!$C:$C,$B5))-1, IF(AM5="Purchase",AQ5/SUMIFS(Trades!$H:$H,Trades!$B:$B,AM$1,Trades!$E:$E,"Purchase",Trades!$C:$C,$B5)-1, IF(AM5="Sale",SUMIFS(Trades!$H:$H,Trades!$B:$B,AM$1,Trades!$E:$E,"Sale",Trades!$C:$C,$B5)/AB5-1))) -> -0.005015673981 | AS5: =IF(AM5="Hold",IFERROR((((AB5-SUMIFS(Trades!$H:$H,Trades!$B:$B,AM$1,Trades!$C:$C,$B5,Trades!$E:$E,"Sale"))/(AB5+SUMIFS(Trades!$H:$H,Trades!$B:$B,AM$1,Trades!$C:$C,$B5,Trades!$E:$E,"Purchase")))*VLOOKUP(AM$1,Benchmark!$H$6:$M$200,4,FALSE)),0) +IFERROR(((SUMIFS(Trades!$H:$H,Trades!$B:$B,AM$1,Trades!$C:$C,$B5,Trades!$E:$E,"Purchase")/(AB5+SUMIFS(Trades!$H:$H,Trades!$B:$B,AM$1,Trades!$C:$C,$B5,Trades!$E:$E,"Purchase")))*VLOOKUP(SUMIFS(Trades!$A:$A,Trades!$B:$B,AM$1,Trades!$C:$C,$B5,Trades!$E:$E,"Purchase"),Benchmark!$H$6:$M$200,6,FALSE)),0) +IFERROR(((SUMIFS(Trades!$H:$H,Trades!$B:$B,AM$1,Trades!$C:$C,$B5,Trades!$E:$E,"Sale")/(AB5+SUMIFS(Trades!$H:$H,Trades!$B:$B,AM$1,Trades!$C:$C,$B5,Trades!$E:$E,"Purchase")))*VLOOKUP(SUMIFS(Trades!$A:$A,Trades!$B:$B,AM$1,Trades!$C:$C,$B5,Trades!$E:$E,"Sale"),Benchmark!$H$6:$M$200,4,FALSE)),0), IF(AM5="Purchase",VLOOKUP(SUMIFS(Trades!$A:$A,Trades!$B:$B,AM$1,Trades!$C:$C,$B5,Trades!$E:$E,AM5,Trades!$E:$E,"Purchase"),Benchmark!$H$6:$M$200,6,FALSE), IF(AM5="Sale",VLOOKUP(SUMIFS(Trades!$A:$A,Trades!$B:$B,AM$1,Trades!$C:$C,$B5,Trades!$E:$E,AM5,Trades!$E:$E,"Sale"),Benchmark!$H$6:$M$200,4,FALSE)))) -> 0.006911842293 | AT5: =IF(AM5="Hold",((AB5-SUMIFS(Trades!$H:$H,Trades!$B:$B,AM$1,Trades!$C:$C,$B5,Trades!$E:$E,"Sale"))*(1+VLOOKUP(AM$1,Benchmark!$H$6:$M$200,4,FALSE))) +IFERROR((SUMIFS(Trades!$H:$H,Trades!$B:$B,AM$1,Trades!$C:$C,$B5,Trades!$E:$E,"Purchase")*(1+VLOOKUP(SUMIFS(Trades!$A:$A,Trades!$B:$B,AM$1,Trades!$C:$C,$B5,Trades!$E:$E,"Purchase"),Benchmark!$H$6:$M$200,4,FALSE))),0), IF(AM5="Purchase",SUMIFS(Trades!$H:$H,Trades!$B:$B,AM$1,Trades!$C:$C,$B5,Trades!$E:$E,"Purchase")*(1+AS5), IF(AM5="Sale",0))) -> 66007.60237 | AU5: =AR5-AS5 -> -0.01192751627 | AV5: =((AQ5-AT5)/(AQ$47-AT$47))*AU$47 -> -0.0002935256802 | AW5: 0.06391061453 | AX5: 0.05052415595 | AY5: =AN5*(1+AX5) -> 64405.00969 | AZ5: =AW5-AX5 -> 0.01338645857 | BA5: =((AQ5-AY5)/(AQ$47-AY$47))*AZ$47 -> 0.0002799104599 | BB5: Hold | BC5: =AN5+SUMIFS(Trades!$H:$H,Trades!$C:$C,$B5,Trades!$E:$E,"Purchase",Trades!$B:$B,BB$1)-SUMIFS(Trades!$H:$H,Trades!$C:$C,$B5,Trades!$E:$E,"Sale",Trades!$B:$B,BB$1) -> 61307.5 | BD5: 96.17 | BE5: =AP5+SUMIFS(Trades!$F:$F,Trades!$C:$C,$B5,Trades!$B:$B,BB$1,Trades!$E:$E,"Purchase")-SUMIFS(Trades!$F:$F,Trades!$C:$C,$B5,Trades!$B:$B,BB$1,Trades!$E:$E,"Sale") -> 685 | BF5: =BD5*BE5 -> 65876.45 | BG5: =IF(BB5="Hold",(BF5)/(AQ5+SUMIFS(Trades!$H:$H,Trades!$B:$B,BB$1,Trades!$E:$E,"Purchase",Trades!$C:$C,$B5))-1, IF(BB5="Purchase",BF5/SUMIFS(Trades!$H:$H,Trades!$B:$B,BB$1,Trades!$E:$E,"Purchase",Trades!$C:$C,$B5)-1, IF(BB5="Sale",SUMIFS(Trades!$H:$H,Trades!$B:$B,BB$1,Trades!$E:$E,"Sale",Trades!$C:$C,$B5)/AQ5-1))) -> 0.00997689561 | BH5: =IF(BB5="Hold",IFERROR((((AQ5-SUMIFS(Trades!$H:$H,Trades!$B:$B,BB$1,Trades!$C:$C,$B5,Trades!$E:$E,"Sale"))/(AQ5+SUMIFS(Trades!$H:$H,Trades!$B:$B,BB$1,Trades!$C:$C,$B5,Trades!$E:$E,"Purchase")))*VLOOKUP(BB$1,Benchmark!$H$6:$M$200,4,FALSE)),0) +IFERROR(((SUMIFS(Trades!$H:$H,Trades!$B:$B,BB$1,Trades!$C:$C,$B5,Trades!$E:$E,"Purchase")/(AQ5+SUMIFS(Trades!$H:$H,Trades!$B:$B,BB$1,Trades!$C:$C,$B5,Trades!$E:$E,"Purchase")))*VLOOKUP(SUMIFS(Trades!$A:$A,Trades!$B:$B,BB$1,Trades!$C:$C,$B5,Trades!$E:$E,"Purchase"),Benchmark!$H$6:$M$200,6,FALSE)),0) +IFERROR(((SUMIFS(Trades!$H:$H,Trades!$B:$B,BB$1,Trades!$C:$C,$B5,Trades!$E:$E,"Sale")/(AQ5+SUMIFS(Trades!$H:$H,Trades!$B:$B,BB$1,Trades!$C:$C,$B5,Trades!$E:$E,"Purchase")))*VLOOKUP(SUMIFS(Trades!$A:$A,Trades!$B:$B,BB$1,Trades!$C:$C,$B5,Trades!$E:$E,"Sale"),Benchmark!$H$6:$M$200,4,FALSE)),0), IF(BB5="Purchase",VLOOKUP(SUMIFS(Trades!$A:$A,Trades!$B:$B,BB$1,Trades!$C:$C,$B5,Trades!$E:$E,BB5,Trades!$E:$E,"Purchase"),Benchmark!$H$6:$M$200,6,FALSE), IF(BB5="Sale",VLOOKUP(SUMIFS(Trades!$A:$A,Trades!$B:$B,BB$1,Trades!$C:$C,$B5,Trades!$E:$E,BB5,Trades!$E:$E,"Sale"),Benchmark!$H$6:$M$200,4,FALSE)))) -> 0.01737368608 | BI5: =IF(BB5="Hold",((AQ5-SUMIFS(Trades!$H:$H,Trades!$B:$B,BB$1,Trades!$C:$C,$B5,Trades!$E:$E,"Sale"))*(1+VLOOKUP(BB$1,Benchmark!$H$6:$M$200,4,FALSE))) +IFERROR((SUMIFS(Trades!$H:$H,Trades!$B:$B,BB$1,Trades!$C:$C,$B5,Trades!$E:$E,"Purchase")*(1+VLOOKUP(SUMIFS(Trades!$A:$A,Trades!$B:$B,BB$1,Trades!$C:$C,$B5,Trades!$E:$E,"Purchase"),Benchmark!$H$6:$M$200,4,FALSE))),0), IF(BB5="Purchase",SUMIFS(Trades!$H:$H,Trades!$B:$B,BB$1,Trades!$C:$C,$B5,Trades!$E:$E,"Purchase")*(1+BH5), IF(BB5="Sale",0))) -> 66358.91084 | BJ5: =BG5-BH5 -> -0.007396790468 | BK5: =((BF5-BI5)/(BF$47-BI$47))*BJ$47 -> -0.0001775757845 | BL5: 0.07452513966 | BM5: 0.06877563286 | BN5: =BC5*(1+BM5) -> 65523.96211 | BO5: =BL5-BM5 -> 0.005749506809 | BP5: =((BF5-BN5)/(BF$47-BN$47))*BO$47 -> 0.0001322464567 | BQ5: Hold | BR5: =BC5+SUMIFS(Trades!$H:$H,Trades!$C:$C,$B5,Trades!$E:$E,"Purchase",Trades!$B:$B,BQ$1)-SUMIFS(Trades!$H:$H,Trades!$C:$C,$B5,Trades!$E:$E,"Sale",Trades!$B:$B,BQ$1) -> 61307.5 | BS5: 93.07 | BT5: =BE5+SUMIFS(Trades!$F:$F,Trades!$C:$C,$B5,Trades!$B:$B,BQ$1,Trades!$E:$E,"Purchase")-SUMIFS(Trades!$F:$F,Trades!$C:$C,$B5,Trades!$B:$B,BQ$1,Trades!$E:$E,"Sale") -> 685 | BU5: =BS5*BT5 -> 63752.95 | BV5: =IF(BQ5="Hold",(BU5)/(BF5+SUMIFS(Trades!$H:$H,Trades!$B:$B,BQ$1,Trades!$E:$E,"Purchase",Trades!$C:$C,$B5))-1, IF(BQ5="Purchase",BU5/SUMIFS(Trades!$H:$H,Trades!$B:$B,BQ$1,Trades!$E:$E,"Purchase",Trades!$C:$C,$B5)-1, IF(BQ5="Sale",SUMIFS(Trades!$H:$H,Trades!$B:$B,BQ$1,Trades!$E:$E,"Sale",Trades!$C:$C,$B5)/BF5-1))) -> -0.03223458459 | BW5: =IF(BQ5="Hold",IFERROR((((BF5-SUMIFS(Trades!$H:$H,Trades!$B:$B,BQ$1,Trades!$C:$C,$B5,Trades!$E:$E,"Sale"))/(BF5+SUMIFS(Trades!$H:$H,Trades!$B:$B,BQ$1,Trades!$C:$C,$B5,Trades!$E:$E,"Purchase")))*VLOOKUP(BQ$1,Benchmark!$H$6:$M$200,4,FALSE)),0) +IFERROR(((SUMIFS(Trades!$H:$H,Trades!$B:$B,BQ$1,Trades!$C:$C,$B5,Trades!$E:$E,"Purchase")/(BF5+SUMIFS(Trades!$H:$H,Trades!$B:$B,BQ$1,Trades!$C:$C,$B5,Trades!$E:$E,"Purchase")))*VLOOKUP(SUMIFS(Trades!$A:$A,Trades!$B:$B,BQ$1,Trades!$C:$C,$B5,Trades!$E:$E,"Purchase"),Benchmark!$H$6:$M$200,6,FALSE)),0) +IFERROR(((SUMIFS(Trades!$H:$H,Trades!$B:$B,BQ$1,Trades!$C:$C,$B5,Trades!$E:$E,"Sale")/(BF5+SUMIFS(Trades!$H:$H,Trades!$B:$B,BQ$1,Trades!$C:$C,$B5,Trades!$E:$E,"Purchase")))*VLOOKUP(SUMIFS(Trades!$A:$A,Trades!$B:$B,BQ$1,Trades!$C:$C,$B5,Trades!$E:$E,"Sale"),Benchmark!$H$6:$M$200,4,FALSE)),0), IF(BQ5="Purchase",VLOOKUP(SUMIFS(Trades!$A:$A,Trades!$B:$B,BQ$1,Trades!$C:$C,$B5,Trades!$E:$E,BQ5,Trades!$E:$E,"Purchase"),Benchmark!$H$6:$M$200,6,FALSE), IF(BQ5="Sale",VLOOKUP(SUMIFS(Trades!$A:$A,Trades!$B:$B,BQ$1,Trades!$C:$C,$B5,Trades!$E:$E,BQ5,Trades!$E:$E,"Sale"),Benchmark!$H$6:$M$200,4,FALSE)))) -> 0.001113382869 | BX5: =IF(BQ5="Hold",((BF5-SUMIFS(Trades!$H:$H,Trades!$B:$B,BQ$1,Trades!$C:$C,$B5,Trades!$E:$E,"Sale"))*(1+VLOOKUP(BQ$1,Benchmark!$H$6:$M$200,4,FALSE))) +IFERROR((SUMIFS(Trades!$H:$H,Trades!$B:$B,BQ$1,Trades!$C:$C,$B5,Trades!$E:$E,"Purchase")*(1+VLOOKUP(SUMIFS(Trades!$A:$A,Trades!$B:$B,BQ$1,Trades!$C:$C,$B5,Trades!$E:$E,"Purchase"),Benchmark!$H$6:$M$200,4,FALSE))),0), IF(BQ5="Purchase",SUMIFS(Trades!$H:$H,Trades!$B:$B,BQ$1,Trades!$C:$C,$B5,Trades!$E:$E,"Purchase")*(1+BW5), IF(BQ5="Sale",0))) -> 65949.79571 | BY5: =BV5-BW5 -> -0.03334796746 | BZ5: =((BU5-BX5)/(BU$47-BX$47))*BY$47 -> -0.0008191359242 | CA5: 0.03988826816 | CB5: 0.06996558934 | CC5: =BR5*(1+CB5) -> 65596.91537 | CD5: =CA5-CB5 -> -0.03007732118 | CE5: =((BU5-CC5)/(BU$47-CC$47))*CD$47 -> -0.0006028919468 | CF5: Hold | CG5: =BR5+SUMIFS(Trades!$H:$H,Trades!$C:$C,$B5,Trades!$E:$E,"Purchase",Trades!$B:$B,CF$1)-SUMIFS(Trades!$H:$H,Trades!$C:$C,$B5,Trades!$E:$E,"Sale",Trades!$B:$B,CF$1) -> 61307.5 | CH5: 96.88 | CI5: =BT5+SUMIFS(Trades!$F:$F,Trades!$C:$C,$B5,Trades!$B:$B,CF$1,Trades!$E:$E,"Purchase")-SUMIFS(Trades!$F:$F,Trades!$C:$C,$B5,Trades!$B:$B,CF$1,Trades!$E:$E,"Sale") -> 685 | CJ5: 66362.8 | CK5: =IF(CF5="Hold",(CJ5)/(BU5+SUMIFS(Trades!$H:$H,Trades!$B:$B,CF$1,Trades!$E:$E,"Purchase",Trades!$C:$C,$B5))-1, IF(CF5="Purchase",CJ5/SUMIFS(Trades!$H:$H,Trades!$B:$B,CF$1,Trades!$E:$E,"Purchase",Trades!$C:$C,$B5)-1, IF(CF5="Sale",SUMIFS(Trades!$H:$H,Trades!$B:$B,CF$1,Trades!$E:$E,"Sale",Trades!$C:$C,$B5)/BU5-1))) -> 0.04093692919 | CL5: =IF(CF5="Hold",IFERROR((((BU5-SUMIFS(Trades!$H:$H,Trades!$B:$B,CF$1,Trades!$C:$C,$B5,Trades!$E:$E,"Sale"))/(BU5+SUMIFS(Trades!$H:$H,Trades!$B:$B,CF$1,Trades!$C:$C,$B5,Trades!$E:$E,"Purchase")))*VLOOKUP(CF$1,Benchmark!$H$6:$M$200,4,FALSE)),0) +IFERROR(((SUMIFS(Trades!$H:$H,Trades!$B:$B,CF$1,Trades!$C:$C,$B5,Trades!$E:$E,"Purchase")/(BU5+SUMIFS(Trades!$H:$H,Trades!$B:$B,CF$1,Trades!$C:$C,$B5,Trades!$E:$E,"Purchase")))*VLOOKUP(SUMIFS(Trades!$A:$A,Trades!$B:$B,CF$1,Trades!$C:$C,$B5,Trades!$E:$E,"Purchase"),Benchmark!$H$6:$M$200,6,FALSE)),0) +IFERROR(((SUMIFS(Trades!$H:$H,Trades!$B:$B,CF$1,Trades!$C:$C,$B5,Trades!$E:$E,"Sale")/(BU5+SUMIFS(Trades!$H:$H,Trades!$B:$B,CF$1,Trades!$C:$C,$B5,Trades!$E:$E,"Purchase")))*VLOOKUP(SUMIFS(Trades!$A:$A,Trades!$B:$B,CF$1,Trades!$C:$C,$B5,Trades!$E:$E,"Sale"),Benchmark!$H$6:$M$200,4,FALSE)),0), IF(CF5="Purchase",VLOOKUP(SUMIFS(Trades!$A:$A,Trades!$B:$B,CF$1,Trades!$C:$C,$B5,Trades!$E:$E,CF5,Trades!$E:$E,"Purchase"),Benchmark!$H$6:$M$200,6,FALSE), IF(CF5="Sale",VLOOKUP(SUMIFS(Trades!$A:$A,Trades!$B:$B,CF$1,Trades!$C:$C,$B5,Trades!$E:$E,CF5,Trades!$E:$E,"Sale"),Benchmark!$H$6:$M$200,4,FALSE)))) -> 0.01477988346 | CM5: =IF(CF5="Hold",((BU5-SUMIFS(Trades!$H:$H,Trades!$B:$B,CF$1,Trades!$C:$C,$B5,Trades!$E:$E,"Sale"))*(1+VLOOKUP(CF$1,Benchmark!$H$6:$M$200,4,FALSE))) +IFERROR((SUMIFS(Trades!$H:$H,Trades!$B:$B,CF$1,Trades!$C:$C,$B5,Trades!$E:$E,"Purchase")*(1+VLOOKUP(SUMIFS(Trades!$A:$A,Trades!$B:$B,CF$1,Trades!$C:$C,$B5,Trades!$E:$E,"Purchase"),Benchmark!$H$6:$M$200,4,FALSE))),0), IF(CF5="Purchase",SUMIFS(Trades!$H:$H,Trades!$B:$B,CF$1,Trades!$C:$C,$B5,Trades!$E:$E,"Purchase")*(1+CL5), IF(CF5="Sale",0))) -> 64695.21117 | CN5: 0.02615704573 | CO5: 0.0006239014604 | CP5: 0.08245810056 | CQ5: 0.08577955605 | CR5: 66566.43013 | CS5: -0.003321455493 | CT5: -0.000211697246 | CU5: Hold | CV5: =CG5+SUMIFS(Trades!$H:$H,Trades!$C:$C,$B5,Trades!$E:$E,"Purchase",Trades!$B:$B,CU$1)-SUMIFS(Trades!$H:$H,Trades!$C:$C,$B5,Trades!$E:$E,"Sale",Trades!$B:$B,CU$1) -> 61307.5 | CW5: 94.49 | CX5: =CI5+SUMIFS(Trades!$F:$F,Trades!$C:$C,$B5,Trades!$B:$B,CU$1,Trades!$E:$E,"Purchase")-SUMIFS(Trades!$F:$F,Trades!$C:$C,$B5,Trades!$B:$B,CU$1,Trades!$E:$E,"Sale") -> 685 | CY5: 64725.65 | CZ5: =IF(CU5="Hold",(CY5)/(CJ5+SUMIFS(Trades!$H:$H,Trades!$B:$B,CU$1,Trades!$E:$E,"Purchase",Trades!$C:$C,$B5))-1, IF(CU5="Purchase",CY5/SUMIFS(Trades!$H:$H,Trades!$B:$B,CU$1,Trades!$E:$E,"Purchase",Trades!$C:$C,$B5)-1, IF(CU5="Sale",SUMIFS(Trades!$H:$H,Trades!$B:$B,CU$1,Trades!$E:$E,"Sale",Trades!$C:$C,$B5)/CJ5-1))) -> -0.02466969447 | DA5: =IF(CU5="Hold",IFERROR((((CJ5-SUMIFS(Trades!$H:$H,Trades!$B:$B,CU$1,Trades!$C:$C,$B5,Trades!$E:$E,"Sale"))/(CJ5+SUMIFS(Trades!$H:$H,Trades!$B:$B,CU$1,Trades!$C:$C,$B5,Trades!$E:$E,"Purchase")))*VLOOKUP(CU$1,Benchmark!$H$6:$M$200,4,FALSE)),0) +IFERROR(((SUMIFS(Trades!$H:$H,Trades!$B:$B,CU$1,Trades!$C:$C,$B5,Trades!$E:$E,"Purchase")/(CJ5+SUMIFS(Trades!$H:$H,Trades!$B:$B,CU$1,Trades!$C:$C,$B5,Trades!$E:$E,"Purchase")))*VLOOKUP(SUMIFS(Trades!$A:$A,Trades!$B:$B,CU$1,Trades!$C:$C,$B5,Trades!$E:$E,"Purchase"),Benchmark!$H$6:$M$200,6,FALSE)),0) +IFERROR(((SUMIFS(Trades!$H:$H,Trades!$B:$B,CU$1,Trades!$C:$C,$B5,Trades!$E:$E,"Sale")/(CJ5+SUMIFS(Trades!$H:$H,Trades!$B:$B,CU$1,Trades!$C:$C,$B5,Trades!$E:$E,"Purchase")))*VLOOKUP(SUMIFS(Trades!$A:$A,Trades!$B:$B,CU$1,Trades!$C:$C,$B5,Trades!$E:$E,"Sale"),Benchmark!$H$6:$M$200,4,FALSE)),0), IF(CU5="Purchase",VLOOKUP(SUMIFS(Trades!$A:$A,Trades!$B:$B,CU$1,Trades!$C:$C,$B5,Trades!$E:$E,CU5,Trades!$E:$E,"Purchase"),Benchmark!$H$6:$M$200,6,FALSE), IF(CU5="Sale",VLOOKUP(SUMIFS(Trades!$A:$A,Trades!$B:$B,CU$1,Trades!$C:$C,$B5,Trades!$E:$E,CU5,Trades!$E:$E,"Sale"),Benchmark!$H$6:$M$200,4,FALSE)))) -> -0.03731280818 | DB5: =IF(CU5="Hold",((CJ5-SUMIFS(Trades!$H:$H,Trades!$B:$B,CU$1,Trades!$C:$C,$B5,Trades!$E:$E,"Sale"))*(1+VLOOKUP(CU$1,Benchmark!$H$6:$M$200,4,FALSE))) +IFERROR((SUMIFS(Trades!$H:$H,Trades!$B:$B,CU$1,Trades!$C:$C,$B5,Trades!$E:$E,"Purchase")*(1+VLOOKUP(SUMIFS(Trades!$A:$A,Trades!$B:$B,CU$1,Trades!$C:$C,$B5,Trades!$E:$E,"Purchase"),Benchmark!$H$6:$M$200,4,FALSE))),0), IF(CU5="Purchase",SUMIFS(Trades!$H:$H,Trades!$B:$B,CU$1,Trades!$C:$C,$B5,Trades!$E:$E,"Purchase")*(1+DA5), IF(CU5="Sale",0))) -> 63886.61757 | DC5: 0.01264311371 | DD5: 0.0003297645697 | DE5: 0.05575418994 | DF5: 0.04526607175 | DG5: 64082.64969 | DH5: 0.01048811819 | DI5: 0.0006488209486 | DJ5: Hold | DK5: =CV5+SUMIFS(Trades!$H:$H,Trades!$C:$C,$B5,Trades!$E:$E,"Purchase",Trades!$B:$B,DJ$1)-SUMIFS(Trades!$H:$H,Trades!$C:$C,$B5,Trades!$E:$E,"Sale",Trades!$B:$B,DJ$1) -> 61307.5 | DL5: 95.1 | DM5: =CX5+SUMIFS(Trades!$F:$F,Trades!$C:$C,$B5,Trades!$B:$B,DJ$1,Trades!$E:$E,"Purchase")-SUMIFS(Trades!$F:$F,Trades!$C:$C,$B5,Trades!$B:$B,DJ$1,Trades!$E:$E,"Sale") -> 685 | DN5: 65143.5 | DO5: =IF(DJ5="Hold",(DN5)/(CY5+SUMIFS(Trades!$H:$H,Trades!$B:$B,DJ$1,Trades!$E:$E,"Purchase",Trades!$C:$C,$B5))-1, IF(DJ5="Purchase",DN5/SUMIFS(Trades!$H:$H,Trades!$B:$B,DJ$1,Trades!$E:$E,"Purchase",Trades!$C:$C,$B5)-1, IF(DJ5="Sale",SUMIFS(Trades!$H:$H,Trades!$B:$B,DJ$1,Trades!$E:$E,"Sale",Trades!$C:$C,$B5)/CY5-1))) -> 0.006455709599 | DP5: =IF(DJ5="Hold",IFERROR((((CY5-SUMIFS(Trades!$H:$H,Trades!$B:$B,DJ$1,Trades!$C:$C,$B5,Trades!$E:$E,"Sale"))/(CY5+SUMIFS(Trades!$H:$H,Trades!$B:$B,DJ$1,Trades!$C:$C,$B5,Trades!$E:$E,"Purchase")))*VLOOKUP(DJ$1,Benchmark!$H$6:$M$200,4,FALSE)),0) +IFERROR(((SUMIFS(Trades!$H:$H,Trades!$B:$B,DJ$1,Trades!$C:$C,$B5,Trades!$E:$E,"Purchase")/(CY5+SUMIFS(Trades!$H:$H,Trades!$B:$B,DJ$1,Trades!$C:$C,$B5,Trades!$E:$E,"Purchase")))*VLOOKUP(SUMIFS(Trades!$A:$A,Trades!$B:$B,DJ$1,Trades!$C:$C,$B5,Trades!$E:$E,"Purchase"),Benchmark!$H$6:$M$200,6,FALSE)),0) +IFERROR(((SUMIFS(Trades!$H:$H,Trades!$B:$B,DJ$1,Trades!$C:$C,$B5,Trades!$E:$E,"Sale")/(CY5+SUMIFS(Trades!$H:$H,Trades!$B:$B,DJ$1,Trades!$C:$C,$B5,Trades!$E:$E,"Purchase")))*VLOOKUP(SUMIFS(Trades!$A:$A,Trades!$B:$B,DJ$1,Trades!$C:$C,$B5,Trades!$E:$E,"Sale"),Benchmark!$H$6:$M$200,4,FALSE)),0), IF(DJ5="Purchase",VLOOKUP(SUMIFS(Trades!$A:$A,Trades!$B:$B,DJ$1,Trades!$C:$C,$B5,Trades!$E:$E,DJ5,Trades!$E:$E,"Purchase"),Benchmark!$H$6:$M$200,6,FALSE), IF(DJ5="Sale",VLOOKUP(SUMIFS(Trades!$A:$A,Trades!$B:$B,DJ$1,Trades!$C:$C,$B5,Trades!$E:$E,DJ5,Trades!$E:$E,"Sale"),Benchmark!$H$6:$M$200,4,FALSE)))) -> 0.03173627907 | DQ5: =IF(DJ5="Hold",((CY5-SUMIFS(Trades!$H:$H,Trades!$B:$B,DJ$1,Trades!$C:$C,$B5,Trades!$E:$E,"Sale"))*(1+VLOOKUP(DJ$1,Benchmark!$H$6:$M$200,4,FALSE))) +IFERROR((SUMIFS(Trades!$H:$H,Trades!$B:$B,DJ$1,Trades!$C:$C,$B5,Trades!$E:$E,"Purchase")*(1+VLOOKUP(SUMIFS(Trades!$A:$A,Trades!$B:$B,DJ$1,Trades!$C:$C,$B5,Trades!$E:$E,"Purchase"),Benchmark!$H$6:$M$200,4,FALSE))),0), IF(DJ5="Purchase",SUMIFS(Trades!$H:$H,Trades!$B:$B,DJ$1,Trades!$C:$C,$B5,Trades!$E:$E,"Purchase")*(1+DP5), IF(DJ5="Sale",0))) -> 66779.80129 | DR5: -0.02528056947 | DS5: -0.0006233243005 | DT5: 0.0625698324 | DU5: 0.07843892751 | DV5: 66116.39455 | DW5: -0.0158690951 | DX5: 0.01360177108 | DY5: Hold | DZ5: =DK5+SUMIFS(Trades!$H:$H,Trades!$C:$C,$B5,Trades!$E:$E,"Purchase",Trades!$B:$B,DY$1)-SUMIFS(Trades!$H:$H,Trades!$C:$C,$B5,Trades!$E:$E,"Sale",Trades!$B:$B,DY$1) -> 61307.5 | EA5: 97.06 | EB5: =DM5+SUMIFS(Trades!$F:$F,Trades!$C:$C,$B5,Trades!$B:$B,DY$1,Trades!$E:$E,"Purchase")-SUMIFS(Trades!$F:$F,Trades!$C:$C,$B5,Trades!$B:$B,DY$1,Trades!$E:$E,"Sale") -> 685 | EC5: 66486.1 | ED5: =IF(DY5="Hold",(EC5)/(DN5+SUMIFS(Trades!$H:$H,Trades!$B:$B,DY$1,Trades!$E:$E,"Purchase",Trades!$C:$C,$B5))-1, IF(DY5="Purchase",EC5/SUMIFS(Trades!$H:$H,Trades!$B:$B,DY$1,Trades!$E:$E,"Purchase",Trades!$C:$C,$B5)-1, IF(DY5="Sale",SUMIFS(Trades!$H:$H,Trades!$B:$B,DY$1,Trades!$E:$E,"Sale",Trades!$C:$C,$B5)/DN5-1))) -> 0.02060988433 | EE5: =IF(DY5="Hold",IFERROR((((DN5-SUMIFS(Trades!$H:$H,Trades!$B:$B,DY$1,Trades!$C:$C,$B5,Trades!$E:$E,"Sale"))/(DN5+SUMIFS(Trades!$H:$H,Trades!$B:$B,DY$1,Trades!$C:$C,$B5,Trades!$E:$E,"Purchase")))*VLOOKUP(DY$1,Benchmark!$H$6:$M$200,4,FALSE)),0) +IFERROR(((SUMIFS(Trades!$H:$H,Trades!$B:$B,DY$1,Trades!$C:$C,$B5,Trades!$E:$E,"Purchase")/(DN5+SUMIFS(Trades!$H:$H,Trades!$B:$B,DY$1,Trades!$C:$C,$B5,Trades!$E:$E,"Purchase")))*VLOOKUP(SUMIFS(Trades!$A:$A,Trades!$B:$B,DY$1,Trades!$C:$C,$B5,Trades!$E:$E,"Purchase"),Benchmark!$H$6:$M$200,6,FALSE)),0) +IFERROR(((SUMIFS(Trades!$H:$H,Trades!$B:$B,DY$1,Trades!$C:$C,$B5,Trades!$E:$E,"Sale")/(DN5+SUMIFS(Trades!$H:$H,Trades!$B:$B,DY$1,Trades!$C:$C,$B5,Trades!$E:$E,"Purchase")))*VLOOKUP(SUMIFS(Trades!$A:$A,Trades!$B:$B,DY$1,Trades!$C:$C,$B5,Trades!$E:$E,"Sale"),Benchmark!$H$6:$M$200,4,FALSE)),0), IF(DY5="Purchase",VLOOKUP(SUMIFS(Trades!$A:$A,Trades!$B:$B,DY$1,Trades!$C:$C,$B5,Trades!$E:$E,DY5,Trades!$E:$E,"Purchase"),Benchmark!$H$6:$M$200,6,FALSE), IF(DY5="Sale",VLOOKUP(SUMIFS(Trades!$A:$A,Trades!$B:$B,DY$1,Trades!$C:$C,$B5,Trades!$E:$E,DY5,Trades!$E:$E,"Sale"),Benchmark!$H$6:$M$200,4,FALSE)))) -> 0.005375612055 | EF5: =IF(DY5="Hold",((DN5-SUMIFS(Trades!$H:$H,Trades!$B:$B,DY$1,Trades!$C:$C,$B5,Trades!$E:$E,"Sale"))*(1+VLOOKUP(DY$1,Benchmark!$H$6:$M$200,4,FALSE))) +IFERROR((SUMIFS(Trades!$H:$H,Trades!$B:$B,DY$1,Trades!$C:$C,$B5,Trades!$E:$E,"Purchase")*(1+VLOOKUP(SUMIFS(Trades!$A:$A,Trades!$B:$B,DY$1,Trades!$C:$C,$B5,Trades!$E:$E,"Purchase"),Benchmark!$H$6:$M$200,4,FALSE))),0), IF(DY5="Purchase",SUMIFS(Trades!$H:$H,Trades!$B:$B,DY$1,Trades!$C:$C,$B5,Trades!$E:$E,"Purchase")*(1+EE5), IF(DY5="Sale",0))) -> 65493.68618 | EG5: 0.01523427228 | EH5: 0.000374507203 | EI5: 0.08446927374 | EJ5: 0.0842361968 | EK5: 66471.81064 | EL5: 0.0002330769389 | EM5: 4.817946209e-05 | EN5: Hold | EO5: =DZ5+SUMIFS(Trades!$H:$H,Trades!$C:$C,$B5,Trades!$E:$E,"Purchase",Trades!$B:$B,EN$1)-SUMIFS(Trades!$H:$H,Trades!$C:$C,$B5,Trades!$E:$E,"Sale",Trades!$B:$B,EN$1) -> 61307.5 | EP5: #N/A N/A | EQ5: =EB5+SUMIFS(Trades!$F:$F,Trades!$C:$C,$B5,Trades!$B:$B,EN$1,Trades!$E:$E,"Purchase")-SUMIFS(Trades!$F:$F,Trades!$C:$C,$B5,Trades!$B:$B,EN$1,Trades!$E:$E,"Sale") -> 685 | ES5: =IF(EN5="Hold",(ER5)/(EC5+SUMIFS(Trades!$H:$H,Trades!$B:$B,EN$1,Trades!$E:$E,"Purchase",Trades!$C:$C,$B5))-1, IF(EN5="Purchase",ER5/SUMIFS(Trades!$H:$H,Trades!$B:$B,EN$1,Trades!$E:$E,"Purchase",Trades!$C:$C,$B5)-1, IF(EN5="Sale",SUMIFS(Trades!$H:$H,Trades!$B:$B,EN$1,Trades!$E:$E,"Sale",Trades!$C:$C,$B5)/EC5-1))) ->  | ET5: =IF(EN5="Hold",IFERROR((((EC5-SUMIFS(Trades!$H:$H,Trades!$B:$B,EN$1,Trades!$C:$C,$B5,Trades!$E:$E,"Sale"))/(EC5+SUMIFS(Trades!$H:$H,Trades!$B:$B,EN$1,Trades!$C:$C,$B5,Trades!$E:$E,"Purchase")))*VLOOKUP(EN$1,Benchmark!$H$6:$M$200,4,FALSE)),0) +IFERROR(((SUMIFS(Trades!$H:$H,Trades!$B:$B,EN$1,Trades!$C:$C,$B5,Trades!$E:$E,"Purchase")/(EC5+SUMIFS(Trades!$H:$H,Trades!$B:$B,EN$1,Trades!$C:$C,$B5,Trades!$E:$E,"Purchase")))*VLOOKUP(SUMIFS(Trades!$A:$A,Trades!$B:$B,EN$1,Trades!$C:$C,$B5,Trades!$E:$E,"Purchase"),Benchmark!$H$6:$M$200,6,FALSE)),0) +IFERROR(((SUMIFS(Trades!$H:$H,Trades!$B:$B,EN$1,Trades!$C:$C,$B5,Trades!$E:$E,"Sale")/(EC5+SUMIFS(Trades!$H:$H,Trades!$B:$B,EN$1,Trades!$C:$C,$B5,Trades!$E:$E,"Purchase")))*VLOOKUP(SUMIFS(Trades!$A:$A,Trades!$B:$B,EN$1,Trades!$C:$C,$B5,Trades!$E:$E,"Sale"),Benchmark!$H$6:$M$200,4,FALSE)),0), IF(EN5="Purchase",VLOOKUP(SUMIFS(Trades!$A:$A,Trades!$B:$B,EN$1,Trades!$C:$C,$B5,Trades!$E:$E,EN5,Trades!$E:$E,"Purchase"),Benchmark!$H$6:$M$200,6,FALSE), IF(EN5="Sale",VLOOKUP(SUMIFS(Trades!$A:$A,Trades!$B:$B,EN$1,Trades!$C:$C,$B5,Trades!$E:$E,EN5,Trades!$E:$E,"Sale"),Benchmark!$H$6:$M$200,4,FALSE)))) -> 0 | EU5: =IF(EN5="Hold",((EC5-SUMIFS(Trades!$H:$H,Trades!$B:$B,EN$1,Trades!$C:$C,$B5,Trades!$E:$E,"Sale"))*(1+VLOOKUP(EN$1,Benchmark!$H$6:$M$200,4,FALSE))) +IFERROR((SUMIFS(Trades!$H:$H,Trades!$B:$B,EN$1,Trades!$C:$C,$B5,Trades!$E:$E,"Purchase")*(1+VLOOKUP(SUMIFS(Trades!$A:$A,Trades!$B:$B,EN$1,Trades!$C:$C,$B5,Trades!$E:$E,"Purchase"),Benchmark!$H$6:$M$200,4,FALSE))),0), IF(EN5="Purchase",SUMIFS(Trades!$H:$H,Trades!$B:$B,EN$1,Trades!$C:$C,$B5,Trades!$E:$E,"Purchase")*(1+ET5), IF(EN5="Sale",0))) ->  | EY5: 0.0842361968 | EZ5: 66471.81064 | FC5: Hold | FD5: =EO5+SUMIFS(Trades!$H:$H,Trades!$C:$C,$B5,Trades!$E:$E,"Purchase",Trades!$B:$B,FC$1)-SUMIFS(Trades!$H:$H,Trades!$C:$C,$B5,Trades!$E:$E,"Sale",Trades!$B:$B,FC$1) -> 61307.5 | FE5: #N/A N/A | FF5: =EQ5+SUMIFS(Trades!$F:$F,Trades!$C:$C,$B5,Trades!$B:$B,FC$1,Trades!$E:$E,"Purchase")-SUMIFS(Trades!$F:$F,Trades!$C:$C,$B5,Trades!$B:$B,FC$1,Trades!$E:$E,"Sale") -> 685 | FH5: =IF(FC5="Hold",(FG5)/(ER5+SUMIFS(Trades!$H:$H,Trades!$B:$B,FC$1,Trades!$E:$E,"Purchase",Trades!$C:$C,$B5))-1, IF(FC5="Purchase",FG5/SUMIFS(Trades!$H:$H,Trades!$B:$B,FC$1,Trades!$E:$E,"Purchase",Trades!$C:$C,$B5)-1, IF(FC5="Sale",SUMIFS(Trades!$H:$H,Trades!$B:$B,FC$1,Trades!$E:$E,"Sale",Trades!$C:$C,$B5)/ER5-1))) ->  | FI5: =IF(FC5="Hold",IFERROR((((ER5-SUMIFS(Trades!$H:$H,Trades!$B:$B,FC$1,Trades!$C:$C,$B5,Trades!$E:$E,"Sale"))/(ER5+SUMIFS(Trades!$H:$H,Trades!$B:$B,FC$1,Trades!$C:$C,$B5,Trades!$E:$E,"Purchase")))*VLOOKUP(FC$1,Benchmark!$H$6:$M$200,4,FALSE)),0) +IFERROR(((SUMIFS(Trades!$H:$H,Trades!$B:$B,FC$1,Trades!$C:$C,$B5,Trades!$E:$E,"Purchase")/(ER5+SUMIFS(Trades!$H:$H,Trades!$B:$B,FC$1,Trades!$C:$C,$B5,Trades!$E:$E,"Purchase")))*VLOOKUP(SUMIFS(Trades!$A:$A,Trades!$B:$B,FC$1,Trades!$C:$C,$B5,Trades!$E:$E,"Purchase"),Benchmark!$H$6:$M$200,6,FALSE)),0) +IFERROR(((SUMIFS(Trades!$H:$H,Trades!$B:$B,FC$1,Trades!$C:$C,$B5,Trades!$E:$E,"Sale")/(ER5+SUMIFS(Trades!$H:$H,Trades!$B:$B,FC$1,Trades!$C:$C,$B5,Trades!$E:$E,"Purchase")))*VLOOKUP(SUMIFS(Trades!$A:$A,Trades!$B:$B,FC$1,Trades!$C:$C,$B5,Trades!$E:$E,"Sale"),Benchmark!$H$6:$M$200,4,FALSE)),0), IF(FC5="Purchase",VLOOKUP(SUMIFS(Trades!$A:$A,Trades!$B:$B,FC$1,Trades!$C:$C,$B5,Trades!$E:$E,FC5,Trades!$E:$E,"Purchase"),Benchmark!$H$6:$M$200,6,FALSE), IF(FC5="Sale",VLOOKUP(SUMIFS(Trades!$A:$A,Trades!$B:$B,FC$1,Trades!$C:$C,$B5,Trades!$E:$E,FC5,Trades!$E:$E,"Sale"),Benchmark!$H$6:$M$200,4,FALSE)))) -> 0 | FJ5: =IF(FC5="Hold",((ER5-SUMIFS(Trades!$H:$H,Trades!$B:$B,FC$1,Trades!$C:$C,$B5,Trades!$E:$E,"Sale"))*(1+VLOOKUP(FC$1,Benchmark!$H$6:$M$200,4,FALSE))) +IFERROR((SUMIFS(Trades!$H:$H,Trades!$B:$B,FC$1,Trades!$C:$C,$B5,Trades!$E:$E,"Purchase")*(1+VLOOKUP(SUMIFS(Trades!$A:$A,Trades!$B:$B,FC$1,Trades!$C:$C,$B5,Trades!$E:$E,"Purchase"),Benchmark!$H$6:$M$200,4,FALSE))),0), IF(FC5="Purchase",SUMIFS(Trades!$H:$H,Trades!$B:$B,FC$1,Trades!$C:$C,$B5,Trades!$E:$E,"Purchase")*(1+FI5), IF(FC5="Sale",0))) ->  | FN5: 0.0842361968 | FO5: 66471.81064 | FR5: Hold | FS5: =FD5+SUMIFS(Trades!$H:$H,Trades!$C:$C,$B5,Trades!$E:$E,"Purchase",Trades!$B:$B,FR$1)-SUMIFS(Trades!$H:$H,Trades!$C:$C,$B5,Trades!$E:$E,"Sale",Trades!$B:$B,FR$1) -> 61307.5 | FT5: #N/A N/A | FU5: =FF5+SUMIFS(Trades!$F:$F,Trades!$C:$C,$B5,Trades!$B:$B,FR$1,Trades!$E:$E,"Purchase")-SUMIFS(Trades!$F:$F,Trades!$C:$C,$B5,Trades!$B:$B,FR$1,Trades!$E:$E,"Sale") -> 685 | FW5: =IF(FR5="Hold",(FV5)/(FG5+SUMIFS(Trades!$H:$H,Trades!$B:$B,FR$1,Trades!$E:$E,"Purchase",Trades!$C:$C,$B5))-1, IF(FR5="Purchase",FV5/SUMIFS(Trades!$H:$H,Trades!$B:$B,FR$1,Trades!$E:$E,"Purchase",Trades!$C:$C,$B5)-1, IF(FR5="Sale",SUMIFS(Trades!$H:$H,Trades!$B:$B,FR$1,Trades!$E:$E,"Sale",Trades!$C:$C,$B5)/FG5-1))) ->  | FX5: =IF(FR5="Hold",IFERROR((((FG5-SUMIFS(Trades!$H:$H,Trades!$B:$B,FR$1,Trades!$C:$C,$B5,Trades!$E:$E,"Sale"))/(FG5+SUMIFS(Trades!$H:$H,Trades!$B:$B,FR$1,Trades!$C:$C,$B5,Trades!$E:$E,"Purchase")))*VLOOKUP(FR$1,Benchmark!$H$6:$M$200,4,FALSE)),0) +IFERROR(((SUMIFS(Trades!$H:$H,Trades!$B:$B,FR$1,Trades!$C:$C,$B5,Trades!$E:$E,"Purchase")/(FG5+SUMIFS(Trades!$H:$H,Trades!$B:$B,FR$1,Trades!$C:$C,$B5,Trades!$E:$E,"Purchase")))*VLOOKUP(SUMIFS(Trades!$A:$A,Trades!$B:$B,FR$1,Trades!$C:$C,$B5,Trades!$E:$E,"Purchase"),Benchmark!$H$6:$M$200,6,FALSE)),0) +IFERROR(((SUMIFS(Trades!$H:$H,Trades!$B:$B,FR$1,Trades!$C:$C,$B5,Trades!$E:$E,"Sale")/(FG5+SUMIFS(Trades!$H:$H,Trades!$B:$B,FR$1,Trades!$C:$C,$B5,Trades!$E:$E,"Purchase")))*VLOOKUP(SUMIFS(Trades!$A:$A,Trades!$B:$B,FR$1,Trades!$C:$C,$B5,Trades!$E:$E,"Sale"),Benchmark!$H$6:$M$200,4,FALSE)),0), IF(FR5="Purchase",VLOOKUP(SUMIFS(Trades!$A:$A,Trades!$B:$B,FR$1,Trades!$C:$C,$B5,Trades!$E:$E,FR5,Trades!$E:$E,"Purchase"),Benchmark!$H$6:$M$200,6,FALSE), IF(FR5="Sale",VLOOKUP(SUMIFS(Trades!$A:$A,Trades!$B:$B,FR$1,Trades!$C:$C,$B5,Trades!$E:$E,FR5,Trades!$E:$E,"Sale"),Benchmark!$H$6:$M$200,4,FALSE)))) -> 0 | FY5: =IF(FR5="Hold",((FG5-SUMIFS(Trades!$H:$H,Trades!$B:$B,FR$1,Trades!$C:$C,$B5,Trades!$E:$E,"Sale"))*(1+VLOOKUP(FR$1,Benchmark!$H$6:$M$200,4,FALSE))) +IFERROR((SUMIFS(Trades!$H:$H,Trades!$B:$B,FR$1,Trades!$C:$C,$B5,Trades!$E:$E,"Purchase")*(1+VLOOKUP(SUMIFS(Trades!$A:$A,Trades!$B:$B,FR$1,Trades!$C:$C,$B5,Trades!$E:$E,"Purchase"),Benchmark!$H$6:$M$200,4,FALSE))),0), IF(FR5="Purchase",SUMIFS(Trades!$H:$H,Trades!$B:$B,FR$1,Trades!$C:$C,$B5,Trades!$E:$E,"Purchase")*(1+FX5), IF(FR5="Sale",0))) ->  | GC5: 0.0842361968 | GD5: 66471.81064 | GG5: Hold | GH5: =FS5+SUMIFS(Trades!$H:$H,Trades!$C:$C,$B5,Trades!$E:$E,"Purchase",Trades!$B:$B,GG$1)-SUMIFS(Trades!$H:$H,Trades!$C:$C,$B5,Trades!$E:$E,"Sale",Trades!$B:$B,GG$1) -> 61307.5 | GI5: #N/A N/A | GJ5: =FU5+SUMIFS(Trades!$F:$F,Trades!$C:$C,$B5,Trades!$B:$B,GG$1,Trades!$E:$E,"Purchase")-SUMIFS(Trades!$F:$F,Trades!$C:$C,$B5,Trades!$B:$B,GG$1,Trades!$E:$E,"Sale") -> 685 | GL5: =IF(GG5="Hold",(GK5)/(FV5+SUMIFS(Trades!$H:$H,Trades!$B:$B,GG$1,Trades!$E:$E,"Purchase",Trades!$C:$C,$B5))-1, IF(GG5="Purchase",GK5/SUMIFS(Trades!$H:$H,Trades!$B:$B,GG$1,Trades!$E:$E,"Purchase",Trades!$C:$C,$B5)-1, IF(GG5="Sale",SUMIFS(Trades!$H:$H,Trades!$B:$B,GG$1,Trades!$E:$E,"Sale",Trades!$C:$C,$B5)/FV5-1))) ->  | GM5: =IF(GG5="Hold",IFERROR((((FV5-SUMIFS(Trades!$H:$H,Trades!$B:$B,GG$1,Trades!$C:$C,$B5,Trades!$E:$E,"Sale"))/(FV5+SUMIFS(Trades!$H:$H,Trades!$B:$B,GG$1,Trades!$C:$C,$B5,Trades!$E:$E,"Purchase")))*VLOOKUP(GG$1,Benchmark!$H$6:$M$200,4,FALSE)),0) +IFERROR(((SUMIFS(Trades!$H:$H,Trades!$B:$B,GG$1,Trades!$C:$C,$B5,Trades!$E:$E,"Purchase")/(FV5+SUMIFS(Trades!$H:$H,Trades!$B:$B,GG$1,Trades!$C:$C,$B5,Trades!$E:$E,"Purchase")))*VLOOKUP(SUMIFS(Trades!$A:$A,Trades!$B:$B,GG$1,Trades!$C:$C,$B5,Trades!$E:$E,"Purchase"),Benchmark!$H$6:$M$200,6,FALSE)),0) +IFERROR(((SUMIFS(Trades!$H:$H,Trades!$B:$B,GG$1,Trades!$C:$C,$B5,Trades!$E:$E,"Sale")/(FV5+SUMIFS(Trades!$H:$H,Trades!$B:$B,GG$1,Trades!$C:$C,$B5,Trades!$E:$E,"Purchase")))*VLOOKUP(SUMIFS(Trades!$A:$A,Trades!$B:$B,GG$1,Trades!$C:$C,$B5,Trades!$E:$E,"Sale"),Benchmark!$H$6:$M$200,4,FALSE)),0), IF(GG5="Purchase",VLOOKUP(SUMIFS(Trades!$A:$A,Trades!$B:$B,GG$1,Trades!$C:$C,$B5,Trades!$E:$E,GG5,Trades!$E:$E,"Purchase"),Benchmark!$H$6:$M$200,6,FALSE), IF(GG5="Sale",VLOOKUP(SUMIFS(Trades!$A:$A,Trades!$B:$B,GG$1,Trades!$C:$C,$B5,Trades!$E:$E,GG5,Trades!$E:$E,"Sale"),Benchmark!$H$6:$M$200,4,FALSE)))) -> 0 | GN5: =IF(GG5="Hold",((FV5-SUMIFS(Trades!$H:$H,Trades!$B:$B,GG$1,Trades!$C:$C,$B5,Trades!$E:$E,"Sale"))*(1+VLOOKUP(GG$1,Benchmark!$H$6:$M$200,4,FALSE))) +IFERROR((SUMIFS(Trades!$H:$H,Trades!$B:$B,GG$1,Trades!$C:$C,$B5,Trades!$E:$E,"Purchase")*(1+VLOOKUP(SUMIFS(Trades!$A:$A,Trades!$B:$B,GG$1,Trades!$C:$C,$B5,Trades!$E:$E,"Purchase"),Benchmark!$H$6:$M$200,4,FALSE))),0), IF(GG5="Purchase",SUMIFS(Trades!$H:$H,Trades!$B:$B,GG$1,Trades!$C:$C,$B5,Trades!$E:$E,"Purchase")*(1+GM5), IF(GG5="Sale",0))) ->  | GR5: 0.0842361968 | GS5: 66471.81064 | GV5: Hold | GW5: =GH5+SUMIFS(Trades!$H:$H,Trades!$C:$C,$B5,Trades!$E:$E,"Purchase",Trades!$B:$B,GV$1)-SUMIFS(Trades!$H:$H,Trades!$C:$C,$B5,Trades!$E:$E,"Sale",Trades!$B:$B,GV$1) -> 61307.5 | GX5: #N/A N/A | GY5: =GJ5+SUMIFS(Trades!$F:$F,Trades!$C:$C,$B5,Trades!$B:$B,GV$1,Trades!$E:$E,"Purchase")-SUMIFS(Trades!$F:$F,Trades!$C:$C,$B5,Trades!$B:$B,GV$1,Trades!$E:$E,"Sale") -> 685 | HA5: =IF(GV5="Hold",(GZ5)/(GK5+SUMIFS(Trades!$H:$H,Trades!$B:$B,GV$1,Trades!$E:$E,"Purchase",Trades!$C:$C,$B5))-1, IF(GV5="Purchase",GZ5/SUMIFS(Trades!$H:$H,Trades!$B:$B,GV$1,Trades!$E:$E,"Purchase",Trades!$C:$C,$B5)-1, IF(GV5="Sale",SUMIFS(Trades!$H:$H,Trades!$B:$B,GV$1,Trades!$E:$E,"Sale",Trades!$C:$C,$B5)/GK5-1))) ->  | HB5: =IF(GV5="Hold",IFERROR((((GK5-SUMIFS(Trades!$H:$H,Trades!$B:$B,GV$1,Trades!$C:$C,$B5,Trades!$E:$E,"Sale"))/(GK5+SUMIFS(Trades!$H:$H,Trades!$B:$B,GV$1,Trades!$C:$C,$B5,Trades!$E:$E,"Purchase")))*VLOOKUP(GV$1,Benchmark!$H$6:$M$200,4,FALSE)),0) +IFERROR(((SUMIFS(Trades!$H:$H,Trades!$B:$B,GV$1,Trades!$C:$C,$B5,Trades!$E:$E,"Purchase")/(GK5+SUMIFS(Trades!$H:$H,Trades!$B:$B,GV$1,Trades!$C:$C,$B5,Trades!$E:$E,"Purchase")))*VLOOKUP(SUMIFS(Trades!$A:$A,Trades!$B:$B,GV$1,Trades!$C:$C,$B5,Trades!$E:$E,"Purchase"),Benchmark!$H$6:$M$200,6,FALSE)),0) +IFERROR(((SUMIFS(Trades!$H:$H,Trades!$B:$B,GV$1,Trades!$C:$C,$B5,Trades!$E:$E,"Sale")/(GK5+SUMIFS(Trades!$H:$H,Trades!$B:$B,GV$1,Trades!$C:$C,$B5,Trades!$E:$E,"Purchase")))*VLOOKUP(SUMIFS(Trades!$A:$A,Trades!$B:$B,GV$1,Trades!$C:$C,$B5,Trades!$E:$E,"Sale"),Benchmark!$H$6:$M$200,4,FALSE)),0), IF(GV5="Purchase",VLOOKUP(SUMIFS(Trades!$A:$A,Trades!$B:$B,GV$1,Trades!$C:$C,$B5,Trades!$E:$E,GV5,Trades!$E:$E,"Purchase"),Benchmark!$H$6:$M$200,6,FALSE), IF(GV5="Sale",VLOOKUP(SUMIFS(Trades!$A:$A,Trades!$B:$B,GV$1,Trades!$C:$C,$B5,Trades!$E:$E,GV5,Trades!$E:$E,"Sale"),Benchmark!$H$6:$M$200,4,FALSE)))) -> 0 | HC5: =IF(GV5="Hold",((GK5-SUMIFS(Trades!$H:$H,Trades!$B:$B,GV$1,Trades!$C:$C,$B5,Trades!$E:$E,"Sale"))*(1+VLOOKUP(GV$1,Benchmark!$H$6:$M$200,4,FALSE))) +IFERROR((SUMIFS(Trades!$H:$H,Trades!$B:$B,GV$1,Trades!$C:$C,$B5,Trades!$E:$E,"Purchase")*(1+VLOOKUP(SUMIFS(Trades!$A:$A,Trades!$B:$B,GV$1,Trades!$C:$C,$B5,Trades!$E:$E,"Purchase"),Benchmark!$H$6:$M$200,4,FALSE))),0), IF(GV5="Purchase",SUMIFS(Trades!$H:$H,Trades!$B:$B,GV$1,Trades!$C:$C,$B5,Trades!$E:$E,"Purchase")*(1+HB5), IF(GV5="Sale",0))) ->  | HG5: 0.0842361968 | HH5: 66471.81064 | HK5: Hold | HL5: =GW5+SUMIFS(Trades!$H:$H,Trades!$C:$C,$B5,Trades!$E:$E,"Purchase",Trades!$B:$B,HK$1)-SUMIFS(Trades!$H:$H,Trades!$C:$C,$B5,Trades!$E:$E,"Sale",Trades!$B:$B,HK$1) -> 61307.5 | HM5: #N/A N/A | HN5: =GY5+SUMIFS(Trades!$F:$F,Trades!$C:$C,$B5,Trades!$B:$B,HK$1,Trades!$E:$E,"Purchase")-SUMIFS(Trades!$F:$F,Trades!$C:$C,$B5,Trades!$B:$B,HK$1,Trades!$E:$E,"Sale") -> 685 | HP5: =IF(HK5="Hold",(HO5)/(GZ5+SUMIFS(Trades!$H:$H,Trades!$B:$B,HK$1,Trades!$E:$E,"Purchase",Trades!$C:$C,$B5))-1, IF(HK5="Purchase",HO5/SUMIFS(Trades!$H:$H,Trades!$B:$B,HK$1,Trades!$E:$E,"Purchase",Trades!$C:$C,$B5)-1, IF(HK5="Sale",SUMIFS(Trades!$H:$H,Trades!$B:$B,HK$1,Trades!$E:$E,"Sale",Trades!$C:$C,$B5)/GZ5-1))) ->  | HQ5: =IF(HK5="Hold",IFERROR((((GZ5-SUMIFS(Trades!$H:$H,Trades!$B:$B,HK$1,Trades!$C:$C,$B5,Trades!$E:$E,"Sale"))/(GZ5+SUMIFS(Trades!$H:$H,Trades!$B:$B,HK$1,Trades!$C:$C,$B5,Trades!$E:$E,"Purchase")))*VLOOKUP(HK$1,Benchmark!$H$6:$M$200,4,FALSE)),0) +IFERROR(((SUMIFS(Trades!$H:$H,Trades!$B:$B,HK$1,Trades!$C:$C,$B5,Trades!$E:$E,"Purchase")/(GZ5+SUMIFS(Trades!$H:$H,Trades!$B:$B,HK$1,Trades!$C:$C,$B5,Trades!$E:$E,"Purchase")))*VLOOKUP(SUMIFS(Trades!$A:$A,Trades!$B:$B,HK$1,Trades!$C:$C,$B5,Trades!$E:$E,"Purchase"),Benchmark!$H$6:$M$200,6,FALSE)),0) +IFERROR(((SUMIFS(Trades!$H:$H,Trades!$B:$B,HK$1,Trades!$C:$C,$B5,Trades!$E:$E,"Sale")/(GZ5+SUMIFS(Trades!$H:$H,Trades!$B:$B,HK$1,Trades!$C:$C,$B5,Trades!$E:$E,"Purchase")))*VLOOKUP(SUMIFS(Trades!$A:$A,Trades!$B:$B,HK$1,Trades!$C:$C,$B5,Trades!$E:$E,"Sale"),Benchmark!$H$6:$M$200,4,FALSE)),0), IF(HK5="Purchase",VLOOKUP(SUMIFS(Trades!$A:$A,Trades!$B:$B,HK$1,Trades!$C:$C,$B5,Trades!$E:$E,HK5,Trades!$E:$E,"Purchase"),Benchmark!$H$6:$M$200,6,FALSE), IF(HK5="Sale",VLOOKUP(SUMIFS(Trades!$A:$A,Trades!$B:$B,HK$1,Trades!$C:$C,$B5,Trades!$E:$E,HK5,Trades!$E:$E,"Sale"),Benchmark!$H$6:$M$200,4,FALSE)))) -> 0 | HR5: =IF(HK5="Hold",((GZ5-SUMIFS(Trades!$H:$H,Trades!$B:$B,HK$1,Trades!$C:$C,$B5,Trades!$E:$E,"Sale"))*(1+VLOOKUP(HK$1,Benchmark!$H$6:$M$200,4,FALSE))) +IFERROR((SUMIFS(Trades!$H:$H,Trades!$B:$B,HK$1,Trades!$C:$C,$B5,Trades!$E:$E,"Purchase")*(1+VLOOKUP(SUMIFS(Trades!$A:$A,Trades!$B:$B,HK$1,Trades!$C:$C,$B5,Trades!$E:$E,"Purchase"),Benchmark!$H$6:$M$200,4,FALSE))),0), IF(HK5="Purchase",SUMIFS(Trades!$H:$H,Trades!$B:$B,HK$1,Trades!$C:$C,$B5,Trades!$E:$E,"Purchase")*(1+HQ5), IF(HK5="Sale",0))) ->  | HV5: 0.0842361968 | HW5: 66471.81064 | HZ5: Hold | IA5: =HL5+SUMIFS(Trades!$H:$H,Trades!$C:$C,$B5,Trades!$E:$E,"Purchase",Trades!$B:$B,HZ$1)-SUMIFS(Trades!$H:$H,Trades!$C:$C,$B5,Trades!$E:$E,"Sale",Trades!$B:$B,HZ$1) -> 61307.5 | IB5: #N/A N/A | IC5: =HN5+SUMIFS(Trades!$F:$F,Trades!$C:$C,$B5,Trades!$B:$B,HZ$1,Trades!$E:$E,"Purchase")-SUMIFS(Trades!$F:$F,Trades!$C:$C,$B5,Trades!$B:$B,HZ$1,Trades!$E:$E,"Sale") -> 685 | IE5: =IF(HZ5="Hold",(ID5)/(HO5+SUMIFS(Trades!$H:$H,Trades!$B:$B,HZ$1,Trades!$E:$E,"Purchase",Trades!$C:$C,$B5))-1, IF(HZ5="Purchase",ID5/SUMIFS(Trades!$H:$H,Trades!$B:$B,HZ$1,Trades!$E:$E,"Purchase",Trades!$C:$C,$B5)-1, IF(HZ5="Sale",SUMIFS(Trades!$H:$H,Trades!$B:$B,HZ$1,Trades!$E:$E,"Sale",Trades!$C:$C,$B5)/HO5-1))) ->  | IF5: =IF(HZ5="Hold",IFERROR((((HO5-SUMIFS(Trades!$H:$H,Trades!$B:$B,HZ$1,Trades!$C:$C,$B5,Trades!$E:$E,"Sale"))/(HO5+SUMIFS(Trades!$H:$H,Trades!$B:$B,HZ$1,Trades!$C:$C,$B5,Trades!$E:$E,"Purchase")))*VLOOKUP(HZ$1,Benchmark!$H$6:$M$200,4,FALSE)),0) +IFERROR(((SUMIFS(Trades!$H:$H,Trades!$B:$B,HZ$1,Trades!$C:$C,$B5,Trades!$E:$E,"Purchase")/(HO5+SUMIFS(Trades!$H:$H,Trades!$B:$B,HZ$1,Trades!$C:$C,$B5,Trades!$E:$E,"Purchase")))*VLOOKUP(SUMIFS(Trades!$A:$A,Trades!$B:$B,HZ$1,Trades!$C:$C,$B5,Trades!$E:$E,"Purchase"),Benchmark!$H$6:$M$200,6,FALSE)),0) +IFERROR(((SUMIFS(Trades!$H:$H,Trades!$B:$B,HZ$1,Trades!$C:$C,$B5,Trades!$E:$E,"Sale")/(HO5+SUMIFS(Trades!$H:$H,Trades!$B:$B,HZ$1,Trades!$C:$C,$B5,Trades!$E:$E,"Purchase")))*VLOOKUP(SUMIFS(Trades!$A:$A,Trades!$B:$B,HZ$1,Trades!$C:$C,$B5,Trades!$E:$E,"Sale"),Benchmark!$H$6:$M$200,4,FALSE)),0), IF(HZ5="Purchase",VLOOKUP(SUMIFS(Trades!$A:$A,Trades!$B:$B,HZ$1,Trades!$C:$C,$B5,Trades!$E:$E,HZ5,Trades!$E:$E,"Purchase"),Benchmark!$H$6:$M$200,6,FALSE), IF(HZ5="Sale",VLOOKUP(SUMIFS(Trades!$A:$A,Trades!$B:$B,HZ$1,Trades!$C:$C,$B5,Trades!$E:$E,HZ5,Trades!$E:$E,"Sale"),Benchmark!$H$6:$M$200,4,FALSE)))) -> 0 | IG5: =IF(HZ5="Hold",((HO5-SUMIFS(Trades!$H:$H,Trades!$B:$B,HZ$1,Trades!$C:$C,$B5,Trades!$E:$E,"Sale"))*(1+VLOOKUP(HZ$1,Benchmark!$H$6:$M$200,4,FALSE))) +IFERROR((SUMIFS(Trades!$H:$H,Trades!$B:$B,HZ$1,Trades!$C:$C,$B5,Trades!$E:$E,"Purchase")*(1+VLOOKUP(SUMIFS(Trades!$A:$A,Trades!$B:$B,HZ$1,Trades!$C:$C,$B5,Trades!$E:$E,"Purchase"),Benchmark!$H$6:$M$200,4,FALSE))),0), IF(HZ5="Purchase",SUMIFS(Trades!$H:$H,Trades!$B:$B,HZ$1,Trades!$C:$C,$B5,Trades!$E:$E,"Purchase")*(1+IF5), IF(HZ5="Sale",0))) ->  | IK5: 0.0842361968 | IL5: 66471.81064 | IO5: Hold | IP5: =IA5+SUMIFS(Trades!$H:$H,Trades!$C:$C,$B5,Trades!$E:$E,"Purchase",Trades!$B:$B,IO$1)-SUMIFS(Trades!$H:$H,Trades!$C:$C,$B5,Trades!$E:$E,"Sale",Trades!$B:$B,IO$1) -> 61307.5 | IQ5: #N/A N/A | IR5: =IC5+SUMIFS(Trades!$F:$F,Trades!$C:$C,$B5,Trades!$B:$B,IO$1,Trades!$E:$E,"Purchase")-SUMIFS(Trades!$F:$F,Trades!$C:$C,$B5,Trades!$B:$B,IO$1,Trades!$E:$E,"Sale") -> 685 | IT5: =IF(IO5="Hold",(IS5)/(ID5+SUMIFS(Trades!$H:$H,Trades!$B:$B,IO$1,Trades!$E:$E,"Purchase",Trades!$C:$C,$B5))-1, IF(IO5="Purchase",IS5/SUMIFS(Trades!$H:$H,Trades!$B:$B,IO$1,Trades!$E:$E,"Purchase",Trades!$C:$C,$B5)-1, IF(IO5="Sale",SUMIFS(Trades!$H:$H,Trades!$B:$B,IO$1,Trades!$E:$E,"Sale",Trades!$C:$C,$B5)/ID5-1))) ->  | IU5: =IF(IO5="Hold",IFERROR((((ID5-SUMIFS(Trades!$H:$H,Trades!$B:$B,IO$1,Trades!$C:$C,$B5,Trades!$E:$E,"Sale"))/(ID5+SUMIFS(Trades!$H:$H,Trades!$B:$B,IO$1,Trades!$C:$C,$B5,Trades!$E:$E,"Purchase")))*VLOOKUP(IO$1,Benchmark!$H$6:$M$200,4,FALSE)),0) +IFERROR(((SUMIFS(Trades!$H:$H,Trades!$B:$B,IO$1,Trades!$C:$C,$B5,Trades!$E:$E,"Purchase")/(ID5+SUMIFS(Trades!$H:$H,Trades!$B:$B,IO$1,Trades!$C:$C,$B5,Trades!$E:$E,"Purchase")))*VLOOKUP(SUMIFS(Trades!$A:$A,Trades!$B:$B,IO$1,Trades!$C:$C,$B5,Trades!$E:$E,"Purchase"),Benchmark!$H$6:$M$200,6,FALSE)),0) +IFERROR(((SUMIFS(Trades!$H:$H,Trades!$B:$B,IO$1,Trades!$C:$C,$B5,Trades!$E:$E,"Sale")/(ID5+SUMIFS(Trades!$H:$H,Trades!$B:$B,IO$1,Trades!$C:$C,$B5,Trades!$E:$E,"Purchase")))*VLOOKUP(SUMIFS(Trades!$A:$A,Trades!$B:$B,IO$1,Trades!$C:$C,$B5,Trades!$E:$E,"Sale"),Benchmark!$H$6:$M$200,4,FALSE)),0), IF(IO5="Purchase",VLOOKUP(SUMIFS(Trades!$A:$A,Trades!$B:$B,IO$1,Trades!$C:$C,$B5,Trades!$E:$E,IO5,Trades!$E:$E,"Purchase"),Benchmark!$H$6:$M$200,6,FALSE), IF(IO5="Sale",VLOOKUP(SUMIFS(Trades!$A:$A,Trades!$B:$B,IO$1,Trades!$C:$C,$B5,Trades!$E:$E,IO5,Trades!$E:$E,"Sale"),Benchmark!$H$6:$M$200,4,FALSE)))) -> 0 | IV5: =IF(IO5="Hold",((ID5-SUMIFS(Trades!$H:$H,Trades!$B:$B,IO$1,Trades!$C:$C,$B5,Trades!$E:$E,"Sale"))*(1+VLOOKUP(IO$1,Benchmark!$H$6:$M$200,4,FALSE))) +IFERROR((SUMIFS(Trades!$H:$H,Trades!$B:$B,IO$1,Trades!$C:$C,$B5,Trades!$E:$E,"Purchase")*(1+VLOOKUP(SUMIFS(Trades!$A:$A,Trades!$B:$B,IO$1,Trades!$C:$C,$B5,Trades!$E:$E,"Purchase"),Benchmark!$H$6:$M$200,4,FALSE))),0), IF(IO5="Purchase",SUMIFS(Trades!$H:$H,Trades!$B:$B,IO$1,Trades!$C:$C,$B5,Trades!$E:$E,"Purchase")*(1+IU5), IF(IO5="Sale",0))) ->  | IZ5: 0.0842361968 | JA5: 66471.81064 | JD5: Hold | JE5: =IP5+SUMIFS(Trades!$H:$H,Trades!$C:$C,$B5,Trades!$E:$E,"Purchase",Trades!$B:$B,JD$1)-SUMIFS(Trades!$H:$H,Trades!$C:$C,$B5,Trades!$E:$E,"Sale",Trades!$B:$B,JD$1) -> 61307.5 | JF5: #N/A N/A | JG5: =IR5+SUMIFS(Trades!$F:$F,Trades!$C:$C,$B5,Trades!$B:$B,JD$1,Trades!$E:$E,"Purchase")-SUMIFS(Trades!$F:$F,Trades!$C:$C,$B5,Trades!$B:$B,JD$1,Trades!$E:$E,"Sale") -> 685 | JI5: =IF(JD5="Hold",(JH5)/(IS5+SUMIFS(Trades!$H:$H,Trades!$B:$B,JD$1,Trades!$E:$E,"Purchase",Trades!$C:$C,$B5))-1, IF(JD5="Purchase",JH5/SUMIFS(Trades!$H:$H,Trades!$B:$B,JD$1,Trades!$E:$E,"Purchase",Trades!$C:$C,$B5)-1, IF(JD5="Sale",SUMIFS(Trades!$H:$H,Trades!$B:$B,JD$1,Trades!$E:$E,"Sale",Trades!$C:$C,$B5)/IS5-1))) ->  | JJ5: =IF(JD5="Hold",IFERROR((((IS5-SUMIFS(Trades!$H:$H,Trades!$B:$B,JD$1,Trades!$C:$C,$B5,Trades!$E:$E,"Sale"))/(IS5+SUMIFS(Trades!$H:$H,Trades!$B:$B,JD$1,Trades!$C:$C,$B5,Trades!$E:$E,"Purchase")))*VLOOKUP(JD$1,Benchmark!$H$6:$M$200,4,FALSE)),0) +IFERROR(((SUMIFS(Trades!$H:$H,Trades!$B:$B,JD$1,Trades!$C:$C,$B5,Trades!$E:$E,"Purchase")/(IS5+SUMIFS(Trades!$H:$H,Trades!$B:$B,JD$1,Trades!$C:$C,$B5,Trades!$E:$E,"Purchase")))*VLOOKUP(SUMIFS(Trades!$A:$A,Trades!$B:$B,JD$1,Trades!$C:$C,$B5,Trades!$E:$E,"Purchase"),Benchmark!$H$6:$M$200,6,FALSE)),0) +IFERROR(((SUMIFS(Trades!$H:$H,Trades!$B:$B,JD$1,Trades!$C:$C,$B5,Trades!$E:$E,"Sale")/(IS5+SUMIFS(Trades!$H:$H,Trades!$B:$B,JD$1,Trades!$C:$C,$B5,Trades!$E:$E,"Purchase")))*VLOOKUP(SUMIFS(Trades!$A:$A,Trades!$B:$B,JD$1,Trades!$C:$C,$B5,Trades!$E:$E,"Sale"),Benchmark!$H$6:$M$200,4,FALSE)),0), IF(JD5="Purchase",VLOOKUP(SUMIFS(Trades!$A:$A,Trades!$B:$B,JD$1,Trades!$C:$C,$B5,Trades!$E:$E,JD5,Trades!$E:$E,"Purchase"),Benchmark!$H$6:$M$200,6,FALSE), IF(JD5="Sale",VLOOKUP(SUMIFS(Trades!$A:$A,Trades!$B:$B,JD$1,Trades!$C:$C,$B5,Trades!$E:$E,JD5,Trades!$E:$E,"Sale"),Benchmark!$H$6:$M$200,4,FALSE)))) -> 0 | JK5: =IF(JD5="Hold",((IS5-SUMIFS(Trades!$H:$H,Trades!$B:$B,JD$1,Trades!$C:$C,$B5,Trades!$E:$E,"Sale"))*(1+VLOOKUP(JD$1,Benchmark!$H$6:$M$200,4,FALSE))) +IFERROR((SUMIFS(Trades!$H:$H,Trades!$B:$B,JD$1,Trades!$C:$C,$B5,Trades!$E:$E,"Purchase")*(1+VLOOKUP(SUMIFS(Trades!$A:$A,Trades!$B:$B,JD$1,Trades!$C:$C,$B5,Trades!$E:$E,"Purchase"),Benchmark!$H$6:$M$200,4,FALSE))),0), IF(JD5="Purchase",SUMIFS(Trades!$H:$H,Trades!$B:$B,JD$1,Trades!$C:$C,$B5,Trades!$E:$E,"Purchase")*(1+JJ5), IF(JD5="Sale",0))) ->  | JO5: 0.0842361968 | JP5: 66471.81064 | JS5: Hold | JT5: =JE5+SUMIFS(Trades!$H:$H,Trades!$C:$C,$B5,Trades!$E:$E,"Purchase",Trades!$B:$B,JS$1)-SUMIFS(Trades!$H:$H,Trades!$C:$C,$B5,Trades!$E:$E,"Sale",Trades!$B:$B,JS$1) -> 61307.5 | JU5: #N/A N/A | JV5: =JG5+SUMIFS(Trades!$F:$F,Trades!$C:$C,$B5,Trades!$B:$B,JS$1,Trades!$E:$E,"Purchase")-SUMIFS(Trades!$F:$F,Trades!$C:$C,$B5,Trades!$B:$B,JS$1,Trades!$E:$E,"Sale") -> 685 | JX5: =IF(JS5="Hold",(JW5)/(JH5+SUMIFS(Trades!$H:$H,Trades!$B:$B,JS$1,Trades!$E:$E,"Purchase",Trades!$C:$C,$B5))-1, IF(JS5="Purchase",JW5/SUMIFS(Trades!$H:$H,Trades!$B:$B,JS$1,Trades!$E:$E,"Purchase",Trades!$C:$C,$B5)-1, IF(JS5="Sale",SUMIFS(Trades!$H:$H,Trades!$B:$B,JS$1,Trades!$E:$E,"Sale",Trades!$C:$C,$B5)/JH5-1))) ->  | JY5: =IF(JS5="Hold",IFERROR((((JH5-SUMIFS(Trades!$H:$H,Trades!$B:$B,JS$1,Trades!$C:$C,$B5,Trades!$E:$E,"Sale"))/(JH5+SUMIFS(Trades!$H:$H,Trades!$B:$B,JS$1,Trades!$C:$C,$B5,Trades!$E:$E,"Purchase")))*VLOOKUP(JS$1,Benchmark!$H$6:$M$200,4,FALSE)),0) +IFERROR(((SUMIFS(Trades!$H:$H,Trades!$B:$B,JS$1,Trades!$C:$C,$B5,Trades!$E:$E,"Purchase")/(JH5+SUMIFS(Trades!$H:$H,Trades!$B:$B,JS$1,Trades!$C:$C,$B5,Trades!$E:$E,"Purchase")))*VLOOKUP(SUMIFS(Trades!$A:$A,Trades!$B:$B,JS$1,Trades!$C:$C,$B5,Trades!$E:$E,"Purchase"),Benchmark!$H$6:$M$200,6,FALSE)),0) +IFERROR(((SUMIFS(Trades!$H:$H,Trades!$B:$B,JS$1,Trades!$C:$C,$B5,Trades!$E:$E,"Sale")/(JH5+SUMIFS(Trades!$H:$H,Trades!$B:$B,JS$1,Trades!$C:$C,$B5,Trades!$E:$E,"Purchase")))*VLOOKUP(SUMIFS(Trades!$A:$A,Trades!$B:$B,JS$1,Trades!$C:$C,$B5,Trades!$E:$E,"Sale"),Benchmark!$H$6:$M$200,4,FALSE)),0), IF(JS5="Purchase",VLOOKUP(SUMIFS(Trades!$A:$A,Trades!$B:$B,JS$1,Trades!$C:$C,$B5,Trades!$E:$E,JS5,Trades!$E:$E,"Purchase"),Benchmark!$H$6:$M$200,6,FALSE), IF(JS5="Sale",VLOOKUP(SUMIFS(Trades!$A:$A,Trades!$B:$B,JS$1,Trades!$C:$C,$B5,Trades!$E:$E,JS5,Trades!$E:$E,"Sale"),Benchmark!$H$6:$M$200,4,FALSE)))) -> 0 | JZ5: =IF(JS5="Hold",((JH5-SUMIFS(Trades!$H:$H,Trades!$B:$B,JS$1,Trades!$C:$C,$B5,Trades!$E:$E,"Sale"))*(1+VLOOKUP(JS$1,Benchmark!$H$6:$M$200,4,FALSE))) +IFERROR((SUMIFS(Trades!$H:$H,Trades!$B:$B,JS$1,Trades!$C:$C,$B5,Trades!$E:$E,"Purchase")*(1+VLOOKUP(SUMIFS(Trades!$A:$A,Trades!$B:$B,JS$1,Trades!$C:$C,$B5,Trades!$E:$E,"Purchase"),Benchmark!$H$6:$M$200,4,FALSE))),0), IF(JS5="Purchase",SUMIFS(Trades!$H:$H,Trades!$B:$B,JS$1,Trades!$C:$C,$B5,Trades!$E:$E,"Purchase")*(1+JY5), IF(JS5="Sale",0))) ->  | KD5: 0.0842361968 | KE5: 66471.81064 | KH5: Hold | KI5: =JT5+SUMIFS(Trades!$H:$H,Trades!$C:$C,$B5,Trades!$E:$E,"Purchase",Trades!$B:$B,KH$1)-SUMIFS(Trades!$H:$H,Trades!$C:$C,$B5,Trades!$E:$E,"Sale",Trades!$B:$B,KH$1) -> 61307.5 | KJ5: #N/A N/A | KK5: =JV5+SUMIFS(Trades!$F:$F,Trades!$C:$C,$B5,Trades!$B:$B,KH$1,Trades!$E:$E,"Purchase")-SUMIFS(Trades!$F:$F,Trades!$C:$C,$B5,Trades!$B:$B,KH$1,Trades!$E:$E,"Sale") -> 685 | KM5: =IF(KH5="Hold",(KL5)/(JW5+SUMIFS(Trades!$H:$H,Trades!$B:$B,KH$1,Trades!$E:$E,"Purchase",Trades!$C:$C,$B5))-1, IF(KH5="Purchase",KL5/SUMIFS(Trades!$H:$H,Trades!$B:$B,KH$1,Trades!$E:$E,"Purchase",Trades!$C:$C,$B5)-1, IF(KH5="Sale",SUMIFS(Trades!$H:$H,Trades!$B:$B,KH$1,Trades!$E:$E,"Sale",Trades!$C:$C,$B5)/JW5-1))) ->  | KN5: =IF(KH5="Hold",IFERROR((((JW5-SUMIFS(Trades!$H:$H,Trades!$B:$B,KH$1,Trades!$C:$C,$B5,Trades!$E:$E,"Sale"))/(JW5+SUMIFS(Trades!$H:$H,Trades!$B:$B,KH$1,Trades!$C:$C,$B5,Trades!$E:$E,"Purchase")))*VLOOKUP(KH$1,Benchmark!$H$6:$M$200,4,FALSE)),0) +IFERROR(((SUMIFS(Trades!$H:$H,Trades!$B:$B,KH$1,Trades!$C:$C,$B5,Trades!$E:$E,"Purchase")/(JW5+SUMIFS(Trades!$H:$H,Trades!$B:$B,KH$1,Trades!$C:$C,$B5,Trades!$E:$E,"Purchase")))*VLOOKUP(SUMIFS(Trades!$A:$A,Trades!$B:$B,KH$1,Trades!$C:$C,$B5,Trades!$E:$E,"Purchase"),Benchmark!$H$6:$M$200,6,FALSE)),0) +IFERROR(((SUMIFS(Trades!$H:$H,Trades!$B:$B,KH$1,Trades!$C:$C,$B5,Trades!$E:$E,"Sale")/(JW5+SUMIFS(Trades!$H:$H,Trades!$B:$B,KH$1,Trades!$C:$C,$B5,Trades!$E:$E,"Purchase")))*VLOOKUP(SUMIFS(Trades!$A:$A,Trades!$B:$B,KH$1,Trades!$C:$C,$B5,Trades!$E:$E,"Sale"),Benchmark!$H$6:$M$200,4,FALSE)),0), IF(KH5="Purchase",VLOOKUP(SUMIFS(Trades!$A:$A,Trades!$B:$B,KH$1,Trades!$C:$C,$B5,Trades!$E:$E,KH5,Trades!$E:$E,"Purchase"),Benchmark!$H$6:$M$200,6,FALSE), IF(KH5="Sale",VLOOKUP(SUMIFS(Trades!$A:$A,Trades!$B:$B,KH$1,Trades!$C:$C,$B5,Trades!$E:$E,KH5,Trades!$E:$E,"Sale"),Benchmark!$H$6:$M$200,4,FALSE)))) -> 0 | KO5: =IF(KH5="Hold",((JW5-SUMIFS(Trades!$H:$H,Trades!$B:$B,KH$1,Trades!$C:$C,$B5,Trades!$E:$E,"Sale"))*(1+VLOOKUP(KH$1,Benchmark!$H$6:$M$200,4,FALSE))) +IFERROR((SUMIFS(Trades!$H:$H,Trades!$B:$B,KH$1,Trades!$C:$C,$B5,Trades!$E:$E,"Purchase")*(1+VLOOKUP(SUMIFS(Trades!$A:$A,Trades!$B:$B,KH$1,Trades!$C:$C,$B5,Trades!$E:$E,"Purchase"),Benchmark!$H$6:$M$200,4,FALSE))),0), IF(KH5="Purchase",SUMIFS(Trades!$H:$H,Trades!$B:$B,KH$1,Trades!$C:$C,$B5,Trades!$E:$E,"Purchase")*(1+KN5), IF(KH5="Sale",0))) ->  | KS5: 0.0842361968 | KT5: 66471.81064 | KW5: Hold | KX5: =KI5+SUMIFS(Trades!$H:$H,Trades!$C:$C,$B5,Trades!$E:$E,"Purchase",Trades!$B:$B,KW$1)-SUMIFS(Trades!$H:$H,Trades!$C:$C,$B5,Trades!$E:$E,"Sale",Trades!$B:$B,KW$1) -> 61307.5 | KY5: #N/A N/A | KZ5: =KK5+SUMIFS(Trades!$F:$F,Trades!$C:$C,$B5,Trades!$B:$B,KW$1,Trades!$E:$E,"Purchase")-SUMIFS(Trades!$F:$F,Trades!$C:$C,$B5,Trades!$B:$B,KW$1,Trades!$E:$E,"Sale") -> 685 | LB5: =IF(KW5="Hold",(LA5)/(KL5+SUMIFS(Trades!$H:$H,Trades!$B:$B,KW$1,Trades!$E:$E,"Purchase",Trades!$C:$C,$B5))-1, IF(KW5="Purchase",LA5/SUMIFS(Trades!$H:$H,Trades!$B:$B,KW$1,Trades!$E:$E,"Purchase",Trades!$C:$C,$B5)-1, IF(KW5="Sale",SUMIFS(Trades!$H:$H,Trades!$B:$B,KW$1,Trades!$E:$E,"Sale",Trades!$C:$C,$B5)/KL5-1))) ->  | LC5: =IF(KW5="Hold",IFERROR((((KL5-SUMIFS(Trades!$H:$H,Trades!$B:$B,KW$1,Trades!$C:$C,$B5,Trades!$E:$E,"Sale"))/(KL5+SUMIFS(Trades!$H:$H,Trades!$B:$B,KW$1,Trades!$C:$C,$B5,Trades!$E:$E,"Purchase")))*VLOOKUP(KW$1,Benchmark!$H$6:$M$200,4,FALSE)),0) +IFERROR(((SUMIFS(Trades!$H:$H,Trades!$B:$B,KW$1,Trades!$C:$C,$B5,Trades!$E:$E,"Purchase")/(KL5+SUMIFS(Trades!$H:$H,Trades!$B:$B,KW$1,Trades!$C:$C,$B5,Trades!$E:$E,"Purchase")))*VLOOKUP(SUMIFS(Trades!$A:$A,Trades!$B:$B,KW$1,Trades!$C:$C,$B5,Trades!$E:$E,"Purchase"),Benchmark!$H$6:$M$200,6,FALSE)),0) +IFERROR(((SUMIFS(Trades!$H:$H,Trades!$B:$B,KW$1,Trades!$C:$C,$B5,Trades!$E:$E,"Sale")/(KL5+SUMIFS(Trades!$H:$H,Trades!$B:$B,KW$1,Trades!$C:$C,$B5,Trades!$E:$E,"Purchase")))*VLOOKUP(SUMIFS(Trades!$A:$A,Trades!$B:$B,KW$1,Trades!$C:$C,$B5,Trades!$E:$E,"Sale"),Benchmark!$H$6:$M$200,4,FALSE)),0), IF(KW5="Purchase",VLOOKUP(SUMIFS(Trades!$A:$A,Trades!$B:$B,KW$1,Trades!$C:$C,$B5,Trades!$E:$E,KW5,Trades!$E:$E,"Purchase"),Benchmark!$H$6:$M$200,6,FALSE), IF(KW5="Sale",VLOOKUP(SUMIFS(Trades!$A:$A,Trades!$B:$B,KW$1,Trades!$C:$C,$B5,Trades!$E:$E,KW5,Trades!$E:$E,"Sale"),Benchmark!$H$6:$M$200,4,FALSE)))) -> 0 | LD5: =IF(KW5="Hold",((KL5-SUMIFS(Trades!$H:$H,Trades!$B:$B,KW$1,Trades!$C:$C,$B5,Trades!$E:$E,"Sale"))*(1+VLOOKUP(KW$1,Benchmark!$H$6:$M$200,4,FALSE))) +IFERROR((SUMIFS(Trades!$H:$H,Trades!$B:$B,KW$1,Trades!$C:$C,$B5,Trades!$E:$E,"Purchase")*(1+VLOOKUP(SUMIFS(Trades!$A:$A,Trades!$B:$B,KW$1,Trades!$C:$C,$B5,Trades!$E:$E,"Purchase"),Benchmark!$H$6:$M$200,4,FALSE))),0), IF(KW5="Purchase",SUMIFS(Trades!$H:$H,Trades!$B:$B,KW$1,Trades!$C:$C,$B5,Trades!$E:$E,"Purchase")*(1+LC5), IF(KW5="Sale",0))) ->  | LH5: 0.0842361968 | LI5: 66471.81064 | LL5: Hold | LM5: =KX5+SUMIFS(Trades!$H:$H,Trades!$C:$C,$B5,Trades!$E:$E,"Purchase",Trades!$B:$B,LL$1)-SUMIFS(Trades!$H:$H,Trades!$C:$C,$B5,Trades!$E:$E,"Sale",Trades!$B:$B,LL$1) -> 61307.5 | LN5: #N/A N/A | LO5: =KZ5+SUMIFS(Trades!$F:$F,Trades!$C:$C,$B5,Trades!$B:$B,LL$1,Trades!$E:$E,"Purchase")-SUMIFS(Trades!$F:$F,Trades!$C:$C,$B5,Trades!$B:$B,LL$1,Trades!$E:$E,"Sale") -> 685 | LQ5: =IF(LL5="Hold",(LP5)/(LA5+SUMIFS(Trades!$H:$H,Trades!$B:$B,LL$1,Trades!$E:$E,"Purchase",Trades!$C:$C,$B5))-1, IF(LL5="Purchase",LP5/SUMIFS(Trades!$H:$H,Trades!$B:$B,LL$1,Trades!$E:$E,"Purchase",Trades!$C:$C,$B5)-1, IF(LL5="Sale",SUMIFS(Trades!$H:$H,Trades!$B:$B,LL$1,Trades!$E:$E,"Sale",Trades!$C:$C,$B5)/LA5-1))) ->  | LR5: =IF(LL5="Hold",IFERROR((((LA5-SUMIFS(Trades!$H:$H,Trades!$B:$B,LL$1,Trades!$C:$C,$B5,Trades!$E:$E,"Sale"))/(LA5+SUMIFS(Trades!$H:$H,Trades!$B:$B,LL$1,Trades!$C:$C,$B5,Trades!$E:$E,"Purchase")))*VLOOKUP(LL$1,Benchmark!$H$6:$M$200,4,FALSE)),0) +IFERROR(((SUMIFS(Trades!$H:$H,Trades!$B:$B,LL$1,Trades!$C:$C,$B5,Trades!$E:$E,"Purchase")/(LA5+SUMIFS(Trades!$H:$H,Trades!$B:$B,LL$1,Trades!$C:$C,$B5,Trades!$E:$E,"Purchase")))*VLOOKUP(SUMIFS(Trades!$A:$A,Trades!$B:$B,LL$1,Trades!$C:$C,$B5,Trades!$E:$E,"Purchase"),Benchmark!$H$6:$M$200,6,FALSE)),0) +IFERROR(((SUMIFS(Trades!$H:$H,Trades!$B:$B,LL$1,Trades!$C:$C,$B5,Trades!$E:$E,"Sale")/(LA5+SUMIFS(Trades!$H:$H,Trades!$B:$B,LL$1,Trades!$C:$C,$B5,Trades!$E:$E,"Purchase")))*VLOOKUP(SUMIFS(Trades!$A:$A,Trades!$B:$B,LL$1,Trades!$C:$C,$B5,Trades!$E:$E,"Sale"),Benchmark!$H$6:$M$200,4,FALSE)),0), IF(LL5="Purchase",VLOOKUP(SUMIFS(Trades!$A:$A,Trades!$B:$B,LL$1,Trades!$C:$C,$B5,Trades!$E:$E,LL5,Trades!$E:$E,"Purchase"),Benchmark!$H$6:$M$200,6,FALSE), IF(LL5="Sale",VLOOKUP(SUMIFS(Trades!$A:$A,Trades!$B:$B,LL$1,Trades!$C:$C,$B5,Trades!$E:$E,LL5,Trades!$E:$E,"Sale"),Benchmark!$H$6:$M$200,4,FALSE)))) -> 0 | LS5: =IF(LL5="Hold",((LA5-SUMIFS(Trades!$H:$H,Trades!$B:$B,LL$1,Trades!$C:$C,$B5,Trades!$E:$E,"Sale"))*(1+VLOOKUP(LL$1,Benchmark!$H$6:$M$200,4,FALSE))) +IFERROR((SUMIFS(Trades!$H:$H,Trades!$B:$B,LL$1,Trades!$C:$C,$B5,Trades!$E:$E,"Purchase")*(1+VLOOKUP(SUMIFS(Trades!$A:$A,Trades!$B:$B,LL$1,Trades!$C:$C,$B5,Trades!$E:$E,"Purchase"),Benchmark!$H$6:$M$200,4,FALSE))),0), IF(LL5="Purchase",SUMIFS(Trades!$H:$H,Trades!$B:$B,LL$1,Trades!$C:$C,$B5,Trades!$E:$E,"Purchase")*(1+LR5), IF(LL5="Sale",0))) ->  | LW5: 0.0842361968 | LX5: 66471.81064 | MA5: Hold | MB5: =LM5+SUMIFS(Trades!$H:$H,Trades!$C:$C,$B5,Trades!$E:$E,"Purchase",Trades!$B:$B,MA$1)-SUMIFS(Trades!$H:$H,Trades!$C:$C,$B5,Trades!$E:$E,"Sale",Trades!$B:$B,MA$1) -> 61307.5 | MC5: #N/A N/A | MD5: =LO5+SUMIFS(Trades!$F:$F,Trades!$C:$C,$B5,Trades!$B:$B,MA$1,Trades!$E:$E,"Purchase")-SUMIFS(Trades!$F:$F,Trades!$C:$C,$B5,Trades!$B:$B,MA$1,Trades!$E:$E,"Sale") -> 685 | MF5: =IF(MA5="Hold",(ME5)/(LP5+SUMIFS(Trades!$H:$H,Trades!$B:$B,MA$1,Trades!$E:$E,"Purchase",Trades!$C:$C,$B5))-1, IF(MA5="Purchase",ME5/SUMIFS(Trades!$H:$H,Trades!$B:$B,MA$1,Trades!$E:$E,"Purchase",Trades!$C:$C,$B5)-1, IF(MA5="Sale",SUMIFS(Trades!$H:$H,Trades!$B:$B,MA$1,Trades!$E:$E,"Sale",Trades!$C:$C,$B5)/LP5-1))) ->  | MG5: =IF(MA5="Hold",IFERROR((((LP5-SUMIFS(Trades!$H:$H,Trades!$B:$B,MA$1,Trades!$C:$C,$B5,Trades!$E:$E,"Sale"))/(LP5+SUMIFS(Trades!$H:$H,Trades!$B:$B,MA$1,Trades!$C:$C,$B5,Trades!$E:$E,"Purchase")))*VLOOKUP(MA$1,Benchmark!$H$6:$M$200,4,FALSE)),0) +IFERROR(((SUMIFS(Trades!$H:$H,Trades!$B:$B,MA$1,Trades!$C:$C,$B5,Trades!$E:$E,"Purchase")/(LP5+SUMIFS(Trades!$H:$H,Trades!$B:$B,MA$1,Trades!$C:$C,$B5,Trades!$E:$E,"Purchase")))*VLOOKUP(SUMIFS(Trades!$A:$A,Trades!$B:$B,MA$1,Trades!$C:$C,$B5,Trades!$E:$E,"Purchase"),Benchmark!$H$6:$M$200,6,FALSE)),0) +IFERROR(((SUMIFS(Trades!$H:$H,Trades!$B:$B,MA$1,Trades!$C:$C,$B5,Trades!$E:$E,"Sale")/(LP5+SUMIFS(Trades!$H:$H,Trades!$B:$B,MA$1,Trades!$C:$C,$B5,Trades!$E:$E,"Purchase")))*VLOOKUP(SUMIFS(Trades!$A:$A,Trades!$B:$B,MA$1,Trades!$C:$C,$B5,Trades!$E:$E,"Sale"),Benchmark!$H$6:$M$200,4,FALSE)),0), IF(MA5="Purchase",VLOOKUP(SUMIFS(Trades!$A:$A,Trades!$B:$B,MA$1,Trades!$C:$C,$B5,Trades!$E:$E,MA5,Trades!$E:$E,"Purchase"),Benchmark!$H$6:$M$200,6,FALSE), IF(MA5="Sale",VLOOKUP(SUMIFS(Trades!$A:$A,Trades!$B:$B,MA$1,Trades!$C:$C,$B5,Trades!$E:$E,MA5,Trades!$E:$E,"Sale"),Benchmark!$H$6:$M$200,4,FALSE)))) -> 0 | MH5: =IF(MA5="Hold",((LP5-SUMIFS(Trades!$H:$H,Trades!$B:$B,MA$1,Trades!$C:$C,$B5,Trades!$E:$E,"Sale"))*(1+VLOOKUP(MA$1,Benchmark!$H$6:$M$200,4,FALSE))) +IFERROR((SUMIFS(Trades!$H:$H,Trades!$B:$B,MA$1,Trades!$C:$C,$B5,Trades!$E:$E,"Purchase")*(1+VLOOKUP(SUMIFS(Trades!$A:$A,Trades!$B:$B,MA$1,Trades!$C:$C,$B5,Trades!$E:$E,"Purchase"),Benchmark!$H$6:$M$200,4,FALSE))),0), IF(MA5="Purchase",SUMIFS(Trades!$H:$H,Trades!$B:$B,MA$1,Trades!$C:$C,$B5,Trades!$E:$E,"Purchase")*(1+MG5), IF(MA5="Sale",0))) ->  | ML5: 0.0842361968 | MM5: 66471.81064 | MP5: Hold | MQ5: =MB5+SUMIFS(Trades!$H:$H,Trades!$C:$C,$B5,Trades!$E:$E,"Purchase",Trades!$B:$B,MP$1)-SUMIFS(Trades!$H:$H,Trades!$C:$C,$B5,Trades!$E:$E,"Sale",Trades!$B:$B,MP$1) -> 61307.5 | MR5: #N/A N/A | MS5: =MD5+SUMIFS(Trades!$F:$F,Trades!$C:$C,$B5,Trades!$B:$B,MP$1,Trades!$E:$E,"Purchase")-SUMIFS(Trades!$F:$F,Trades!$C:$C,$B5,Trades!$B:$B,MP$1,Trades!$E:$E,"Sale") -> 685 | MU5: =IF(MP5="Hold",(MT5)/(ME5+SUMIFS(Trades!$H:$H,Trades!$B:$B,MP$1,Trades!$E:$E,"Purchase",Trades!$C:$C,$B5))-1, IF(MP5="Purchase",MT5/SUMIFS(Trades!$H:$H,Trades!$B:$B,MP$1,Trades!$E:$E,"Purchase",Trades!$C:$C,$B5)-1, IF(MP5="Sale",SUMIFS(Trades!$H:$H,Trades!$B:$B,MP$1,Trades!$E:$E,"Sale",Trades!$C:$C,$B5)/ME5-1))) ->  | MV5: =IF(MP5="Hold",IFERROR((((ME5-SUMIFS(Trades!$H:$H,Trades!$B:$B,MP$1,Trades!$C:$C,$B5,Trades!$E:$E,"Sale"))/(ME5+SUMIFS(Trades!$H:$H,Trades!$B:$B,MP$1,Trades!$C:$C,$B5,Trades!$E:$E,"Purchase")))*VLOOKUP(MP$1,Benchmark!$H$6:$M$200,4,FALSE)),0) +IFERROR(((SUMIFS(Trades!$H:$H,Trades!$B:$B,MP$1,Trades!$C:$C,$B5,Trades!$E:$E,"Purchase")/(ME5+SUMIFS(Trades!$H:$H,Trades!$B:$B,MP$1,Trades!$C:$C,$B5,Trades!$E:$E,"Purchase")))*VLOOKUP(SUMIFS(Trades!$A:$A,Trades!$B:$B,MP$1,Trades!$C:$C,$B5,Trades!$E:$E,"Purchase"),Benchmark!$H$6:$M$200,6,FALSE)),0) +IFERROR(((SUMIFS(Trades!$H:$H,Trades!$B:$B,MP$1,Trades!$C:$C,$B5,Trades!$E:$E,"Sale")/(ME5+SUMIFS(Trades!$H:$H,Trades!$B:$B,MP$1,Trades!$C:$C,$B5,Trades!$E:$E,"Purchase")))*VLOOKUP(SUMIFS(Trades!$A:$A,Trades!$B:$B,MP$1,Trades!$C:$C,$B5,Trades!$E:$E,"Sale"),Benchmark!$H$6:$M$200,4,FALSE)),0), IF(MP5="Purchase",VLOOKUP(SUMIFS(Trades!$A:$A,Trades!$B:$B,MP$1,Trades!$C:$C,$B5,Trades!$E:$E,MP5,Trades!$E:$E,"Purchase"),Benchmark!$H$6:$M$200,6,FALSE), IF(MP5="Sale",VLOOKUP(SUMIFS(Trades!$A:$A,Trades!$B:$B,MP$1,Trades!$C:$C,$B5,Trades!$E:$E,MP5,Trades!$E:$E,"Sale"),Benchmark!$H$6:$M$200,4,FALSE)))) -> 0 | MW5: =IF(MP5="Hold",((ME5-SUMIFS(Trades!$H:$H,Trades!$B:$B,MP$1,Trades!$C:$C,$B5,Trades!$E:$E,"Sale"))*(1+VLOOKUP(MP$1,Benchmark!$H$6:$M$200,4,FALSE))) +IFERROR((SUMIFS(Trades!$H:$H,Trades!$B:$B,MP$1,Trades!$C:$C,$B5,Trades!$E:$E,"Purchase")*(1+VLOOKUP(SUMIFS(Trades!$A:$A,Trades!$B:$B,MP$1,Trades!$C:$C,$B5,Trades!$E:$E,"Purchase"),Benchmark!$H$6:$M$200,4,FALSE))),0), IF(MP5="Purchase",SUMIFS(Trades!$H:$H,Trades!$B:$B,MP$1,Trades!$C:$C,$B5,Trades!$E:$E,"Purchase")*(1+MV5), IF(MP5="Sale",0))) ->  | NA5: 0.0842361968 | NB5: 66471.81064 | NE5: Hold | NF5: =MQ5+SUMIFS(Trades!$H:$H,Trades!$C:$C,$B5,Trades!$E:$E,"Purchase",Trades!$B:$B,NE$1)-SUMIFS(Trades!$H:$H,Trades!$C:$C,$B5,Trades!$E:$E,"Sale",Trades!$B:$B,NE$1) -> 61307.5 | NG5: #N/A N/A | NH5: =MS5+SUMIFS(Trades!$F:$F,Trades!$C:$C,$B5,Trades!$B:$B,NE$1,Trades!$E:$E,"Purchase")-SUMIFS(Trades!$F:$F,Trades!$C:$C,$B5,Trades!$B:$B,NE$1,Trades!$E:$E,"Sale") -> 685 | NJ5: =IF(NE5="Hold",(NI5)/(MT5+SUMIFS(Trades!$H:$H,Trades!$B:$B,NE$1,Trades!$E:$E,"Purchase",Trades!$C:$C,$B5))-1, IF(NE5="Purchase",NI5/SUMIFS(Trades!$H:$H,Trades!$B:$B,NE$1,Trades!$E:$E,"Purchase",Trades!$C:$C,$B5)-1, IF(NE5="Sale",SUMIFS(Trades!$H:$H,Trades!$B:$B,NE$1,Trades!$E:$E,"Sale",Trades!$C:$C,$B5)/MT5-1))) ->  | NK5: =IF(NE5="Hold",IFERROR((((MT5-SUMIFS(Trades!$H:$H,Trades!$B:$B,NE$1,Trades!$C:$C,$B5,Trades!$E:$E,"Sale"))/(MT5+SUMIFS(Trades!$H:$H,Trades!$B:$B,NE$1,Trades!$C:$C,$B5,Trades!$E:$E,"Purchase")))*VLOOKUP(NE$1,Benchmark!$H$6:$M$200,4,FALSE)),0) +IFERROR(((SUMIFS(Trades!$H:$H,Trades!$B:$B,NE$1,Trades!$C:$C,$B5,Trades!$E:$E,"Purchase")/(MT5+SUMIFS(Trades!$H:$H,Trades!$B:$B,NE$1,Trades!$C:$C,$B5,Trades!$E:$E,"Purchase")))*VLOOKUP(SUMIFS(Trades!$A:$A,Trades!$B:$B,NE$1,Trades!$C:$C,$B5,Trades!$E:$E,"Purchase"),Benchmark!$H$6:$M$200,6,FALSE)),0) +IFERROR(((SUMIFS(Trades!$H:$H,Trades!$B:$B,NE$1,Trades!$C:$C,$B5,Trades!$E:$E,"Sale")/(MT5+SUMIFS(Trades!$H:$H,Trades!$B:$B,NE$1,Trades!$C:$C,$B5,Trades!$E:$E,"Purchase")))*VLOOKUP(SUMIFS(Trades!$A:$A,Trades!$B:$B,NE$1,Trades!$C:$C,$B5,Trades!$E:$E,"Sale"),Benchmark!$H$6:$M$200,4,FALSE)),0), IF(NE5="Purchase",VLOOKUP(SUMIFS(Trades!$A:$A,Trades!$B:$B,NE$1,Trades!$C:$C,$B5,Trades!$E:$E,NE5,Trades!$E:$E,"Purchase"),Benchmark!$H$6:$M$200,6,FALSE), IF(NE5="Sale",VLOOKUP(SUMIFS(Trades!$A:$A,Trades!$B:$B,NE$1,Trades!$C:$C,$B5,Trades!$E:$E,NE5,Trades!$E:$E,"Sale"),Benchmark!$H$6:$M$200,4,FALSE)))) -> 0 | NL5: =IF(NE5="Hold",((MT5-SUMIFS(Trades!$H:$H,Trades!$B:$B,NE$1,Trades!$C:$C,$B5,Trades!$E:$E,"Sale"))*(1+VLOOKUP(NE$1,Benchmark!$H$6:$M$200,4,FALSE))) +IFERROR((SUMIFS(Trades!$H:$H,Trades!$B:$B,NE$1,Trades!$C:$C,$B5,Trades!$E:$E,"Purchase")*(1+VLOOKUP(SUMIFS(Trades!$A:$A,Trades!$B:$B,NE$1,Trades!$C:$C,$B5,Trades!$E:$E,"Purchase"),Benchmark!$H$6:$M$200,4,FALSE))),0), IF(NE5="Purchase",SUMIFS(Trades!$H:$H,Trades!$B:$B,NE$1,Trades!$C:$C,$B5,Trades!$E:$E,"Purchase")*(1+NK5), IF(NE5="Sale",0))) ->  | NP5: 0.0842361968 | NQ5: 66471.81064 | NT5: Hold | NU5: =NF5+SUMIFS(Trades!$H:$H,Trades!$C:$C,$B5,Trades!$E:$E,"Purchase",Trades!$B:$B,NT$1)-SUMIFS(Trades!$H:$H,Trades!$C:$C,$B5,Trades!$E:$E,"Sale",Trades!$B:$B,NT$1) -> 61307.5 | NV5: #N/A N/A | NW5: =NH5+SUMIFS(Trades!$F:$F,Trades!$C:$C,$B5,Trades!$B:$B,NT$1,Trades!$E:$E,"Purchase")-SUMIFS(Trades!$F:$F,Trades!$C:$C,$B5,Trades!$B:$B,NT$1,Trades!$E:$E,"Sale") -> 685 | NY5: =IF(NT5="Hold",(NX5)/(NI5+SUMIFS(Trades!$H:$H,Trades!$B:$B,NT$1,Trades!$E:$E,"Purchase",Trades!$C:$C,$B5))-1, IF(NT5="Purchase",NX5/SUMIFS(Trades!$H:$H,Trades!$B:$B,NT$1,Trades!$E:$E,"Purchase",Trades!$C:$C,$B5)-1, IF(NT5="Sale",SUMIFS(Trades!$H:$H,Trades!$B:$B,NT$1,Trades!$E:$E,"Sale",Trades!$C:$C,$B5)/NI5-1))) ->  | NZ5: =IF(NT5="Hold",IFERROR((((NI5-SUMIFS(Trades!$H:$H,Trades!$B:$B,NT$1,Trades!$C:$C,$B5,Trades!$E:$E,"Sale"))/(NI5+SUMIFS(Trades!$H:$H,Trades!$B:$B,NT$1,Trades!$C:$C,$B5,Trades!$E:$E,"Purchase")))*VLOOKUP(NT$1,Benchmark!$H$6:$M$200,4,FALSE)),0) +IFERROR(((SUMIFS(Trades!$H:$H,Trades!$B:$B,NT$1,Trades!$C:$C,$B5,Trades!$E:$E,"Purchase")/(NI5+SUMIFS(Trades!$H:$H,Trades!$B:$B,NT$1,Trades!$C:$C,$B5,Trades!$E:$E,"Purchase")))*VLOOKUP(SUMIFS(Trades!$A:$A,Trades!$B:$B,NT$1,Trades!$C:$C,$B5,Trades!$E:$E,"Purchase"),Benchmark!$H$6:$M$200,6,FALSE)),0) +IFERROR(((SUMIFS(Trades!$H:$H,Trades!$B:$B,NT$1,Trades!$C:$C,$B5,Trades!$E:$E,"Sale")/(NI5+SUMIFS(Trades!$H:$H,Trades!$B:$B,NT$1,Trades!$C:$C,$B5,Trades!$E:$E,"Purchase")))*VLOOKUP(SUMIFS(Trades!$A:$A,Trades!$B:$B,NT$1,Trades!$C:$C,$B5,Trades!$E:$E,"Sale"),Benchmark!$H$6:$M$200,4,FALSE)),0), IF(NT5="Purchase",VLOOKUP(SUMIFS(Trades!$A:$A,Trades!$B:$B,NT$1,Trades!$C:$C,$B5,Trades!$E:$E,NT5,Trades!$E:$E,"Purchase"),Benchmark!$H$6:$M$200,6,FALSE), IF(NT5="Sale",VLOOKUP(SUMIFS(Trades!$A:$A,Trades!$B:$B,NT$1,Trades!$C:$C,$B5,Trades!$E:$E,NT5,Trades!$E:$E,"Sale"),Benchmark!$H$6:$M$200,4,FALSE)))) -> 0 | OA5: =IF(NT5="Hold",((NI5-SUMIFS(Trades!$H:$H,Trades!$B:$B,NT$1,Trades!$C:$C,$B5,Trades!$E:$E,"Sale"))*(1+VLOOKUP(NT$1,Benchmark!$H$6:$M$200,4,FALSE))) +IFERROR((SUMIFS(Trades!$H:$H,Trades!$B:$B,NT$1,Trades!$C:$C,$B5,Trades!$E:$E,"Purchase")*(1+VLOOKUP(SUMIFS(Trades!$A:$A,Trades!$B:$B,NT$1,Trades!$C:$C,$B5,Trades!$E:$E,"Purchase"),Benchmark!$H$6:$M$200,4,FALSE))),0), IF(NT5="Purchase",SUMIFS(Trades!$H:$H,Trades!$B:$B,NT$1,Trades!$C:$C,$B5,Trades!$E:$E,"Purchase")*(1+NZ5), IF(NT5="Sale",0))) ->  | OE5: 0.0842361968 | OF5: 66471.81064 | OI5: Hold | OJ5: =NU5+SUMIFS(Trades!$H:$H,Trades!$C:$C,$B5,Trades!$E:$E,"Purchase",Trades!$B:$B,OI$1)-SUMIFS(Trades!$H:$H,Trades!$C:$C,$B5,Trades!$E:$E,"Sale",Trades!$B:$B,OI$1) -> 61307.5 | OK5: #N/A N/A | OL5: =NW5+SUMIFS(Trades!$F:$F,Trades!$C:$C,$B5,Trades!$B:$B,OI$1,Trades!$E:$E,"Purchase")-SUMIFS(Trades!$F:$F,Trades!$C:$C,$B5,Trades!$B:$B,OI$1,Trades!$E:$E,"Sale") -> 685 | ON5: =IF(OI5="Hold",(OM5)/(NX5+SUMIFS(Trades!$H:$H,Trades!$B:$B,OI$1,Trades!$E:$E,"Purchase",Trades!$C:$C,$B5))-1, IF(OI5="Purchase",OM5/SUMIFS(Trades!$H:$H,Trades!$B:$B,OI$1,Trades!$E:$E,"Purchase",Trades!$C:$C,$B5)-1, IF(OI5="Sale",SUMIFS(Trades!$H:$H,Trades!$B:$B,OI$1,Trades!$E:$E,"Sale",Trades!$C:$C,$B5)/NX5-1))) ->  | OO5: =IF(OI5="Hold",IFERROR((((NX5-SUMIFS(Trades!$H:$H,Trades!$B:$B,OI$1,Trades!$C:$C,$B5,Trades!$E:$E,"Sale"))/(NX5+SUMIFS(Trades!$H:$H,Trades!$B:$B,OI$1,Trades!$C:$C,$B5,Trades!$E:$E,"Purchase")))*VLOOKUP(OI$1,Benchmark!$H$6:$M$200,4,FALSE)),0) +IFERROR(((SUMIFS(Trades!$H:$H,Trades!$B:$B,OI$1,Trades!$C:$C,$B5,Trades!$E:$E,"Purchase")/(NX5+SUMIFS(Trades!$H:$H,Trades!$B:$B,OI$1,Trades!$C:$C,$B5,Trades!$E:$E,"Purchase")))*VLOOKUP(SUMIFS(Trades!$A:$A,Trades!$B:$B,OI$1,Trades!$C:$C,$B5,Trades!$E:$E,"Purchase"),Benchmark!$H$6:$M$200,6,FALSE)),0) +IFERROR(((SUMIFS(Trades!$H:$H,Trades!$B:$B,OI$1,Trades!$C:$C,$B5,Trades!$E:$E,"Sale")/(NX5+SUMIFS(Trades!$H:$H,Trades!$B:$B,OI$1,Trades!$C:$C,$B5,Trades!$E:$E,"Purchase")))*VLOOKUP(SUMIFS(Trades!$A:$A,Trades!$B:$B,OI$1,Trades!$C:$C,$B5,Trades!$E:$E,"Sale"),Benchmark!$H$6:$M$200,4,FALSE)),0), IF(OI5="Purchase",VLOOKUP(SUMIFS(Trades!$A:$A,Trades!$B:$B,OI$1,Trades!$C:$C,$B5,Trades!$E:$E,OI5,Trades!$E:$E,"Purchase"),Benchmark!$H$6:$M$200,6,FALSE), IF(OI5="Sale",VLOOKUP(SUMIFS(Trades!$A:$A,Trades!$B:$B,OI$1,Trades!$C:$C,$B5,Trades!$E:$E,OI5,Trades!$E:$E,"Sale"),Benchmark!$H$6:$M$200,4,FALSE)))) -> 0 | OP5: =IF(OI5="Hold",((NX5-SUMIFS(Trades!$H:$H,Trades!$B:$B,OI$1,Trades!$C:$C,$B5,Trades!$E:$E,"Sale"))*(1+VLOOKUP(OI$1,Benchmark!$H$6:$M$200,4,FALSE))) +IFERROR((SUMIFS(Trades!$H:$H,Trades!$B:$B,OI$1,Trades!$C:$C,$B5,Trades!$E:$E,"Purchase")*(1+VLOOKUP(SUMIFS(Trades!$A:$A,Trades!$B:$B,OI$1,Trades!$C:$C,$B5,Trades!$E:$E,"Purchase"),Benchmark!$H$6:$M$200,4,FALSE))),0), IF(OI5="Purchase",SUMIFS(Trades!$H:$H,Trades!$B:$B,OI$1,Trades!$C:$C,$B5,Trades!$E:$E,"Purchase")*(1+OO5), IF(OI5="Sale",0))) ->  | OT5: 0.0842361968 | OU5: 66471.81064
A6: American Express | B6: AXP | C6: Financials | D6: Consumer Finance | E6: Large Core | CF6: Purchase | CG6: =BR6+SUMIFS(Trades!$H:$H,Trades!$C:$C,$B6,Trades!$E:$E,"Purchase",Trades!$B:$B,CF$1)-SUMIFS(Trades!$H:$H,Trades!$C:$C,$B6,Trades!$E:$E,"Sale",Trades!$B:$B,CF$1) -> 60637.196 | CH6: 74.3 | CI6: =BT6+SUMIFS(Trades!$F:$F,Trades!$C:$C,$B6,Trades!$B:$B,CF$1,Trades!$E:$E,"Purchase")-SUMIFS(Trades!$F:$F,Trades!$C:$C,$B6,Trades!$B:$B,CF$1,Trades!$E:$E,"Sale") -> 820 | CJ6: 60926 | CK6: =IF(CF6="Hold",(CJ6)/(BU6+SUMIFS(Trades!$H:$H,Trades!$B:$B,CF$1,Trades!$E:$E,"Purchase",Trades!$C:$C,$B6))-1, IF(CF6="Purchase",CJ6/SUMIFS(Trades!$H:$H,Trades!$B:$B,CF$1,Trades!$E:$E,"Purchase",Trades!$C:$C,$B6)-1, IF(CF6="Sale",SUMIFS(Trades!$H:$H,Trades!$B:$B,CF$1,Trades!$E:$E,"Sale",Trades!$C:$C,$B6)/BU6-1))) -> 0.004762819178 | CL6: =IF(CF6="Hold",IFERROR((((BU6-SUMIFS(Trades!$H:$H,Trades!$B:$B,CF$1,Trades!$C:$C,$B6,Trades!$E:$E,"Sale"))/(BU6+SUMIFS(Trades!$H:$H,Trades!$B:$B,CF$1,Trades!$C:$C,$B6,Trades!$E:$E,"Purchase")))*VLOOKUP(CF$1,Benchmark!$H$6:$M$200,4,FALSE)),0) +IFERROR(((SUMIFS(Trades!$H:$H,Trades!$B:$B,CF$1,Trades!$C:$C,$B6,Trades!$E:$E,"Purchase")/(BU6+SUMIFS(Trades!$H:$H,Trades!$B:$B,CF$1,Trades!$C:$C,$B6,Trades!$E:$E,"Purchase")))*VLOOKUP(SUMIFS(Trades!$A:$A,Trades!$B:$B,CF$1,Trades!$C:$C,$B6,Trades!$E:$E,"Purchase"),Benchmark!$H$6:$M$200,6,FALSE)),0) +IFERROR(((SUMIFS(Trades!$H:$H,Trades!$B:$B,CF$1,Trades!$C:$C,$B6,Trades!$E:$E,"Sale")/(BU6+SUMIFS(Trades!$H:$H,Trades!$B:$B,CF$1,Trades!$C:$C,$B6,Trades!$E:$E,"Purchase")))*VLOOKUP(SUMIFS(Trades!$A:$A,Trades!$B:$B,CF$1,Trades!$C:$C,$B6,Trades!$E:$E,"Sale"),Benchmark!$H$6:$M$200,4,FALSE)),0), IF(CF6="Purchase",VLOOKUP(SUMIFS(Trades!$A:$A,Trades!$B:$B,CF$1,Trades!$C:$C,$B6,Trades!$E:$E,CF6,Trades!$E:$E,"Purchase"),Benchmark!$H$6:$M$200,6,FALSE), IF(CF6="Sale",VLOOKUP(SUMIFS(Trades!$A:$A,Trades!$B:$B,CF$1,Trades!$C:$C,$B6,Trades!$E:$E,CF6,Trades!$E:$E,"Sale"),Benchmark!$H$6:$M$200,4,FALSE)))) -> 0.001360579928 | CM6: =IF(CF6="Hold",((BU6-SUMIFS(Trades!$H:$H,Trades!$B:$B,CF$1,Trades!$C:$C,$B6,Trades!$E:$E,"Sale"))*(1+VLOOKUP(CF$1,Benchmark!$H$6:$M$200,4,FALSE))) +IFERROR((SUMIFS(Trades!$H:$H,Trades!$B:$B,CF$1,Trades!$C:$C,$B6,Trades!$E:$E,"Purchase")*(1+VLOOKUP(SUMIFS(Trades!$A:$A,Trades!$B:$B,CF$1,Trades!$C:$C,$B6,Trades!$E:$E,"Purchase"),Benchmark!$H$6:$M$200,4,FALSE))),0), IF(CF6="Purchase",SUMIFS(Trades!$H:$H,Trades!$B:$B,CF$1,Trades!$C:$C,$B6,Trades!$E:$E,"Purchase")*(1+CL6), IF(CF6="Sale",0))) -> 60719.69775 | CN6: 0.00340223925 | CO6: 7.718465831e-05 | CP6: 0.004762819178 | CQ6: 0.001360579928 | CR6: 60719.69775 | CS6: 0.00340223925 | CT6: 0.0002144752215 | CU6: Hold | CV6: =CG6+SUMIFS(Trades!$H:$H,Trades!$C:$C,$B6,Trades!$E:$E,"Purchase",Trades!$B:$B,CU$1)-SUMIFS(Trades!$H:$H,Trades!$C:$C,$B6,Trades!$E:$E,"Sale",Trades!$B:$B,CU$1) -> 60637.196 | CW6: 71.2 | CX6: =CI6+SUMIFS(Trades!$F:$F,Trades!$C:$C,$B6,Trades!$B:$B,CU$1,Trades!$E:$E,"Purchase")-SUMIFS(Trades!$F:$F,Trades!$C:$C,$B6,Trades!$B:$B,CU$1,Trades!$E:$E,"Sale") -> 820 | CY6: 58384 | CZ6: =IF(CU6="Hold",(CY6)/(CJ6+SUMIFS(Trades!$H:$H,Trades!$B:$B,CU$1,Trades!$E:$E,"Purchase",Trades!$C:$C,$B6))-1, IF(CU6="Purchase",CY6/SUMIFS(Trades!$H:$H,Trades!$B:$B,CU$1,Trades!$E:$E,"Purchase",Trades!$C:$C,$B6)-1, IF(CU6="Sale",SUMIFS(Trades!$H:$H,Trades!$B:$B,CU$1,Trades!$E:$E,"Sale",Trades!$C:$C,$B6)/CJ6-1))) -> -0.04172274563 | DA6: =IF(CU6="Hold",IFERROR((((CJ6-SUMIFS(Trades!$H:$H,Trades!$B:$B,CU$1,Trades!$C:$C,$B6,Trades!$E:$E,"Sale"))/(CJ6+SUMIFS(Trades!$H:$H,Trades!$B:$B,CU$1,Trades!$C:$C,$B6,Trades!$E:$E,"Purchase")))*VLOOKUP(CU$1,Benchmark!$H$6:$M$200,4,FALSE)),0) +IFERROR(((SUMIFS(Trades!$H:$H,Trades!$B:$B,CU$1,Trades!$C:$C,$B6,Trades!$E:$E,"Purchase")/(CJ6+SUMIFS(Trades!$H:$H,Trades!$B:$B,CU$1,Trades!$C:$C,$B6,Trades!$E:$E,"Purchase")))*VLOOKUP(SUMIFS(Trades!$A:$A,Trades!$B:$B,CU$1,Trades!$C:$C,$B6,Trades!$E:$E,"Purchase"),Benchmark!$H$6:$M$200,6,FALSE)),0) +IFERROR(((SUMIFS(Trades!$H:$H,Trades!$B:$B,CU$1,Trades!$C:$C,$B6,Trades!$E:$E,"Sale")/(CJ6+SUMIFS(Trades!$H:$H,Trades!$B:$B,CU$1,Trades!$C:$C,$B6,Trades!$E:$E,"Purchase")))*VLOOKUP(SUMIFS(Trades!$A:$A,Trades!$B:$B,CU$1,Trades!$C:$C,$B6,Trades!$E:$E,"Sale"),Benchmark!$H$6:$M$200,4,FALSE)),0), IF(CU6="Purchase",VLOOKUP(SUMIFS(Trades!$A:$A,Trades!$B:$B,CU$1,Trades!$C:$C,$B6,Trades!$E:$E,CU6,Trades!$E:$E,"Purchase"),Benchmark!$H$6:$M$200,6,FALSE), IF(CU6="Sale",VLOOKUP(SUMIFS(Trades!$A:$A,Trades!$B:$B,CU$1,Trades!$C:$C,$B6,Trades!$E:$E,CU6,Trades!$E:$E,"Sale"),Benchmark!$H$6:$M$200,4,FALSE)))) -> -0.03731280818 | DB6: =IF(CU6="Hold",((CJ6-SUMIFS(Trades!$H:$H,Trades!$B:$B,CU$1,Trades!$C:$C,$B6,Trades!$E:$E,"Sale"))*(1+VLOOKUP(CU$1,Benchmark!$H$6:$M$200,4,FALSE))) +IFERROR((SUMIFS(Trades!$H:$H,Trades!$B:$B,CU$1,Trades!$C:$C,$B6,Trades!$E:$E,"Purchase")*(1+VLOOKUP(SUMIFS(Trades!$A:$A,Trades!$B:$B,CU$1,Trades!$C:$C,$B6,Trades!$E:$E,"Purchase"),Benchmark!$H$6:$M$200,4,FALSE))),0), IF(CU6="Purchase",SUMIFS(Trades!$H:$H,Trades!$B:$B,CU$1,Trades!$C:$C,$B6,Trades!$E:$E,"Purchase")*(1+DA6), IF(CU6="Sale",0))) -> 58652.67985 | DC6: -0.004409937447 | DD6: -0.0001055991306 | DE6: -0.03715864434 | DF6: -0.03600299531 | DG6: 58454.07532 | DH6: -0.001155649032 | DI6: -7.070966086e-05 | DJ6: Hold | DK6: =CV6+SUMIFS(Trades!$H:$H,Trades!$C:$C,$B6,Trades!$E:$E,"Purchase",Trades!$B:$B,DJ$1)-SUMIFS(Trades!$H:$H,Trades!$C:$C,$B6,Trades!$E:$E,"Sale",Trades!$B:$B,DJ$1) -> 60637.196 | DL6: 72.42 | DM6: =CX6+SUMIFS(Trades!$F:$F,Trades!$C:$C,$B6,Trades!$B:$B,DJ$1,Trades!$E:$E,"Purchase")-SUMIFS(Trades!$F:$F,Trades!$C:$C,$B6,Trades!$B:$B,DJ$1,Trades!$E:$E,"Sale") -> 820 | DN6: 59384.4 | DO6: =IF(DJ6="Hold",(DN6)/(CY6+SUMIFS(Trades!$H:$H,Trades!$B:$B,DJ$1,Trades!$E:$E,"Purchase",Trades!$C:$C,$B6))-1, IF(DJ6="Purchase",DN6/SUMIFS(Trades!$H:$H,Trades!$B:$B,DJ$1,Trades!$E:$E,"Purchase",Trades!$C:$C,$B6)-1, IF(DJ6="Sale",SUMIFS(Trades!$H:$H,Trades!$B:$B,DJ$1,Trades!$E:$E,"Sale",Trades!$C:$C,$B6)/CY6-1))) -> 0.01713483146 | DP6: =IF(DJ6="Hold",IFERROR((((CY6-SUMIFS(Trades!$H:$H,Trades!$B:$B,DJ$1,Trades!$C:$C,$B6,Trades!$E:$E,"Sale"))/(CY6+SUMIFS(Trades!$H:$H,Trades!$B:$B,DJ$1,Trades!$C:$C,$B6,Trades!$E:$E,"Purchase")))*VLOOKUP(DJ$1,Benchmark!$H$6:$M$200,4,FALSE)),0) +IFERROR(((SUMIFS(Trades!$H:$H,Trades!$B:$B,DJ$1,Trades!$C:$C,$B6,Trades!$E:$E,"Purchase")/(CY6+SUMIFS(Trades!$H:$H,Trades!$B:$B,DJ$1,Trades!$C:$C,$B6,Trades!$E:$E,"Purchase")))*VLOOKUP(SUMIFS(Trades!$A:$A,Trades!$B:$B,DJ$1,Trades!$C:$C,$B6,Trades!$E:$E,"Purchase"),Benchmark!$H$6:$M$200,6,FALSE)),0) +IFERROR(((SUMIFS(Trades!$H:$H,Trades!$B:$B,DJ$1,Trades!$C:$C,$B6,Trades!$E:$E,"Sale")/(CY6+SUMIFS(Trades!$H:$H,Trades!$B:$B,DJ$1,Trades!$C:$C,$B6,Trades!$E:$E,"Purchase")))*VLOOKUP(SUMIFS(Trades!$A:$A,Trades!$B:$B,DJ$1,Trades!$C:$C,$B6,Trades!$E:$E,"Sale"),Benchmark!$H$6:$M$200,4,FALSE)),0), IF(DJ6="Purchase",VLOOKUP(SUMIFS(Trades!$A:$A,Trades!$B:$B,DJ$1,Trades!$C:$C,$B6,Trades!$E:$E,DJ6,Trades!$E:$E,"Purchase"),Benchmark!$H$6:$M$200,6,FALSE), IF(DJ6="Sale",VLOOKUP(SUMIFS(Trades!$A:$A,Trades!$B:$B,DJ$1,Trades!$C:$C,$B6,Trades!$E:$E,DJ6,Trades!$E:$E,"Sale"),Benchmark!$H$6:$M$200,4,FALSE)))) -> 0.03173627907 | DQ6: =IF(DJ6="Hold",((CY6-SUMIFS(Trades!$H:$H,Trades!$B:$B,DJ$1,Trades!$C:$C,$B6,Trades!$E:$E,"Sale"))*(1+VLOOKUP(DJ$1,Benchmark!$H$6:$M$200,4,FALSE))) +IFERROR((SUMIFS(Trades!$H:$H,Trades!$B:$B,DJ$1,Trades!$C:$C,$B6,Trades!$E:$E,"Purchase")*(1+VLOOKUP(SUMIFS(Trades!$A:$A,Trades!$B:$B,DJ$1,Trades!$C:$C,$B6,Trades!$E:$E,"Purchase"),Benchmark!$H$6:$M$200,4,FALSE))),0), IF(DJ6="Purchase",SUMIFS(Trades!$H:$H,Trades!$B:$B,DJ$1,Trades!$C:$C,$B6,Trades!$E:$E,"Purchase")*(1+DP6), IF(DJ6="Sale",0))) -> 60236.89092 | DR6: -0.01460144761 | DS6: -0.0003247435588 | DT6: -0.02066051999 | DU6: -0.005409317347 | DV6: 60309.19016 | DW6: -0.01525120264 | DX6: 0.01292923691 | DY6: Hold | DZ6: =DK6+SUMIFS(Trades!$H:$H,Trades!$C:$C,$B6,Trades!$E:$E,"Purchase",Trades!$B:$B,DY$1)-SUMIFS(Trades!$H:$H,Trades!$C:$C,$B6,Trades!$E:$E,"Sale",Trades!$B:$B,DY$1) -> 60637.196 | EA6: 71.85 | EB6: =DM6+SUMIFS(Trades!$F:$F,Trades!$C:$C,$B6,Trades!$B:$B,DY$1,Trades!$E:$E,"Purchase")-SUMIFS(Trades!$F:$F,Trades!$C:$C,$B6,Trades!$B:$B,DY$1,Trades!$E:$E,"Sale") -> 820 | EC6: 58917 | ED6: =IF(DY6="Hold",(EC6)/(DN6+SUMIFS(Trades!$H:$H,Trades!$B:$B,DY$1,Trades!$E:$E,"Purchase",Trades!$C:$C,$B6))-1, IF(DY6="Purchase",EC6/SUMIFS(Trades!$H:$H,Trades!$B:$B,DY$1,Trades!$E:$E,"Purchase",Trades!$C:$C,$B6)-1, IF(DY6="Sale",SUMIFS(Trades!$H:$H,Trades!$B:$B,DY$1,Trades!$E:$E,"Sale",Trades!$C:$C,$B6)/DN6-1))) -> -0.007870753935 | EE6: =IF(DY6="Hold",IFERROR((((DN6-SUMIFS(Trades!$H:$H,Trades!$B:$B,DY$1,Trades!$C:$C,$B6,Trades!$E:$E,"Sale"))/(DN6+SUMIFS(Trades!$H:$H,Trades!$B:$B,DY$1,Trades!$C:$C,$B6,Trades!$E:$E,"Purchase")))*VLOOKUP(DY$1,Benchmark!$H$6:$M$200,4,FALSE)),0) +IFERROR(((SUMIFS(Trades!$H:$H,Trades!$B:$B,DY$1,Trades!$C:$C,$B6,Trades!$E:$E,"Purchase")/(DN6+SUMIFS(Trades!$H:$H,Trades!$B:$B,DY$1,Trades!$C:$C,$B6,Trades!$E:$E,"Purchase")))*VLOOKUP(SUMIFS(Trades!$A:$A,Trades!$B:$B,DY$1,Trades!$C:$C,$B6,Trades!$E:$E,"Purchase"),Benchmark!$H$6:$M$200,6,FALSE)),0) +IFERROR(((SUMIFS(Trades!$H:$H,Trades!$B:$B,DY$1,Trades!$C:$C,$B6,Trades!$E:$E,"Sale")/(DN6+SUMIFS(Trades!$H:$H,Trades!$B:$B,DY$1,Trades!$C:$C,$B6,Trades!$E:$E,"Purchase")))*VLOOKUP(SUMIFS(Trades!$A:$A,Trades!$B:$B,DY$1,Trades!$C:$C,$B6,Trades!$E:$E,"Sale"),Benchmark!$H$6:$M$200,4,FALSE)),0), IF(DY6="Purchase",VLOOKUP(SUMIFS(Trades!$A:$A,Trades!$B:$B,DY$1,Trades!$C:$C,$B6,Trades!$E:$E,DY6,Trades!$E:$E,"Purchase"),Benchmark!$H$6:$M$200,6,FALSE), IF(DY6="Sale",VLOOKUP(SUMIFS(Trades!$A:$A,Trades!$B:$B,DY$1,Trades!$C:$C,$B6,Trades!$E:$E,DY6,Trades!$E:$E,"Sale"),Benchmark!$H$6:$M$200,4,FALSE)))) -> 0.005375612055 | EF6: =IF(DY6="Hold",((DN6-SUMIFS(Trades!$H:$H,Trades!$B:$B,DY$1,Trades!$C:$C,$B6,Trades!$E:$E,"Sale"))*(1+VLOOKUP(DY$1,Benchmark!$H$6:$M$200,4,FALSE))) +IFERROR((SUMIFS(Trades!$H:$H,Trades!$B:$B,DY$1,Trades!$C:$C,$B6,Trades!$E:$E,"Purchase")*(1+VLOOKUP(SUMIFS(Trades!$A:$A,Trades!$B:$B,DY$1,Trades!$C:$C,$B6,Trades!$E:$E,"Purchase"),Benchmark!$H$6:$M$200,4,FALSE))),0), IF(DY6="Purchase",SUMIFS(Trades!$H:$H,Trades!$B:$B,DY$1,Trades!$C:$C,$B6,Trades!$E:$E,"Purchase")*(1+EE6), IF(DY6="Sale",0))) -> 59703.6275 | EG6: -0.01324636599 | EH6: -0.0002968496193 | EI6: -0.02836866005 | EJ6: -6.278368394e-05 | EK6: 60633.38897 | EL6: -0.02830587637 | EM6: -0.005787150146 | EN6: Hold | EO6: =DZ6+SUMIFS(Trades!$H:$H,Trades!$C:$C,$B6,Trades!$E:$E,"Purchase",Trades!$B:$B,EN$1)-SUMIFS(Trades!$H:$H,Trades!$C:$C,$B6,Trades!$E:$E,"Sale",Trades!$B:$B,EN$1) -> 60637.196 | EP6: #N/A N/A | EQ6: =EB6+SUMIFS(Trades!$F:$F,Trades!$C:$C,$B6,Trades!$B:$B,EN$1,Trades!$E:$E,"Purchase")-SUMIFS(Trades!$F:$F,Trades!$C:$C,$B6,Trades!$B:$B,EN$1,Trades!$E:$E,"Sale") -> 820 | ES6: =IF(EN6="Hold",(ER6)/(EC6+SUMIFS(Trades!$H:$H,Trades!$B:$B,EN$1,Trades!$E:$E,"Purchase",Trades!$C:$C,$B6))-1, IF(EN6="Purchase",ER6/SUMIFS(Trades!$H:$H,Trades!$B:$B,EN$1,Trades!$E:$E,"Purchase",Trades!$C:$C,$B6)-1, IF(EN6="Sale",SUMIFS(Trades!$H:$H,Trades!$B:$B,EN$1,Trades!$E:$E,"Sale",Trades!$C:$C,$B6)/EC6-1))) ->  | ET6: =IF(EN6="Hold",IFERROR((((EC6-SUMIFS(Trades!$H:$H,Trades!$B:$B,EN$1,Trades!$C:$C,$B6,Trades!$E:$E,"Sale"))/(EC6+SUMIFS(Trades!$H:$H,Trades!$B:$B,EN$1,Trades!$C:$C,$B6,Trades!$E:$E,"Purchase")))*VLOOKUP(EN$1,Benchmark!$H$6:$M$200,4,FALSE)),0) +IFERROR(((SUMIFS(Trades!$H:$H,Trades!$B:$B,EN$1,Trades!$C:$C,$B6,Trades!$E:$E,"Purchase")/(EC6+SUMIFS(Trades!$H:$H,Trades!$B:$B,EN$1,Trades!$C:$C,$B6,Trades!$E:$E,"Purchase")))*VLOOKUP(SUMIFS(Trades!$A:$A,Trades!$B:$B,EN$1,Trades!$C:$C,$B6,Trades!$E:$E,"Purchase"),Benchmark!$H$6:$M$200,6,FALSE)),0) +IFERROR(((SUMIFS(Trades!$H:$H,Trades!$B:$B,EN$1,Trades!$C:$C,$B6,Trades!$E:$E,"Sale")/(EC6+SUMIFS(Trades!$H:$H,Trades!$B:$B,EN$1,Trades!$C:$C,$B6,Trades!$E:$E,"Purchase")))*VLOOKUP(SUMIFS(Trades!$A:$A,Trades!$B:$B,EN$1,Trades!$C:$C,$B6,Trades!$E:$E,"Sale"),Benchmark!$H$6:$M$200,4,FALSE)),0), IF(EN6="Purchase",VLOOKUP(SUMIFS(Trades!$A:$A,Trades!$B:$B,EN$1,Trades!$C:$C,$B6,Trades!$E:$E,EN6,Trades!$E:$E,"Purchase"),Benchmark!$H$6:$M$200,6,FALSE), IF(EN6="Sale",VLOOKUP(SUMIFS(Trades!$A:$A,Trades!$B:$B,EN$1,Trades!$C:$C,$B6,Trades!$E:$E,EN6,Trades!$E:$E,"Sale"),Benchmark!$H$6:$M$200,4,FALSE)))) -> 0 | EU6: =IF(EN6="Hold",((EC6-SUMIFS(Trades!$H:$H,Trades!$B:$B,EN$1,Trades!$C:$C,$B6,Trades!$E:$E,"Sale"))*(1+VLOOKUP(EN$1,Benchmark!$H$6:$M$200,4,FALSE))) +IFERROR((SUMIFS(Trades!$H:$H,Trades!$B:$B,EN$1,Trades!$C:$C,$B6,Trades!$E:$E,"Purchase")*(1+VLOOKUP(SUMIFS(Trades!$A:$A,Trades!$B:$B,EN$1,Trades!$C:$C,$B6,Trades!$E:$E,"Purchase"),Benchmark!$H$6:$M$200,4,FALSE))),0), IF(EN6="Purchase",SUMIFS(Trades!$H:$H,Trades!$B:$B,EN$1,Trades!$C:$C,$B6,Trades!$E:$E,"Purchase")*(1+ET6), IF(EN6="Sale",0))) ->  | EY6: -6.278368394e-05 | EZ6: 60633.38897 | FC6: Hold | FD6: =EO6+SUMIFS(Trades!$H:$H,Trades!$C:$C,$B6,Trades!$E:$E,"Purchase",Trades!$B:$B,FC$1)-SUMIFS(Trades!$H:$H,Trades!$C:$C,$B6,Trades!$E:$E,"Sale",Trades!$B:$B,FC$1) -> 60637.196 | FE6: #N/A N/A | FF6: =EQ6+SUMIFS(Trades!$F:$F,Trades!$C:$C,$B6,Trades!$B:$B,FC$1,Trades!$E:$E,"Purchase")-SUMIFS(Trades!$F:$F,Trades!$C:$C,$B6,Trades!$B:$B,FC$1,Trades!$E:$E,"Sale") -> 820 | FH6: =IF(FC6="Hold",(FG6)/(ER6+SUMIFS(Trades!$H:$H,Trades!$B:$B,FC$1,Trades!$E:$E,"Purchase",Trades!$C:$C,$B6))-1, IF(FC6="Purchase",FG6/SUMIFS(Trades!$H:$H,Trades!$B:$B,FC$1,Trades!$E:$E,"Purchase",Trades!$C:$C,$B6)-1, IF(FC6="Sale",SUMIFS(Trades!$H:$H,Trades!$B:$B,FC$1,Trades!$E:$E,"Sale",Trades!$C:$C,$B6)/ER6-1))) ->  | FI6: =IF(FC6="Hold",IFERROR((((ER6-SUMIFS(Trades!$H:$H,Trades!$B:$B,FC$1,Trades!$C:$C,$B6,Trades!$E:$E,"Sale"))/(ER6+SUMIFS(Trades!$H:$H,Trades!$B:$B,FC$1,Trades!$C:$C,$B6,Trades!$E:$E,"Purchase")))*VLOOKUP(FC$1,Benchmark!$H$6:$M$200,4,FALSE)),0) +IFERROR(((SUMIFS(Trades!$H:$H,Trades!$B:$B,FC$1,Trades!$C:$C,$B6,Trades!$E:$E,"Purchase")/(ER6+SUMIFS(Trades!$H:$H,Trades!$B:$B,FC$1,Trades!$C:$C,$B6,Trades!$E:$E,"Purchase")))*VLOOKUP(SUMIFS(Trades!$A:$A,Trades!$B:$B,FC$1,Trades!$C:$C,$B6,Trades!$E:$E,"Purchase"),Benchmark!$H$6:$M$200,6,FALSE)),0) +IFERROR(((SUMIFS(Trades!$H:$H,Trades!$B:$B,FC$1,Trades!$C:$C,$B6,Trades!$E:$E,"Sale")/(ER6+SUMIFS(Trades!$H:$H,Trades!$B:$B,FC$1,Trades!$C:$C,$B6,Trades!$E:$E,"Purchase")))*VLOOKUP(SUMIFS(Trades!$A:$A,Trades!$B:$B,FC$1,Trades!$C:$C,$B6,Trades!$E:$E,"Sale"),Benchmark!$H$6:$M$200,4,FALSE)),0), IF(FC6="Purchase",VLOOKUP(SUMIFS(Trades!$A:$A,Trades!$B:$B,FC$1,Trades!$C:$C,$B6,Trades!$E:$E,FC6,Trades!$E:$E,"Purchase"),Benchmark!$H$6:$M$200,6,FALSE), IF(FC6="Sale",VLOOKUP(SUMIFS(Trades!$A:$A,Trades!$B:$B,FC$1,Trades!$C:$C,$B6,Trades!$E:$E,FC6,Trades!$E:$E,"Sale"),Benchmark!$H$6:$M$200,4,FALSE)))) -> 0 | FJ6: =IF(FC6="Hold",((ER6-SUMIFS(Trades!$H:$H,Trades!$B:$B,FC$1,Trades!$C:$C,$B6,Trades!$E:$E,"Sale"))*(1+VLOOKUP(FC$1,Benchmark!$H$6:$M$200,4,FALSE))) +IFERROR((SUMIFS(Trades!$H:$H,Trades!$B:$B,FC$1,Trades!$C:$C,$B6,Trades!$E:$E,"Purchase")*(1+VLOOKUP(SUMIFS(Trades!$A:$A,Trades!$B:$B,FC$1,Trades!$C:$C,$B6,Trades!$E:$E,"Purchase"),Benchmark!$H$6:$M$200,4,FALSE))),0), IF(FC6="Purchase",SUMIFS(Trades!$H:$H,Trades!$B:$B,FC$1,Trades!$C:$C,$B6,Trades!$E:$E,"Purchase")*(1+FI6), IF(FC6="Sale",0))) ->  | FN6: -6.278368394e-05 | FO6: 60633.38897 | FR6: Hold | FS6: =FD6+SUMIFS(Trades!$H:$H,Trades!$C:$C,$B6,Trades!$E:$E,"Purchase",Trades!$B:$B,FR$1)-SUMIFS(Trades!$H:$H,Trades!$C:$C,$B6,Trades!$E:$E,"Sale",Trades!$B:$B,FR$1) -> 60637.196 | FT6: #N/A N/A | FU6: =FF6+SUMIFS(Trades!$F:$F,Trades!$C:$C,$B6,Trades!$B:$B,FR$1,Trades!$E:$E,"Purchase")-SUMIFS(Trades!$F:$F,Trades!$C:$C,$B6,Trades!$B:$B,FR$1,Trades!$E:$E,"Sale") -> 820 | FW6: =IF(FR6="Hold",(FV6)/(FG6+SUMIFS(Trades!$H:$H,Trades!$B:$B,FR$1,Trades!$E:$E,"Purchase",Trades!$C:$C,$B6))-1, IF(FR6="Purchase",FV6/SUMIFS(Trades!$H:$H,Trades!$B:$B,FR$1,Trades!$E:$E,"Purchase",Trades!$C:$C,$B6)-1, IF(FR6="Sale",SUMIFS(Trades!$H:$H,Trades!$B:$B,FR$1,Trades!$E:$E,"Sale",Trades!$C:$C,$B6)/FG6-1))) ->  | FX6: =IF(FR6="Hold",IFERROR((((FG6-SUMIFS(Trades!$H:$H,Trades!$B:$B,FR$1,Trades!$C:$C,$B6,Trades!$E:$E,"Sale"))/(FG6+SUMIFS(Trades!$H:$H,Trades!$B:$B,FR$1,Trades!$C:$C,$B6,Trades!$E:$E,"Purchase")))*VLOOKUP(FR$1,Benchmark!$H$6:$M$200,4,FALSE)),0) +IFERROR(((SUMIFS(Trades!$H:$H,Trades!$B:$B,FR$1,Trades!$C:$C,$B6,Trades!$E:$E,"Purchase")/(FG6+SUMIFS(Trades!$H:$H,Trades!$B:$B,FR$1,Trades!$C:$C,$B6,Trades!$E:$E,"Purchase")))*VLOOKUP(SUMIFS(Trades!$A:$A,Trades!$B:$B,FR$1,Trades!$C:$C,$B6,Trades!$E:$E,"Purchase"),Benchmark!$H$6:$M$200,6,FALSE)),0) +IFERROR(((SUMIFS(Trades!$H:$H,Trades!$B:$B,FR$1,Trades!$C:$C,$B6,Trades!$E:$E,"Sale")/(FG6+SUMIFS(Trades!$H:$H,Trades!$B:$B,FR$1,Trades!$C:$C,$B6,Trades!$E:$E,"Purchase")))*VLOOKUP(SUMIFS(Trades!$A:$A,Trades!$B:$B,FR$1,Trades!$C:$C,$B6,Trades!$E:$E,"Sale"),Benchmark!$H$6:$M$200,4,FALSE)),0), IF(FR6="Purchase",VLOOKUP(SUMIFS(Trades!$A:$A,Trades!$B:$B,FR$1,Trades!$C:$C,$B6,Trades!$E:$E,FR6,Trades!$E:$E,"Purchase"),Benchmark!$H$6:$M$200,6,FALSE), IF(FR6="Sale",VLOOKUP(SUMIFS(Trades!$A:$A,Trades!$B:$B,FR$1,Trades!$C:$C,$B6,Trades!$E:$E,FR6,Trades!$E:$E,"Sale"),Benchmark!$H$6:$M$200,4,FALSE)))) -> 0 | FY6: =IF(FR6="Hold",((FG6-SUMIFS(Trades!$H:$H,Trades!$B:$B,FR$1,Trades!$C:$C,$B6,Trades!$E:$E,"Sale"))*(1+VLOOKUP(FR$1,Benchmark!$H$6:$M$200,4,FALSE))) +IFERROR((SUMIFS(Trades!$H:$H,Trades!$B:$B,FR$1,Trades!$C:$C,$B6,Trades!$E:$E,"Purchase")*(1+VLOOKUP(SUMIFS(Trades!$A:$A,Trades!$B:$B,FR$1,Trades!$C:$C,$B6,Trades!$E:$E,"Purchase"),Benchmark!$H$6:$M$200,4,FALSE))),0), IF(FR6="Purchase",SUMIFS(Trades!$H:$H,Trades!$B:$B,FR$1,Trades!$C:$C,$B6,Trades!$E:$E,"Purchase")*(1+FX6), IF(FR6="Sale",0))) ->  | GC6: -6.278368394e-05 | GD6: 60633.38897 | GG6: Hold | GH6: =FS6+SUMIFS(Trades!$H:$H,Trades!$C:$C,$B6,Trades!$E:$E,"Purchase",Trades!$B:$B,GG$1)-SUMIFS(Trades!$H:$H,Trades!$C:$C,$B6,Trades!$E:$E,"Sale",Trades!$B:$B,GG$1) -> 60637.196 | GI6: #N/A N/A | GJ6: =FU6+SUMIFS(Trades!$F:$F,Trades!$C:$C,$B6,Trades!$B:$B,GG$1,Trades!$E:$E,"Purchase")-SUMIFS(Trades!$F:$F,Trades!$C:$C,$B6,Trades!$B:$B,GG$1,Trades!$E:$E,"Sale") -> 820 | GL6: =IF(GG6="Hold",(GK6)/(FV6+SUMIFS(Trades!$H:$H,Trades!$B:$B,GG$1,Trades!$E:$E,"Purchase",Trades!$C:$C,$B6))-1, IF(GG6="Purchase",GK6/SUMIFS(Trades!$H:$H,Trades!$B:$B,GG$1,Trades!$E:$E,"Purchase",Trades!$C:$C,$B6)-1, IF(GG6="Sale",SUMIFS(Trades!$H:$H,Trades!$B:$B,GG$1,Trades!$E:$E,"Sale",Trades!$C:$C,$B6)/FV6-1))) ->  | GM6: =IF(GG6="Hold",IFERROR((((FV6-SUMIFS(Trades!$H:$H,Trades!$B:$B,GG$1,Trades!$C:$C,$B6,Trades!$E:$E,"Sale"))/(FV6+SUMIFS(Trades!$H:$H,Trades!$B:$B,GG$1,Trades!$C:$C,$B6,Trades!$E:$E,"Purchase")))*VLOOKUP(GG$1,Benchmark!$H$6:$M$200,4,FALSE)),0) +IFERROR(((SUMIFS(Trades!$H:$H,Trades!$B:$B,GG$1,Trades!$C:$C,$B6,Trades!$E:$E,"Purchase")/(FV6+SUMIFS(Trades!$H:$H,Trades!$B:$B,GG$1,Trades!$C:$C,$B6,Trades!$E:$E,"Purchase")))*VLOOKUP(SUMIFS(Trades!$A:$A,Trades!$B:$B,GG$1,Trades!$C:$C,$B6,Trades!$E:$E,"Purchase"),Benchmark!$H$6:$M$200,6,FALSE)),0) +IFERROR(((SUMIFS(Trades!$H:$H,Trades!$B:$B,GG$1,Trades!$C:$C,$B6,Trades!$E:$E,"Sale")/(FV6+SUMIFS(Trades!$H:$H,Trades!$B:$B,GG$1,Trades!$C:$C,$B6,Trades!$E:$E,"Purchase")))*VLOOKUP(SUMIFS(Trades!$A:$A,Trades!$B:$B,GG$1,Trades!$C:$C,$B6,Trades!$E:$E,"Sale"),Benchmark!$H$6:$M$200,4,FALSE)),0), IF(GG6="Purchase",VLOOKUP(SUMIFS(Trades!$A:$A,Trades!$B:$B,GG$1,Trades!$C:$C,$B6,Trades!$E:$E,GG6,Trades!$E:$E,"Purchase"),Benchmark!$H$6:$M$200,6,FALSE), IF(GG6="Sale",VLOOKUP(SUMIFS(Trades!$A:$A,Trades!$B:$B,GG$1,Trades!$C:$C,$B6,Trades!$E:$E,GG6,Trades!$E:$E,"Sale"),Benchmark!$H$6:$M$200,4,FALSE)))) -> 0 | GN6: =IF(GG6="Hold",((FV6-SUMIFS(Trades!$H:$H,Trades!$B:$B,GG$1,Trades!$C:$C,$B6,Trades!$E:$E,"Sale"))*(1+VLOOKUP(GG$1,Benchmark!$H$6:$M$200,4,FALSE))) +IFERROR((SUMIFS(Trades!$H:$H,Trades!$B:$B,GG$1,Trades!$C:$C,$B6,Trades!$E:$E,"Purchase")*(1+VLOOKUP(SUMIFS(Trades!$A:$A,Trades!$B:$B,GG$1,Trades!$C:$C,$B6,Trades!$E:$E,"Purchase"),Benchmark!$H$6:$M$200,4,FALSE))),0), IF(GG6="Purchase",SUMIFS(Trades!$H:$H,Trades!$B:$B,GG$1,Trades!$C:$C,$B6,Trades!$E:$E,"Purchase")*(1+GM6), IF(GG6="Sale",0))) ->  | GR6: -6.278368394e-05 | GS6: 60633.38897 | GV6: Hold | GW6: =GH6+SUMIFS(Trades!$H:$H,Trades!$C:$C,$B6,Trades!$E:$E,"Purchase",Trades!$B:$B,GV$1)-SUMIFS(Trades!$H:$H,Trades!$C:$C,$B6,Trades!$E:$E,"Sale",Trades!$B:$B,GV$1) -> 60637.196 | GX6: #N/A N/A | GY6: =GJ6+SUMIFS(Trades!$F:$F,Trades!$C:$C,$B6,Trades!$B:$B,GV$1,Trades!$E:$E,"Purchase")-SUMIFS(Trades!$F:$F,Trades!$C:$C,$B6,Trades!$B:$B,GV$1,Trades!$E:$E,"Sale") -> 820 | HA6: =IF(GV6="Hold",(GZ6)/(GK6+SUMIFS(Trades!$H:$H,Trades!$B:$B,GV$1,Trades!$E:$E,"Purchase",Trades!$C:$C,$B6))-1, IF(GV6="Purchase",GZ6/SUMIFS(Trades!$H:$H,Trades!$B:$B,GV$1,Trades!$E:$E,"Purchase",Trades!$C:$C,$B6)-1, IF(GV6="Sale",SUMIFS(Trades!$H:$H,Trades!$B:$B,GV$1,Trades!$E:$E,"Sale",Trades!$C:$C,$B6)/GK6-1))) ->  | HB6: =IF(GV6="Hold",IFERROR((((GK6-SUMIFS(Trades!$H:$H,Trades!$B:$B,GV$1,Trades!$C:$C,$B6,Trades!$E:$E,"Sale"))/(GK6+SUMIFS(Trades!$H:$H,Trades!$B:$B,GV$1,Trades!$C:$C,$B6,Trades!$E:$E,"Purchase")))*VLOOKUP(GV$1,Benchmark!$H$6:$M$200,4,FALSE)),0) +IFERROR(((SUMIFS(Trades!$H:$H,Trades!$B:$B,GV$1,Trades!$C:$C,$B6,Trades!$E:$E,"Purchase")/(GK6+SUMIFS(Trades!$H:$H,Trades!$B:$B,GV$1,Trades!$C:$C,$B6,Trades!$E:$E,"Purchase")))*VLOOKUP(SUMIFS(Trades!$A:$A,Trades!$B:$B,GV$1,Trades!$C:$C,$B6,Trades!$E:$E,"Purchase"),Benchmark!$H$6:$M$200,6,FALSE)),0) +IFERROR(((SUMIFS(Trades!$H:$H,Trades!$B:$B,GV$1,Trades!$C:$C,$B6,Trades!$E:$E,"Sale")/(GK6+SUMIFS(Trades!$H:$H,Trades!$B:$B,GV$1,Trades!$C:$C,$B6,Trades!$E:$E,"Purchase")))*VLOOKUP(SUMIFS(Trades!$A:$A,Trades!$B:$B,GV$1,Trades!$C:$C,$B6,Trades!$E:$E,"Sale"),Benchmark!$H$6:$M$200,4,FALSE)),0), IF(GV6="Purchase",VLOOKUP(SUMIFS(Trades!$A:$A,Trades!$B:$B,GV$1,Trades!$C:$C,$B6,Trades!$E:$E,GV6,Trades!$E:$E,"Purchase"),Benchmark!$H$6:$M$200,6,FALSE), IF(GV6="Sale",VLOOKUP(SUMIFS(Trades!$A:$A,Trades!$B:$B,GV$1,Trades!$C:$C,$B6,Trades!$E:$E,GV6,Trades!$E:$E,"Sale"),Benchmark!$H$6:$M$200,4,FALSE)))) -> 0 | HC6: =IF(GV6="Hold",((GK6-SUMIFS(Trades!$H:$H,Trades!$B:$B,GV$1,Trades!$C:$C,$B6,Trades!$E:$E,"Sale"))*(1+VLOOKUP(GV$1,Benchmark!$H$6:$M$200,4,FALSE))) +IFERROR((SUMIFS(Trades!$H:$H,Trades!$B:$B,GV$1,Trades!$C:$C,$B6,Trades!$E:$E,"Purchase")*(1+VLOOKUP(SUMIFS(Trades!$A:$A,Trades!$B:$B,GV$1,Trades!$C:$C,$B6,Trades!$E:$E,"Purchase"),Benchmark!$H$6:$M$200,4,FALSE))),0), IF(GV6="Purchase",SUMIFS(Trades!$H:$H,Trades!$B:$B,GV$1,Trades!$C:$C,$B6,Trades!$E:$E,"Purchase")*(1+HB6), IF(GV6="Sale",0))) ->  | HG6: -6.278368394e-05 | HH6: 60633.38897 | HK6: Hold | HL6: =GW6+SUMIFS(Trades!$H:$H,Trades!$C:$C,$B6,Trades!$E:$E,"Purchase",Trades!$B:$B,HK$1)-SUMIFS(Trades!$H:$H,Trades!$C:$C,$B6,Trades!$E:$E,"Sale",Trades!$B:$B,HK$1) -> 60637.196 | HM6: #N/A N/A | HN6: =GY6+SUMIFS(Trades!$F:$F,Trades!$C:$C,$B6,Trades!$B:$B,HK$1,Trades!$E:$E,"Purchase")-SUMIFS(Trades!$F:$F,Trades!$C:$C,$B6,Trades!$B:$B,HK$1,Trades!$E:$E,"Sale") -> 820 | HP6: =IF(HK6="Hold",(HO6)/(GZ6+SUMIFS(Trades!$H:$H,Trades!$B:$B,HK$1,Trades!$E:$E,"Purchase",Trades!$C:$C,$B6))-1, IF(HK6="Purchase",HO6/SUMIFS(Trades!$H:$H,Trades!$B:$B,HK$1,Trades!$E:$E,"Purchase",Trades!$C:$C,$B6)-1, IF(HK6="Sale",SUMIFS(Trades!$H:$H,Trades!$B:$B,HK$1,Trades!$E:$E,"Sale",Trades!$C:$C,$B6)/GZ6-1))) ->  | HQ6: =IF(HK6="Hold",IFERROR((((GZ6-SUMIFS(Trades!$H:$H,Trades!$B:$B,HK$1,Trades!$C:$C,$B6,Trades!$E:$E,"Sale"))/(GZ6+SUMIFS(Trades!$H:$H,Trades!$B:$B,HK$1,Trades!$C:$C,$B6,Trades!$E:$E,"Purchase")))*VLOOKUP(HK$1,Benchmark!$H$6:$M$200,4,FALSE)),0) +IFERROR(((SUMIFS(Trades!$H:$H,Trades!$B:$B,HK$1,Trades!$C:$C,$B6,Trades!$E:$E,"Purchase")/(GZ6+SUMIFS(Trades!$H:$H,Trades!$B:$B,HK$1,Trades!$C:$C,$B6,Trades!$E:$E,"Purchase")))*VLOOKUP(SUMIFS(Trades!$A:$A,Trades!$B:$B,HK$1,Trades!$C:$C,$B6,Trades!$E:$E,"Purchase"),Benchmark!$H$6:$M$200,6,FALSE)),0) +IFERROR(((SUMIFS(Trades!$H:$H,Trades!$B:$B,HK$1,Trades!$C:$C,$B6,Trades!$E:$E,"Sale")/(GZ6+SUMIFS(Trades!$H:$H,Trades!$B:$B,HK$1,Trades!$C:$C,$B6,Trades!$E:$E,"Purchase")))*VLOOKUP(SUMIFS(Trades!$A:$A,Trades!$B:$B,HK$1,Trades!$C:$C,$B6,Trades!$E:$E,"Sale"),Benchmark!$H$6:$M$200,4,FALSE)),0), IF(HK6="Purchase",VLOOKUP(SUMIFS(Trades!$A:$A,Trades!$B:$B,HK$1,Trades!$C:$C,$B6,Trades!$E:$E,HK6,Trades!$E:$E,"Purchase"),Benchmark!$H$6:$M$200,6,FALSE), IF(HK6="Sale",VLOOKUP(SUMIFS(Trades!$A:$A,Trades!$B:$B,HK$1,Trades!$C:$C,$B6,Trades!$E:$E,HK6,Trades!$E:$E,"Sale"),Benchmark!$H$6:$M$200,4,FALSE)))) -> 0 | HR6: =IF(HK6="Hold",((GZ6-SUMIFS(Trades!$H:$H,Trades!$B:$B,HK$1,Trades!$C:$C,$B6,Trades!$E:$E,"Sale"))*(1+VLOOKUP(HK$1,Benchmark!$H$6:$M$200,4,FALSE))) +IFERROR((SUMIFS(Trades!$H:$H,Trades!$B:$B,HK$1,Trades!$C:$C,$B6,Trades!$E:$E,"Purchase")*(1+VLOOKUP(SUMIFS(Trades!$A:$A,Trades!$B:$B,HK$1,Trades!$C:$C,$B6,Trades!$E:$E,"Purchase"),Benchmark!$H$6:$M$200,4,FALSE))),0), IF(HK6="Purchase",SUMIFS(Trades!$H:$H,Trades!$B:$B,HK$1,Trades!$C:$C,$B6,Trades!$E:$E,"Purchase")*(1+HQ6), IF(HK6="Sale",0))) ->  | HV6: -6.278368394e-05 | HW6: 60633.38897 | HZ6: Hold | IA6: =HL6+SUMIFS(Trades!$H:$H,Trades!$C:$C,$B6,Trades!$E:$E,"Purchase",Trades!$B:$B,HZ$1)-SUMIFS(Trades!$H:$H,Trades!$C:$C,$B6,Trades!$E:$E,"Sale",Trades!$B:$B,HZ$1) -> 60637.196 | IB6: #N/A N/A | IC6: =HN6+SUMIFS(Trades!$F:$F,Trades!$C:$C,$B6,Trades!$B:$B,HZ$1,Trades!$E:$E,"Purchase")-SUMIFS(Trades!$F:$F,Trades!$C:$C,$B6,Trades!$B:$B,HZ$1,Trades!$E:$E,"Sale") -> 820 | IE6: =IF(HZ6="Hold",(ID6)/(HO6+SUMIFS(Trades!$H:$H,Trades!$B:$B,HZ$1,Trades!$E:$E,"Purchase",Trades!$C:$C,$B6))-1, IF(HZ6="Purchase",ID6/SUMIFS(Trades!$H:$H,Trades!$B:$B,HZ$1,Trades!$E:$E,"Purchase",Trades!$C:$C,$B6)-1, IF(HZ6="Sale",SUMIFS(Trades!$H:$H,Trades!$B:$B,HZ$1,Trades!$E:$E,"Sale",Trades!$C:$C,$B6)/HO6-1))) ->  | IF6: =IF(HZ6="Hold",IFERROR((((HO6-SUMIFS(Trades!$H:$H,Trades!$B:$B,HZ$1,Trades!$C:$C,$B6,Trades!$E:$E,"Sale"))/(HO6+SUMIFS(Trades!$H:$H,Trades!$B:$B,HZ$1,Trades!$C:$C,$B6,Trades!$E:$E,"Purchase")))*VLOOKUP(HZ$1,Benchmark!$H$6:$M$200,4,FALSE)),0) +IFERROR(((SUMIFS(Trades!$H:$H,Trades!$B:$B,HZ$1,Trades!$C:$C,$B6,Trades!$E:$E,"Purchase")/(HO6+SUMIFS(Trades!$H:$H,Trades!$B:$B,HZ$1,Trades!$C:$C,$B6,Trades!$E:$E,"Purchase")))*VLOOKUP(SUMIFS(Trades!$A:$A,Trades!$B:$B,HZ$1,Trades!$C:$C,$B6,Trades!$E:$E,"Purchase"),Benchmark!$H$6:$M$200,6,FALSE)),0) +IFERROR(((SUMIFS(Trades!$H:$H,Trades!$B:$B,HZ$1,Trades!$C:$C,$B6,Trades!$E:$E,"Sale")/(HO6+SUMIFS(Trades!$H:$H,Trades!$B:$B,HZ$1,Trades!$C:$C,$B6,Trades!$E:$E,"Purchase")))*VLOOKUP(SUMIFS(Trades!$A:$A,Trades!$B:$B,HZ$1,Trades!$C:$C,$B6,Trades!$E:$E,"Sale"),Benchmark!$H$6:$M$200,4,FALSE)),0), IF(HZ6="Purchase",VLOOKUP(SUMIFS(Trades!$A:$A,Trades!$B:$B,HZ$1,Trades!$C:$C,$B6,Trades!$E:$E,HZ6,Trades!$E:$E,"Purchase"),Benchmark!$H$6:$M$200,6,FALSE), IF(HZ6="Sale",VLOOKUP(SUMIFS(Trades!$A:$A,Trades!$B:$B,HZ$1,Trades!$C:$C,$B6,Trades!$E:$E,HZ6,Trades!$E:$E,"Sale"),Benchmark!$H$6:$M$200,4,FALSE)))) -> 0 | IG6: =IF(HZ6="Hold",((HO6-SUMIFS(Trades!$H:$H,Trades!$B:$B,HZ$1,Trades!$C:$C,$B6,Trades!$E:$E,"Sale"))*(1+VLOOKUP(HZ$1,Benchmark!$H$6:$M$200,4,FALSE))) +IFERROR((SUMIFS(Trades!$H:$H,Trades!$B:$B,HZ$1,Trades!$C:$C,$B6,Trades!$E:$E,"Purchase")*(1+VLOOKUP(SUMIFS(Trades!$A:$A,Trades!$B:$B,HZ$1,Trades!$C:$C,$B6,Trades!$E:$E,"Purchase"),Benchmark!$H$6:$M$200,4,FALSE))),0), IF(HZ6="Purchase",SUMIFS(Trades!$H:$H,Trades!$B:$B,HZ$1,Trades!$C:$C,$B6,Trades!$E:$E,"Purchase")*(1+IF6), IF(HZ6="Sale",0))) ->  | IK6: -6.278368394e-05 | IL6: 60633.38897 | IO6: Hold | IP6: =IA6+SUMIFS(Trades!$H:$H,Trades!$C:$C,$B6,Trades!$E:$E,"Purchase",Trades!$B:$B,IO$1)-SUMIFS(Trades!$H:$H,Trades!$C:$C,$B6,Trades!$E:$E,"Sale",Trades!$B:$B,IO$1) -> 60637.196 | IQ6: #N/A N/A | IR6: =IC6+SUMIFS(Trades!$F:$F,Trades!$C:$C,$B6,Trades!$B:$B,IO$1,Trades!$E:$E,"Purchase")-SUMIFS(Trades!$F:$F,Trades!$C:$C,$B6,Trades!$B:$B,IO$1,Trades!$E:$E,"Sale") -> 820 | IT6: =IF(IO6="Hold",(IS6)/(ID6+SUMIFS(Trades!$H:$H,Trades!$B:$B,IO$1,Trades!$E:$E,"Purchase",Trades!$C:$C,$B6))-1, IF(IO6="Purchase",IS6/SUMIFS(Trades!$H:$H,Trades!$B:$B,IO$1,Trades!$E:$E,"Purchase",Trades!$C:$C,$B6)-1, IF(IO6="Sale",SUMIFS(Trades!$H:$H,Trades!$B:$B,IO$1,Trades!$E:$E,"Sale",Trades!$C:$C,$B6)/ID6-1))) ->  | IU6: =IF(IO6="Hold",IFERROR((((ID6-SUMIFS(Trades!$H:$H,Trades!$B:$B,IO$1,Trades!$C:$C,$B6,Trades!$E:$E,"Sale"))/(ID6+SUMIFS(Trades!$H:$H,Trades!$B:$B,IO$1,Trades!$C:$C,$B6,Trades!$E:$E,"Purchase")))*VLOOKUP(IO$1,Benchmark!$H$6:$M$200,4,FALSE)),0) +IFERROR(((SUMIFS(Trades!$H:$H,Trades!$B:$B,IO$1,Trades!$C:$C,$B6,Trades!$E:$E,"Purchase")/(ID6+SUMIFS(Trades!$H:$H,Trades!$B:$B,IO$1,Trades!$C:$C,$B6,Trades!$E:$E,"Purchase")))*VLOOKUP(SUMIFS(Trades!$A:$A,Trades!$B:$B,IO$1,Trades!$C:$C,$B6,Trades!$E:$E,"Purchase"),Benchmark!$H$6:$M$200,6,FALSE)),0) +IFERROR(((SUMIFS(Trades!$H:$H,Trades!$B:$B,IO$1,Trades!$C:$C,$B6,Trades!$E:$E,"Sale")/(ID6+SUMIFS(Trades!$H:$H,Trades!$B:$B,IO$1,Trades!$C:$C,$B6,Trades!$E:$E,"Purchase")))*VLOOKUP(SUMIFS(Trades!$A:$A,Trades!$B:$B,IO$1,Trades!$C:$C,$B6,Trades!$E:$E,"Sale"),Benchmark!$H$6:$M$200,4,FALSE)),0), IF(IO6="Purchase",VLOOKUP(SUMIFS(Trades!$A:$A,Trades!$B:$B,IO$1,Trades!$C:$C,$B6,Trades!$E:$E,IO6,Trades!$E:$E,"Purchase"),Benchmark!$H$6:$M$200,6,FALSE), IF(IO6="Sale",VLOOKUP(SUMIFS(Trades!$A:$A,Trades!$B:$B,IO$1,Trades!$C:$C,$B6,Trades!$E:$E,IO6,Trades!$E:$E,"Sale"),Benchmark!$H$6:$M$200,4,FALSE)))) -> 0 | IV6: =IF(IO6="Hold",((ID6-SUMIFS(Trades!$H:$H,Trades!$B:$B,IO$1,Trades!$C:$C,$B6,Trades!$E:$E,"Sale"))*(1+VLOOKUP(IO$1,Benchmark!$H$6:$M$200,4,FALSE))) +IFERROR((SUMIFS(Trades!$H:$H,Trades!$B:$B,IO$1,Trades!$C:$C,$B6,Trades!$E:$E,"Purchase")*(1+VLOOKUP(SUMIFS(Trades!$A:$A,Trades!$B:$B,IO$1,Trades!$C:$C,$B6,Trades!$E:$E,"Purchase"),Benchmark!$H$6:$M$200,4,FALSE))),0), IF(IO6="Purchase",SUMIFS(Trades!$H:$H,Trades!$B:$B,IO$1,Trades!$C:$C,$B6,Trades!$E:$E,"Purchase")*(1+IU6), IF(IO6="Sale",0))) ->  | IZ6: -6.278368394e-05 | JA6: 60633.38897 | JD6: Hold | JE6: =IP6+SUMIFS(Trades!$H:$H,Trades!$C:$C,$B6,Trades!$E:$E,"Purchase",Trades!$B:$B,JD$1)-SUMIFS(Trades!$H:$H,Trades!$C:$C,$B6,Trades!$E:$E,"Sale",Trades!$B:$B,JD$1) -> 60637.196 | JF6: #N/A N/A | JG6: =IR6+SUMIFS(Trades!$F:$F,Trades!$C:$C,$B6,Trades!$B:$B,JD$1,Trades!$E:$E,"Purchase")-SUMIFS(Trades!$F:$F,Trades!$C:$C,$B6,Trades!$B:$B,JD$1,Trades!$E:$E,"Sale") -> 820 | JI6: =IF(JD6="Hold",(JH6)/(IS6+SUMIFS(Trades!$H:$H,Trades!$B:$B,JD$1,Trades!$E:$E,"Purchase",Trades!$C:$C,$B6))-1, IF(JD6="Purchase",JH6/SUMIFS(Trades!$H:$H,Trades!$B:$B,JD$1,Trades!$E:$E,"Purchase",Trades!$C:$C,$B6)-1, IF(JD6="Sale",SUMIFS(Trades!$H:$H,Trades!$B:$B,JD$1,Trades!$E:$E,"Sale",Trades!$C:$C,$B6)/IS6-1))) ->  | JJ6: =IF(JD6="Hold",IFERROR((((IS6-SUMIFS(Trades!$H:$H,Trades!$B:$B,JD$1,Trades!$C:$C,$B6,Trades!$E:$E,"Sale"))/(IS6+SUMIFS(Trades!$H:$H,Trades!$B:$B,JD$1,Trades!$C:$C,$B6,Trades!$E:$E,"Purchase")))*VLOOKUP(JD$1,Benchmark!$H$6:$M$200,4,FALSE)),0) +IFERROR(((SUMIFS(Trades!$H:$H,Trades!$B:$B,JD$1,Trades!$C:$C,$B6,Trades!$E:$E,"Purchase")/(IS6+SUMIFS(Trades!$H:$H,Trades!$B:$B,JD$1,Trades!$C:$C,$B6,Trades!$E:$E,"Purchase")))*VLOOKUP(SUMIFS(Trades!$A:$A,Trades!$B:$B,JD$1,Trades!$C:$C,$B6,Trades!$E:$E,"Purchase"),Benchmark!$H$6:$M$200,6,FALSE)),0) +IFERROR(((SUMIFS(Trades!$H:$H,Trades!$B:$B,JD$1,Trades!$C:$C,$B6,Trades!$E:$E,"Sale")/(IS6+SUMIFS(Trades!$H:$H,Trades!$B:$B,JD$1,Trades!$C:$C,$B6,Trades!$E:$E,"Purchase")))*VLOOKUP(SUMIFS(Trades!$A:$A,Trades!$B:$B,JD$1,Trades!$C:$C,$B6,Trades!$E:$E,"Sale"),Benchmark!$H$6:$M$200,4,FALSE)),0), IF(JD6="Purchase",VLOOKUP(SUMIFS(Trades!$A:$A,Trades!$B:$B,JD$1,Trades!$C:$C,$B6,Trades!$E:$E,JD6,Trades!$E:$E,"Purchase"),Benchmark!$H$6:$M$200,6,FALSE), IF(JD6="Sale",VLOOKUP(SUMIFS(Trades!$A:$A,Trades!$B:$B,JD$1,Trades!$C:$C,$B6,Trades!$E:$E,JD6,Trades!$E:$E,"Sale"),Benchmark!$H$6:$M$200,4,FALSE)))) -> 0 | JK6: =IF(JD6="Hold",((IS6-SUMIFS(Trades!$H:$H,Trades!$B:$B,JD$1,Trades!$C:$C,$B6,Trades!$E:$E,"Sale"))*(1+VLOOKUP(JD$1,Benchmark!$H$6:$M$200,4,FALSE))) +IFERROR((SUMIFS(Trades!$H:$H,Trades!$B:$B,JD$1,Trades!$C:$C,$B6,Trades!$E:$E,"Purchase")*(1+VLOOKUP(SUMIFS(Trades!$A:$A,Trades!$B:$B,JD$1,Trades!$C:$C,$B6,Trades!$E:$E,"Purchase"),Benchmark!$H$6:$M$200,4,FALSE))),0), IF(JD6="Purchase",SUMIFS(Trades!$H:$H,Trades!$B:$B,JD$1,Trades!$C:$C,$B6,Trades!$E:$E,"Purchase")*(1+JJ6), IF(JD6="Sale",0))) ->  | JO6: -6.278368394e-05 | JP6: 60633.38897 | JS6: Hold | JT6: =JE6+SUMIFS(Trades!$H:$H,Trades!$C:$C,$B6,Trades!$E:$E,"Purchase",Trades!$B:$B,JS$1)-SUMIFS(Trades!$H:$H,Trades!$C:$C,$B6,Trades!$E:$E,"Sale",Trades!$B:$B,JS$1) -> 60637.196 | JU6: #N/A N/A | JV6: =JG6+SUMIFS(Trades!$F:$F,Trades!$C:$C,$B6,Trades!$B:$B,JS$1,Trades!$E:$E,"Purchase")-SUMIFS(Trades!$F:$F,Trades!$C:$C,$B6,Trades!$B:$B,JS$1,Trades!$E:$E,"Sale") -> 820 | JX6: =IF(JS6="Hold",(JW6)/(JH6+SUMIFS(Trades!$H:$H,Trades!$B:$B,JS$1,Trades!$E:$E,"Purchase",Trades!$C:$C,$B6))-1, IF(JS6="Purchase",JW6/SUMIFS(Trades!$H:$H,Trades!$B:$B,JS$1,Trades!$E:$E,"Purchase",Trades!$C:$C,$B6)-1, IF(JS6="Sale",SUMIFS(Trades!$H:$H,Trades!$B:$B,JS$1,Trades!$E:$E,"Sale",Trades!$C:$C,$B6)/JH6-1))) ->  | JY6: =IF(JS6="Hold",IFERROR((((JH6-SUMIFS(Trades!$H:$H,Trades!$B:$B,JS$1,Trades!$C:$C,$B6,Trades!$E:$E,"Sale"))/(JH6+SUMIFS(Trades!$H:$H,Trades!$B:$B,JS$1,Trades!$C:$C,$B6,Trades!$E:$E,"Purchase")))*VLOOKUP(JS$1,Benchmark!$H$6:$M$200,4,FALSE)),0) +IFERROR(((SUMIFS(Trades!$H:$H,Trades!$B:$B,JS$1,Trades!$C:$C,$B6,Trades!$E:$E,"Purchase")/(JH6+SUMIFS(Trades!$H:$H,Trades!$B:$B,JS$1,Trades!$C:$C,$B6,Trades!$E:$E,"Purchase")))*VLOOKUP(SUMIFS(Trades!$A:$A,Trades!$B:$B,JS$1,Trades!$C:$C,$B6,Trades!$E:$E,"Purchase"),Benchmark!$H$6:$M$200,6,FALSE)),0) +IFERROR(((SUMIFS(Trades!$H:$H,Trades!$B:$B,JS$1,Trades!$C:$C,$B6,Trades!$E:$E,"Sale")/(JH6+SUMIFS(Trades!$H:$H,Trades!$B:$B,JS$1,Trades!$C:$C,$B6,Trades!$E:$E,"Purchase")))*VLOOKUP(SUMIFS(Trades!$A:$A,Trades!$B:$B,JS$1,Trades!$C:$C,$B6,Trades!$E:$E,"Sale"),Benchmark!$H$6:$M$200,4,FALSE)),0), IF(JS6="Purchase",VLOOKUP(SUMIFS(Trades!$A:$A,Trades!$B:$B,JS$1,Trades!$C:$C,$B6,Trades!$E:$E,JS6,Trades!$E:$E,"Purchase"),Benchmark!$H$6:$M$200,6,FALSE), IF(JS6="Sale",VLOOKUP(SUMIFS(Trades!$A:$A,Trades!$B:$B,JS$1,Trades!$C:$C,$B6,Trades!$E:$E,JS6,Trades!$E:$E,"Sale"),Benchmark!$H$6:$M$200,4,FALSE)))) -> 0 | JZ6: =IF(JS6="Hold",((JH6-SUMIFS(Trades!$H:$H,Trades!$B:$B,JS$1,Trades!$C:$C,$B6,Trades!$E:$E,"Sale"))*(1+VLOOKUP(JS$1,Benchmark!$H$6:$M$200,4,FALSE))) +IFERROR((SUMIFS(Trades!$H:$H,Trades!$B:$B,JS$1,Trades!$C:$C,$B6,Trades!$E:$E,"Purchase")*(1+VLOOKUP(SUMIFS(Trades!$A:$A,Trades!$B:$B,JS$1,Trades!$C:$C,$B6,Trades!$E:$E,"Purchase"),Benchmark!$H$6:$M$200,4,FALSE))),0), IF(JS6="Purchase",SUMIFS(Trades!$H:$H,Trades!$B:$B,JS$1,Trades!$C:$C,$B6,Trades!$E:$E,"Purchase")*(1+JY6), IF(JS6="Sale",0))) ->  | KD6: -6.278368394e-05 | KE6: 60633.38897 | KH6: Hold | KI6: =JT6+SUMIFS(Trades!$H:$H,Trades!$C:$C,$B6,Trades!$E:$E,"Purchase",Trades!$B:$B,KH$1)-SUMIFS(Trades!$H:$H,Trades!$C:$C,$B6,Trades!$E:$E,"Sale",Trades!$B:$B,KH$1) -> 60637.196 | KJ6: #N/A N/A | KK6: =JV6+SUMIFS(Trades!$F:$F,Trades!$C:$C,$B6,Trades!$B:$B,KH$1,Trades!$E:$E,"Purchase")-SUMIFS(Trades!$F:$F,Trades!$C:$C,$B6,Trades!$B:$B,KH$1,Trades!$E:$E,"Sale") -> 820 | KM6: =IF(KH6="Hold",(KL6)/(JW6+SUMIFS(Trades!$H:$H,Trades!$B:$B,KH$1,Trades!$E:$E,"Purchase",Trades!$C:$C,$B6))-1, IF(KH6="Purchase",KL6/SUMIFS(Trades!$H:$H,Trades!$B:$B,KH$1,Trades!$E:$E,"Purchase",Trades!$C:$C,$B6)-1, IF(KH6="Sale",SUMIFS(Trades!$H:$H,Trades!$B:$B,KH$1,Trades!$E:$E,"Sale",Trades!$C:$C,$B6)/JW6-1))) ->  | KN6: =IF(KH6="Hold",IFERROR((((JW6-SUMIFS(Trades!$H:$H,Trades!$B:$B,KH$1,Trades!$C:$C,$B6,Trades!$E:$E,"Sale"))/(JW6+SUMIFS(Trades!$H:$H,Trades!$B:$B,KH$1,Trades!$C:$C,$B6,Trades!$E:$E,"Purchase")))*VLOOKUP(KH$1,Benchmark!$H$6:$M$200,4,FALSE)),0) +IFERROR(((SUMIFS(Trades!$H:$H,Trades!$B:$B,KH$1,Trades!$C:$C,$B6,Trades!$E:$E,"Purchase")/(JW6+SUMIFS(Trades!$H:$H,Trades!$B:$B,KH$1,Trades!$C:$C,$B6,Trades!$E:$E,"Purchase")))*VLOOKUP(SUMIFS(Trades!$A:$A,Trades!$B:$B,KH$1,Trades!$C:$C,$B6,Trades!$E:$E,"Purchase"),Benchmark!$H$6:$M$200,6,FALSE)),0) +IFERROR(((SUMIFS(Trades!$H:$H,Trades!$B:$B,KH$1,Trades!$C:$C,$B6,Trades!$E:$E,"Sale")/(JW6+SUMIFS(Trades!$H:$H,Trades!$B:$B,KH$1,Trades!$C:$C,$B6,Trades!$E:$E,"Purchase")))*VLOOKUP(SUMIFS(Trades!$A:$A,Trades!$B:$B,KH$1,Trades!$C:$C,$B6,Trades!$E:$E,"Sale"),Benchmark!$H$6:$M$200,4,FALSE)),0), IF(KH6="Purchase",VLOOKUP(SUMIFS(Trades!$A:$A,Trades!$B:$B,KH$1,Trades!$C:$C,$B6,Trades!$E:$E,KH6,Trades!$E:$E,"Purchase"),Benchmark!$H$6:$M$200,6,FALSE), IF(KH6="Sale",VLOOKUP(SUMIFS(Trades!$A:$A,Trades!$B:$B,KH$1,Trades!$C:$C,$B6,Trades!$E:$E,KH6,Trades!$E:$E,"Sale"),Benchmark!$H$6:$M$200,4,FALSE)))) -> 0 | KO6: =IF(KH6="Hold",((JW6-SUMIFS(Trades!$H:$H,Trades!$B:$B,KH$1,Trades!$C:$C,$B6,Trades!$E:$E,"Sale"))*(1+VLOOKUP(KH$1,Benchmark!$H$6:$M$200,4,FALSE))) +IFERROR((SUMIFS(Trades!$H:$H,Trades!$B:$B,KH$1,Trades!$C:$C,$B6,Trades!$E:$E,"Purchase")*(1+VLOOKUP(SUMIFS(Trades!$A:$A,Trades!$B:$B,KH$1,Trades!$C:$C,$B6,Trades!$E:$E,"Purchase"),Benchmark!$H$6:$M$200,4,FALSE))),0), IF(KH6="Purchase",SUMIFS(Trades!$H:$H,Trades!$B:$B,KH$1,Trades!$C:$C,$B6,Trades!$E:$E,"Purchase")*(1+KN6), IF(KH6="Sale",0))) ->  | KS6: -6.278368394e-05 | KT6: 60633.38897 | KW6: Hold | KX6: =KI6+SUMIFS(Trades!$H:$H,Trades!$C:$C,$B6,Trades!$E:$E,"Purchase",Trades!$B:$B,KW$1)-SUMIFS(Trades!$H:$H,Trades!$C:$C,$B6,Trades!$E:$E,"Sale",Trades!$B:$B,KW$1) -> 60637.196 | KY6: #N/A N/A | KZ6: =KK6+SUMIFS(Trades!$F:$F,Trades!$C:$C,$B6,Trades!$B:$B,KW$1,Trades!$E:$E,"Purchase")-SUMIFS(Trades!$F:$F,Trades!$C:$C,$B6,Trades!$B:$B,KW$1,Trades!$E:$E,"Sale") -> 820 | LB6: =IF(KW6="Hold",(LA6)/(KL6+SUMIFS(Trades!$H:$H,Trades!$B:$B,KW$1,Trades!$E:$E,"Purchase",Trades!$C:$C,$B6))-1, IF(KW6="Purchase",LA6/SUMIFS(Trades!$H:$H,Trades!$B:$B,KW$1,Trades!$E:$E,"Purchase",Trades!$C:$C,$B6)-1, IF(KW6="Sale",SUMIFS(Trades!$H:$H,Trades!$B:$B,KW$1,Trades!$E:$E,"Sale",Trades!$C:$C,$B6)/KL6-1))) ->  | LC6: =IF(KW6="Hold",IFERROR((((KL6-SUMIFS(Trades!$H:$H,Trades!$B:$B,KW$1,Trades!$C:$C,$B6,Trades!$E:$E,"Sale"))/(KL6+SUMIFS(Trades!$H:$H,Trades!$B:$B,KW$1,Trades!$C:$C,$B6,Trades!$E:$E,"Purchase")))*VLOOKUP(KW$1,Benchmark!$H$6:$M$200,4,FALSE)),0) +IFERROR(((SUMIFS(Trades!$H:$H,Trades!$B:$B,KW$1,Trades!$C:$C,$B6,Trades!$E:$E,"Purchase")/(KL6+SUMIFS(Trades!$H:$H,Trades!$B:$B,KW$1,Trades!$C:$C,$B6,Trades!$E:$E,"Purchase")))*VLOOKUP(SUMIFS(Trades!$A:$A,Trades!$B:$B,KW$1,Trades!$C:$C,$B6,Trades!$E:$E,"Purchase"),Benchmark!$H$6:$M$200,6,FALSE)),0) +IFERROR(((SUMIFS(Trades!$H:$H,Trades!$B:$B,KW$1,Trades!$C:$C,$B6,Trades!$E:$E,"Sale")/(KL6+SUMIFS(Trades!$H:$H,Trades!$B:$B,KW$1,Trades!$C:$C,$B6,Trades!$E:$E,"Purchase")))*VLOOKUP(SUMIFS(Trades!$A:$A,Trades!$B:$B,KW$1,Trades!$C:$C,$B6,Trades!$E:$E,"Sale"),Benchmark!$H$6:$M$200,4,FALSE)),0), IF(KW6="Purchase",VLOOKUP(SUMIFS(Trades!$A:$A,Trades!$B:$B,KW$1,Trades!$C:$C,$B6,Trades!$E:$E,KW6,Trades!$E:$E,"Purchase"),Benchmark!$H$6:$M$200,6,FALSE), IF(KW6="Sale",VLOOKUP(SUMIFS(Trades!$A:$A,Trades!$B:$B,KW$1,Trades!$C:$C,$B6,Trades!$E:$E,KW6,Trades!$E:$E,"Sale"),Benchmark!$H$6:$M$200,4,FALSE)))) -> 0 | LD6: =IF(KW6="Hold",((KL6-SUMIFS(Trades!$H:$H,Trades!$B:$B,KW$1,Trades!$C:$C,$B6,Trades!$E:$E,"Sale"))*(1+VLOOKUP(KW$1,Benchmark!$H$6:$M$200,4,FALSE))) +IFERROR((SUMIFS(Trades!$H:$H,Trades!$B:$B,KW$1,Trades!$C:$C,$B6,Trades!$E:$E,"Purchase")*(1+VLOOKUP(SUMIFS(Trades!$A:$A,Trades!$B:$B,KW$1,Trades!$C:$C,$B6,Trades!$E:$E,"Purchase"),Benchmark!$H$6:$M$200,4,FALSE))),0), IF(KW6="Purchase",SUMIFS(Trades!$H:$H,Trades!$B:$B,KW$1,Trades!$C:$C,$B6,Trades!$E:$E,"Purchase")*(1+LC6), IF(KW6="Sale",0))) ->  | LH6: -6.278368394e-05 | LI6: 60633.38897 | LL6: Hold | LM6: =KX6+SUMIFS(Trades!$H:$H,Trades!$C:$C,$B6,Trades!$E:$E,"Purchase",Trades!$B:$B,LL$1)-SUMIFS(Trades!$H:$H,Trades!$C:$C,$B6,Trades!$E:$E,"Sale",Trades!$B:$B,LL$1) -> 60637.196 | LN6: #N/A N/A | LO6: =KZ6+SUMIFS(Trades!$F:$F,Trades!$C:$C,$B6,Trades!$B:$B,LL$1,Trades!$E:$E,"Purchase")-SUMIFS(Trades!$F:$F,Trades!$C:$C,$B6,Trades!$B:$B,LL$1,Trades!$E:$E,"Sale") -> 820 | LQ6: =IF(LL6="Hold",(LP6)/(LA6+SUMIFS(Trades!$H:$H,Trades!$B:$B,LL$1,Trades!$E:$E,"Purchase",Trades!$C:$C,$B6))-1, IF(LL6="Purchase",LP6/SUMIFS(Trades!$H:$H,Trades!$B:$B,LL$1,Trades!$E:$E,"Purchase",Trades!$C:$C,$B6)-1, IF(LL6="Sale",SUMIFS(Trades!$H:$H,Trades!$B:$B,LL$1,Trades!$E:$E,"Sale",Trades!$C:$C,$B6)/LA6-1))) ->  | LR6: =IF(LL6="Hold",IFERROR((((LA6-SUMIFS(Trades!$H:$H,Trades!$B:$B,LL$1,Trades!$C:$C,$B6,Trades!$E:$E,"Sale"))/(LA6+SUMIFS(Trades!$H:$H,Trades!$B:$B,LL$1,Trades!$C:$C,$B6,Trades!$E:$E,"Purchase")))*VLOOKUP(LL$1,Benchmark!$H$6:$M$200,4,FALSE)),0) +IFERROR(((SUMIFS(Trades!$H:$H,Trades!$B:$B,LL$1,Trades!$C:$C,$B6,Trades!$E:$E,"Purchase")/(LA6+SUMIFS(Trades!$H:$H,Trades!$B:$B,LL$1,Trades!$C:$C,$B6,Trades!$E:$E,"Purchase")))*VLOOKUP(SUMIFS(Trades!$A:$A,Trades!$B:$B,LL$1,Trades!$C:$C,$B6,Trades!$E:$E,"Purchase"),Benchmark!$H$6:$M$200,6,FALSE)),0) +IFERROR(((SUMIFS(Trades!$H:$H,Trades!$B:$B,LL$1,Trades!$C:$C,$B6,Trades!$E:$E,"Sale")/(LA6+SUMIFS(Trades!$H:$H,Trades!$B:$B,LL$1,Trades!$C:$C,$B6,Trades!$E:$E,"Purchase")))*VLOOKUP(SUMIFS(Trades!$A:$A,Trades!$B:$B,LL$1,Trades!$C:$C,$B6,Trades!$E:$E,"Sale"),Benchmark!$H$6:$M$200,4,FALSE)),0), IF(LL6="Purchase",VLOOKUP(SUMIFS(Trades!$A:$A,Trades!$B:$B,LL$1,Trades!$C:$C,$B6,Trades!$E:$E,LL6,Trades!$E:$E,"Purchase"),Benchmark!$H$6:$M$200,6,FALSE), IF(LL6="Sale",VLOOKUP(SUMIFS(Trades!$A:$A,Trades!$B:$B,LL$1,Trades!$C:$C,$B6,Trades!$E:$E,LL6,Trades!$E:$E,"Sale"),Benchmark!$H$6:$M$200,4,FALSE)))) -> 0 | LS6: =IF(LL6="Hold",((LA6-SUMIFS(Trades!$H:$H,Trades!$B:$B,LL$1,Trades!$C:$C,$B6,Trades!$E:$E,"Sale"))*(1+VLOOKUP(LL$1,Benchmark!$H$6:$M$200,4,FALSE))) +IFERROR((SUMIFS(Trades!$H:$H,Trades!$B:$B,LL$1,Trades!$C:$C,$B6,Trades!$E:$E,"Purchase")*(1+VLOOKUP(SUMIFS(Trades!$A:$A,Trades!$B:$B,LL$1,Trades!$C:$C,$B6,Trades!$E:$E,"Purchase"),Benchmark!$H$6:$M$200,4,FALSE))),0), IF(LL6="Purchase",SUMIFS(Trades!$H:$H,Trades!$B:$B,LL$1,Trades!$C:$C,$B6,Trades!$E:$E,"Purchase")*(1+LR6), IF(LL6="Sale",0))) ->  | LW6: -6.278368394e-05 | LX6: 60633.38897 | MA6: Hold | MB6: =LM6+SUMIFS(Trades!$H:$H,Trades!$C:$C,$B6,Trades!$E:$E,"Purchase",Trades!$B:$B,MA$1)-SUMIFS(Trades!$H:$H,Trades!$C:$C,$B6,Trades!$E:$E,"Sale",Trades!$B:$B,MA$1) -> 60637.196 | MC6: #N/A N/A | MD6: =LO6+SUMIFS(Trades!$F:$F,Trades!$C:$C,$B6,Trades!$B:$B,MA$1,Trades!$E:$E,"Purchase")-SUMIFS(Trades!$F:$F,Trades!$C:$C,$B6,Trades!$B:$B,MA$1,Trades!$E:$E,"Sale") -> 820 | MF6: =IF(MA6="Hold",(ME6)/(LP6+SUMIFS(Trades!$H:$H,Trades!$B:$B,MA$1,Trades!$E:$E,"Purchase",Trades!$C:$C,$B6))-1, IF(MA6="Purchase",ME6/SUMIFS(Trades!$H:$H,Trades!$B:$B,MA$1,Trades!$E:$E,"Purchase",Trades!$C:$C,$B6)-1, IF(MA6="Sale",SUMIFS(Trades!$H:$H,Trades!$B:$B,MA$1,Trades!$E:$E,"Sale",Trades!$C:$C,$B6)/LP6-1))) ->  | MG6: =IF(MA6="Hold",IFERROR((((LP6-SUMIFS(Trades!$H:$H,Trades!$B:$B,MA$1,Trades!$C:$C,$B6,Trades!$E:$E,"Sale"))/(LP6+SUMIFS(Trades!$H:$H,Trades!$B:$B,MA$1,Trades!$C:$C,$B6,Trades!$E:$E,"Purchase")))*VLOOKUP(MA$1,Benchmark!$H$6:$M$200,4,FALSE)),0) +IFERROR(((SUMIFS(Trades!$H:$H,Trades!$B:$B,MA$1,Trades!$C:$C,$B6,Trades!$E:$E,"Purchase")/(LP6+SUMIFS(Trades!$H:$H,Trades!$B:$B,MA$1,Trades!$C:$C,$B6,Trades!$E:$E,"Purchase")))*VLOOKUP(SUMIFS(Trades!$A:$A,Trades!$B:$B,MA$1,Trades!$C:$C,$B6,Trades!$E:$E,"Purchase"),Benchmark!$H$6:$M$200,6,FALSE)),0) +IFERROR(((SUMIFS(Trades!$H:$H,Trades!$B:$B,MA$1,Trades!$C:$C,$B6,Trades!$E:$E,"Sale")/(LP6+SUMIFS(Trades!$H:$H,Trades!$B:$B,MA$1,Trades!$C:$C,$B6,Trades!$E:$E,"Purchase")))*VLOOKUP(SUMIFS(Trades!$A:$A,Trades!$B:$B,MA$1,Trades!$C:$C,$B6,Trades!$E:$E,"Sale"),Benchmark!$H$6:$M$200,4,FALSE)),0), IF(MA6="Purchase",VLOOKUP(SUMIFS(Trades!$A:$A,Trades!$B:$B,MA$1,Trades!$C:$C,$B6,Trades!$E:$E,MA6,Trades!$E:$E,"Purchase"),Benchmark!$H$6:$M$200,6,FALSE), IF(MA6="Sale",VLOOKUP(SUMIFS(Trades!$A:$A,Trades!$B:$B,MA$1,Trades!$C:$C,$B6,Trades!$E:$E,MA6,Trades!$E:$E,"Sale"),Benchmark!$H$6:$M$200,4,FALSE)))) -> 0 | MH6: =IF(MA6="Hold",((LP6-SUMIFS(Trades!$H:$H,Trades!$B:$B,MA$1,Trades!$C:$C,$B6,Trades!$E:$E,"Sale"))*(1+VLOOKUP(MA$1,Benchmark!$H$6:$M$200,4,FALSE))) +IFERROR((SUMIFS(Trades!$H:$H,Trades!$B:$B,MA$1,Trades!$C:$C,$B6,Trades!$E:$E,"Purchase")*(1+VLOOKUP(SUMIFS(Trades!$A:$A,Trades!$B:$B,MA$1,Trades!$C:$C,$B6,Trades!$E:$E,"Purchase"),Benchmark!$H$6:$M$200,4,FALSE))),0), IF(MA6="Purchase",SUMIFS(Trades!$H:$H,Trades!$B:$B,MA$1,Trades!$C:$C,$B6,Trades!$E:$E,"Purchase")*(1+MG6), IF(MA6="Sale",0))) ->  | ML6: -6.278368394e-05 | MM6: 60633.38897 | MP6: Hold | MQ6: =MB6+SUMIFS(Trades!$H:$H,Trades!$C:$C,$B6,Trades!$E:$E,"Purchase",Trades!$B:$B,MP$1)-SUMIFS(Trades!$H:$H,Trades!$C:$C,$B6,Trades!$E:$E,"Sale",Trades!$B:$B,MP$1) -> 60637.196 | MR6: #N/A N/A | MS6: =MD6+SUMIFS(Trades!$F:$F,Trades!$C:$C,$B6,Trades!$B:$B,MP$1,Trades!$E:$E,"Purchase")-SUMIFS(Trades!$F:$F,Trades!$C:$C,$B6,Trades!$B:$B,MP$1,Trades!$E:$E,"Sale") -> 820 | MU6: =IF(MP6="Hold",(MT6)/(ME6+SUMIFS(Trades!$H:$H,Trades!$B:$B,MP$1,Trades!$E:$E,"Purchase",Trades!$C:$C,$B6))-1, IF(MP6="Purchase",MT6/SUMIFS(Trades!$H:$H,Trades!$B:$B,MP$1,Trades!$E:$E,"Purchase",Trades!$C:$C,$B6)-1, IF(MP6="Sale",SUMIFS(Trades!$H:$H,Trades!$B:$B,MP$1,Trades!$E:$E,"Sale",Trades!$C:$C,$B6)/ME6-1))) ->  | MV6: =IF(MP6="Hold",IFERROR((((ME6-SUMIFS(Trades!$H:$H,Trades!$B:$B,MP$1,Trades!$C:$C,$B6,Trades!$E:$E,"Sale"))/(ME6+SUMIFS(Trades!$H:$H,Trades!$B:$B,MP$1,Trades!$C:$C,$B6,Trades!$E:$E,"Purchase")))*VLOOKUP(MP$1,Benchmark!$H$6:$M$200,4,FALSE)),0) +IFERROR(((SUMIFS(Trades!$H:$H,Trades!$B:$B,MP$1,Trades!$C:$C,$B6,Trades!$E:$E,"Purchase")/(ME6+SUMIFS(Trades!$H:$H,Trades!$B:$B,MP$1,Trades!$C:$C,$B6,Trades!$E:$E,"Purchase")))*VLOOKUP(SUMIFS(Trades!$A:$A,Trades!$B:$B,MP$1,Trades!$C:$C,$B6,Trades!$E:$E,"Purchase"),Benchmark!$H$6:$M$200,6,FALSE)),0) +IFERROR(((SUMIFS(Trades!$H:$H,Trades!$B:$B,MP$1,Trades!$C:$C,$B6,Trades!$E:$E,"Sale")/(ME6+SUMIFS(Trades!$H:$H,Trades!$B:$B,MP$1,Trades!$C:$C,$B6,Trades!$E:$E,"Purchase")))*VLOOKUP(SUMIFS(Trades!$A:$A,Trades!$B:$B,MP$1,Trades!$C:$C,$B6,Trades!$E:$E,"Sale"),Benchmark!$H$6:$M$200,4,FALSE)),0), IF(MP6="Purchase",VLOOKUP(SUMIFS(Trades!$A:$A,Trades!$B:$B,MP$1,Trades!$C:$C,$B6,Trades!$E:$E,MP6,Trades!$E:$E,"Purchase"),Benchmark!$H$6:$M$200,6,FALSE), IF(MP6="Sale",VLOOKUP(SUMIFS(Trades!$A:$A,Trades!$B:$B,MP$1,Trades!$C:$C,$B6,Trades!$E:$E,MP6,Trades!$E:$E,"Sale"),Benchmark!$H$6:$M$200,4,FALSE)))) -> 0 | MW6: =IF(MP6="Hold",((ME6-SUMIFS(Trades!$H:$H,Trades!$B:$B,MP$1,Trades!$C:$C,$B6,Trades!$E:$E,"Sale"))*(1+VLOOKUP(MP$1,Benchmark!$H$6:$M$200,4,FALSE))) +IFERROR((SUMIFS(Trades!$H:$H,Trades!$B:$B,MP$1,Trades!$C:$C,$B6,Trades!$E:$E,"Purchase")*(1+VLOOKUP(SUMIFS(Trades!$A:$A,Trades!$B:$B,MP$1,Trades!$C:$C,$B6,Trades!$E:$E,"Purchase"),Benchmark!$H$6:$M$200,4,FALSE))),0), IF(MP6="Purchase",SUMIFS(Trades!$H:$H,Trades!$B:$B,MP$1,Trades!$C:$C,$B6,Trades!$E:$E,"Purchase")*(1+MV6), IF(MP6="Sale",0))) ->  | NA6: -6.278368394e-05 | NB6: 60633.38897 | NE6: Hold | NF6: =MQ6+SUMIFS(Trades!$H:$H,Trades!$C:$C,$B6,Trades!$E:$E,"Purchase",Trades!$B:$B,NE$1)-SUMIFS(Trades!$H:$H,Trades!$C:$C,$B6,Trades!$E:$E,"Sale",Trades!$B:$B,NE$1) -> 60637.196 | NG6: #N/A N/A | NH6: =MS6+SUMIFS(Trades!$F:$F,Trades!$C:$C,$B6,Trades!$B:$B,NE$1,Trades!$E:$E,"Purchase")-SUMIFS(Trades!$F:$F,Trades!$C:$C,$B6,Trades!$B:$B,NE$1,Trades!$E:$E,"Sale") -> 820 | NJ6: =IF(NE6="Hold",(NI6)/(MT6+SUMIFS(Trades!$H:$H,Trades!$B:$B,NE$1,Trades!$E:$E,"Purchase",Trades!$C:$C,$B6))-1, IF(NE6="Purchase",NI6/SUMIFS(Trades!$H:$H,Trades!$B:$B,NE$1,Trades!$E:$E,"Purchase",Trades!$C:$C,$B6)-1, IF(NE6="Sale",SUMIFS(Trades!$H:$H,Trades!$B:$B,NE$1,Trades!$E:$E,"Sale",Trades!$C:$C,$B6)/MT6-1))) ->  | NK6: =IF(NE6="Hold",IFERROR((((MT6-SUMIFS(Trades!$H:$H,Trades!$B:$B,NE$1,Trades!$C:$C,$B6,Trades!$E:$E,"Sale"))/(MT6+SUMIFS(Trades!$H:$H,Trades!$B:$B,NE$1,Trades!$C:$C,$B6,Trades!$E:$E,"Purchase")))*VLOOKUP(NE$1,Benchmark!$H$6:$M$200,4,FALSE)),0) +IFERROR(((SUMIFS(Trades!$H:$H,Trades!$B:$B,NE$1,Trades!$C:$C,$B6,Trades!$E:$E,"Purchase")/(MT6+SUMIFS(Trades!$H:$H,Trades!$B:$B,NE$1,Trades!$C:$C,$B6,Trades!$E:$E,"Purchase")))*VLOOKUP(SUMIFS(Trades!$A:$A,Trades!$B:$B,NE$1,Trades!$C:$C,$B6,Trades!$E:$E,"Purchase"),Benchmark!$H$6:$M$200,6,FALSE)),0) +IFERROR(((SUMIFS(Trades!$H:$H,Trades!$B:$B,NE$1,Trades!$C:$C,$B6,Trades!$E:$E,"Sale")/(MT6+SUMIFS(Trades!$H:$H,Trades!$B:$B,NE$1,Trades!$C:$C,$B6,Trades!$E:$E,"Purchase")))*VLOOKUP(SUMIFS(Trades!$A:$A,Trades!$B:$B,NE$1,Trades!$C:$C,$B6,Trades!$E:$E,"Sale"),Benchmark!$H$6:$M$200,4,FALSE)),0), IF(NE6="Purchase",VLOOKUP(SUMIFS(Trades!$A:$A,Trades!$B:$B,NE$1,Trades!$C:$C,$B6,Trades!$E:$E,NE6,Trades!$E:$E,"Purchase"),Benchmark!$H$6:$M$200,6,FALSE), IF(NE6="Sale",VLOOKUP(SUMIFS(Trades!$A:$A,Trades!$B:$B,NE$1,Trades!$C:$C,$B6,Trades!$E:$E,NE6,Trades!$E:$E,"Sale"),Benchmark!$H$6:$M$200,4,FALSE)))) -> 0 | NL6: =IF(NE6="Hold",((MT6-SUMIFS(Trades!$H:$H,Trades!$B:$B,NE$1,Trades!$C:$C,$B6,Trades!$E:$E,"Sale"))*(1+VLOOKUP(NE$1,Benchmark!$H$6:$M$200,4,FALSE))) +IFERROR((SUMIFS(Trades!$H:$H,Trades!$B:$B,NE$1,Trades!$C:$C,$B6,Trades!$E:$E,"Purchase")*(1+VLOOKUP(SUMIFS(Trades!$A:$A,Trades!$B:$B,NE$1,Trades!$C:$C,$B6,Trades!$E:$E,"Purchase"),Benchmark!$H$6:$M$200,4,FALSE))),0), IF(NE6="Purchase",SUMIFS(Trades!$H:$H,Trades!$B:$B,NE$1,Trades!$C:$C,$B6,Trades!$E:$E,"Purchase")*(1+NK6), IF(NE6="Sale",0))) ->  | NP6: -6.278368394e-05 | NQ6: 60633.38897 | NT6: Hold | NU6: =NF6+SUMIFS(Trades!$H:$H,Trades!$C:$C,$B6,Trades!$E:$E,"Purchase",Trades!$B:$B,NT$1)-SUMIFS(Trades!$H:$H,Trades!$C:$C,$B6,Trades!$E:$E,"Sale",Trades!$B:$B,NT$1) -> 60637.196 | NV6: #N/A N/A | NW6: =NH6+SUMIFS(Trades!$F:$F,Trades!$C:$C,$B6,Trades!$B:$B,NT$1,Trades!$E:$E,"Purchase")-SUMIFS(Trades!$F:$F,Trades!$C:$C,$B6,Trades!$B:$B,NT$1,Trades!$E:$E,"Sale") -> 820 | NY6: =IF(NT6="Hold",(NX6)/(NI6+SUMIFS(Trades!$H:$H,Trades!$B:$B,NT$1,Trades!$E:$E,"Purchase",Trades!$C:$C,$B6))-1, IF(NT6="Purchase",NX6/SUMIFS(Trades!$H:$H,Trades!$B:$B,NT$1,Trades!$E:$E,"Purchase",Trades!$C:$C,$B6)-1, IF(NT6="Sale",SUMIFS(Trades!$H:$H,Trades!$B:$B,NT$1,Trades!$E:$E,"Sale",Trades!$C:$C,$B6)/NI6-1))) ->  | NZ6: =IF(NT6="Hold",IFERROR((((NI6-SUMIFS(Trades!$H:$H,Trades!$B:$B,NT$1,Trades!$C:$C,$B6,Trades!$E:$E,"Sale"))/(NI6+SUMIFS(Trades!$H:$H,Trades!$B:$B,NT$1,Trades!$C:$C,$B6,Trades!$E:$E,"Purchase")))*VLOOKUP(NT$1,Benchmark!$H$6:$M$200,4,FALSE)),0) +IFERROR(((SUMIFS(Trades!$H:$H,Trades!$B:$B,NT$1,Trades!$C:$C,$B6,Trades!$E:$E,"Purchase")/(NI6+SUMIFS(Trades!$H:$H,Trades!$B:$B,NT$1,Trades!$C:$C,$B6,Trades!$E:$E,"Purchase")))*VLOOKUP(SUMIFS(Trades!$A:$A,Trades!$B:$B,NT$1,Trades!$C:$C,$B6,Trades!$E:$E,"Purchase"),Benchmark!$H$6:$M$200,6,FALSE)),0) +IFERROR(((SUMIFS(Trades!$H:$H,Trades!$B:$B,NT$1,Trades!$C:$C,$B6,Trades!$E:$E,"Sale")/(NI6+SUMIFS(Trades!$H:$H,Trades!$B:$B,NT$1,Trades!$C:$C,$B6,Trades!$E:$E,"Purchase")))*VLOOKUP(SUMIFS(Trades!$A:$A,Trades!$B:$B,NT$1,Trades!$C:$C,$B6,Trades!$E:$E,"Sale"),Benchmark!$H$6:$M$200,4,FALSE)),0), IF(NT6="Purchase",VLOOKUP(SUMIFS(Trades!$A:$A,Trades!$B:$B,NT$1,Trades!$C:$C,$B6,Trades!$E:$E,NT6,Trades!$E:$E,"Purchase"),Benchmark!$H$6:$M$200,6,FALSE), IF(NT6="Sale",VLOOKUP(SUMIFS(Trades!$A:$A,Trades!$B:$B,NT$1,Trades!$C:$C,$B6,Trades!$E:$E,NT6,Trades!$E:$E,"Sale"),Benchmark!$H$6:$M$200,4,FALSE)))) -> 0 | OA6: =IF(NT6="Hold",((NI6-SUMIFS(Trades!$H:$H,Trades!$B:$B,NT$1,Trades!$C:$C,$B6,Trades!$E:$E,"Sale"))*(1+VLOOKUP(NT$1,Benchmark!$H$6:$M$200,4,FALSE))) +IFERROR((SUMIFS(Trades!$H:$H,Trades!$B:$B,NT$1,Trades!$C:$C,$B6,Trades!$E:$E,"Purchase")*(1+VLOOKUP(SUMIFS(Trades!$A:$A,Trades!$B:$B,NT$1,Trades!$C:$C,$B6,Trades!$E:$E,"Purchase"),Benchmark!$H$6:$M$200,4,FALSE))),0), IF(NT6="Purchase",SUMIFS(Trades!$H:$H,Trades!$B:$B,NT$1,Trades!$C:$C,$B6,Trades!$E:$E,"Purchase")*(1+NZ6), IF(NT6="Sale",0))) ->  | OE6: -6.278368394e-05 | OF6: 60633.38897 | OI6: Hold | OJ6: =NU6+SUMIFS(Trades!$H:$H,Trades!$C:$C,$B6,Trades!$E:$E,"Purchase",Trades!$B:$B,OI$1)-SUMIFS(Trades!$H:$H,Trades!$C:$C,$B6,Trades!$E:$E,"Sale",Trades!$B:$B,OI$1) -> 60637.196 | OK6: #N/A N/A | OL6: =NW6+SUMIFS(Trades!$F:$F,Trades!$C:$C,$B6,Trades!$B:$B,OI$1,Trades!$E:$E,"Purchase")-SUMIFS(Trades!$F:$F,Trades!$C:$C,$B6,Trades!$B:$B,OI$1,Trades!$E:$E,"Sale") -> 820 | ON6: =IF(OI6="Hold",(OM6)/(NX6+SUMIFS(Trades!$H:$H,Trades!$B:$B,OI$1,Trades!$E:$E,"Purchase",Trades!$C:$C,$B6))-1, IF(OI6="Purchase",OM6/SUMIFS(Trades!$H:$H,Trades!$B:$B,OI$1,Trades!$E:$E,"Purchase",Trades!$C:$C,$B6)-1, IF(OI6="Sale",SUMIFS(Trades!$H:$H,Trades!$B:$B,OI$1,Trades!$E:$E,"Sale",Trades!$C:$C,$B6)/NX6-1))) ->  | OO6: =IF(OI6="Hold",IFERROR((((NX6-SUMIFS(Trades!$H:$H,Trades!$B:$B,OI$1,Trades!$C:$C,$B6,Trades!$E:$E,"Sale"))/(NX6+SUMIFS(Trades!$H:$H,Trades!$B:$B,OI$1,Trades!$C:$C,$B6,Trades!$E:$E,"Purchase")))*VLOOKUP(OI$1,Benchmark!$H$6:$M$200,4,FALSE)),0) +IFERROR(((SUMIFS(Trades!$H:$H,Trades!$B:$B,OI$1,Trades!$C:$C,$B6,Trades!$E:$E,"Purchase")/(NX6+SUMIFS(Trades!$H:$H,Trades!$B:$B,OI$1,Trades!$C:$C,$B6,Trades!$E:$E,"Purchase")))*VLOOKUP(SUMIFS(Trades!$A:$A,Trades!$B:$B,OI$1,Trades!$C:$C,$B6,Trades!$E:$E,"Purchase"),Benchmark!$H$6:$M$200,6,FALSE)),0) +IFERROR(((SUMIFS(Trades!$H:$H,Trades!$B:$B,OI$1,Trades!$C:$C,$B6,Trades!$E:$E,"Sale")/(NX6+SUMIFS(Trades!$H:$H,Trades!$B:$B,OI$1,Trades!$C:$C,$B6,Trades!$E:$E,"Purchase")))*VLOOKUP(SUMIFS(Trades!$A:$A,Trades!$B:$B,OI$1,Trades!$C:$C,$B6,Trades!$E:$E,"Sale"),Benchmark!$H$6:$M$200,4,FALSE)),0), IF(OI6="Purchase",VLOOKUP(SUMIFS(Trades!$A:$A,Trades!$B:$B,OI$1,Trades!$C:$C,$B6,Trades!$E:$E,OI6,Trades!$E:$E,"Purchase"),Benchmark!$H$6:$M$200,6,FALSE), IF(OI6="Sale",VLOOKUP(SUMIFS(Trades!$A:$A,Trades!$B:$B,OI$1,Trades!$C:$C,$B6,Trades!$E:$E,OI6,Trades!$E:$E,"Sale"),Benchmark!$H$6:$M$200,4,FALSE)))) -> 0 | OP6: =IF(OI6="Hold",((NX6-SUMIFS(Trades!$H:$H,Trades!$B:$B,OI$1,Trades!$C:$C,$B6,Trades!$E:$E,"Sale"))*(1+VLOOKUP(OI$1,Benchmark!$H$6:$M$200,4,FALSE))) +IFERROR((SUMIFS(Trades!$H:$H,Trades!$B:$B,OI$1,Trades!$C:$C,$B6,Trades!$E:$E,"Purchase")*(1+VLOOKUP(SUMIFS(Trades!$A:$A,Trades!$B:$B,OI$1,Trades!$C:$C,$B6,Trades!$E:$E,"Purchase"),Benchmark!$H$6:$M$200,4,FALSE))),0), IF(OI6="Purchase",SUMIFS(Trades!$H:$H,Trades!$B:$B,OI$1,Trades!$C:$C,$B6,Trades!$E:$E,"Purchase")*(1+OO6), IF(OI6="Sale",0))) ->  | OT6: -6.278368394e-05 | OU6: 60633.38897
